Workbook

Sheet Preface

Sheet Financial Definitions
A1: Annual Technology Baseline Goals - Develop consistent and normalized technology cost and performance assumptions - Mature the tracking and sourcing of input assumptions - Enable consistency in assumptions across analysis projects (and modeling). - Reduce the lead time for validating the consistency of analysis projects. - Expand beyond the initial electric sector focus.
B2: Electricity Generation Technology LCOE equation for Standard Scenarios – ReEDS Model Inputs and Annual Technology Baseline presentation of technology assumptions.
B3: Note: Costs associated with a given year are for systems that come online in that year. For example, the overnight capital cost (OCC) for a technology in 2020 represents the OCC of a system that came online in 2020.
B5: Levelized Cost of Energy ($/MWh) | C5: LCOE = ((FCR * CAPEX + FOM)*1000/(CF * 8760)) + VOM + Fuel
C6: LCOE = ((CRF * ProFinFactor * ConFinFactor * (OCC * CapRegMult + GCC) + FOM) * 1000 / (CF * 8760)) + VOM + Fuel
B8: Fixed Charge Rate | C8: FCR = CRF * ProFinFactor | D8: Amount of revenue per dollar of investment required that must be collected annually from customers to pay the carrying charges on that investment.
B10: CAPEX | C10: CAPEX = ConFinFActor * (OCC * CapRegMult + GCC) | D10: Capital expenditures required to achieve commercial operation of the generation plant
B12: Capital Recovery Factor | C12: CRF = WACC / (1 - (1 / (1 + WACC)^t)) note: WACC real | D12: *ReEDS uses: CRF = (WACC - 1) / (1 - (1 / WACC)^t)
C13: WACC = ((1+((1-DF)*((1+RROE)*(1+i)-1)) + (DF*((1+IR)*(1+i)-1)*(1-TR))) / (1+i)) - 1 | D13: but uses a WACC that is equal to 1 + the WACC rate, and returns a CRF that is 1+CRF
C14: DF = debt fraction | D14: *ReEDS uses: WACC = (1 + ((1 - DF)*(RROE*i - 1)) + (DF*(IR*i - 1)*(1-TR))) / i
C15: RROE = rate of return on equity (real) = 10.24% | D15: but uses RROE, i, and IR that are equal to 1 + the rates, and returns a WACC that is 1+WACC
C16: i = inflation rate = 2.5%
C17: IR = interest rate (real) = 5.4%
B19: Project Finance factor | C19: ProFinFactor = (1 - TR * PVD) / (1 - TR)
C20: TR = combined state/federal tax rate
C21: PVD = present value of depreciation = summation from y=1 to y=M+1 of (FDy * fy)
C22: M = # years in MACRS depreciation schedule
C23: FDy = fraction of capital depreciated in year y
C24: fy = depreciation factor in year y | D24: fy = 1/dy
C25: d = nominal discount rate (8.9%) | D25: d = WACC * i
C26: i = inflation rate
B28: Construction Finance Factor | C28: ConFinFactor = summation from y=0 to y=C-1 of (FCy * AIy)
C29: FCy = fraction of capital spent in year y
C30: AIy =1 + (1 - TR) * ((1 + IDC)(year+0.5) - 1) | D30: *ReEDS uses: AIy =1 + (1 - TR) * (IDC(year+0.5) - 1)
C31: IDC = interest during construction | D31: but uses an IDC that is equal to 1 + the interest rate
C32: y = year index, starting at 0
C33: C = construction duration (years)
B35: Overnight Capital Cost | C35: OCC = input in $/kW
B37: Capital Regional Multiplier | C37: CapRegMult = 1 for ATB | D37: CapRegMult = 1 for ATB
B39: Grid Connection Costs | C39: GCC = GF + OnSpurCost + Off SpurCost
C40: GF | D40: grid feature = 0 for ATB
C41: OnSpurCost | D41: Onshore Spur Line Costs = 0 for ATB
C42: Off SpurCost | D42: Offshore (underwater) Spur Line Costs, represent distance of 30 km for ATB
B44: Fixed Operating Expenses | C44: FOM = input in $/kW
B46: * 1000 | C46: conversion factor from $/kW inputs to $/MWh output
B48: Capacity Factor | C48: CF = input as %
B50: * 8760 | C50: conversion factor for hours per year
B52: Variable Operating Expenses | C52: VOM = input in $/MWh
B54: Fuel | C54: Fuel = input in $/MWh
B56: Overnight LCOE | C56: =((OCC*CRF*(1-TR*PVD))/(8760*CF*(1-TR))+FOM/(8760*CF))*1000)+VOM | D56: This is similar to the LCOE used in the TCDB (Transparent Cost database)
B58: Definitions:
B59: AI | C59: Accumulated Interest | D59: Accumulated interest is a function of the interest during construction and the tax rate.
B60: C | C60: Construction Duration | D60: Number of years in construction period
B61: CapRegMult | C61: Capital Regional Multiplier | D61: Capital cost multipliers to account for regional variations that affect plant costs, e.g. labor rates, etc. Separate multipliers are applied to land-based and offshore wind plants, PV, CSP, coal, gas, nuclear, etc. No multipliers for geothermal or hydropower due to site specific nature of plant cost estimates.
B62: CF | C62: Capacity Factor (%) | D62: Generally defined as the ratio of actual annual output to output at rated capacity for an entire year.
B63: ConFinFactor | C63: Construction Finance Factor | D63: Portion of all-in capital cost associated with construction period financing. ConFinFactor is a function of C, FC, and IDC.
B64: CRF | C64: Capital Recovery Factor | D64: The ratio of a constant annuity to the present value of receiving that annuity for a given length of time. (Default in ReEDS is 8.89% real); CRF is a function of WACC and t.
B65: d | C65: nominal discount rate (8.9%) | D65: The discount rate is a function of the WACC and inflation.
B66: DF | C66: Debt Fraction | D66: Fraction of capital financed with debt. 1-DF is assumed financed with equity. (50% for all technologies in ReEDS)
B67: f | C67: Depreciation Factor | D67: The depreciation factor is a function of the discount rate.
B68: FC | C68: Capital Fraction | D68: Fraction of capital spent in each year of construction, 1 to C.
B69: FD | C69: Depreciation Fraction | D69: Fraction of capital depreciated in each year, 1 to M.
B70: FOM | C70: Fixed Operation and Maintenance Expenses ($/MW-year) | D70: Annual expenditures to operate and maintain equipment that are not incurred on a per-unit-energy basis.
B71: Fuel | C71: fuel cost ($/MWh) | D71: Fuel costs are converted to $/MWh from various units.
B72: GCC | C72: Grid Connection Costs | D72: Distance-based costs of spur lines over land, offshore wind plant export cable costs and construction-period transit costs
B73: GF | C73: Grid Feature | D73: Point of interconnection at the high voltage transmission network, including substation, transmission lines, load center, or BA center. (Default in ReEDS is $0/kW for substation and load center and $14/kW for others)
B74: i | C74: Inflation Rate | D74: Assumed inflation rate based on historical data. (2.5% in ReEDS)
B75: ICC | C75: Installed Capital Cost ($/MW) | D75: Total capital expenditure to achieve commercial operation up to the plant gate. This intermediate value is used only in presentation of technology cost assumptions with historic market data. It is not required to calculate LCOE.
B76: IDC | C76: Interest During Construction | D76: Interest rate for financing project during construction period.
B77: IR | C77: Interest Rate (real) | D77: Assumed interest rate on debt. (5.4% for all technologies in ReEDS, 8% nominal)
B78: M | C78: Depreciation period (years) | D78: Number of years in MACRS depreciation schedule.
B79: OCC | C79: Overnight Capital Cost ($/MW) | D79: Capital expenditures excluding construction period financing. Includes onsite electrical equipment (e.g., switchyard), a nominal-distance spur line (<1 mi), and necessary upgrades at a transmission substation.
B80: OffDist | C80: Offshore Distance | D80: Total offshore distance covered by the offshore export cables
B81: OffSpurCost | C81: Offshore (underwater) Spur Line Costs | D81: Cost for offshore (underwater) export cables from the offshore turbines to land including incremental construction-period transit costs; OffSpurCost is a function of OffDist and OffDistFactor.
B82: OffDistFactor | C82: Offshore Distance Factor | D82: Incremental capital expenditure for offshore wind plant export cable length between landfall and offshore wind plant site and construction-period transit costs between port and offshore wind plant site. Assumed HVAC for cables that are <70 km and HVDC otherwise. ($8.10/kW-km for AC cables and $13.49/kW-km for DC cables)
B83: OnDist | C83: Onshore Distance | D83: Total onshore distance covered by the onshore transmission spur lines
B84: OnRegTransMult | C84: Onshore Regional Transmission Multiplier | D84: Transmission cost multipliers to account for regional variations that affect onshore transmission line costs, e.g. labor rates, terrain, siting, etc.
B85: OnSpurCost | C85: Onshore Spur Line Costs | D85: Cost for onshore transmission lines from the plant gate to the grid feature; OnSpurCost is a function of OnDist, OnTransCost, and OnRegTransMult.
B86: OnTransCost | C86: Onshore Transmission Costs (for spur line) | D86: Base onshore transmission line costs (Default in ReEDS is $3922/MW-mile)
B87: ProFinFactor | C87: Project Finance factor | D87: Technology-specific financial multiplier to account for any applicable differences in depreciation schedule, and tax policies. ProFinFactor is a function of TR, WACC, i, M, and FD
B88: PVD | C88: Present Value of Depreciation | D88: PVD is a function of FD, f and y.
B89: RROE | C89: Rate of Return on Equity (real) | D89: Assumed rate of return on the share of assets financed with equity. (10% for all technologies in ReEDS, 13% nominal)
B90: t | C90: Economic Lifetime (years) | D90: Length of time for paying off assets (20 years for all technologies in ReEDS)
B91: TR | C91: Tax Rate | D91: Combined state and federal tax rate (40%)
B92: VOM | C92: Variable Operation and Maintenance Expenses ($/MWh) | D92: Operating and maintenance costs incurred on a per-unit-energy basis.
B93: WACC | C93: Weighted Average Cost of Capital (real) | D93: The average expected rate that is paid to finance assets. (Default in ReEDS is 6.2% real); WACC is a function of DF, RROE, IR, i, and TR.
B94: y | C94: year index, starting at 0
B96: Notes:
B97: CapRegMult = 1 | C97: ATB assumes that all plants represent typical equipment costs and do not include regionally specific labor or material cost increments.
B98: GCC = 0 | C98: ATB assumes that base plant cost includes small spur line to connect with grid for all technologies in overnight capital cost. An exception is made for offshore wind plants where the export cable and construction-period transit costs based on a 30 km distance from shore are represented in GCC. Specific transmission lines based on geographically determined distances between ReEDS regions and existing transmission features for wind and solar are not included in ATB.
B99: Inputs in ATB are in $/kW, in ReEDS they are $/MW

Sheet Land-Based Wind
A1: Land-Based Wind Inputs
T3: Inputs
J4: Take me to: | T4: Calculated
B10: X | G10: Current Costs
H12: Techno-Economic Cost and Performance Parameters | J12: Net Capacity Factor (%) | K12: TRG 1 | L12: 0.4899788088 | O12: Basis Year: | Q12: 2013
K13: TRG 2 | L13: 0.4628768974
K14: TRG 3 | L14: 0.439501756 | O14: Land-Based Wind Techno-Resource Groups (TRG)
K15: TRG 4 | L15: 0.3790649778 | Q15: Weighted | S15: Available | T15: Available
K16: TRG 5 | L16: 0.3202315642 | Q16: Average | S16: Capacity | T16: Generation
Q17: Wind Speed (m/s) | S17: (GW) | T17: (GWh)
J18: Annual Energy Production (kWh/kW) | K18: TRG 1 | L18: =(L12)*8760 -> 4292.214365 | O18: TRG 1 | Q18: 8.9 | S18: 70 | T18: 289
K19: TRG 2 | L19: =(L13)*8760 -> 4054.801621 | O19: TRG 2 | Q19: 8.1 | S19: 1171 | T19: 4705
K20: TRG 3 | L20: 3850.035383 | O20: TRG 3 | Q20: 7.4 | S20: 2429 | T20: 9281
K21: TRG 4 | L21: 3320.609206 | O21: TRG 4 | Q21: 6.7 | S21: 1175 | T21: 3842
K22: TRG 5 | L22: 2805.228503 | O22: TRG 5 | Q22: 6.1 | S22: 1323 | T22: 3674
J24: CAPEX ($/kW) | K24: TRG 1 | L24: =$S$37 * (L36 + L62) -> 1651.662191 | O24: Financial Assumptions:
K25: TRG 2 | L25: =$S$37 * (L37 + L63) -> 1721.723761 | O25: Inflation Rate | S25: 0.025
K26: TRG 3 | L26: 1826.831335 | O26: Economic Lifetime (Years) | S26: 20
K27: TRG 4 | L27: 1851.685183 | O27: Interest Rate - Nominal | S27: 0.08
K28: TRG 5 | L28: 1851.735915 | O28: Calculated Interest Rate - Real | S28: =(1+S27)/(1+S25)-1 -> 0.05365853659
O29: Interest During Construction - Nominal | S29: 0.08
J30: Construction Financing Cost ($/kW) | K30: TRG 1 | L30: =(L36+L62)*($S$37-1) -> 61.84741053 | O30: Rate of Return on Equity - Nominal | S30: 0.13
K31: TRG 2 | L31: =(L37+L63)*($S$37-1) -> 64.47090503 | O31: Calculated Rate of Return on Equity - Real | S31: =(1+S30)/(1+S25) - 1 -> 0.1024390244
K32: TRG 3 | L32: 68.40671669 | O32: Debt Fraction | S32: 0.5
K33: TRG 4 | L33: 69.33738284 | O33: Tax Rate (Federal and State) | S33: 0.4
K34: TRG 5 | L34: 69.33928254 | O34: WACC - Nominal | S34: =IF(S33>0,S32*S27*(1-S33)+(1-S32)*S30,S32*S27+(1-S32)*S30) -> 0.089
O35: WACC - Real | S35: =((1+((1-S32)*((1+S31)*(1+S25)-1)) + (S32*((1+S28)*(1+S25)-1)*(1-S33))) / (1+S25)) - 1 -> 0.06243902439
J36: Overnight Capital Cost (OCC) ($/kW) | K36: TRG 1 | L36: 1589.81478 | O36: Depreciation Period | S36: 5
K37: TRG 2 | L37: 1657.252856 | O37: Construction Finance Factor | S37: =SUMPRODUCT(P46:P48,Q46:Q48) -> 1.038902274
K38: TRG 3 | L38: 1758.424619 | O38: Present Value of Depreciation | S38: =SUMPRODUCT(O51:T51,O53:T53) -> 0.7938171517
K39: TRG 4 | L39: 1782.3478 | O39: Project Finance Factor | S39: =(1 - S33 * S38) / (1 - S33) -> 1.137455232
K40: TRG 5 | L40: 1782.396632 | O40: Capital Recovery Factor (CRF) - Nominal | S40: =S34 / (1 - (1 / (1 + S34)^S26)) -> 0.1087669328
O41: Capital Recovery Factor (CRF) - Real | S41: =S35 / (1 - (1 / (1 + S35)^S26)) -> 0.08891871362
J42: Fixed Operation and Maintenance Expenses ($/kW) | K42: TRG 1 | L42: 50.73237977
K43: TRG 2 | L43: 50.73237977 | O43: Construction Duration yrs | Q43: 3
K44: TRG 3 | L44: 50.73237977 | O44: Year | P44: Capital | Q44: Accumulated
K45: TRG 4 | L45: 50.73237977 | O45: Index | P45: Fraction | Q45: Interest
K46: TRG 5 | L46: 50.73237977 | O46: 0 | P46: 0.8 | Q46: =1+(1-S33)*((1+S29)^(O46+0.5)-1) -> 1.023538291
O47: 1 | P47: 0.1 | Q47: =1+(1-S33)*((1+S29)^(O47+0.5)-1) -> 1.073421354
J48: Variable Operation and Maintenance Expenses ($/MWh) | K48: TRG 1 | L48: 0 | O48: 2 | P48: 0.1 | Q48: =1+(1-S33)*((1+S29)^(O48+0.5)-1) -> 1.127295062
K49: TRG 2 | L49: 0
K50: TRG 3 | L50: 0 | N50: MACRS yr | O50: 1 | P50: 2 | Q50: 3 | R50: 4 | S50: 5 | T50: 6
K51: TRG 4 | L51: 0 | N51: Depreciation | O51: 0.2 | P51: 0.32 | Q51: 0.192 | R51: 0.1152 | S51: 0.1152 | T51: 0.0576
K52: TRG 5 | L52: 0 | N52: Fraction
N53: Depreciation | O53: =1/((1+S35)*(1+S25))^O50 -> 0.9182736455 | P53: =1/((1+S35)*(1+S25))^P50 -> 0.8432264881 | Q53: =1/((1+S35)*(1+S25))^Q50 -> 0.7743126613 | R53: =1/((1+S35)*(1+S25))^R50 -> 0.7110309102 | S53: =1/((1+S35)*(1+S25))^S50 -> 0.652920946 | T53: =1/((1+S35)*(1+S25))^T50 -> 0.5995600974
N54: Factor
H55: Finance | J55: Weighted Average Cost of Capital (WACC) (Nominal) (%) | K55: TRG 1 | L55: =$S$34 -> 0.089
K56: TRG 2 | L56: =$S$34 -> 0.089 | O56: Investment Tax Credit (ITC)* | S56: 0
K57: TRG 3 | L57: =$S$34 -> 0.089 | O57: Production Tax Credit (PTC)* | S57: 0
K58: TRG 4 | L58: =$S$34 -> 0.089 | O58: * not currently included in LCOE calculation
K59: TRG 5 | L59: =$S$34 -> 0.089
H62: Grid Connection Costs | J62: Grid Connection Costs (GCC) ($/kW) | K62: TRG 1 | L62: =L68+L74 -> 0
K63: TRG 2 | L63: =L69+L75 -> 0
K64: TRG 3 | L64: =L70+L76 -> 0
K65: TRG 4 | L65: =L71+L77 -> 0
K66: TRG 5 | L66: =L72+L78 -> 0
J68: Grid Feature Costs ($/kW) | K68: TRG 1 | L68: 0
K69: TRG 2 | L69: 0
K70: TRG 3 | L70: 0
K71: TRG 4 | L71: 0
K72: TRG 5 | L72: 0
J74: Onshore Spur Line Costs ($/kW) | K74: TRG 1 | L74: 0
K75: TRG 2 | L75: 0
K76: TRG 3 | L76: 0
K77: TRG 4 | L77: 0
K78: TRG 5 | L78: 0
H81: LCOE | J81: Levelized Cost of Energy ($/MWh) | K81: TRG 1 | L81: =(($S$41 * $S$39 * $S$37 * (L36 * 1 + L62) +L42) * 1000 / (L12 * 8760)) + L48 + 0 -> 50.73913357
K82: TRG 2 | L82: =(($S$41 * $S$39 * $S$37 * (L37 * 1 + L63) +L43) * 1000 / (L13 * 8760)) + L49 + 0 -> 55.45754397
K83: TRG 3 | L83: =(($S$41 * $S$39 * $S$37 * (L38 * 1 + L64) +L44) * 1000 / (L14 * 8760)) + L50 + 0 -> 61.16827687
K84: TRG 4 | L84: =(($S$41 * $S$39 * $S$37 * (L39 * 1 + L65) +L45) * 1000 / (L15 * 8760)) + L51 + 0 -> 71.6777434
K85: TRG 5 | L85: =(($S$41 * $S$39 * $S$37 * (L40 * 1 + L66) +L46) * 1000 / (L16 * 8760)) + L52 + 0 -> 84.84831289
J87: Overnight Levelized Cost of Energy ($/MWh) | K87: TRG 1 | L87: =(((L36*$S$41*(1-$S$33*$S$38))/(8760*L12*(1-$S$33))+L42/(8760*L12))*1000)+L48 -> 49.28177103 | M87: * this is similar to the LCOE used in the TCDB (Transparent Cost Database)
K88: TRG 2 | L88: =(((L37*$S$41*(1-$S$33*$S$38))/(8760*L13*(1-$S$33))+L43/(8760*L13))*1000)+L49 -> 53.84941217
K89: TRG 3 | L89: =(((L38*$S$41*(1-$S$33*$S$38))/(8760*L14*(1-$S$33))+L44/(8760*L14))*1000)+L50 -> 59.37122129
K90: TRG 4 | L90: =(((L39*$S$41*(1-$S$33*$S$38))/(8760*L15*(1-$S$33))+L45/(8760*L15))*1000)+L51 -> 69.56582487
K91: TRG 5 | L91: =(((L40*$S$41*(1-$S$33*$S$38))/(8760*L16*(1-$S$33))+L46/(8760*L16))*1000)+L52 -> 82.34832109
H94: ***Note: For future projections, low, mid, and high refer to low, mid, and high LCOE projections.
D97: X | G97: Future Projections
L99: =Q12+1 -> 2014 | M99: =L99+1 -> 2015 | N99: =M99+1 -> 2016 | O99: =N99+1 -> 2017 | P99: 2018 | Q99: 2019 | R99: =Q99+1 -> 2020 | S99: 2021 | T99: 2022 | U99: =T99+1 -> 2023 | V99: 2024 | W99: =V99+1 -> 2025 | X99: 2026 | Y99: 2027 | Z99: 2028 | AA99: 2029 | AB99: 2030 | AC99: 2031 | AD99: 2032 | AE99: 2033 | AF99: 2034 | AG99: 2035 | AH99: 2036 | AI99: 2037 | AJ99: 2038 | AK99: 2039 | AL99: 2040 | AM99: 2041 | AN99: 2042 | AO99: 2043 | AP99: 2044 | AQ99: 2045 | AR99: 2046 | AS99: 2047 | AT99: 2048 | AU99: 2049 | AV99: 2050
H100: Techno-Economic Cost and Performance Parameters | J100: Net Capacity Factor (%) | K100: TRG 1 - Low | L100: 0.5115685106 | M100: 0.5362127356 | N100: 0.5472661942 | O100: 0.5569957025 | P100: 0.5653295166 | Q100: 0.5722213194 | R100: 0.577650905 | S100: 0.5836629138 | T100: 0.5897942704 | U100: 0.5946728084 | V100: 0.5983497048 | W100: 0.600891881 | X100: 0.6023785303 | Y100: 0.6052138082 | Z100: 0.6072185257 | AA100: 0.6090695594 | AB100: 0.6102740037 | AC100: 0.6119353822 | AD100: 0.6131265594 | AE100: 0.6139208787 | AF100: 0.614991468 | AG100: 0.6157964078 | AH100: 0.6169970228 | AI100: 0.6180284596 | AJ100: 0.6189229399 | AK100: 0.6197031603 | AL100: 0.6203819864 | AM100: 0.6211080514 | AN100: 0.6217286251 | AO100: 0.6222256438 | AP100: 0.6225703873 | AQ100: 0.6227235739 | AR100: 0.6235188373 | AS100: 0.624013973 | AT100: 0.624137448 | AU100: 0.624137448 | AV100: 0.624137448
K101: TRG 1 - Mid | L101: 0.5115685106 | M101: 0.5172027296 | N101: 0.5222968549 | O101: 0.5268446293 | P101: 0.5308441509 | Q101: 0.5342977438 | R101: 0.5377756232 | S101: 0.5416980745 | T101: 0.545154188 | U101: 0.5481582825 | V101: 0.5507274869 | W101: 0.5528813519 | X101: 0.5557206384 | Y101: 0.5582134364 | Z101: 0.5606577972 | AA101: 0.5628075249 | AB101: 0.5649664367 | AC101: 0.5670372569 | AD101: 0.5688931232 | AE101: 0.5708431782 | AF101: 0.5726303228 | AG101: 0.5745655046 | AH101: 0.5763871018 | AI101: 0.5781174619 | AJ101: 0.5797781263 | AK101: 0.5813897138 | AL101: 0.582971845 | AM101: 0.5847311596 | AN101: 0.5864982114 | AO101: 0.5882892674 | AP101: 0.5901194054 | AQ101: 0.5920024796 | AR101: 0.593951095 | AS101: 0.5959765829 | AT101: 0.5980889692 | AU101: 0.6002969497 | AV101: 0.6026078517
K102: TRG 1 - High | L102: 0.5115685106 | M102: 0.5115685106 | N102: 0.5115685106 | O102: 0.5115685106 | P102: 0.5115685106 | Q102: 0.5115685106 | R102: 0.5115685106 | S102: 0.5115685106 | T102: 0.5115685106 | U102: 0.5115685106 | V102: 0.5115685106 | W102: 0.5115685106 | X102: 0.5115685106 | Y102: 0.5115685106 | Z102: 0.5115685106 | AA102: 0.5115685106 | AB102: 0.5115685106 | AC102: 0.5115685106 | AD102: 0.5115685106 | AE102: 0.5115685106 | AF102: 0.5115685106 | AG102: 0.5115685106 | AH102: 0.5115685106 | AI102: 0.5115685106 | AJ102: 0.5115685106 | AK102: 0.5115685106 | AL102: 0.5115685106 | AM102: 0.5115685106 | AN102: 0.5115685106 | AO102: 0.5115685106 | AP102: 0.5115685106 | AQ102: 0.5115685106 | AR102: 0.5115685106 | AS102: 0.5115685106 | AT102: 0.5115685106 | AU102: 0.5115685106 | AV102: 0.5115685106
K103: TRG 2 - Low | L103: 0.4680427049 | M103: 0.4905901242 | N103: 0.500703121 | O103: 0.5096048131 | P103: 0.5172295609 | Q103: 0.5235349881 | R103: 0.528502608 | S103: 0.5340030969 | T103: 0.539612779 | U103: 0.5440762361 | V103: 0.547440291 | W103: 0.5497661711 | X103: 0.5511263318 | Y103: 0.5537203756 | Z103: 0.5555545256 | AA103: 0.5572480678 | AB103: 0.5583500343 | AC103: 0.5598700576 | AD103: 0.5609598858 | AE103: 0.561686622 | AF103: 0.5626661223 | AG103: 0.5634025754 | AH103: 0.5645010384 | AI103: 0.5654447175 | AJ103: 0.5662630926 | AK103: 0.5669769295 | AL103: 0.567597999 | AM103: 0.5682622882 | AN103: 0.5688300616 | AO103: 0.5692847924 | AP103: 0.5696002041 | AQ103: 0.5697403571 | AR103: 0.5704679571 | AS103: 0.5709209652 | AT103: 0.5710339346 | AU103: 0.5710339346 | AV103: 0.5710339346
K104: TRG 2 - Mid | L104: 0.4680427049 | M104: 0.4731975474 | N104: 0.477858249 | O104: 0.4820190849 | P104: 0.485678315 | Q104: 0.4888380657 | R104: 0.4920200366 | S104: 0.4956087538 | T104: 0.4987708107 | U104: 0.5015193077 | V104: 0.5038699163 | W104: 0.5058405239 | X104: 0.5084382353 | Y104: 0.5107189385 | Z104: 0.5129553256 | AA104: 0.5149221479 | AB104: 0.516897373 | AC104: 0.5187920014 | AD104: 0.520489965 | AE104: 0.5222741034 | AF104: 0.5239091923 | AG104: 0.5256797229 | AH104: 0.5273463331 | AI104: 0.5289294689 | AJ104: 0.5304488389 | AK104: 0.5319233077 | AL104: 0.5333708263 | AM104: 0.5349804531 | AN104: 0.5365971587 | AO104: 0.5382358263 | AP104: 0.5399102506 | AQ104: 0.541633107 | AR104: 0.5434159283 | AS104: 0.5452690815 | AT104: 0.5472017395 | AU104: 0.5492218584 | AV104: 0.5513361417
K105: TRG 2 - High | L105: 0.4680427049 | M105: 0.4680427049 | N105: 0.4680427049 | O105: 0.4680427049 | P105: 0.4680427049 | Q105: 0.4680427049 | R105: 0.4680427049 | S105: 0.4680427049 | T105: 0.4680427049 | U105: 0.4680427049 | V105: 0.4680427049 | W105: 0.4680427049 | X105: 0.4680427049 | Y105: 0.4680427049 | Z105: 0.4680427049 | AA105: 0.4680427049 | AB105: 0.4680427049 | AC105: 0.4680427049 | AD105: 0.4680427049 | AE105: 0.4680427049 | AF105: 0.4680427049 | AG105: 0.4680427049 | AH105: 0.4680427049 | AI105: 0.4680427049 | AJ105: 0.4680427049 | AK105: 0.4680427049 | AL105: 0.4680427049 | AM105: 0.4680427049 | AN105: 0.4680427049 | AO105: 0.4680427049 | AP105: 0.4680427049 | AQ105: 0.4680427049 | AR105: 0.4680427049 | AS105: 0.4680427049 | AT105: 0.4680427049 | AU105: 0.4680427049 | AV105: 0.4680427049
K106: TRG 3 - Low | L106: 0.4419099611 | M106: 0.4628559169 | N106: 0.4735386796 | O106: 0.4831546255 | P106: 0.4916362623 | Q106: 0.4989372815 | R106: 0.5050333806 | S106: 0.5114352678 | T106: 0.5177068286 | U106: 0.5229135524 | V106: 0.5270956491 | W106: 0.5303073546 | X106: 0.5326139989 | Y106: 0.5356661996 | Z106: 0.53799453 | AA106: 0.5400757563 | AB106: 0.5415905652 | AC106: 0.5433690558 | AD106: 0.5447336748 | AE106: 0.5457489523 | AF106: 0.546886388 | AG106: 0.5477891449 | AH106: 0.5489176028 | AI106: 0.5498959662 | AJ106: 0.5507528596 | AK106: 0.5515084435 | AL106: 0.5521741367 | AM106: 0.5528733702 | AN106: 0.5534789661 | AO106: 0.5539748163 | AP106: 0.5543353174 | AQ106: 0.5545254515 | AR106: 0.5552336209 | AS106: 0.5556745314 | AT106: 0.5557844839 | AU106: 0.5557844839 | AV106: 0.5557844839
K107: TRG 3 - Mid | L107: 0.4419099611 | M107: 0.4476823368 | N107: 0.4526534028 | O107: 0.4571774522 | P107: 0.4612520935 | Q107: 0.4648785566 | R107: 0.4684432828 | S107: 0.4722707558 | T107: 0.4757048533 | U107: 0.4787573463 | V107: 0.4814424801 | W107: 0.4837766474 | X107: 0.4865021485 | Y107: 0.488929082 | Z107: 0.4912615084 | AA107: 0.4933388683 | AB107: 0.4953693032 | AC107: 0.4973170432 | AD107: 0.4990778822 | AE107: 0.5008634827 | AF107: 0.5025068695 | AG107: 0.5042207336 | AH107: 0.5058350397 | AI107: 0.5073693913 | AJ107: 0.5088426871 | AK107: 0.510273018 | AL107: 0.5116776013 | AM107: 0.5132287366 | AN107: 0.5147867084 | AO107: 0.5163657954 | AP107: 0.517979233 | AQ107: 0.5196391834 | AR107: 0.5213567128 | AS107: 0.5231417703 | AT107: 0.5250031593 | AU107: 0.5269485163 | AV107: 0.5289842768
K108: TRG 3 - High | L108: 0.4419099611 | M108: 0.4419099611 | N108: 0.4419099611 | O108: 0.4419099611 | P108: 0.4419099611 | Q108: 0.4419099611 | R108: 0.4419099611 | S108: 0.4419099611 | T108: 0.4419099611 | U108: 0.4419099611 | V108: 0.4419099611 | W108: 0.4419099611 | X108: 0.4419099611 | Y108: 0.4419099611 | Z108: 0.4419099611 | AA108: 0.4419099611 | AB108: 0.4419099611 | AC108: 0.4419099611 | AD108: 0.4419099611 | AE108: 0.4419099611 | AF108: 0.4419099611 | AG108: 0.4419099611 | AH108: 0.4419099611 | AI108: 0.4419099611 | AJ108: 0.4419099611 | AK108: 0.4419099611 | AL108: 0.4419099611 | AM108: 0.4419099611 | AN108: 0.4419099611 | AO108: 0.4419099611 | AP108: 0.4419099611 | AQ108: 0.4419099611 | AR108: 0.4419099611 | AS108: 0.4419099611 | AT108: 0.4419099611 | AU108: 0.4419099611 | AV108: 0.4419099611
K109: TRG 4 - Low | L109: 0.3821130454 | M109: 0.4001311372 | N109: 0.4116875307 | O109: 0.4224762446 | P109: 0.4324276183 | Q109: 0.4414887507 | R109: 0.4496246788 | S109: 0.457652012 | T109: 0.46506704 | U109: 0.4715952848 | V109: 0.477263433 | W109: 0.4821111846 | X109: 0.486188849 | Y109: 0.4900183816 | Z109: 0.4932072414 | AA109: 0.495938549 | AB109: 0.4981626589 | AC109: 0.5003626082 | AD109: 0.5021882053 | AE109: 0.5036977689 | AF109: 0.5050653376 | AG109: 0.5062188313 | AH109: 0.5073206904 | AI109: 0.5082842357 | AJ109: 0.5091358822 | AK109: 0.5098942312 | AL109: 0.51056981 | AM109: 0.5112680984 | AN109: 0.511880054 | AO109: 0.5123907525 | AP109: 0.51277648 | AQ109: 0.513004803 | AR109: 0.5136599475 | AS109: 0.5140678444 | AT109: 0.5141695641 | AU109: 0.5141695641 | AV109: 0.5141695641
K110: TRG 4 - Mid | L110: 0.3821130454 | M110: 0.3878968709 | N110: 0.393347232 | O110: 0.3984568539 | P110: 0.4032215575 | Q110: 0.4076402212 | R110: 0.4118261802 | S110: 0.4160001859 | T110: 0.4198507428 | U110: 0.4233866321 | V110: 0.4266188683 | W110: 0.4295604315 | X110: 0.4324312941 | Y110: 0.4350448917 | Z110: 0.4374701279 | AA110: 0.4396734511 | AB110: 0.4417258482 | AC110: 0.44370261 | AD110: 0.4455153687 | AE110: 0.4472363494 | AF110: 0.4488315315 | AG110: 0.4503730929 | AH110: 0.4518258111 | AI110: 0.4532071907 | AJ110: 0.4545341082 | AK110: 0.4558227204 | AL110: 0.4570884052 | AM110: 0.4584788478 | AN110: 0.459875429 | AO110: 0.4612909047 | AP110: 0.4627370992 | AQ110: 0.4642248788 | AR110: 0.4657641312 | AS110: 0.4673637462 | AT110: 0.4690315905 | AU110: 0.4707744889 | AV110: 0.4725981931
K111: TRG 4 - High | L111: 0.3821130454 | M111: 0.3821130454 | N111: 0.3821130454 | O111: 0.3821130454 | P111: 0.3821130454 | Q111: 0.3821130454 | R111: 0.3821130454 | S111: 0.3821130454 | T111: 0.3821130454 | U111: 0.3821130454 | V111: 0.3821130454 | W111: 0.3821130454 | X111: 0.3821130454 | Y111: 0.3821130454 | Z111: 0.3821130454 | AA111: 0.3821130454 | AB111: 0.3821130454 | AC111: 0.3821130454 | AD111: 0.3821130454 | AE111: 0.3821130454 | AF111: 0.3821130454 | AG111: 0.3821130454 | AH111: 0.3821130454 | AI111: 0.3821130454 | AJ111: 0.3821130454 | AK111: 0.3821130454 | AL111: 0.3821130454 | AM111: 0.3821130454 | AN111: 0.3821130454 | AO111: 0.3821130454 | AP111: 0.3821130454 | AQ111: 0.3821130454 | AR111: 0.3821130454 | AS111: 0.3821130454 | AT111: 0.3821130454 | AU111: 0.3821130454 | AV111: 0.3821130454
K112: TRG 5 - Low | L112: 0.322799592 | M112: 0.3380208277 | N112: 0.3477833813 | O112: 0.3568974184 | P112: 0.3653040912 | Q112: 0.3729587104 | R112: 0.3798317399 | S112: 0.3866130313 | T112: 0.3928770624 | U112: 0.3983919612 | V112: 0.4031802718 | W112: 0.4072755317 | X112: 0.4107202411 | Y112: 0.4139553349 | Z112: 0.4166492043 | AA112: 0.418956545 | AB112: 0.4208354178 | AC112: 0.4226938802 | AD112: 0.4242360992 | AE112: 0.4255113409 | AF112: 0.4266666289 | AG112: 0.4276410717 | AH112: 0.4285718948 | AI112: 0.429385874 | AJ112: 0.4301053237 | AK112: 0.4307459581 | AL112: 0.4313166702 | AM112: 0.4319065669 | AN112: 0.4324235318 | AO112: 0.4328549572 | AP112: 0.4331808102 | AQ112: 0.4333736917 | AR112: 0.4339271415 | AS112: 0.4342717226 | AT112: 0.4343576529 | AU112: 0.4343576529 | AV112: 0.4343576529
K113: TRG 5 - Mid | L113: 0.322799592 | M113: 0.327685624 | N113: 0.3322899534 | O113: 0.3366064348 | P113: 0.3406315378 | Q113: 0.3443643149 | R113: 0.347900509 | S113: 0.3514266051 | T113: 0.3546794597 | U113: 0.3576664911 | V113: 0.3603970037 | W113: 0.3628819632 | X113: 0.3653071964 | Y113: 0.3675150987 | Z113: 0.3695638779 | AA113: 0.3714251904 | AB113: 0.3731590045 | AC113: 0.3748289236 | AD113: 0.3763602971 | AE113: 0.3778141387 | AF113: 0.3791617089 | AG113: 0.3804639816 | AH113: 0.3816912017 | AI113: 0.3828581569 | AJ113: 0.3839791038 | AK113: 0.3850676913 | AL113: 0.3861369103 | AM113: 0.3873115216 | AN113: 0.3884913187 | AO113: 0.3896870773 | AP113: 0.3909087865 | AQ113: 0.3921656256 | AR113: 0.3934659478 | AS113: 0.3948172627 | AT113: 0.3962262161 | AU113: 0.3976985732 | AV113: 0.3992391931
K114: TRG 5 - High | L114: 0.322799592 | M114: 0.322799592 | N114: 0.322799592 | O114: 0.322799592 | P114: 0.322799592 | Q114: 0.322799592 | R114: 0.322799592 | S114: 0.322799592 | T114: 0.322799592 | U114: 0.322799592 | V114: 0.322799592 | W114: 0.322799592 | X114: 0.322799592 | Y114: 0.322799592 | Z114: 0.322799592 | AA114: 0.322799592 | AB114: 0.322799592 | AC114: 0.322799592 | AD114: 0.322799592 | AE114: 0.322799592 | AF114: 0.322799592 | AG114: 0.322799592 | AH114: 0.322799592 | AI114: 0.322799592 | AJ114: 0.322799592 | AK114: 0.322799592 | AL114: 0.322799592 | AM114: 0.322799592 | AN114: 0.322799592 | AO114: 0.322799592 | AP114: 0.322799592 | AQ114: 0.322799592 | AR114: 0.322799592 | AS114: 0.322799592 | AT114: 0.322799592 | AU114: 0.322799592 | AV114: 0.322799592
J116: Annual Energy Production (kWh/kW) | K116: TRG 1 - Low | L116: =(L100)*8760 -> 4481.340153 | M116: =(M100)*8760 -> 4697.223564 | N116: 4794.051861 | O116: 4879.282354 | P116: 4952.286566 | Q116: 5012.658758 | R116: 5060.221928 | S116: 5112.887125 | T116: 5166.597809 | U116: 5209.333801 | V116: 5241.543414 | W116: 5263.812877 | X116: 5276.835926 | Y116: 5301.67296 | Z116: 5319.234285 | AA116: 5335.449341 | AB116: 5346.000273 | AC116: 5360.553948 | AD116: 5370.98866 | AE116: 5377.946897 | AF116: 5387.32526 | AG116: 5394.376533 | AH116: 5404.89392 | AI116: 5413.929306 | AJ116: 5421.764953 | AK116: 5428.599684 | AL116: 5434.546201 | AM116: 5440.906531 | AN116: 5446.342756 | AO116: 5450.69664 | AP116: 5453.716593 | AQ116: 5455.058507 | AR116: 5462.025015 | AS116: 5466.362404 | AT116: 5467.444045 | AU116: 5467.444045 | AV116: 5467.444045
K117: TRG 1 - Mid | L117: =(L101)*8760 -> 4481.340153 | M117: 4530.695911 | N117: 4575.320449 | O117: 4615.158953 | P117: 4650.194762 | Q117: 4680.448236 | R117: 4710.914459 | S117: 4745.275132 | T117: 4775.550687 | U117: 4801.866555 | V117: 4824.372785 | W117: 4843.240642 | X117: 4868.112792 | Y117: 4889.949703 | Z117: 4911.362304 | AA117: 4930.193918 | AB117: 4949.105986 | AC117: 4967.24637 | AD117: 4983.503759 | AE117: 5000.586241 | AF117: 5016.241628 | AG117: 5033.19382 | AH117: 5049.151011 | AI117: 5064.308966 | AJ117: 5078.856387 | AK117: 5092.973893 | AL117: 5106.833362 | AM117: 5122.244958 | AN117: 5137.724332 | AO117: 5153.413983 | AP117: 5169.445992 | AQ117: 5185.941721 | AR117: 5203.011592 | AS117: 5220.754866 | AT117: 5239.25937 | AU117: 5258.60128 | AV117: 5278.84478
K118: TRG 1 - High | L118: 4481.340153 | M118: 4481.340153 | N118: 4481.340153 | O118: 4481.340153 | P118: 4481.340153 | Q118: 4481.340153 | R118: 4481.340153 | S118: 4481.340153 | T118: 4481.340153 | U118: 4481.340153 | V118: 4481.340153 | W118: 4481.340153 | X118: 4481.340153 | Y118: 4481.340153 | Z118: 4481.340153 | AA118: 4481.340153 | AB118: 4481.340153 | AC118: 4481.340153 | AD118: 4481.340153 | AE118: 4481.340153 | AF118: 4481.340153 | AG118: 4481.340153 | AH118: 4481.340153 | AI118: 4481.340153 | AJ118: 4481.340153 | AK118: 4481.340153 | AL118: 4481.340153 | AM118: 4481.340153 | AN118: 4481.340153 | AO118: 4481.340153 | AP118: 4481.340153 | AQ118: 4481.340153 | AR118: 4481.340153 | AS118: 4481.340153 | AT118: 4481.340153 | AU118: 4481.340153 | AV118: 4481.340153
K119: TRG 2 - Low | L119: 4100.054095 | M119: 4297.569488 | N119: 4386.15934 | O119: 4464.138162 | P119: 4530.930954 | Q119: 4586.166496 | R119: 4629.682846 | S119: 4677.867129 | T119: 4727.007944 | U119: 4766.107828 | V119: 4795.576949 | W119: 4815.951659 | X119: 4827.866666 | Y119: 4850.59049 | Z119: 4866.657644 | AA119: 4881.493074 | AB119: 4891.1463 | AC119: 4904.461705 | AD119: 4914.0086 | AE119: 4920.374809 | AF119: 4928.955232 | AG119: 4935.406561 | AH119: 4945.029097 | AI119: 4953.295725 | AJ119: 4960.464691 | AK119: 4966.717902 | AL119: 4972.158471 | AM119: 4977.977645 | AN119: 4982.95134 | AO119: 4986.934782 | AP119: 4989.697788 | AQ119: 4990.925528 | AR119: 4997.299304 | AS119: 5001.267655 | AT119: 5002.257267 | AU119: 5002.257267 | AV119: 5002.257267
K120: TRG 2 - Mid | L120: 4100.054095 | M120: 4145.210515 | N120: 4186.038261 | O120: 4222.487184 | P120: 4254.54204 | Q120: 4282.221456 | R120: 4310.095521 | S120: 4341.532683 | T120: 4369.232301 | U120: 4393.309135 | V120: 4413.900467 | W120: 4431.162989 | X120: 4453.918941 | Y120: 4473.897901 | Z120: 4493.488652 | AA120: 4510.718016 | AB120: 4528.020987 | AC120: 4544.617932 | AD120: 4559.492093 | AE120: 4575.121146 | AF120: 4589.444524 | AG120: 4604.954373 | AH120: 4619.553878 | AI120: 4633.422148 | AJ120: 4646.731829 | AK120: 4659.648175 | AL120: 4672.328438 | AM120: 4686.428769 | AN120: 4700.59111 | AO120: 4714.945838 | AP120: 4729.613795 | AQ120: 4744.706017 | AR120: 4760.323532 | AS120: 4776.557154 | AT120: 4793.487238 | AU120: 4811.183479 | AV120: 4829.704602
K121: TRG 2 - High | L121: 4100.054095 | M121: 4100.054095 | N121: 4100.054095 | O121: 4100.054095 | P121: 4100.054095 | Q121: 4100.054095 | R121: 4100.054095 | S121: 4100.054095 | T121: 4100.054095 | U121: 4100.054095 | V121: 4100.054095 | W121: 4100.054095 | X121: 4100.054095 | Y121: 4100.054095 | Z121: 4100.054095 | AA121: 4100.054095 | AB121: 4100.054095 | AC121: 4100.054095 | AD121: 4100.054095 | AE121: 4100.054095 | AF121: 4100.054095 | AG121: 4100.054095 | AH121: 4100.054095 | AI121: 4100.054095 | AJ121: 4100.054095 | AK121: 4100.054095 | AL121: 4100.054095 | AM121: 4100.054095 | AN121: 4100.054095 | AO121: 4100.054095 | AP121: 4100.054095 | AQ121: 4100.054095 | AR121: 4100.054095 | AS121: 4100.054095 | AT121: 4100.054095 | AU121: 4100.054095 | AV121: 4100.054095
K122: TRG 3 - Low | L122: 3871.13126 | M122: 4054.617832 | N122: 4148.198834 | O122: 4232.43452 | P122: 4306.733657 | Q122: 4370.690586 | R122: 4424.092414 | S122: 4480.172946 | T122: 4535.111819 | U122: 4580.722719 | V122: 4617.357886 | W122: 4645.492426 | X122: 4665.69863 | Y122: 4692.435908 | Z122: 4712.832082 | AA122: 4731.063625 | AB122: 4744.333351 | AC122: 4759.912929 | AD122: 4771.866992 | AE122: 4780.760822 | AF122: 4790.724759 | AG122: 4798.632909 | AH122: 4808.518201 | AI122: 4817.088664 | AJ122: 4824.59505 | AK122: 4831.213965 | AL122: 4837.045437 | AM122: 4843.170723 | AN122: 4848.475743 | AO122: 4852.81939 | AP122: 4855.977381 | AQ122: 4857.642955 | AR122: 4863.846519 | AS122: 4867.708895 | AT122: 4868.672079 | AU122: 4868.672079 | AV122: 4868.672079
K123: TRG 3 - Mid | L123: 3871.13126 | M123: 3921.69727 | N123: 3965.243809 | O123: 4004.874482 | P123: 4040.568339 | Q123: 4072.336156 | R123: 4103.563157 | S123: 4137.09182 | T123: 4167.174515 | U123: 4193.914353 | V123: 4217.436126 | W123: 4237.883431 | X123: 4261.758821 | Y123: 4283.018758 | Z123: 4303.450814 | AA123: 4321.648487 | AB123: 4339.435096 | AC123: 4356.497299 | AD123: 4371.922248 | AE123: =(AE107)*8760 -> 4387.564109 | AF123: 4401.960177 | AG123: 4416.973626 | AH123: 4431.114947 | AI123: 4444.555868 | AJ123: 4457.461939 | AK123: 4469.991637 | AL123: 4482.295788 | AM123: 4495.883733 | AN123: 4509.531565 | AO123: 4523.364368 | AP123: 4537.498081 | AQ123: 4552.039246 | AR123: 4567.084804 | AS123: 4582.721908 | AT123: 4599.027675 | AU123: 4616.069003 | AV123: 4633.902264
K124: TRG 3 - High | L124: 3871.13126 | M124: 3871.13126 | N124: 3871.13126 | O124: 3871.13126 | P124: 3871.13126 | Q124: 3871.13126 | R124: 3871.13126 | S124: 3871.13126 | T124: 3871.13126 | U124: 3871.13126 | V124: 3871.13126 | W124: 3871.13126 | X124: 3871.13126 | Y124: 3871.13126 | Z124: 3871.13126 | AA124: 3871.13126 | AB124: 3871.13126 | AC124: 3871.13126 | AD124: 3871.13126 | AE124: 3871.13126 | AF124: 3871.13126 | AG124: 3871.13126 | AH124: 3871.13126 | AI124: 3871.13126 | AJ124: 3871.13126 | AK124: 3871.13126 | AL124: 3871.13126 | AM124: 3871.13126 | AN124: 3871.13126 | AO124: 3871.13126 | AP124: 3871.13126 | AQ124: 3871.13126 | AR124: 3871.13126 | AS124: 3871.13126 | AT124: 3871.13126 | AU124: 3871.13126 | AV124: 3871.13126
K125: TRG 4 - Low | L125: 3347.310277 | M125: 3505.148762 | N125: 3606.382769 | O125: 3700.891903 | P125: 3788.065937 | Q125: 3867.441456 | R125: 3938.712186 | S125: 4009.031626 | T125: 4073.98727 | U125: 4131.174695 | V125: 4180.827673 | W125: 4223.293977 | X125: 4259.014317 | Y125: 4292.561023 | Z125: 4320.495434 | AA125: 4344.421689 | AB125: 4363.904892 | AC125: 4383.176448 | AD125: 4399.168679 | AE125: 4412.392456 | AF125: 4424.372357 | AG125: 4434.476962 | AH125: 4444.129248 | AI125: 4452.569905 | AJ125: 4460.030328 | AK125: 4466.673465 | AL125: 4472.591535 | AM125: 4478.708542 | AN125: 4484.069273 | AO125: 4488.542992 | AP125: 4491.921965 | AQ125: 4493.922074 | AR125: 4499.66114 | AS125: 4503.234317 | AT125: 4504.125382 | AU125: 4504.125382 | AV125: 4504.125382
K126: TRG 4 - Mid | L126: 3347.310277 | M126: 3397.976589 | N126: 3445.721752 | O126: 3490.48204 | P126: 3532.220844 | Q126: 3570.928338 | R126: 3607.597339 | S126: 3644.161629 | T126: 3677.892507 | U126: 3708.866897 | V126: 3737.181286 | W126: 3762.94938 | X126: 3788.098136 | Y126: 3810.993251 | Z126: 3832.238321 | AA126: 3851.539432 | AB126: 3869.518431 | AC126: 3886.834863 | AD126: 3902.71463 | AE126: 3917.790421 | AF126: 3931.764216 | AG126: 3945.268294 | AH126: 3957.994105 | AI126: 3970.09499 | AJ126: 3981.718788 | AK126: 3993.007031 | AL126: 4004.094429 | AM126: 4016.274707 | AN126: 4028.508758 | AO126: 4040.908325 | AP126: 4053.576989 | AQ126: 4066.609939 | AR126: 4080.09379 | AS126: 4094.106417 | AT126: 4108.716733 | AU126: 4123.984523 | AV126: 4139.960171
K127: TRG 4 - High | L127: 3347.310277 | M127: 3347.310277 | N127: 3347.310277 | O127: 3347.310277 | P127: 3347.310277 | Q127: 3347.310277 | R127: 3347.310277 | S127: 3347.310277 | T127: 3347.310277 | U127: 3347.310277 | V127: 3347.310277 | W127: 3347.310277 | X127: 3347.310277 | Y127: 3347.310277 | Z127: 3347.310277 | AA127: 3347.310277 | AB127: 3347.310277 | AC127: 3347.310277 | AD127: 3347.310277 | AE127: 3347.310277 | AF127: 3347.310277 | AG127: 3347.310277 | AH127: 3347.310277 | AI127: 3347.310277 | AJ127: 3347.310277 | AK127: 3347.310277 | AL127: 3347.310277 | AM127: 3347.310277 | AN127: 3347.310277 | AO127: 3347.310277 | AP127: 3347.310277 | AQ127: 3347.310277 | AR127: 3347.310277 | AS127: 3347.310277 | AT127: 3347.310277 | AU127: 3347.310277 | AV127: 3347.310277
K128: TRG 5 - Low | L128: 2827.724426 | M128: 2961.06245 | N128: 3046.58242 | O128: 3126.421385 | P128: 3200.063839 | Q128: 3267.118303 | R128: 3327.326042 | S128: 3386.730155 | T128: 3441.603067 | U128: 3489.91358 | V128: 3531.859181 | W128: 3567.733657 | X128: 3597.909312 | Y128: 3626.248734 | Z128: 3649.84703 | AA128: 3670.059335 | AB128: 3686.51826 | AC128: 3702.79839 | AD128: 3716.308229 | AE128: 3727.479347 | AF128: 3737.599669 | AG128: 3746.135788 | AH128: 3754.289799 | AI128: 3761.420256 | AJ128: 3767.722635 | AK128: 3773.334593 | AL128: 3778.334031 | AM128: 3783.501526 | AN128: 3788.030138 | AO128: 3791.809425 | AP128: 3794.663897 | AQ128: 3796.353539 | AR128: 3801.20176 | AS128: 3804.22029 | AT128: 3804.97304 | AU128: 3804.97304 | AV128: 3804.97304
K129: TRG 5 - Mid | L129: 2827.724426 | M129: 2870.526066 | N129: 2910.859991 | O129: 2948.672369 | P129: 2983.932271 | Q129: 3016.631399 | R129: 3047.608458 | S129: 3078.497061 | T129: 3106.992067 | U129: 3133.158462 | V129: 3157.077753 | W129: 3178.845997 | X129: 3200.091041 | Y129: 3219.432264 | Z129: 3237.37957 | AA129: 3253.684668 | AB129: 3268.872879 | AC129: 3283.501371 | AD129: 3296.916202 | AE129: 3309.651855 | AF129: 3321.45657 | AG129: 3332.864479 | AH129: 3343.614927 | AI129: 3353.837454 | AJ129: 3363.656949 | AK129: 3373.192976 | AL129: 3382.559334 | AM129: 3392.84893 | AN129: 3403.183951 | AO129: 3413.658797 | AP129: 3424.360969 | AQ129: 3435.370881 | AR129: 3446.761702 | AS129: 3458.599221 | AT129: 3470.941653 | AU129: 3483.839501 | AV129: 3497.335332
K130: TRG 5 - High | L130: 2827.724426 | M130: 2827.724426 | N130: 2827.724426 | O130: 2827.724426 | P130: 2827.724426 | Q130: 2827.724426 | R130: 2827.724426 | S130: 2827.724426 | T130: 2827.724426 | U130: 2827.724426 | V130: 2827.724426 | W130: 2827.724426 | X130: 2827.724426 | Y130: 2827.724426 | Z130: 2827.724426 | AA130: 2827.724426 | AB130: 2827.724426 | AC130: 2827.724426 | AD130: 2827.724426 | AE130: 2827.724426 | AF130: 2827.724426 | AG130: 2827.724426 | AH130: =(AH114)*8760 -> 2827.724426 | AI130: 2827.724426 | AJ130: 2827.724426 | AK130: 2827.724426 | AL130: 2827.724426 | AM130: 2827.724426 | AN130: 2827.724426 | AO130: 2827.724426 | AP130: 2827.724426 | AQ130: 2827.724426 | AR130: 2827.724426 | AS130: 2827.724426 | AT130: 2827.724426 | AU130: 2827.724426 | AV130: 2827.724426
J132: CAPEX ($/kW) | K132: TRG 1 - Low | L132: =$S$37 * (L164 + L232) -> 1704.611692 | M132: =$S$37 * (M164 + M232) -> 1552.414219 | N132: 1530.254267 | O132: 1508.094315 | P132: 1485.934363 | Q132: 1463.774411 | R132: 1441.614459 | S132: 1423.350763 | T132: 1409.713869 | U132: 1396.076975 | V132: 1382.440082 | W132: 1368.803188 | X132: 1355.166295 | Y132: 1348.347848 | Z132: 1341.529401 | AA132: 1336.415566 | AB132: 1331.301731 | AC132: 1327.892508 | AD132: 1324.483284 | AE132: 1321.074061 | AF132: 1319.369449 | AG132: 1317.664838 | AH132: 1317.664838 | AI132: 1317.664838 | AJ132: 1317.664838 | AK132: 1317.664838 | AL132: 1317.664838 | AM132: 1317.664838 | AN132: 1317.664838 | AO132: 1317.664838 | AP132: 1317.664838 | AQ132: 1317.664838 | AR132: 1317.664838 | AS132: 1317.664838 | AT132: 1317.664838 | AU132: 1317.664838 | AV132: 1317.664838
K133: TRG 1 - Mid | L133: =$S$37 * (L165 + L233) -> 1704.611692 | M133: 1692.445443 | N133: 1680.191104 | O133: 1667.846732 | P133: 1655.410314 | Q133: 1642.879758 | R133: 1632.473003 | S133: 1624.652773 | T133: 1616.794718 | U133: 1608.898285 | V133: 1600.962905 | W133: 1592.987997 | X133: 1588.98048 | Y133: 1584.96283 | Z133: 1581.941935 | AA133: 1578.91526 | AB133: 1576.893602 | AC133: 1574.869348 | AD133: 1572.842489 | AE133: 1571.827752 | AF133: 1570.81236 | AG133: 1570.81236 | AH133: 1570.81236 | AI133: 1570.81236 | AJ133: 1570.81236 | AK133: 1570.81236 | AL133: 1570.81236 | AM133: 1570.81236 | AN133: 1570.81236 | AO133: 1570.81236 | AP133: 1570.81236 | AQ133: 1570.81236 | AR133: 1570.81236 | AS133: 1570.81236 | AT133: 1570.81236 | AU133: 1570.81236 | AV133: 1570.81236
K134: TRG 1 - High | L134: 1704.611692 | M134: 1704.611692 | N134: 1704.611692 | O134: 1704.611692 | P134: 1704.611692 | Q134: 1704.611692 | R134: 1704.611692 | S134: 1704.611692 | T134: 1704.611692 | U134: 1704.611692 | V134: 1704.611692 | W134: 1704.611692 | X134: 1704.611692 | Y134: 1704.611692 | Z134: 1704.611692 | AA134: 1704.611692 | AB134: 1704.611692 | AC134: 1704.611692 | AD134: 1704.611692 | AE134: 1704.611692 | AF134: 1704.611692 | AG134: 1704.611692 | AH134: 1704.611692 | AI134: 1704.611692 | AJ134: 1704.611692 | AK134: 1704.611692 | AL134: 1704.611692 | AM134: 1704.611692 | AN134: 1704.611692 | AO134: 1704.611692 | AP134: 1704.611692 | AQ134: 1704.611692 | AR134: 1704.611692 | AS134: 1704.611692 | AT134: 1704.611692 | AU134: 1704.611692 | AV134: 1704.611692
K135: TRG 2 - Low | L135: 1704.611692 | M135: 1552.414219 | N135: 1530.254267 | O135: 1508.094315 | P135: 1485.934363 | Q135: 1463.774411 | R135: 1441.614459 | S135: 1423.350763 | T135: 1409.713869 | U135: 1396.076975 | V135: 1382.440082 | W135: 1368.803188 | X135: 1355.166295 | Y135: 1348.347848 | Z135: 1341.529401 | AA135: 1336.415566 | AB135: 1331.301731 | AC135: 1327.892508 | AD135: 1324.483284 | AE135: 1321.074061 | AF135: 1319.369449 | AG135: 1317.664838 | AH135: 1317.664838 | AI135: 1317.664838 | AJ135: 1317.664838 | AK135: 1317.664838 | AL135: 1317.664838 | AM135: 1317.664838 | AN135: 1317.664838 | AO135: 1317.664838 | AP135: 1317.664838 | AQ135: 1317.664838 | AR135: 1317.664838 | AS135: 1317.664838 | AT135: 1317.664838 | AU135: 1317.664838 | AV135: 1317.664838
K136: TRG 2 - Mid | L136: 1704.611692 | M136: 1692.445443 | N136: 1680.191104 | O136: 1667.846732 | P136: 1655.410314 | Q136: 1642.879758 | R136: 1632.473003 | S136: 1624.652773 | T136: 1616.794718 | U136: 1608.898285 | V136: 1600.962905 | W136: 1592.987997 | X136: 1588.98048 | Y136: 1584.96283 | Z136: 1581.941935 | AA136: 1578.91526 | AB136: 1576.893602 | AC136: 1574.869348 | AD136: 1572.842489 | AE136: 1571.827752 | AF136: 1570.81236 | AG136: 1570.81236 | AH136: 1570.81236 | AI136: 1570.81236 | AJ136: 1570.81236 | AK136: 1570.81236 | AL136: 1570.81236 | AM136: 1570.81236 | AN136: 1570.81236 | AO136: 1570.81236 | AP136: 1570.81236 | AQ136: 1570.81236 | AR136: 1570.81236 | AS136: 1570.81236 | AT136: 1570.81236 | AU136: 1570.81236 | AV136: 1570.81236
K137: TRG 2 - High | L137: 1704.611692 | M137: 1704.611692 | N137: 1704.611692 | O137: 1704.611692 | P137: 1704.611692 | Q137: 1704.611692 | R137: 1704.611692 | S137: 1704.611692 | T137: 1704.611692 | U137: 1704.611692 | V137: 1704.611692 | W137: 1704.611692 | X137: 1704.611692 | Y137: 1704.611692 | Z137: 1704.611692 | AA137: 1704.611692 | AB137: 1704.611692 | AC137: 1704.611692 | AD137: 1704.611692 | AE137: 1704.611692 | AF137: 1704.611692 | AG137: 1704.611692 | AH137: 1704.611692 | AI137: 1704.611692 | AJ137: 1704.611692 | AK137: 1704.611692 | AL137: 1704.611692 | AM137: 1704.611692 | AN137: 1704.611692 | AO137: 1704.611692 | AP137: 1704.611692 | AQ137: 1704.611692 | AR137: 1704.611692 | AS137: 1704.611692 | AT137: 1704.611692 | AU137: 1704.611692 | AV137: 1704.611692
K138: TRG 3 - Low | L138: 1795.930175 | M138: 1635.579267 | N138: 1617.322674 | O138: 1599.073545 | P138: 1580.83185 | Q138: 1562.59756 | R138: 1544.370646 | S138: 1529.35452 | T138: 1518.146191 | U138: 1506.940624 | V138: 1495.737814 | W138: 1484.537753 | X138: 1473.340435 | Y138: 1467.743145 | Z138: 1462.146536 | AA138: 1457.949591 | AB138: 1453.753029 | AC138: 1450.955576 | AD138: 1448.158293 | AE138: 1445.361179 | AF138: 1443.962707 | AG138: 1442.564278 | AH138: 1442.564278 | AI138: 1442.564278 | AJ138: 1442.564278 | AK138: 1442.564278 | AL138: 1442.564278 | AM138: 1442.564278 | AN138: 1442.564278 | AO138: 1442.564278 | AP138: 1442.564278 | AQ138: 1442.564278 | AR138: 1442.564278 | AS138: 1442.564278 | AT138: 1442.564278 | AU138: 1442.564278 | AV138: 1442.564278
K139: TRG 3 - Mid | L139: 1795.930175 | M139: 1787.770137 | N139: 1777.683947 | O139: 1767.544336 | P139: 1757.350362 | Q139: 1747.101059 | R139: 1738.607408 | S139: 1732.236457 | T139: 1725.843565 | U139: 1719.428482 | V139: 1712.990956 | W139: 1706.530728 | X139: 1703.289132 | Y139: 1700.041751 | Z139: 1697.601851 | AA139: 1695.158662 | AB139: 1693.527668 | AC139: 1691.8952 | AD139: 1690.261255 | AE139: =$S$37 * (AE171 + AE239) -> 1689.443541 | AF139: 1688.625457 | AG139: 1688.625457 | AH139: 1688.625457 | AI139: 1688.625457 | AJ139: 1688.625457 | AK139: 1688.625457 | AL139: 1688.625457 | AM139: 1688.625457 | AN139: 1688.625457 | AO139: 1688.625457 | AP139: 1688.625457 | AQ139: 1688.625457 | AR139: 1688.625457 | AS139: 1688.625457 | AT139: 1688.625457 | AU139: 1688.625457 | AV139: 1688.625457
K140: TRG 3 - High | L140: 1795.930175 | M140: 1795.930175 | N140: 1795.930175 | O140: 1795.930175 | P140: 1795.930175 | Q140: 1795.930175 | R140: 1795.930175 | S140: 1795.930175 | T140: 1795.930175 | U140: 1795.930175 | V140: 1795.930175 | W140: 1795.930175 | X140: 1795.930175 | Y140: 1795.930175 | Z140: 1795.930175 | AA140: 1795.930175 | AB140: 1795.930175 | AC140: 1795.930175 | AD140: 1795.930175 | AE140: 1795.930175 | AF140: 1795.930175 | AG140: 1795.930175 | AH140: 1795.930175 | AI140: 1795.930175 | AJ140: 1795.930175 | AK140: 1795.930175 | AL140: 1795.930175 | AM140: 1795.930175 | AN140: 1795.930175 | AO140: 1795.930175 | AP140: 1795.930175 | AQ140: 1795.930175 | AR140: 1795.930175 | AS140: 1795.930175 | AT140: 1795.930175 | AU140: 1795.930175 | AV140: 1795.930175
K141: TRG 4 - Low | L141: 1826.36967 | M141: 1663.300949 | N141: 1656.814075 | O141: 1650.3525 | P141: 1643.916126 | Q141: 1637.504853 | R141: 1631.118584 | S141: 1625.875703 | T141: 1621.973601 | U141: 1618.080864 | V141: 1614.19747 | W141: 1610.323396 | X141: 1606.45862 | Y141: 1604.53087 | Z141: 1602.605433 | AA141: 1601.163088 | AB141: 1599.722041 | AC141: 1598.762208 | AD141: 1597.802951 | AE141: 1596.844269 | AF141: 1596.365216 | AG141: 1595.886306 | AH141: 1595.886306 | AI141: 1595.886306 | AJ141: 1595.886306 | AK141: 1595.886306 | AL141: 1595.886306 | AM141: 1595.886306 | AN141: 1595.886306 | AO141: 1595.886306 | AP141: 1595.886306 | AQ141: 1595.886306 | AR141: 1595.886306 | AS141: 1595.886306 | AT141: 1595.886306 | AU141: 1595.886306 | AV141: 1595.886306
K142: TRG 4 - Mid | L142: 1826.36967 | M142: 1822.808249 | N142: 1819.253773 | O142: 1815.706228 | P142: 1812.165601 | Q142: 1808.631878 | R142: 1805.725148 | S142: 1803.558278 | T142: 1801.394008 | U142: 1799.232335 | V142: 1797.073256 | W142: 1794.916768 | X142: 1793.839818 | Y142: 1792.763514 | Z142: 1791.956771 | AA142: 1791.15039 | AB142: 1790.613045 | AC142: 1790.075861 | AD142: 1789.538838 | AE142: 1789.270408 | AF142: 1789.002017 | AG142: 1789.002017 | AH142: 1789.002017 | AI142: 1789.002017 | AJ142: 1789.002017 | AK142: 1789.002017 | AL142: 1789.002017 | AM142: 1789.002017 | AN142: 1789.002017 | AO142: 1789.002017 | AP142: 1789.002017 | AQ142: 1789.002017 | AR142: 1789.002017 | AS142: 1789.002017 | AT142: 1789.002017 | AU142: 1789.002017 | AV142: 1789.002017
K143: TRG 4 - High | L143: 1826.36967 | M143: 1826.36967 | N143: 1826.36967 | O143: 1826.36967 | P143: 1826.36967 | Q143: 1826.36967 | R143: 1826.36967 | S143: 1826.36967 | T143: 1826.36967 | U143: 1826.36967 | V143: 1826.36967 | W143: 1826.36967 | X143: 1826.36967 | Y143: 1826.36967 | Z143: 1826.36967 | AA143: 1826.36967 | AB143: 1826.36967 | AC143: 1826.36967 | AD143: 1826.36967 | AE143: 1826.36967 | AF143: 1826.36967 | AG143: 1826.36967 | AH143: 1826.36967 | AI143: 1826.36967 | AJ143: 1826.36967 | AK143: 1826.36967 | AL143: 1826.36967 | AM143: 1826.36967 | AN143: 1826.36967 | AO143: 1826.36967 | AP143: 1826.36967 | AQ143: 1826.36967 | AR143: 1826.36967 | AS143: 1826.36967 | AT143: 1826.36967 | AU143: 1826.36967 | AV143: 1826.36967
K144: TRG 5 - Low | L144: 1826.36967 | M144: 1663.300949 | N144: 1656.814075 | O144: 1650.3525 | P144: 1643.916126 | Q144: 1637.504853 | R144: 1631.118584 | S144: 1625.875703 | T144: 1621.973601 | U144: 1618.080864 | V144: 1614.19747 | W144: 1610.323396 | X144: 1606.45862 | Y144: 1604.53087 | Z144: 1602.605433 | AA144: 1601.163088 | AB144: 1599.722041 | AC144: 1598.762208 | AD144: 1597.802951 | AE144: 1596.844269 | AF144: 1596.365216 | AG144: 1595.886306 | AH144: 1595.886306 | AI144: 1595.886306 | AJ144: 1595.886306 | AK144: 1595.886306 | AL144: 1595.886306 | AM144: 1595.886306 | AN144: 1595.886306 | AO144: 1595.886306 | AP144: 1595.886306 | AQ144: 1595.886306 | AR144: 1595.886306 | AS144: 1595.886306 | AT144: 1595.886306 | AU144: 1595.886306 | AV144: 1595.886306
K145: TRG 5 - Mid | L145: 1826.36967 | M145: 1822.808249 | N145: 1819.253773 | O145: 1815.706228 | P145: 1812.165601 | Q145: 1808.631878 | R145: 1805.725148 | S145: 1803.558278 | T145: 1801.394008 | U145: 1799.232335 | V145: 1797.073256 | W145: 1794.916768 | X145: 1793.839818 | Y145: 1792.763514 | Z145: 1791.956771 | AA145: 1791.15039 | AB145: 1790.613045 | AC145: 1790.075861 | AD145: 1789.538838 | AE145: 1789.270408 | AF145: 1789.002017 | AG145: 1789.002017 | AH145: 1789.002017 | AI145: 1789.002017 | AJ145: 1789.002017 | AK145: 1789.002017 | AL145: 1789.002017 | AM145: 1789.002017 | AN145: 1789.002017 | AO145: 1789.002017 | AP145: 1789.002017 | AQ145: 1789.002017 | AR145: 1789.002017 | AS145: 1789.002017 | AT145: 1789.002017 | AU145: 1789.002017 | AV145: 1789.002017
K146: TRG 5 - High | L146: 1826.36967 | M146: 1826.36967 | N146: 1826.36967 | O146: 1826.36967 | P146: 1826.36967 | Q146: 1826.36967 | R146: 1826.36967 | S146: 1826.36967 | T146: 1826.36967 | U146: 1826.36967 | V146: 1826.36967 | W146: 1826.36967 | X146: 1826.36967 | Y146: 1826.36967 | Z146: 1826.36967 | AA146: 1826.36967 | AB146: 1826.36967 | AC146: 1826.36967 | AD146: 1826.36967 | AE146: 1826.36967 | AF146: 1826.36967 | AG146: 1826.36967 | AH146: =$S$37 * (AH178 + AH246) -> 1826.36967 | AI146: 1826.36967 | AJ146: 1826.36967 | AK146: 1826.36967 | AL146: 1826.36967 | AM146: 1826.36967 | AN146: 1826.36967 | AO146: 1826.36967 | AP146: 1826.36967 | AQ146: 1826.36967 | AR146: 1826.36967 | AS146: 1826.36967 | AT146: 1826.36967 | AU146: 1826.36967 | AV146: 1826.36967
J148: Construction Financing Cost ($/kW) | K148: TRG 1 - Low | L148: =(L164+L232)*($S$37-1) -> 63.83013407 | M148: =(M164+M232)*($S$37-1) -> 58.13101495 | N148: 57.30122321 | O148: 56.47143147 | P148: 55.64163973 | Q148: 54.81184798 | R148: 53.98205624 | S148: 53.29816195 | T148: 52.78752087 | U148: 52.2768798 | V148: 51.76623873 | W148: 51.25559766 | X148: 50.74495658 | Y148: 50.48963605 | Z148: 50.23431551 | AA148: 50.04282511 | AB148: 49.85133471 | AC148: 49.72367444 | AD148: 49.59601417 | AE148: 49.4683539 | AF148: 49.40452377 | AG148: 49.34069363 | AH148: 49.34069363 | AI148: 49.34069363 | AJ148: 49.34069363 | AK148: 49.34069363 | AL148: 49.34069363 | AM148: 49.34069363 | AN148: 49.34069363 | AO148: 49.34069363 | AP148: 49.34069363 | AQ148: 49.34069363 | AR148: 49.34069363 | AS148: 49.34069363 | AT148: 49.34069363 | AU148: 49.34069363 | AV148: 49.34069363
K149: TRG 1 - Mid | L149: =(L165+L233)*($S$37-1) -> 63.83013407 | M149: 63.37456213 | N149: 62.91569157 | O149: 62.45344969 | P149: 61.98776107 | Q149: 61.51854744 | R149: 61.1288607 | S149: 60.83602783 | T149: 60.54177861 | U149: 60.24609226 | V149: 59.94894754 | W149: 59.65032265 | X149: 59.50025894 | Y149: 59.34981581 | Z149: 59.23669672 | AA149: 59.1233612 | AB149: 59.04765908 | AC149: 58.97185977 | AD149: 58.89596291 | AE149: 58.85796552 | AF149: 58.81994357 | AG149: 58.81994357 | AH149: 58.81994357 | AI149: 58.81994357 | AJ149: 58.81994357 | AK149: 58.81994357 | AL149: 58.81994357 | AM149: 58.81994357 | AN149: 58.81994357 | AO149: 58.81994357 | AP149: 58.81994357 | AQ149: 58.81994357 | AR149: 58.81994357 | AS149: 58.81994357 | AT149: 58.81994357 | AU149: 58.81994357 | AV149: 58.81994357
K150: TRG 1 - High | L150: 63.83013407 | M150: 63.83013407 | N150: 63.83013407 | O150: 63.83013407 | P150: 63.83013407 | Q150: 63.83013407 | R150: 63.83013407 | S150: 63.83013407 | T150: 63.83013407 | U150: 63.83013407 | V150: 63.83013407 | W150: 63.83013407 | X150: 63.83013407 | Y150: 63.83013407 | Z150: 63.83013407 | AA150: 63.83013407 | AB150: 63.83013407 | AC150: 63.83013407 | AD150: 63.83013407 | AE150: 63.83013407 | AF150: 63.83013407 | AG150: 63.83013407 | AH150: 63.83013407 | AI150: 63.83013407 | AJ150: 63.83013407 | AK150: 63.83013407 | AL150: 63.83013407 | AM150: 63.83013407 | AN150: 63.83013407 | AO150: 63.83013407 | AP150: 63.83013407 | AQ150: 63.83013407 | AR150: 63.83013407 | AS150: 63.83013407 | AT150: 63.83013407 | AU150: 63.83013407 | AV150: 63.83013407
K151: TRG 2 - Low | L151: 63.83013407 | M151: 58.13101495 | N151: 57.30122321 | O151: 56.47143147 | P151: 55.64163973 | Q151: 54.81184798 | R151: 53.98205624 | S151: 53.29816195 | T151: 52.78752087 | U151: 52.2768798 | V151: 51.76623873 | W151: 51.25559766 | X151: 50.74495658 | Y151: 50.48963605 | Z151: 50.23431551 | AA151: 50.04282511 | AB151: 49.85133471 | AC151: 49.72367444 | AD151: 49.59601417 | AE151: 49.4683539 | AF151: 49.40452377 | AG151: 49.34069363 | AH151: 49.34069363 | AI151: 49.34069363 | AJ151: 49.34069363 | AK151: 49.34069363 | AL151: 49.34069363 | AM151: 49.34069363 | AN151: 49.34069363 | AO151: 49.34069363 | AP151: 49.34069363 | AQ151: 49.34069363 | AR151: 49.34069363 | AS151: 49.34069363 | AT151: 49.34069363 | AU151: 49.34069363 | AV151: 49.34069363
K152: TRG 2 - Mid | L152: 63.83013407 | M152: 63.37456213 | N152: 62.91569157 | O152: 62.45344969 | P152: 61.98776107 | Q152: 61.51854744 | R152: 61.1288607 | S152: 60.83602783 | T152: 60.54177861 | U152: 60.24609226 | V152: 59.94894754 | W152: 59.65032265 | X152: 59.50025894 | Y152: 59.34981581 | Z152: 59.23669672 | AA152: 59.1233612 | AB152: 59.04765908 | AC152: 58.97185977 | AD152: 58.89596291 | AE152: 58.85796552 | AF152: 58.81994357 | AG152: 58.81994357 | AH152: 58.81994357 | AI152: 58.81994357 | AJ152: 58.81994357 | AK152: 58.81994357 | AL152: 58.81994357 | AM152: 58.81994357 | AN152: 58.81994357 | AO152: 58.81994357 | AP152: 58.81994357 | AQ152: 58.81994357 | AR152: 58.81994357 | AS152: 58.81994357 | AT152: 58.81994357 | AU152: 58.81994357 | AV152: 58.81994357
K153: TRG 2 - High | L153: 63.83013407 | M153: 63.83013407 | N153: 63.83013407 | O153: 63.83013407 | P153: 63.83013407 | Q153: 63.83013407 | R153: 63.83013407 | S153: 63.83013407 | T153: 63.83013407 | U153: 63.83013407 | V153: 63.83013407 | W153: 63.83013407 | X153: 63.83013407 | Y153: 63.83013407 | Z153: 63.83013407 | AA153: 63.83013407 | AB153: 63.83013407 | AC153: 63.83013407 | AD153: 63.83013407 | AE153: 63.83013407 | AF153: 63.83013407 | AG153: 63.83013407 | AH153: 63.83013407 | AI153: 63.83013407 | AJ153: 63.83013407 | AK153: 63.83013407 | AL153: 63.83013407 | AM153: 63.83013407 | AN153: 63.83013407 | AO153: 63.83013407 | AP153: 63.83013407 | AQ153: 63.83013407 | AR153: 63.83013407 | AS153: 63.83013407 | AT153: 63.83013407 | AU153: 63.83013407 | AV153: 63.83013407
K154: TRG 3 - Low | L154: 67.24960554 | M154: 61.24517647 | N154: 60.5615482 | O154: 59.8781994 | P154: 59.19512896 | Q154: 58.51233582 | R154: 57.82981888 | S154: 57.26753167 | T154: 56.84782955 | U154: 56.42823088 | V154: 56.00873541 | W154: 55.58934289 | X154: 55.17005309 | Y154: 54.96045942 | Z154: 54.7508913 | AA154: 54.59373435 | AB154: 54.43659174 | AC154: 54.33183955 | AD154: 54.22709373 | AE154: 54.12235426 | AF154: 54.0699877 | AG154: 54.01762274 | AH154: 54.01762274 | AI154: 54.01762274 | AJ154: 54.01762274 | AK154: 54.01762274 | AL154: 54.01762274 | AM154: 54.01762274 | AN154: 54.01762274 | AO154: 54.01762274 | AP154: 54.01762274 | AQ154: 54.01762274 | AR154: 54.01762274 | AS154: 54.01762274 | AT154: 54.01762274 | AU154: 54.01762274 | AV154: 54.01762274
K155: TRG 3 - Mid | L155: 67.24960554 | M155: 66.94404838 | N155: 66.56636537 | O155: 66.18668198 | P155: 65.80496296 | Q155: 65.42117208 | R155: 65.10312259 | S155: 64.8645588 | T155: 64.62517339 | U155: 64.38495704 | V155: 64.14390027 | W155: 63.90199344 | X155: 63.78061008 | Y155: 63.65901009 | Z155: 63.56764668 | AA155: 63.47616013 | AB155: 63.41508662 | AC155: 63.35395796 | AD155: 63.29277397 | AE155: =(AE171+AE239)*($S$37-1) -> 63.26215423 | AF155: 63.23152059 | AG155: 63.23152059 | AH155: 63.23152059 | AI155: 63.23152059 | AJ155: 63.23152059 | AK155: 63.23152059 | AL155: 63.23152059 | AM155: 63.23152059 | AN155: 63.23152059 | AO155: 63.23152059 | AP155: 63.23152059 | AQ155: 63.23152059 | AR155: 63.23152059 | AS155: 63.23152059 | AT155: 63.23152059 | AU155: 63.23152059 | AV155: 63.23152059
K156: TRG 3 - High | L156: 67.24960554 | M156: 67.24960554 | N156: 67.24960554 | O156: 67.24960554 | P156: 67.24960554 | Q156: 67.24960554 | R156: 67.24960554 | S156: 67.24960554 | T156: 67.24960554 | U156: 67.24960554 | V156: 67.24960554 | W156: 67.24960554 | X156: 67.24960554 | Y156: 67.24960554 | Z156: 67.24960554 | AA156: 67.24960554 | AB156: 67.24960554 | AC156: 67.24960554 | AD156: 67.24960554 | AE156: 67.24960554 | AF156: 67.24960554 | AG156: 67.24960554 | AH156: 67.24960554 | AI156: 67.24960554 | AJ156: 67.24960554 | AK156: 67.24960554 | AL156: 67.24960554 | AM156: 67.24960554 | AN156: 67.24960554 | AO156: 67.24960554 | AP156: 67.24960554 | AQ156: 67.24960554 | AR156: 67.24960554 | AS156: 67.24960554 | AT156: 67.24960554 | AU156: 67.24960554 | AV156: 67.24960554
K157: TRG 4 - Low | L157: 68.38942936 | M157: 62.28323031 | N157: 62.04032571 | O157: 61.79836844 | P157: 61.5573548 | Q157: 61.31728112 | R157: 61.07814372 | S157: 60.88182112 | T157: 60.73570475 | U157: 60.58993906 | V157: 60.4445232 | W157: 60.29945635 | X157: 60.15473765 | Y157: 60.08255197 | Z157: 60.0104529 | AA157: 59.9564435 | AB157: 59.9024827 | AC157: 59.86654121 | AD157: 59.83062128 | AE157: 59.79472291 | AF157: 59.77678449 | AG157: 59.75885146 | AH157: 59.75885146 | AI157: 59.75885146 | AJ157: 59.75885146 | AK157: 59.75885146 | AL157: 59.75885146 | AM157: 59.75885146 | AN157: 59.75885146 | AO157: 59.75885146 | AP157: 59.75885146 | AQ157: 59.75885146 | AR157: 59.75885146 | AS157: 59.75885146 | AT157: 59.75885146 | AU157: 59.75885146 | AV157: 59.75885146
K158: TRG 4 - Mid | L158: 68.38942936 | M158: 68.25606997 | N158: 68.12297063 | O158: 67.99013084 | P158: 67.85755009 | Q158: 67.72522786 | R158: 67.61638375 | S158: 67.53524409 | T158: 67.45420179 | U158: 67.37325675 | V158: 67.29240884 | W158: 67.21165795 | X158: 67.17133096 | Y158: 67.13102816 | Z158: 67.1008192 | AA158: 67.07062383 | AB158: 67.05050264 | AC158: 67.03038749 | AD158: 67.01027837 | AE158: 67.00022683 | AF158: 66.9901768 | AG158: 66.9901768 | AH158: 66.9901768 | AI158: 66.9901768 | AJ158: 66.9901768 | AK158: 66.9901768 | AL158: 66.9901768 | AM158: 66.9901768 | AN158: 66.9901768 | AO158: 66.9901768 | AP158: 66.9901768 | AQ158: 66.9901768 | AR158: 66.9901768 | AS158: 66.9901768 | AT158: 66.9901768 | AU158: 66.9901768 | AV158: 66.9901768
K159: TRG 4 - High | L159: 68.38942936 | M159: 68.38942936 | N159: 68.38942936 | O159: 68.38942936 | P159: 68.38942936 | Q159: 68.38942936 | R159: 68.38942936 | S159: 68.38942936 | T159: 68.38942936 | U159: 68.38942936 | V159: 68.38942936 | W159: 68.38942936 | X159: 68.38942936 | Y159: 68.38942936 | Z159: 68.38942936 | AA159: 68.38942936 | AB159: 68.38942936 | AC159: 68.38942936 | AD159: 68.38942936 | AE159: 68.38942936 | AF159: 68.38942936 | AG159: 68.38942936 | AH159: 68.38942936 | AI159: 68.38942936 | AJ159: 68.38942936 | AK159: 68.38942936 | AL159: 68.38942936 | AM159: 68.38942936 | AN159: 68.38942936 | AO159: 68.38942936 | AP159: 68.38942936 | AQ159: 68.38942936 | AR159: 68.38942936 | AS159: 68.38942936 | AT159: 68.38942936 | AU159: 68.38942936 | AV159: 68.38942936
K160: TRG 5 - Low | L160: 68.38942936 | M160: 62.28323031 | N160: 62.04032571 | O160: 61.79836844 | P160: 61.5573548 | Q160: 61.31728112 | R160: 61.07814372 | S160: 60.88182112 | T160: 60.73570475 | U160: 60.58993906 | V160: 60.4445232 | W160: 60.29945635 | X160: 60.15473765 | Y160: 60.08255197 | Z160: 60.0104529 | AA160: 59.9564435 | AB160: 59.9024827 | AC160: 59.86654121 | AD160: 59.83062128 | AE160: 59.79472291 | AF160: 59.77678449 | AG160: 59.75885146 | AH160: 59.75885146 | AI160: 59.75885146 | AJ160: 59.75885146 | AK160: 59.75885146 | AL160: 59.75885146 | AM160: 59.75885146 | AN160: 59.75885146 | AO160: 59.75885146 | AP160: 59.75885146 | AQ160: 59.75885146 | AR160: 59.75885146 | AS160: 59.75885146 | AT160: 59.75885146 | AU160: 59.75885146 | AV160: 59.75885146
K161: TRG 5 - Mid | L161: 68.38942936 | M161: 68.25606997 | N161: 68.12297063 | O161: 67.99013084 | P161: 67.85755009 | Q161: 67.72522786 | R161: 67.61638375 | S161: 67.53524409 | T161: 67.45420179 | U161: 67.37325675 | V161: 67.29240884 | W161: 67.21165795 | X161: 67.17133096 | Y161: 67.13102816 | Z161: 67.1008192 | AA161: 67.07062383 | AB161: 67.05050264 | AC161: 67.03038749 | AD161: 67.01027837 | AE161: 67.00022683 | AF161: 66.9901768 | AG161: 66.9901768 | AH161: 66.9901768 | AI161: 66.9901768 | AJ161: 66.9901768 | AK161: 66.9901768 | AL161: 66.9901768 | AM161: 66.9901768 | AN161: 66.9901768 | AO161: 66.9901768 | AP161: 66.9901768 | AQ161: 66.9901768 | AR161: 66.9901768 | AS161: 66.9901768 | AT161: 66.9901768 | AU161: 66.9901768 | AV161: 66.9901768
K162: TRG 5 - High | L162: 68.38942936 | M162: 68.38942936 | N162: 68.38942936 | O162: 68.38942936 | P162: 68.38942936 | Q162: 68.38942936 | R162: 68.38942936 | S162: 68.38942936 | T162: 68.38942936 | U162: 68.38942936 | V162: 68.38942936 | W162: 68.38942936 | X162: 68.38942936 | Y162: 68.38942936 | Z162: 68.38942936 | AA162: 68.38942936 | AB162: 68.38942936 | AC162: 68.38942936 | AD162: 68.38942936 | AE162: 68.38942936 | AF162: 68.38942936 | AG162: 68.38942936 | AH162: =(AH178+AH246)*($S$37-1) -> 68.38942936 | AI162: 68.38942936 | AJ162: 68.38942936 | AK162: 68.38942936 | AL162: 68.38942936 | AM162: 68.38942936 | AN162: 68.38942936 | AO162: 68.38942936 | AP162: 68.38942936 | AQ162: 68.38942936 | AR162: 68.38942936 | AS162: 68.38942936 | AT162: 68.38942936 | AU162: 68.38942936 | AV162: 68.38942936
J164: Overnight Capital Cost (OCC) ($/kW) | K164: TRG 1 - Low | L164: 1640.781558 | M164: 1494.283204 | N164: 1472.953044 | O164: 1451.622884 | P164: 1430.292723 | Q164: 1408.962563 | R164: 1387.632403 | S164: 1370.052601 | T164: 1356.926348 | U164: 1343.800096 | V164: 1330.673843 | W164: 1317.547591 | X164: 1304.421338 | Y164: 1297.858212 | Z164: 1291.295086 | AA164: 1286.372741 | AB164: 1281.450396 | AC164: 1278.168833 | AD164: 1274.88727 | AE164: 1271.605707 | AF164: 1269.964926 | AG164: 1268.324144 | AH164: 1268.324144 | AI164: 1268.324144 | AJ164: 1268.324144 | AK164: 1268.324144 | AL164: 1268.324144 | AM164: 1268.324144 | AN164: 1268.324144 | AO164: 1268.324144 | AP164: 1268.324144 | AQ164: 1268.324144 | AR164: 1268.324144 | AS164: 1268.324144 | AT164: 1268.324144 | AU164: 1268.324144 | AV164: 1268.324144
K165: TRG 1 - Mid | L165: 1640.781558 | M165: 1629.070881 | N165: 1617.275413 | O165: 1605.393283 | P165: 1593.422553 | Q165: 1581.361211 | R165: 1571.344142 | S165: 1563.816745 | T165: 1556.25294 | U165: 1548.652193 | V165: 1541.013958 | W165: 1533.337674 | X165: 1529.480221 | Y165: 1525.613014 | Z165: 1522.705238 | AA165: 1519.791899 | AB165: 1517.845943 | AC165: 1515.897489 | AD165: 1513.946527 | AE165: 1512.969787 | AF165: 1511.992416 | AG165: 1511.992416 | AH165: 1511.992416 | AI165: 1511.992416 | AJ165: 1511.992416 | AK165: 1511.992416 | AL165: 1511.992416 | AM165: 1511.992416 | AN165: 1511.992416 | AO165: 1511.992416 | AP165: 1511.992416 | AQ165: 1511.992416 | AR165: 1511.992416 | AS165: 1511.992416 | AT165: 1511.992416 | AU165: 1511.992416 | AV165: 1511.992416
K166: TRG 1 - High | L166: 1640.781558 | M166: 1640.781558 | N166: 1640.781558 | O166: 1640.781558 | P166: 1640.781558 | Q166: 1640.781558 | R166: 1640.781558 | S166: 1640.781558 | T166: 1640.781558 | U166: 1640.781558 | V166: 1640.781558 | W166: 1640.781558 | X166: 1640.781558 | Y166: 1640.781558 | Z166: 1640.781558 | AA166: 1640.781558 | AB166: 1640.781558 | AC166: 1640.781558 | AD166: 1640.781558 | AE166: 1640.781558 | AF166: 1640.781558 | AG166: 1640.781558 | AH166: 1640.781558 | AI166: 1640.781558 | AJ166: 1640.781558 | AK166: 1640.781558 | AL166: 1640.781558 | AM166: 1640.781558 | AN166: 1640.781558 | AO166: 1640.781558 | AP166: 1640.781558 | AQ166: 1640.781558 | AR166: 1640.781558 | AS166: 1640.781558 | AT166: 1640.781558 | AU166: 1640.781558 | AV166: 1640.781558
K167: TRG 2 - Low | L167: 1640.781558 | M167: 1494.283204 | N167: 1472.953044 | O167: 1451.622884 | P167: 1430.292723 | Q167: 1408.962563 | R167: 1387.632403 | S167: 1370.052601 | T167: 1356.926348 | U167: 1343.800096 | V167: 1330.673843 | W167: 1317.547591 | X167: 1304.421338 | Y167: 1297.858212 | Z167: 1291.295086 | AA167: 1286.372741 | AB167: 1281.450396 | AC167: 1278.168833 | AD167: 1274.88727 | AE167: 1271.605707 | AF167: 1269.964926 | AG167: 1268.324144 | AH167: 1268.324144 | AI167: 1268.324144 | AJ167: 1268.324144 | AK167: 1268.324144 | AL167: 1268.324144 | AM167: 1268.324144 | AN167: 1268.324144 | AO167: 1268.324144 | AP167: 1268.324144 | AQ167: 1268.324144 | AR167: 1268.324144 | AS167: 1268.324144 | AT167: 1268.324144 | AU167: 1268.324144 | AV167: 1268.324144
K168: TRG 2 - Mid | L168: 1640.781558 | M168: 1629.070881 | N168: 1617.275413 | O168: 1605.393283 | P168: 1593.422553 | Q168: 1581.361211 | R168: 1571.344142 | S168: 1563.816745 | T168: 1556.25294 | U168: 1548.652193 | V168: 1541.013958 | W168: 1533.337674 | X168: 1529.480221 | Y168: 1525.613014 | Z168: 1522.705238 | AA168: 1519.791899 | AB168: 1517.845943 | AC168: 1515.897489 | AD168: 1513.946527 | AE168: 1512.969787 | AF168: 1511.992416 | AG168: 1511.992416 | AH168: 1511.992416 | AI168: 1511.992416 | AJ168: 1511.992416 | AK168: 1511.992416 | AL168: 1511.992416 | AM168: 1511.992416 | AN168: 1511.992416 | AO168: 1511.992416 | AP168: 1511.992416 | AQ168: 1511.992416 | AR168: 1511.992416 | AS168: 1511.992416 | AT168: 1511.992416 | AU168: 1511.992416 | AV168: 1511.992416
K169: TRG 2 - High | L169: 1640.781558 | M169: 1640.781558 | N169: 1640.781558 | O169: 1640.781558 | P169: 1640.781558 | Q169: 1640.781558 | R169: 1640.781558 | S169: 1640.781558 | T169: 1640.781558 | U169: 1640.781558 | V169: 1640.781558 | W169: 1640.781558 | X169: 1640.781558 | Y169: 1640.781558 | Z169: 1640.781558 | AA169: 1640.781558 | AB169: 1640.781558 | AC169: 1640.781558 | AD169: 1640.781558 | AE169: 1640.781558 | AF169: 1640.781558 | AG169: 1640.781558 | AH169: 1640.781558 | AI169: 1640.781558 | AJ169: 1640.781558 | AK169: 1640.781558 | AL169: 1640.781558 | AM169: 1640.781558 | AN169: 1640.781558 | AO169: 1640.781558 | AP169: 1640.781558 | AQ169: 1640.781558 | AR169: 1640.781558 | AS169: 1640.781558 | AT169: 1640.781558 | AU169: 1640.781558 | AV169: 1640.781558
K170: TRG 3 - Low | L170: 1728.68057 | M170: 1574.33409 | N170: 1556.761126 | O170: 1539.195346 | P170: 1521.636721 | Q170: 1504.085224 | R170: 1486.540827 | S170: 1472.086988 | T170: 1461.298361 | U170: 1450.512394 | V170: 1439.729079 | W170: 1428.94841 | X170: 1418.170382 | Y170: 1412.782685 | Z170: 1407.395645 | AA170: 1403.355857 | AB170: 1399.316437 | AC170: 1396.623736 | AD170: 1393.931199 | AE170: 1391.238825 | AF170: 1389.89272 | AG170: 1388.546655 | AH170: 1388.546655 | AI170: 1388.546655 | AJ170: 1388.546655 | AK170: 1388.546655 | AL170: 1388.546655 | AM170: 1388.546655 | AN170: 1388.546655 | AO170: 1388.546655 | AP170: 1388.546655 | AQ170: 1388.546655 | AR170: 1388.546655 | AS170: 1388.546655 | AT170: 1388.546655 | AU170: 1388.546655 | AV170: 1388.546655
K171: TRG 3 - Mid | L171: 1728.68057 | M171: 1720.826089 | N171: 1711.117582 | O171: 1701.357654 | P171: 1691.545399 | Q171: 1681.679887 | R171: 1673.504285 | S171: 1667.371899 | T171: 1661.218392 | U171: 1655.043525 | V171: 1648.847055 | W171: 1642.628734 | X171: 1639.508522 | Y171: 1636.382741 | Z171: 1634.034204 | AA171: 1631.682502 | AB171: 1630.112581 | AC171: 1628.541242 | AD171: 1626.968481 | AE171: 1626.181387 | AF171: 1625.393936 | AG171: 1625.393936 | AH171: 1625.393936 | AI171: 1625.393936 | AJ171: 1625.393936 | AK171: 1625.393936 | AL171: 1625.393936 | AM171: 1625.393936 | AN171: 1625.393936 | AO171: 1625.393936 | AP171: 1625.393936 | AQ171: 1625.393936 | AR171: 1625.393936 | AS171: 1625.393936 | AT171: 1625.393936 | AU171: 1625.393936 | AV171: 1625.393936
K172: TRG 3 - High | L172: 1728.68057 | M172: 1728.68057 | N172: 1728.68057 | O172: 1728.68057 | P172: 1728.68057 | Q172: 1728.68057 | R172: 1728.68057 | S172: 1728.68057 | T172: 1728.68057 | U172: 1728.68057 | V172: 1728.68057 | W172: 1728.68057 | X172: 1728.68057 | Y172: 1728.68057 | Z172: 1728.68057 | AA172: 1728.68057 | AB172: 1728.68057 | AC172: 1728.68057 | AD172: 1728.68057 | AE172: 1728.68057 | AF172: 1728.68057 | AG172: 1728.68057 | AH172: 1728.68057 | AI172: 1728.68057 | AJ172: 1728.68057 | AK172: 1728.68057 | AL172: 1728.68057 | AM172: 1728.68057 | AN172: 1728.68057 | AO172: 1728.68057 | AP172: 1728.68057 | AQ172: 1728.68057 | AR172: 1728.68057 | AS172: 1728.68057 | AT172: 1728.68057 | AU172: 1728.68057 | AV172: 1728.68057
K173: TRG 4 - Low | L173: 1757.98024 | M173: 1601.017719 | N173: 1594.77375 | O173: 1588.554132 | P173: 1582.358771 | Q173: 1576.187572 | R173: 1570.04044 | S173: 1564.993882 | T173: 1561.237896 | U173: 1557.490925 | V173: 1553.752947 | W173: 1550.02394 | X173: 1546.303883 | Y173: 1544.448318 | Z173: 1542.59498 | AA173: 1541.206645 | AB173: 1539.819559 | AC173: 1538.895667 | AD173: 1537.972329 | AE173: 1537.049546 | AF173: 1536.588431 | AG173: 1536.127455 | AH173: 1536.127455 | AI173: 1536.127455 | AJ173: 1536.127455 | AK173: 1536.127455 | AL173: 1536.127455 | AM173: 1536.127455 | AN173: 1536.127455 | AO173: 1536.127455 | AP173: 1536.127455 | AQ173: 1536.127455 | AR173: 1536.127455 | AS173: 1536.127455 | AT173: 1536.127455 | AU173: 1536.127455 | AV173: 1536.127455
K174: TRG 4 - Mid | L174: 1757.98024 | M174: 1754.552179 | N174: 1751.130802 | O174: 1747.716097 | P174: 1744.308051 | Q174: 1740.90665 | R174: 1738.108764 | S174: 1736.023034 | T174: 1733.939806 | U174: 1731.859078 | V174: 1729.780847 | W174: 1727.70511 | X174: 1726.668487 | Y174: 1725.632486 | Z174: 1724.855952 | AA174: 1724.079766 | AB174: 1723.562542 | AC174: 1723.045474 | AD174: 1722.52856 | AE174: 1722.270181 | AF174: 1722.01184 | AG174: 1722.01184 | AH174: 1722.01184 | AI174: 1722.01184 | AJ174: 1722.01184 | AK174: 1722.01184 | AL174: 1722.01184 | AM174: 1722.01184 | AN174: 1722.01184 | AO174: 1722.01184 | AP174: 1722.01184 | AQ174: 1722.01184 | AR174: 1722.01184 | AS174: 1722.01184 | AT174: 1722.01184 | AU174: 1722.01184 | AV174: 1722.01184
K175: TRG 4 - High | L175: 1757.98024 | M175: 1757.98024 | N175: 1757.98024 | O175: 1757.98024 | P175: 1757.98024 | Q175: 1757.98024 | R175: 1757.98024 | S175: 1757.98024 | T175: 1757.98024 | U175: 1757.98024 | V175: 1757.98024 | W175: 1757.98024 | X175: 1757.98024 | Y175: 1757.98024 | Z175: 1757.98024 | AA175: 1757.98024 | AB175: 1757.98024 | AC175: 1757.98024 | AD175: 1757.98024 | AE175: 1757.98024 | AF175: 1757.98024 | AG175: 1757.98024 | AH175: 1757.98024 | AI175: 1757.98024 | AJ175: 1757.98024 | AK175: 1757.98024 | AL175: 1757.98024 | AM175: 1757.98024 | AN175: 1757.98024 | AO175: 1757.98024 | AP175: 1757.98024 | AQ175: 1757.98024 | AR175: 1757.98024 | AS175: 1757.98024 | AT175: 1757.98024 | AU175: 1757.98024 | AV175: 1757.98024
K176: TRG 5 - Low | L176: 1757.98024 | M176: 1601.017719 | N176: 1594.77375 | O176: 1588.554132 | P176: 1582.358771 | Q176: 1576.187572 | R176: 1570.04044 | S176: 1564.993882 | T176: 1561.237896 | U176: 1557.490925 | V176: 1553.752947 | W176: 1550.02394 | X176: 1546.303883 | Y176: 1544.448318 | Z176: 1542.59498 | AA176: 1541.206645 | AB176: 1539.819559 | AC176: 1538.895667 | AD176: 1537.972329 | AE176: 1537.049546 | AF176: 1536.588431 | AG176: 1536.127455 | AH176: 1536.127455 | AI176: 1536.127455 | AJ176: 1536.127455 | AK176: 1536.127455 | AL176: 1536.127455 | AM176: 1536.127455 | AN176: 1536.127455 | AO176: 1536.127455 | AP176: 1536.127455 | AQ176: 1536.127455 | AR176: 1536.127455 | AS176: 1536.127455 | AT176: 1536.127455 | AU176: 1536.127455 | AV176: 1536.127455
K177: TRG 5 - Mid | L177: 1757.98024 | M177: 1754.552179 | N177: 1751.130802 | O177: 1747.716097 | P177: 1744.308051 | Q177: 1740.90665 | R177: 1738.108764 | S177: 1736.023034 | T177: 1733.939806 | U177: 1731.859078 | V177: 1729.780847 | W177: 1727.70511 | X177: 1726.668487 | Y177: 1725.632486 | Z177: 1724.855952 | AA177: 1724.079766 | AB177: 1723.562542 | AC177: 1723.045474 | AD177: 1722.52856 | AE177: 1722.270181 | AF177: 1722.01184 | AG177: 1722.01184 | AH177: 1722.01184 | AI177: 1722.01184 | AJ177: 1722.01184 | AK177: 1722.01184 | AL177: 1722.01184 | AM177: 1722.01184 | AN177: 1722.01184 | AO177: 1722.01184 | AP177: 1722.01184 | AQ177: 1722.01184 | AR177: 1722.01184 | AS177: 1722.01184 | AT177: 1722.01184 | AU177: 1722.01184 | AV177: 1722.01184
K178: TRG 5 - High | L178: 1757.98024 | M178: 1757.98024 | N178: 1757.98024 | O178: 1757.98024 | P178: 1757.98024 | Q178: 1757.98024 | R178: 1757.98024 | S178: 1757.98024 | T178: 1757.98024 | U178: 1757.98024 | V178: 1757.98024 | W178: 1757.98024 | X178: 1757.98024 | Y178: 1757.98024 | Z178: 1757.98024 | AA178: 1757.98024 | AB178: 1757.98024 | AC178: 1757.98024 | AD178: 1757.98024 | AE178: 1757.98024 | AF178: 1757.98024 | AG178: 1757.98024 | AH178: 1757.98024 | AI178: 1757.98024 | AJ178: 1757.98024 | AK178: 1757.98024 | AL178: 1757.98024 | AM178: 1757.98024 | AN178: 1757.98024 | AO178: 1757.98024 | AP178: 1757.98024 | AQ178: 1757.98024 | AR178: 1757.98024 | AS178: 1757.98024 | AT178: 1757.98024 | AU178: 1757.98024 | AV178: 1757.98024
J180: Fixed Operation and Maintenance Expenses ($/kW) | K180: TRG 1 - Low | L180: 50.73237977 | M180: 50.05594804 | N180: 49.37951631 | O180: 48.70308458 | P180: 48.02665285 | Q180: 47.35022111 | R180: 46.67378938 | S180: 46.26793035 | T180: 45.86207131 | U180: 45.45621227 | V180: 45.05035323 | W180: 44.64449419 | X180: 44.23863516 | Y180: 43.83277612 | Z180: 43.42691708 | AA180: 43.02105804 | AB180: 42.615199 | AC180: 42.33109768 | AD180: 42.04699635 | AE180: 41.76289502 | AF180: 41.4787937 | AG180: 41.19469237 | AH180: 40.91059104 | AI180: 40.62648972 | AJ180: 40.34238839 | AK180: 40.05828706 | AL180: 39.77418574 | AM180: 39.53067031 | AN180: 39.28715489 | AO180: 39.04363947 | AP180: 38.80012405 | AQ180: 38.55660862 | AR180: 38.55660862 | AS180: 38.55660862 | AT180: 38.55660862 | AU180: 38.55660862 | AV180: 38.55660862
K181: TRG 1 - Mid | L181: 50.73237977 | M181: 50.45335168 | N181: 50.17432359 | O181: 49.8952955 | P181: 49.61626741 | Q181: 49.33723932 | R181: 49.05821123 | S181: 48.88572114 | T181: 48.71323105 | U181: 48.54074096 | V181: 48.36825087 | W181: 48.19576078 | X181: 48.02327069 | Y181: 47.8507806 | Z181: 47.6782905 | AA181: 47.50580041 | AB181: 47.33331032 | AC181: 47.21662585 | AD181: 47.09994137 | AE181: 46.9832569 | AF181: 46.86657243 | AG181: 46.74988795 | AH181: 46.63320348 | AI181: 46.51651901 | AJ181: 46.39983453 | AK181: 46.28315006 | AL181: 46.16646559 | AM181: 46.11573321 | AN181: 46.06500083 | AO181: 46.01426845 | AP181: 45.96353607 | AQ181: 45.91280369 | AR181: 45.86207131 | AS181: 45.81133893 | AT181: 45.76060655 | AU181: 45.70987417 | AV181: 45.65914179
K182: TRG 1 - High | L182: 50.73237977 | M182: 50.73237977 | N182: 50.73237977 | O182: 50.73237977 | P182: 50.73237977 | Q182: 50.73237977 | R182: 50.73237977 | S182: 50.73237977 | T182: 50.73237977 | U182: 50.73237977 | V182: 50.73237977 | W182: 50.73237977 | X182: 50.73237977 | Y182: 50.73237977 | Z182: 50.73237977 | AA182: 50.73237977 | AB182: 50.73237977 | AC182: 50.73237977 | AD182: 50.73237977 | AE182: 50.73237977 | AF182: 50.73237977 | AG182: 50.73237977 | AH182: 50.73237977 | AI182: 50.73237977 | AJ182: 50.73237977 | AK182: 50.73237977 | AL182: 50.73237977 | AM182: 50.73237977 | AN182: 50.73237977 | AO182: 50.73237977 | AP182: 50.73237977 | AQ182: 50.73237977 | AR182: 50.73237977 | AS182: 50.73237977 | AT182: 50.73237977 | AU182: 50.73237977 | AV182: 50.73237977
K183: TRG 2 - Low | L183: 50.73237977 | M183: 50.05594804 | N183: 49.37951631 | O183: 48.70308458 | P183: 48.02665285 | Q183: 47.35022111 | R183: 46.67378938 | S183: 46.26793035 | T183: 45.86207131 | U183: 45.45621227 | V183: 45.05035323 | W183: 44.64449419 | X183: 44.23863516 | Y183: 43.83277612 | Z183: 43.42691708 | AA183: 43.02105804 | AB183: 42.615199 | AC183: 42.33109768 | AD183: 42.04699635 | AE183: 41.76289502 | AF183: 41.4787937 | AG183: 41.19469237 | AH183: 40.91059104 | AI183: 40.62648972 | AJ183: 40.34238839 | AK183: 40.05828706 | AL183: 39.77418574 | AM183: 39.53067031 | AN183: 39.28715489 | AO183: 39.04363947 | AP183: 38.80012405 | AQ183: 38.55660862 | AR183: 38.55660862 | AS183: 38.55660862 | AT183: 38.55660862 | AU183: 38.55660862 | AV183: 38.55660862
K184: TRG 2 - Mid | L184: 50.73237977 | M184: 50.45335168 | N184: 50.17432359 | O184: 49.8952955 | P184: 49.61626741 | Q184: 49.33723932 | R184: 49.05821123 | S184: 48.88572114 | T184: 48.71323105 | U184: 48.54074096 | V184: 48.36825087 | W184: 48.19576078 | X184: 48.02327069 | Y184: 47.8507806 | Z184: 47.6782905 | AA184: 47.50580041 | AB184: 47.33331032 | AC184: 47.21662585 | AD184: 47.09994137 | AE184: 46.9832569 | AF184: 46.86657243 | AG184: 46.74988795 | AH184: 46.63320348 | AI184: 46.51651901 | AJ184: 46.39983453 | AK184: 46.28315006 | AL184: 46.16646559 | AM184: 46.11573321 | AN184: 46.06500083 | AO184: 46.01426845 | AP184: 45.96353607 | AQ184: 45.91280369 | AR184: 45.86207131 | AS184: 45.81133893 | AT184: 45.76060655 | AU184: 45.70987417 | AV184: 45.65914179
K185: TRG 2 - High | L185: 50.73237977 | M185: 50.73237977 | N185: 50.73237977 | O185: 50.73237977 | P185: 50.73237977 | Q185: 50.73237977 | R185: 50.73237977 | S185: 50.73237977 | T185: 50.73237977 | U185: 50.73237977 | V185: 50.73237977 | W185: 50.73237977 | X185: 50.73237977 | Y185: 50.73237977 | Z185: 50.73237977 | AA185: 50.73237977 | AB185: 50.73237977 | AC185: 50.73237977 | AD185: 50.73237977 | AE185: 50.73237977 | AF185: 50.73237977 | AG185: 50.73237977 | AH185: 50.73237977 | AI185: 50.73237977 | AJ185: 50.73237977 | AK185: 50.73237977 | AL185: 50.73237977 | AM185: 50.73237977 | AN185: 50.73237977 | AO185: 50.73237977 | AP185: 50.73237977 | AQ185: 50.73237977 | AR185: 50.73237977 | AS185: 50.73237977 | AT185: 50.73237977 | AU185: 50.73237977 | AV185: 50.73237977
K186: TRG 3 - Low | L186: 50.73237977 | M186: 50.05594804 | N186: 49.37951631 | O186: 48.70308458 | P186: 48.02665285 | Q186: 47.35022111 | R186: 46.67378938 | S186: 46.26793035 | T186: 45.86207131 | U186: 45.45621227 | V186: 45.05035323 | W186: 44.64449419 | X186: 44.23863516 | Y186: 43.83277612 | Z186: 43.42691708 | AA186: 43.02105804 | AB186: 42.615199 | AC186: 42.33109768 | AD186: 42.04699635 | AE186: 41.76289502 | AF186: 41.4787937 | AG186: 41.19469237 | AH186: 40.91059104 | AI186: 40.62648972 | AJ186: 40.34238839 | AK186: 40.05828706 | AL186: 39.77418574 | AM186: 39.53067031 | AN186: 39.28715489 | AO186: 39.04363947 | AP186: 38.80012405 | AQ186: 38.55660862 | AR186: 38.55660862 | AS186: 38.55660862 | AT186: 38.55660862 | AU186: 38.55660862 | AV186: 38.55660862
K187: TRG 3 - Mid | L187: 50.73237977 | M187: 50.45335168 | N187: 50.17432359 | O187: 49.8952955 | P187: 49.61626741 | Q187: 49.33723932 | R187: 49.05821123 | S187: 48.88572114 | T187: 48.71323105 | U187: 48.54074096 | V187: 48.36825087 | W187: 48.19576078 | X187: 48.02327069 | Y187: 47.8507806 | Z187: 47.6782905 | AA187: 47.50580041 | AB187: 47.33331032 | AC187: 47.21662585 | AD187: 47.09994137 | AE187: 46.9832569 | AF187: 46.86657243 | AG187: 46.74988795 | AH187: 46.63320348 | AI187: 46.51651901 | AJ187: 46.39983453 | AK187: 46.28315006 | AL187: 46.16646559 | AM187: 46.11573321 | AN187: 46.06500083 | AO187: 46.01426845 | AP187: 45.96353607 | AQ187: 45.91280369 | AR187: 45.86207131 | AS187: 45.81133893 | AT187: 45.76060655 | AU187: 45.70987417 | AV187: 45.65914179
K188: TRG 3 - High | L188: 50.73237977 | M188: 50.73237977 | N188: 50.73237977 | O188: 50.73237977 | P188: 50.73237977 | Q188: 50.73237977 | R188: 50.73237977 | S188: 50.73237977 | T188: 50.73237977 | U188: 50.73237977 | V188: 50.73237977 | W188: 50.73237977 | X188: 50.73237977 | Y188: 50.73237977 | Z188: 50.73237977 | AA188: 50.73237977 | AB188: 50.73237977 | AC188: 50.73237977 | AD188: 50.73237977 | AE188: 50.73237977 | AF188: 50.73237977 | AG188: 50.73237977 | AH188: 50.73237977 | AI188: 50.73237977 | AJ188: 50.73237977 | AK188: 50.73237977 | AL188: 50.73237977 | AM188: 50.73237977 | AN188: 50.73237977 | AO188: 50.73237977 | AP188: 50.73237977 | AQ188: 50.73237977 | AR188: 50.73237977 | AS188: 50.73237977 | AT188: 50.73237977 | AU188: 50.73237977 | AV188: 50.73237977
K189: TRG 4 - Low | L189: 50.73237977 | M189: 50.05594804 | N189: 49.37951631 | O189: 48.70308458 | P189: 48.02665285 | Q189: 47.35022111 | R189: 46.67378938 | S189: 46.26793035 | T189: 45.86207131 | U189: 45.45621227 | V189: 45.05035323 | W189: 44.64449419 | X189: 44.23863516 | Y189: 43.83277612 | Z189: 43.42691708 | AA189: 43.02105804 | AB189: 42.615199 | AC189: 42.33109768 | AD189: 42.04699635 | AE189: 41.76289502 | AF189: 41.4787937 | AG189: 41.19469237 | AH189: 40.91059104 | AI189: 40.62648972 | AJ189: 40.34238839 | AK189: 40.05828706 | AL189: 39.77418574 | AM189: 39.53067031 | AN189: 39.28715489 | AO189: 39.04363947 | AP189: 38.80012405 | AQ189: 38.55660862 | AR189: 38.55660862 | AS189: 38.55660862 | AT189: 38.55660862 | AU189: 38.55660862 | AV189: 38.55660862
K190: TRG 4 - Mid | L190: 50.73237977 | M190: 50.45335168 | N190: 50.17432359 | O190: 49.8952955 | P190: 49.61626741 | Q190: 49.33723932 | R190: 49.05821123 | S190: 48.88572114 | T190: 48.71323105 | U190: 48.54074096 | V190: 48.36825087 | W190: 48.19576078 | X190: 48.02327069 | Y190: 47.8507806 | Z190: 47.6782905 | AA190: 47.50580041 | AB190: 47.33331032 | AC190: 47.21662585 | AD190: 47.09994137 | AE190: 46.9832569 | AF190: 46.86657243 | AG190: 46.74988795 | AH190: 46.63320348 | AI190: 46.51651901 | AJ190: 46.39983453 | AK190: 46.28315006 | AL190: 46.16646559 | AM190: 46.11573321 | AN190: 46.06500083 | AO190: 46.01426845 | AP190: 45.96353607 | AQ190: 45.91280369 | AR190: 45.86207131 | AS190: 45.81133893 | AT190: 45.76060655 | AU190: 45.70987417 | AV190: 45.65914179
K191: TRG 4 - High | L191: 50.73237977 | M191: 50.73237977 | N191: 50.73237977 | O191: 50.73237977 | P191: 50.73237977 | Q191: 50.73237977 | R191: 50.73237977 | S191: 50.73237977 | T191: 50.73237977 | U191: 50.73237977 | V191: 50.73237977 | W191: 50.73237977 | X191: 50.73237977 | Y191: 50.73237977 | Z191: 50.73237977 | AA191: 50.73237977 | AB191: 50.73237977 | AC191: 50.73237977 | AD191: 50.73237977 | AE191: 50.73237977 | AF191: 50.73237977 | AG191: 50.73237977 | AH191: 50.73237977 | AI191: 50.73237977 | AJ191: 50.73237977 | AK191: 50.73237977 | AL191: 50.73237977 | AM191: 50.73237977 | AN191: 50.73237977 | AO191: 50.73237977 | AP191: 50.73237977 | AQ191: 50.73237977 | AR191: 50.73237977 | AS191: 50.73237977 | AT191: 50.73237977 | AU191: 50.73237977 | AV191: 50.73237977
K192: TRG 5 - Low | L192: 50.73237977 | M192: 50.05594804 | N192: 49.37951631 | O192: 48.70308458 | P192: 48.02665285 | Q192: 47.35022111 | R192: 46.67378938 | S192: 46.26793035 | T192: 45.86207131 | U192: 45.45621227 | V192: 45.05035323 | W192: 44.64449419 | X192: 44.23863516 | Y192: 43.83277612 | Z192: 43.42691708 | AA192: 43.02105804 | AB192: 42.615199 | AC192: 42.33109768 | AD192: 42.04699635 | AE192: 41.76289502 | AF192: 41.4787937 | AG192: 41.19469237 | AH192: 40.91059104 | AI192: 40.62648972 | AJ192: 40.34238839 | AK192: 40.05828706 | AL192: 39.77418574 | AM192: 39.53067031 | AN192: 39.28715489 | AO192: 39.04363947 | AP192: 38.80012405 | AQ192: 38.55660862 | AR192: 38.55660862 | AS192: 38.55660862 | AT192: 38.55660862 | AU192: 38.55660862 | AV192: 38.55660862
K193: TRG 5 - Mid | L193: 50.73237977 | M193: 50.45335168 | N193: 50.17432359 | O193: 49.8952955 | P193: 49.61626741 | Q193: 49.33723932 | R193: 49.05821123 | S193: 48.88572114 | T193: 48.71323105 | U193: 48.54074096 | V193: 48.36825087 | W193: 48.19576078 | X193: 48.02327069 | Y193: 47.8507806 | Z193: 47.6782905 | AA193: 47.50580041 | AB193: 47.33331032 | AC193: 47.21662585 | AD193: 47.09994137 | AE193: 46.9832569 | AF193: 46.86657243 | AG193: 46.74988795 | AH193: 46.63320348 | AI193: 46.51651901 | AJ193: 46.39983453 | AK193: 46.28315006 | AL193: 46.16646559 | AM193: 46.11573321 | AN193: 46.06500083 | AO193: 46.01426845 | AP193: 45.96353607 | AQ193: 45.91280369 | AR193: 45.86207131 | AS193: 45.81133893 | AT193: 45.76060655 | AU193: 45.70987417 | AV193: 45.65914179
K194: TRG 5 - High | L194: 50.73237977 | M194: 50.73237977 | N194: 50.73237977 | O194: 50.73237977 | P194: 50.73237977 | Q194: 50.73237977 | R194: 50.73237977 | S194: 50.73237977 | T194: 50.73237977 | U194: 50.73237977 | V194: 50.73237977 | W194: 50.73237977 | X194: 50.73237977 | Y194: 50.73237977 | Z194: 50.73237977 | AA194: 50.73237977 | AB194: 50.73237977 | AC194: 50.73237977 | AD194: 50.73237977 | AE194: 50.73237977 | AF194: 50.73237977 | AG194: 50.73237977 | AH194: 50.73237977 | AI194: 50.73237977 | AJ194: 50.73237977 | AK194: 50.73237977 | AL194: 50.73237977 | AM194: 50.73237977 | AN194: 50.73237977 | AO194: 50.73237977 | AP194: 50.73237977 | AQ194: 50.73237977 | AR194: 50.73237977 | AS194: 50.73237977 | AT194: 50.73237977 | AU194: 50.73237977 | AV194: 50.73237977
J196: Variable Operation and Maintenance Expenses ($/MWh) | K196: TRG 1 - Low | L196: 0 | M196: 0 | N196: 0 | O196: 0 | P196: 0 | Q196: 0 | R196: 0 | S196: 0 | T196: 0 | U196: 0 | V196: 0 | W196: 0 | X196: 0 | Y196: 0 | Z196: 0 | AA196: 0 | AB196: 0 | AC196: 0 | AD196: 0 | AE196: 0 | AF196: 0 | AG196: 0 | AH196: 0 | AI196: 0 | AJ196: 0 | AK196: 0 | AL196: 0 | AM196: 0 | AN196: 0 | AO196: 0 | AP196: 0 | AQ196: 0 | AR196: 0 | AS196: 0 | AT196: 0 | AU196: 0 | AV196: 0
K197: TRG 1 - Mid | L197: 0 | M197: 0 | N197: 0 | O197: 0 | P197: 0 | Q197: 0 | R197: 0 | S197: 0 | T197: 0 | U197: 0 | V197: 0 | W197: 0 | X197: 0 | Y197: 0 | Z197: 0 | AA197: 0 | AB197: 0 | AC197: 0 | AD197: 0 | AE197: 0 | AF197: 0 | AG197: 0 | AH197: 0 | AI197: 0 | AJ197: 0 | AK197: 0 | AL197: 0 | AM197: 0 | AN197: 0 | AO197: 0 | AP197: 0 | AQ197: 0 | AR197: 0 | AS197: 0 | AT197: 0 | AU197: 0 | AV197: 0
K198: TRG 1 - High | L198: 0 | M198: 0 | N198: 0 | O198: 0 | P198: 0 | Q198: 0 | R198: 0 | S198: 0 | T198: 0 | U198: 0 | V198: 0 | W198: 0 | X198: 0 | Y198: 0 | Z198: 0 | AA198: 0 | AB198: 0 | AC198: 0 | AD198: 0 | AE198: 0 | AF198: 0 | AG198: 0 | AH198: 0 | AI198: 0 | AJ198: 0 | AK198: 0 | AL198: 0 | AM198: 0 | AN198: 0 | AO198: 0 | AP198: 0 | AQ198: 0 | AR198: 0 | AS198: 0 | AT198: 0 | AU198: 0 | AV198: 0
K199: TRG 2 - Low | L199: 0 | M199: 0 | N199: 0 | O199: 0 | P199: 0 | Q199: 0 | R199: 0 | S199: 0 | T199: 0 | U199: 0 | V199: 0 | W199: 0 | X199: 0 | Y199: 0 | Z199: 0 | AA199: 0 | AB199: 0 | AC199: 0 | AD199: 0 | AE199: 0 | AF199: 0 | AG199: 0 | AH199: 0 | AI199: 0 | AJ199: 0 | AK199: 0 | AL199: 0 | AM199: 0 | AN199: 0 | AO199: 0 | AP199: 0 | AQ199: 0 | AR199: 0 | AS199: 0 | AT199: 0 | AU199: 0 | AV199: 0
K200: TRG 2 - Mid | L200: 0 | M200: 0 | N200: 0 | O200: 0 | P200: 0 | Q200: 0 | R200: 0 | S200: 0 | T200: 0 | U200: 0 | V200: 0 | W200: 0 | X200: 0 | Y200: 0 | Z200: 0 | AA200: 0 | AB200: 0 | AC200: 0 | AD200: 0 | AE200: 0 | AF200: 0 | AG200: 0 | AH200: 0 | AI200: 0 | AJ200: 0 | AK200: 0 | AL200: 0 | AM200: 0 | AN200: 0 | AO200: 0 | AP200: 0 | AQ200: 0 | AR200: 0 | AS200: 0 | AT200: 0 | AU200: 0 | AV200: 0
K201: TRG 2 - High | L201: 0 | M201: 0 | N201: 0 | O201: 0 | P201: 0 | Q201: 0 | R201: 0 | S201: 0 | T201: 0 | U201: 0 | V201: 0 | W201: 0 | X201: 0 | Y201: 0 | Z201: 0 | AA201: 0 | AB201: 0 | AC201: 0 | AD201: 0 | AE201: 0 | AF201: 0 | AG201: 0 | AH201: 0 | AI201: 0 | AJ201: 0 | AK201: 0 | AL201: 0 | AM201: 0 | AN201: 0 | AO201: 0 | AP201: 0 | AQ201: 0 | AR201: 0 | AS201: 0 | AT201: 0 | AU201: 0 | AV201: 0
K202: TRG 3 - Low | L202: 0 | M202: 0 | N202: 0 | O202: 0 | P202: 0 | Q202: 0 | R202: 0 | S202: 0 | T202: 0 | U202: 0 | V202: 0 | W202: 0 | X202: 0 | Y202: 0 | Z202: 0 | AA202: 0 | AB202: 0 | AC202: 0 | AD202: 0 | AE202: 0 | AF202: 0 | AG202: 0 | AH202: 0 | AI202: 0 | AJ202: 0 | AK202: 0 | AL202: 0 | AM202: 0 | AN202: 0 | AO202: 0 | AP202: 0 | AQ202: 0 | AR202: 0 | AS202: 0 | AT202: 0 | AU202: 0 | AV202: 0
K203: TRG 3 - Mid | L203: 0 | M203: 0 | N203: 0 | O203: 0 | P203: 0 | Q203: 0 | R203: 0 | S203: 0 | T203: 0 | U203: 0 | V203: 0 | W203: 0 | X203: 0 | Y203: 0 | Z203: 0 | AA203: 0 | AB203: 0 | AC203: 0 | AD203: 0 | AE203: 0 | AF203: 0 | AG203: 0 | AH203: 0 | AI203: 0 | AJ203: 0 | AK203: 0 | AL203: 0 | AM203: 0 | AN203: 0 | AO203: 0 | AP203: 0 | AQ203: 0 | AR203: 0 | AS203: 0 | AT203: 0 | AU203: 0 | AV203: 0
K204: TRG 3 - High | L204: 0 | M204: 0 | N204: 0 | O204: 0 | P204: 0 | Q204: 0 | R204: 0 | S204: 0 | T204: 0 | U204: 0 | V204: 0 | W204: 0 | X204: 0 | Y204: 0 | Z204: 0 | AA204: 0 | AB204: 0 | AC204: 0 | AD204: 0 | AE204: 0 | AF204: 0 | AG204: 0 | AH204: 0 | AI204: 0 | AJ204: 0 | AK204: 0 | AL204: 0 | AM204: 0 | AN204: 0 | AO204: 0 | AP204: 0 | AQ204: 0 | AR204: 0 | AS204: 0 | AT204: 0 | AU204: 0 | AV204: 0
K205: TRG 4 - Low | L205: 0 | M205: 0 | N205: 0 | O205: 0 | P205: 0 | Q205: 0 | R205: 0 | S205: 0 | T205: 0 | U205: 0 | V205: 0 | W205: 0 | X205: 0 | Y205: 0 | Z205: 0 | AA205: 0 | AB205: 0 | AC205: 0 | AD205: 0 | AE205: 0 | AF205: 0 | AG205: 0 | AH205: 0 | AI205: 0 | AJ205: 0 | AK205: 0 | AL205: 0 | AM205: 0 | AN205: 0 | AO205: 0 | AP205: 0 | AQ205: 0 | AR205: 0 | AS205: 0 | AT205: 0 | AU205: 0 | AV205: 0
K206: TRG 4 - Mid | L206: 0 | M206: 0 | N206: 0 | O206: 0 | P206: 0 | Q206: 0 | R206: 0 | S206: 0 | T206: 0 | U206: 0 | V206: 0 | W206: 0 | X206: 0 | Y206: 0 | Z206: 0 | AA206: 0 | AB206: 0 | AC206: 0 | AD206: 0 | AE206: 0 | AF206: 0 | AG206: 0 | AH206: 0 | AI206: 0 | AJ206: 0 | AK206: 0 | AL206: 0 | AM206: 0 | AN206: 0 | AO206: 0 | AP206: 0 | AQ206: 0 | AR206: 0 | AS206: 0 | AT206: 0 | AU206: 0 | AV206: 0
K207: TRG 4 - High | L207: 0 | M207: 0 | N207: 0 | O207: 0 | P207: 0 | Q207: 0 | R207: 0 | S207: 0 | T207: 0 | U207: 0 | V207: 0 | W207: 0 | X207: 0 | Y207: 0 | Z207: 0 | AA207: 0 | AB207: 0 | AC207: 0 | AD207: 0 | AE207: 0 | AF207: 0 | AG207: 0 | AH207: 0 | AI207: 0 | AJ207: 0 | AK207: 0 | AL207: 0 | AM207: 0 | AN207: 0 | AO207: 0 | AP207: 0 | AQ207: 0 | AR207: 0 | AS207: 0 | AT207: 0 | AU207: 0 | AV207: 0
K208: TRG 5 - Low | L208: 0 | M208: 0 | N208: 0 | O208: 0 | P208: 0 | Q208: 0 | R208: 0 | S208: 0 | T208: 0 | U208: 0 | V208: 0 | W208: 0 | X208: 0 | Y208: 0 | Z208: 0 | AA208: 0 | AB208: 0 | AC208: 0 | AD208: 0 | AE208: 0 | AF208: 0 | AG208: 0 | AH208: 0 | AI208: 0 | AJ208: 0 | AK208: 0 | AL208: 0 | AM208: 0 | AN208: 0 | AO208: 0 | AP208: 0 | AQ208: 0 | AR208: 0 | AS208: 0 | AT208: 0 | AU208: 0 | AV208: 0
K209: TRG 5 - Mid | L209: 0 | M209: 0 | N209: 0 | O209: 0 | P209: 0 | Q209: 0 | R209: 0 | S209: 0 | T209: 0 | U209: 0 | V209: 0 | W209: 0 | X209: 0 | Y209: 0 | Z209: 0 | AA209: 0 | AB209: 0 | AC209: 0 | AD209: 0 | AE209: 0 | AF209: 0 | AG209: 0 | AH209: 0 | AI209: 0 | AJ209: 0 | AK209: 0 | AL209: 0 | AM209: 0 | AN209: 0 | AO209: 0 | AP209: 0 | AQ209: 0 | AR209: 0 | AS209: 0 | AT209: 0 | AU209: 0 | AV209: 0
K210: TRG 5 - High | L210: 0 | M210: 0 | N210: 0 | O210: 0 | P210: 0 | Q210: 0 | R210: 0 | S210: 0 | T210: 0 | U210: 0 | V210: 0 | W210: 0 | X210: 0 | Y210: 0 | Z210: 0 | AA210: 0 | AB210: 0 | AC210: 0 | AD210: 0 | AE210: 0 | AF210: 0 | AG210: 0 | AH210: 0 | AI210: 0 | AJ210: 0 | AK210: 0 | AL210: 0 | AM210: 0 | AN210: 0 | AO210: 0 | AP210: 0 | AQ210: 0 | AR210: 0 | AS210: 0 | AT210: 0 | AU210: 0 | AV210: 0
L213: =L99 -> 2014 | M213: 2015 | N213: 2016 | O213: 2017 | P213: 2018 | Q213: 2019 | R213: 2020 | S213: 2021 | T213: 2022 | U213: 2023 | V213: 2024 | W213: 2025 | X213: 2026 | Y213: 2027 | Z213: 2028 | AA213: 2029 | AB213: 2030 | AC213: 2031 | AD213: 2032 | AE213: 2033 | AF213: 2034 | AG213: 2035 | AH213: 2036 | AI213: 2037 | AJ213: 2038 | AK213: 2039 | AL213: 2040 | AM213: 2041 | AN213: 2042 | AO213: 2043 | AP213: 2044 | AQ213: 2045 | AR213: 2046 | AS213: 2047 | AT213: 2048 | AU213: 2049 | AV213: 2050
H214: Finance | J214: Weighted Average Cost of Capital (WACC) (Nominal) (%) | K214: TRG 1 - Low | L214: =$S$34 -> 0.089 | M214: 0.089 | N214: 0.089 | O214: 0.089 | P214: 0.089 | Q214: 0.089 | R214: 0.089 | S214: 0.089 | T214: 0.089 | U214: 0.089 | V214: 0.089 | W214: 0.089 | X214: 0.089 | Y214: 0.089 | Z214: 0.089 | AA214: 0.089 | AB214: =$S$34 -> 0.089 | AC214: 0.089 | AD214: 0.089 | AE214: 0.089 | AF214: 0.089 | AG214: 0.089 | AH214: 0.089 | AI214: 0.089 | AJ214: 0.089 | AK214: 0.089 | AL214: 0.089 | AM214: 0.089 | AN214: 0.089 | AO214: 0.089 | AP214: 0.089 | AQ214: 0.089 | AR214: 0.089 | AS214: 0.089 | AT214: 0.089 | AU214: 0.089 | AV214: 0.089
K215: TRG 1 - Mid | L215: =$S$34 -> 0.089 | M215: 0.089 | N215: 0.089 | O215: 0.089 | P215: 0.089 | Q215: 0.089 | R215: 0.089 | S215: 0.089 | T215: 0.089 | U215: 0.089 | V215: 0.089 | W215: 0.089 | X215: 0.089 | Y215: 0.089 | Z215: 0.089 | AA215: 0.089 | AB215: 0.089 | AC215: 0.089 | AD215: 0.089 | AE215: 0.089 | AF215: 0.089 | AG215: 0.089 | AH215: 0.089 | AI215: 0.089 | AJ215: 0.089 | AK215: 0.089 | AL215: 0.089 | AM215: 0.089 | AN215: 0.089 | AO215: 0.089 | AP215: 0.089 | AQ215: 0.089 | AR215: 0.089 | AS215: 0.089 | AT215: 0.089 | AU215: 0.089 | AV215: 0.089
K216: TRG 1 - High | L216: 0.089 | M216: 0.089 | N216: 0.089 | O216: 0.089 | P216: 0.089 | Q216: 0.089 | R216: 0.089 | S216: 0.089 | T216: 0.089 | U216: 0.089 | V216: 0.089 | W216: 0.089 | X216: 0.089 | Y216: 0.089 | Z216: 0.089 | AA216: 0.089 | AB216: 0.089 | AC216: 0.089 | AD216: 0.089 | AE216: 0.089 | AF216: 0.089 | AG216: 0.089 | AH216: 0.089 | AI216: 0.089 | AJ216: 0.089 | AK216: 0.089 | AL216: 0.089 | AM216: 0.089 | AN216: 0.089 | AO216: 0.089 | AP216: 0.089 | AQ216: 0.089 | AR216: 0.089 | AS216: 0.089 | AT216: 0.089 | AU216: 0.089 | AV216: 0.089
K217: TRG 2 - Low | L217: 0.089 | M217: 0.089 | N217: 0.089 | O217: 0.089 | P217: 0.089 | Q217: 0.089 | R217: 0.089 | S217: 0.089 | T217: 0.089 | U217: 0.089 | V217: 0.089 | W217: 0.089 | X217: 0.089 | Y217: 0.089 | Z217: 0.089 | AA217: 0.089 | AB217: 0.089 | AC217: 0.089 | AD217: 0.089 | AE217: 0.089 | AF217: 0.089 | AG217: 0.089 | AH217: 0.089 | AI217: 0.089 | AJ217: 0.089 | AK217: 0.089 | AL217: 0.089 | AM217: 0.089 | AN217: 0.089 | AO217: 0.089 | AP217: 0.089 | AQ217: 0.089 | AR217: 0.089 | AS217: 0.089 | AT217: 0.089 | AU217: 0.089 | AV217: 0.089
K218: TRG 2 - Mid | L218: 0.089 | M218: 0.089 | N218: 0.089 | O218: 0.089 | P218: 0.089 | Q218: 0.089 | R218: 0.089 | S218: 0.089 | T218: 0.089 | U218: 0.089 | V218: 0.089 | W218: 0.089 | X218: 0.089 | Y218: 0.089 | Z218: 0.089 | AA218: 0.089 | AB218: 0.089 | AC218: 0.089 | AD218: 0.089 | AE218: 0.089 | AF218: 0.089 | AG218: 0.089 | AH218: 0.089 | AI218: 0.089 | AJ218: 0.089 | AK218: 0.089 | AL218: 0.089 | AM218: 0.089 | AN218: 0.089 | AO218: 0.089 | AP218: 0.089 | AQ218: 0.089 | AR218: 0.089 | AS218: 0.089 | AT218: 0.089 | AU218: 0.089 | AV218: 0.089
K219: TRG 2 - High | L219: 0.089 | M219: 0.089 | N219: 0.089 | O219: 0.089 | P219: 0.089 | Q219: 0.089 | R219: 0.089 | S219: 0.089 | T219: 0.089 | U219: 0.089 | V219: 0.089 | W219: 0.089 | X219: 0.089 | Y219: 0.089 | Z219: 0.089 | AA219: 0.089 | AB219: 0.089 | AC219: 0.089 | AD219: 0.089 | AE219: 0.089 | AF219: 0.089 | AG219: 0.089 | AH219: 0.089 | AI219: 0.089 | AJ219: 0.089 | AK219: 0.089 | AL219: 0.089 | AM219: 0.089 | AN219: 0.089 | AO219: 0.089 | AP219: 0.089 | AQ219: 0.089 | AR219: 0.089 | AS219: 0.089 | AT219: 0.089 | AU219: 0.089 | AV219: 0.089
K220: TRG 3 - Low | L220: 0.089 | M220: 0.089 | N220: 0.089 | O220: 0.089 | P220: 0.089 | Q220: 0.089 | R220: 0.089 | S220: 0.089 | T220: 0.089 | U220: 0.089 | V220: 0.089 | W220: 0.089 | X220: 0.089 | Y220: 0.089 | Z220: 0.089 | AA220: 0.089 | AB220: 0.089 | AC220: 0.089 | AD220: 0.089 | AE220: 0.089 | AF220: 0.089 | AG220: 0.089 | AH220: 0.089 | AI220: 0.089 | AJ220: 0.089 | AK220: 0.089 | AL220: 0.089 | AM220: 0.089 | AN220: 0.089 | AO220: 0.089 | AP220: 0.089 | AQ220: 0.089 | AR220: 0.089 | AS220: 0.089 | AT220: 0.089 | AU220: 0.089 | AV220: 0.089
K221: TRG 3 - Mid | L221: 0.089 | M221: 0.089 | N221: 0.089 | O221: 0.089 | P221: 0.089 | Q221: 0.089 | R221: 0.089 | S221: 0.089 | T221: 0.089 | U221: 0.089 | V221: 0.089 | W221: 0.089 | X221: 0.089 | Y221: 0.089 | Z221: 0.089 | AA221: 0.089 | AB221: 0.089 | AC221: 0.089 | AD221: 0.089 | AE221: =$S$34 -> 0.089 | AF221: 0.089 | AG221: 0.089 | AH221: 0.089 | AI221: 0.089 | AJ221: 0.089 | AK221: 0.089 | AL221: 0.089 | AM221: 0.089 | AN221: 0.089 | AO221: 0.089 | AP221: 0.089 | AQ221: 0.089 | AR221: 0.089 | AS221: 0.089 | AT221: 0.089 | AU221: 0.089 | AV221: 0.089
K222: TRG 3 - High | L222: 0.089 | M222: 0.089 | N222: 0.089 | O222: 0.089 | P222: 0.089 | Q222: 0.089 | R222: 0.089 | S222: 0.089 | T222: 0.089 | U222: 0.089 | V222: 0.089 | W222: 0.089 | X222: 0.089 | Y222: 0.089 | Z222: 0.089 | AA222: 0.089 | AB222: 0.089 | AC222: 0.089 | AD222: 0.089 | AE222: 0.089 | AF222: 0.089 | AG222: 0.089 | AH222: 0.089 | AI222: 0.089 | AJ222: 0.089 | AK222: 0.089 | AL222: 0.089 | AM222: 0.089 | AN222: 0.089 | AO222: 0.089 | AP222: 0.089 | AQ222: 0.089 | AR222: 0.089 | AS222: 0.089 | AT222: 0.089 | AU222: 0.089 | AV222: 0.089
K223: TRG 4 - Low | L223: 0.089 | M223: 0.089 | N223: 0.089 | O223: 0.089 | P223: 0.089 | Q223: 0.089 | R223: 0.089 | S223: 0.089 | T223: 0.089 | U223: 0.089 | V223: 0.089 | W223: 0.089 | X223: 0.089 | Y223: 0.089 | Z223: 0.089 | AA223: 0.089 | AB223: 0.089 | AC223: 0.089 | AD223: 0.089 | AE223: 0.089 | AF223: 0.089 | AG223: 0.089 | AH223: 0.089 | AI223: 0.089 | AJ223: 0.089 | AK223: 0.089 | AL223: 0.089 | AM223: 0.089 | AN223: 0.089 | AO223: 0.089 | AP223: 0.089 | AQ223: 0.089 | AR223: 0.089 | AS223: 0.089 | AT223: 0.089 | AU223: 0.089 | AV223: 0.089
K224: TRG 4 - Mid | L224: 0.089 | M224: 0.089 | N224: 0.089 | O224: 0.089 | P224: 0.089 | Q224: 0.089 | R224: 0.089 | S224: 0.089 | T224: 0.089 | U224: 0.089 | V224: 0.089 | W224: 0.089 | X224: 0.089 | Y224: 0.089 | Z224: 0.089 | AA224: 0.089 | AB224: 0.089 | AC224: 0.089 | AD224: 0.089 | AE224: 0.089 | AF224: 0.089 | AG224: 0.089 | AH224: 0.089 | AI224: 0.089 | AJ224: 0.089 | AK224: 0.089 | AL224: 0.089 | AM224: 0.089 | AN224: 0.089 | AO224: 0.089 | AP224: 0.089 | AQ224: 0.089 | AR224: 0.089 | AS224: 0.089 | AT224: 0.089 | AU224: 0.089 | AV224: 0.089
K225: TRG 4 - High | L225: 0.089 | M225: 0.089 | N225: 0.089 | O225: 0.089 | P225: 0.089 | Q225: 0.089 | R225: 0.089 | S225: 0.089 | T225: 0.089 | U225: 0.089 | V225: 0.089 | W225: 0.089 | X225: 0.089 | Y225: 0.089 | Z225: 0.089 | AA225: 0.089 | AB225: 0.089 | AC225: 0.089 | AD225: 0.089 | AE225: 0.089 | AF225: 0.089 | AG225: 0.089 | AH225: 0.089 | AI225: 0.089 | AJ225: 0.089 | AK225: 0.089 | AL225: 0.089 | AM225: 0.089 | AN225: 0.089 | AO225: 0.089 | AP225: 0.089 | AQ225: 0.089 | AR225: 0.089 | AS225: 0.089 | AT225: 0.089 | AU225: 0.089 | AV225: 0.089
K226: TRG 5 - Low | L226: 0.089 | M226: 0.089 | N226: 0.089 | O226: 0.089 | P226: 0.089 | Q226: 0.089 | R226: 0.089 | S226: 0.089 | T226: 0.089 | U226: 0.089 | V226: 0.089 | W226: 0.089 | X226: 0.089 | Y226: 0.089 | Z226: 0.089 | AA226: 0.089 | AB226: 0.089 | AC226: 0.089 | AD226: 0.089 | AE226: 0.089 | AF226: 0.089 | AG226: 0.089 | AH226: 0.089 | AI226: 0.089 | AJ226: 0.089 | AK226: 0.089 | AL226: 0.089 | AM226: 0.089 | AN226: 0.089 | AO226: 0.089 | AP226: 0.089 | AQ226: 0.089 | AR226: 0.089 | AS226: 0.089 | AT226: 0.089 | AU226: 0.089 | AV226: 0.089
K227: TRG 5 - Mid | L227: 0.089 | M227: 0.089 | N227: 0.089 | O227: 0.089 | P227: 0.089 | Q227: 0.089 | R227: 0.089 | S227: 0.089 | T227: 0.089 | U227: 0.089 | V227: 0.089 | W227: 0.089 | X227: 0.089 | Y227: 0.089 | Z227: 0.089 | AA227: 0.089 | AB227: 0.089 | AC227: 0.089 | AD227: 0.089 | AE227: 0.089 | AF227: 0.089 | AG227: 0.089 | AH227: 0.089 | AI227: 0.089 | AJ227: 0.089 | AK227: 0.089 | AL227: 0.089 | AM227: 0.089 | AN227: 0.089 | AO227: 0.089 | AP227: 0.089 | AQ227: 0.089 | AR227: 0.089 | AS227: 0.089 | AT227: 0.089 | AU227: 0.089 | AV227: 0.089
K228: TRG 5 - High | L228: 0.089 | M228: 0.089 | N228: 0.089 | O228: 0.089 | P228: 0.089 | Q228: 0.089 | R228: 0.089 | S228: 0.089 | T228: 0.089 | U228: 0.089 | V228: 0.089 | W228: 0.089 | X228: 0.089 | Y228: 0.089 | Z228: 0.089 | AA228: 0.089 | AB228: 0.089 | AC228: 0.089 | AD228: 0.089 | AE228: 0.089 | AF228: 0.089 | AG228: 0.089 | AH228: =$S$34 -> 0.089 | AI228: 0.089 | AJ228: 0.089 | AK228: 0.089 | AL228: 0.089 | AM228: 0.089 | AN228: 0.089 | AO228: 0.089 | AP228: 0.089 | AQ228: 0.089 | AR228: 0.089 | AS228: 0.089 | AT228: 0.089 | AU228: 0.089 | AV228: 0.089
... 48 more rows

Sheet Offshore Wind
A1: Offshore Wind Inputs
T3: Inputs
J4: Take me to: | T4: Calculated
B10: X | G10: Current Costs
H12: Techno-Economic Cost and Performance Parameters | J12: Net Capacity Factor (%) | K12: TRG 1 - shallow | L12: 0.4742589507 | O12: Basis Year: | Q12: 2013
K13: TRG 2 - shallow | L13: 0.4348072162
K14: TRG 3 - shallow | L14: 0.3974024451 | O14: Offshore Wind Techno-Resource Groups (TRG)
K15: TRG 4 - shallow | L15: 0.3375478885 | Q15: Weighted | S15: Available | T15: Available
K16: TRG 5 - mid-depth | L16: 0.4695454636 | Q16: Average | S16: Capacity | T16: Generation
K17: TRG 6 - mid-depth | L17: 0.4414415648 | Q17: Wind Speed (m/s) | S17: (GW) | T17: (GWh)
K18: TRG 7 - mid-depth | L18: 0.4206148437 | O18: Offshore shallow TRG1 | Q18: 9.1 | S18: 11 | T18: 46000
K19: TRG 8 - deep | L19: 0.4943628499 | O19: Offshore shallow TRG2 | Q19: 8.5 | S19: 61 | T19: 231000
K20: TRG 9 - deep | L20: 0.4697377137 | O20: Offshore shallow TRG3 | Q20: 8 | S20: 191 | T20: 674000
K21: TRG 10 - deep | L21: 0.4358787639 | O21: Offshore shallow TRG4 | Q21: 7.3 | S21: 165 | T21: 500000
O22: Offshore mid TRG5 | Q22: 9.1 | S22: 48 | T22: 197000
J23: Annual Energy Production (kWh/kW) | K23: TRG 1 - shallow | L23: =(L12)*8760 -> 4154.508408 | O23: Offshore mid TRG6 | Q23: 8.6 | S23: 87 | T23: 338000
K24: TRG 2 - shallow | L24: =(L13)*8760 -> 3808.911214 | O24: Offshore mid TRG7 | Q24: 8.4 | S24: 181 | T24: 661000
K25: TRG 3 - shallow | L25: 3481.245419 | O25: Offshore deep TRG8 | Q25: 9.5 | S25: 82 | T25: 355000
K26: TRG 4 - shallow | L26: 2956.919503 | O26: Offshore deep TRG9 | Q26: 9 | S26: 184 | T26: 756000
K27: TRG 5 - mid-depth | L27: 4113.218261 | O27: Offshore deep TRG10 | Q27: 8.6 | S27: 549 | T27: 2078000
K28: TRG 6 - mid-depth | L28: 3867.028108
K29: TRG 7 - mid-depth | L29: 3684.586031 | O29: Financial Assumptions:
K30: TRG 8 - deep | L30: 4330.618565 | O30: Inflation Rate | S30: 0.025
K31: TRG 9 - deep | L31: 4114.902372 | O31: Economic Lifetime (Years) | S31: 20
K32: TRG 10 - deep | L32: 3818.297972 | O32: Interest Rate - Nominal | S32: 0.08
O33: Calculated Interest Rate - Real | S33: =(1+S32)/(1+S30)-1 -> 0.05365853659
J34: CAPEX ($/kW) | K34: TRG 1 - shallow | L34: =$S$42 * (L56 + L102) -> 5765.499254 | O34: Interest During Construction - Nominal | S34: 0.08
K35: TRG 2 - shallow | L35: =$S$42 * (L57 + L103) -> 5765.499254 | O35: Rate of Return on Equity - Nominal | S35: 0.13
K36: TRG 3 - shallow | L36: =$S$42 * (L58 + L104) -> 5765.499254 | O36: Calculated Rate of Return on Equity - Real | S36: =(1+S35)/(1+S30) - 1 -> 0.1024390244
K37: TRG 4 - shallow | L37: 5765.499254 | O37: Debt Fraction | S37: 0.5
K38: TRG 5 - mid-depth | L38: 6339.994487 | O38: Tax Rate (Federal and State) | S38: 0.4
K39: TRG 6 - mid-depth | L39: 6339.994487 | O39: WACC - Nominal | S39: =IF(S38>0,S37*S32*(1-S38)+(1-S37)*S35,S37*S32+(1-S37)*S35) -> 0.089
K40: TRG 7 - mid-depth | L40: 6339.994487 | O40: WACC - Real | S40: =((1+((1-S37)*((1+S36)*(1+S30)-1)) + (S37*((1+S33)*(1+S30)-1)*(1-S38))) / (1+S30)) - 1 -> 0.06243902439
K41: TRG 8 - deep | L41: 7378.302386 | O41: Depreciation Period | S41: 5
K42: TRG 9 - deep | L42: 7378.302386 | O42: Construction Finance Factor | S42: =SUMPRODUCT(P51:P53,Q51:Q53) -> 1.038902274
K43: TRG 10 - deep | L43: 7378.302386 | O43: Present Value of Depreciation | S43: =SUMPRODUCT(O56:T56,O58:T58) -> 0.7938171517
O44: Project Finance Factor | S44: =(1 - S38 * S43) / (1 - S38) -> 1.137455232
J45: Construction Financing Cost ($/kW) | K45: TRG 1 - shallow | L45: =(L56+L102)*($S$42-1) -> 215.8923303 | O45: Capital Recovery Factor (CRF) - Nominal | S45: =S39 / (1 - (1 / (1 + S39)^S31)) -> 0.1087669328
K46: TRG 2 - shallow | L46: =(L57+L103)*($S$42-1) -> 215.8923303 | O46: Capital Recovery Factor (CRF) - Real | S46: =S40 / (1 - (1 / (1 + S40)^S31)) -> 0.08891871362
K47: TRG 3 - shallow | L47: =(L58+L104)*($S$42-1) -> 215.8923303
K48: TRG 4 - shallow | L48: 215.8923303 | O48: Construction Duration yrs | Q48: 3
K49: TRG 5 - mid-depth | L49: 237.4046242 | O49: Year | P49: Capital | Q49: Accumulated
K50: TRG 6 - mid-depth | L50: 237.4046242 | O50: Index | P50: Fraction | Q50: Interest
K51: TRG 7 - mid-depth | L51: 237.4046242 | O51: 0 | P51: 0.8 | Q51: =1+(1-S38)*((1+S34)^(O51+0.5)-1) -> 1.023538291
K52: TRG 8 - deep | L52: 276.2846417 | O52: 1 | P52: 0.1 | Q52: =1+(1-S38)*((1+S34)^(O52+0.5)-1) -> 1.073421354
K53: TRG 9 - deep | L53: 276.2846417 | O53: 2 | P53: 0.1 | Q53: =1+(1-S38)*((1+S34)^(O53+0.5)-1) -> 1.127295062
K54: TRG 10 - deep | L54: 276.2846417
N55: MACRS yr | O55: 1 | P55: 2 | Q55: 3 | R55: 4 | S55: 5 | T55: 6
J56: Overnight Capital Cost (OCC) ($/kW) | K56: TRG 1 - shallow | L56: 5306.606924 | N56: Depreciation | O56: 0.2 | P56: 0.32 | Q56: 0.192 | R56: 0.1152 | S56: 0.1152 | T56: 0.0576
K57: TRG 2 - shallow | L57: 5306.606924 | N57: Fraction
K58: TRG 3 - shallow | L58: 5306.606924 | N58: Depreciation | O58: =1/((1+S40)*(1+S30))^O55 -> 0.9182736455 | P58: =1/((1+S40)*(1+S30))^P55 -> 0.8432264881 | Q58: =1/((1+S40)*(1+S30))^Q55 -> 0.7743126613 | R58: =1/((1+S40)*(1+S30))^R55 -> 0.7110309102 | S58: =1/((1+S40)*(1+S30))^S55 -> 0.652920946 | T58: =1/((1+S40)*(1+S30))^T55 -> 0.5995600974
K59: TRG 4 - shallow | L59: 5306.606924 | N59: Factor
K60: TRG 5 - mid-depth | L60: 5859.589863
K61: TRG 6 - mid-depth | L61: 5859.589863 | O61: Investment Tax Credit (ITC)* | S61: 0
K62: TRG 7 - mid-depth | L62: 5859.589863 | O62: Production Tax Credit (PTC)* | S62: 0
K63: TRG 8 - deep | L63: 6859.017744 | O63: * not currently included in LCOE calculation
K64: TRG 9 - deep | L64: 6859.017744
K65: TRG 10 - deep | L65: 6859.017744
J67: Fixed Operation and Maintenance Expenses ($/kW) | K67: TRG 1 - shallow | L67: 131.9041874
K68: TRG 2 - shallow | L68: 131.9041874
K69: TRG 3 - shallow | L69: 131.9041874
K70: TRG 4 - shallow | L70: 131.9041874
K71: TRG 5 - mid-depth | L71: 131.9041874
K72: TRG 6 - mid-depth | L72: 131.9041874
K73: TRG 7 - mid-depth | L73: 131.9041874
K74: TRG 8 - deep | L74: 162.3436153
K75: TRG 9 - deep | L75: 162.3436153
K76: TRG 10 - deep | L76: 162.3436153
J78: Variable Operation and Maintenance Expenses ($/MWh) | K78: TRG 1 - shallow | L78: 0
K79: TRG 2 - shallow | L79: 0
K80: TRG 3 - shallow | L80: 0
K81: TRG 4 - shallow | L81: 0
K82: TRG 5 - mid-depth | L82: 0
K83: TRG 6 - mid-depth | L83: 0
K84: TRG 7 - mid-depth | L84: 0
K85: TRG 8 - deep | L85: 0
K86: TRG 9 - deep | L86: 0
K87: TRG 10 - deep | L87: 0
H90: Finance | J90: Weighted Average Cost of Capital (WACC) (Nominal) (%) | K90: TRG 1 - shallow | L90: =$S$39 -> 0.089
K91: TRG 2 - shallow | L91: =$S$39 -> 0.089
K92: TRG 3 - shallow | L92: 0.089
K93: TRG 4 - shallow | L93: 0.089
K94: TRG 5 - mid-depth | L94: 0.089
K95: TRG 6 - mid-depth | L95: 0.089
K96: TRG 7 - mid-depth | L96: 0.089
K97: TRG 8 - deep | L97: 0.089
K98: TRG 9 - deep | L98: 0.089
K99: TRG 10 - deep | L99: 0.089
H102: Grid Connection Costs | J102: Grid Connection Costs (GCC) ($/kW) | K102: TRG 1 - shallow | L102: =L113+L124+L135 -> 243
K103: TRG 2 - shallow | L103: =L114+L125+L136 -> 243
K104: TRG 3 - shallow | L104: 243
K105: TRG 4 - shallow | L105: 243
K106: TRG 5 - mid-depth | L106: 243
K107: TRG 6 - mid-depth | L107: 243
K108: TRG 7 - mid-depth | L108: 243
K109: TRG 8 - deep | L109: 243
K110: TRG 9 - deep | L110: 243
K111: TRG 10 - deep | L111: =L122+L133+L144 -> 243
J113: Grid Feature Costs ($/kW) | K113: TRG 1 - shallow | L113: 0
K114: TRG 2 - shallow | L114: 0
K115: TRG 3 - shallow | L115: 0
K116: TRG 4 - shallow | L116: 0
K117: TRG 5 - mid-depth | L117: 0
K118: TRG 6 - mid-depth | L118: 0
K119: TRG 7 - mid-depth | L119: 0
K120: TRG 8 - deep | L120: 0
K121: TRG 9 - deep | L121: 0
K122: TRG 10 - deep | L122: 0
J124: Onshore Spur Line Costs ($/kW) | K124: TRG 1 - shallow | L124: 0
K125: TRG 2 - shallow | L125: 0
K126: TRG 3 - shallow | L126: 0
K127: TRG 4 - shallow | L127: 0
K128: TRG 5 - mid-depth | L128: 0
K129: TRG 6 - mid-depth | L129: 0
K130: TRG 7 - mid-depth | L130: 0
K131: TRG 8 - deep | L131: 0
K132: TRG 9 - deep | L132: 0
K133: TRG 10 - deep | L133: 0
J135: Offshore Spur Line Costs ($/kW) | K135: TRG 1 - shallow | L135: 243
K136: TRG 2 - shallow | L136: 243
K137: TRG 3 - shallow | L137: 243
K138: TRG 4 - shallow | L138: 243
K139: TRG 5 - mid-depth | L139: 243
K140: TRG 6 - mid-depth | L140: 243
K141: TRG 7 - mid-depth | L141: 243
K142: TRG 8 - deep | L142: 243
K143: TRG 9 - deep | L143: 243
K144: TRG 10 - deep | L144: 243
H148: LCOE | J148: Levelized Cost of Energy ($/MWh) | K148: TRG 1 - shallow | L148: =(($S$46 * $S$44 * $S$42 * (L56 * 1 + L102) +L67) * 1000 / (L12 * 8760)) + L78 + 0 -> 172.1101031
K149: TRG 2 - shallow | L149: =(($S$46 * $S$44 * $S$42 * (L57 * 1 + L103) +L68) * 1000 / (L13 * 8760)) + L79 + 0 -> 187.7263161
K150: TRG 3 - shallow | L150: 205.3957089
K151: TRG 4 - shallow | L151: 241.8168198
K152: TRG 5 - mid-depth | L152: 187.9642353
K153: TRG 6 - mid-depth | L153: 199.9307747
K154: TRG 7 - mid-depth | L154: 209.8303361
K155: TRG 8 - deep | L155: 209.8067278
K156: TRG 9 - deep | L156: =(($S$46 * $S$44 * $S$42 * (L64 * 1 + L110) +L75) * 1000 / (L20 * 8760)) + L86 + 0 -> 220.8054599
K157: TRG 10 - deep | L157: 237.9575709
J159: Overnight Levelized Cost of Energy ($/MWh) | K159: TRG 1 - shallow | L159: =(((L56*$S$46*(1-$S$38*$S$43))/(8760*L12*(1-$S$38))+L67/(8760*L12))*1000)+L78 -> 160.9384192 | M159: * this is similar to the LCOE used in the TCDB (Transparent Cost Database)
K160: TRG 2 - shallow | L160: =(((L57*$S$46*(1-$S$38*$S$43))/(8760*L13*(1-$S$38))+L68/(8760*L13))*1000)+L79 -> 175.5409822
K161: TRG 3 - shallow | L161: 192.0634529
K162: TRG 4 - shallow | L162: 226.1204659
K163: TRG 5 - mid-depth | L163: =(((L60*$S$46*(1-$S$38*$S$43))/(8760*L16*(1-$S$38))+L71/(8760*L16))*1000)+L82 -> 176.1514338
K164: TRG 6 - mid-depth | L164: 187.3659239
K165: TRG 7 - mid-depth | L165: 196.6433374
K166: TRG 8 - deep | L166: 197.6788998
K167: TRG 9 - deep | L167: 208.0418528
K168: TRG 10 - deep | L168: 224.2024901
H171: ***Note: For future projections, low, mid, and high refer to low, mid, and high LCOE projections.
D174: X | G174: Future Projections
L176: =Q12+1 -> 2014 | M176: =L176+1 -> 2015 | N176: =M176+1 -> 2016 | O176: =N176+1 -> 2017 | P176: =O176+1 -> 2018 | Q176: =P176+1 -> 2019 | R176: =Q176+1 -> 2020 | S176: 2021 | T176: =S176+1 -> 2022 | U176: =T176+1 -> 2023 | V176: 2024 | W176: 2025 | X176: 2026 | Y176: =X176+1 -> 2027 | Z176: 2028 | AA176: 2029 | AB176: 2030 | AC176: 2031 | AD176: 2032 | AE176: 2033 | AF176: 2034 | AG176: 2035 | AH176: 2036 | AI176: 2037 | AJ176: 2038 | AK176: 2039 | AL176: 2040 | AM176: 2041 | AN176: 2042 | AO176: 2043 | AP176: 2044 | AQ176: 2045 | AR176: 2046 | AS176: 2047 | AT176: 2048 | AU176: 2049 | AV176: 2050
H177: Techno-Economic Cost and Performance Parameters | J177: Net Capacity Factor (%) | K177: TRG 1 - Low | L177: 0.4742589507 | M177: 0.4746920501 | N177: 0.475103944 | O177: 0.4777340728 | P177: 0.4803642537 | Q177: 0.4829944914 | R177: 0.4856247916 | S177: 0.50149013 | T177: 0.5173556276 | U177: 0.5332213042 | V177: 0.5336328337 | W177: 0.5340443765 | X177: 0.5344559332 | Y177: 0.5348675042 | Z177: 0.5352790904 | AA177: 0.5356906923 | AB177: 0.5361023105 | AC177: 0.5363801906 | AD177: 0.5366580749 | AE177: 0.5369359636 | AF177: 0.5372138567 | AG177: 0.5374917543 | AH177: 0.5377696566 | AI177: 0.5380475636 | AJ177: 0.5383254755 | AK177: 0.5386033923 | AL177: 0.5388813142 | AM177: 0.5399845262 | AN177: 0.541087743 | AO177: 0.5421909648 | AP177: 0.5432941918 | AQ177: 0.5443974239 | AR177: 0.5455006615 | AS177: 0.5466039044 | AT177: 0.547707153 | AU177: 0.5488104072 | AV177: 0.5499136672
K178: TRG 1 - Mid | L178: 0.4742589507 | M178: 0.4742807311 | N178: 0.4742811652 | O178: 0.4769610531 | P178: 0.4796409848 | Q178: 0.4823209641 | R178: 0.4850009955 | S178: 0.4954967143 | T178: 0.5059925475 | U178: 0.5164885088 | V178: 0.51692873 | W178: 0.5173689537 | X178: 0.5178091798 | Y178: 0.5182494085 | Z178: 0.5186896398 | AA178: 0.5191298736 | AB178: 0.5195701102 | AC178: 0.5201775499 | AD178: 0.5207849902 | AE178: 0.5213924311 | AF178: 0.5219998725 | AG178: 0.5226073145 | AH178: 0.5232147571 | AI178: 0.5238222002 | AJ178: 0.5244296439 | AK178: 0.5250370882 | AL178: 0.5256445331 | AM178: 0.5262251162 | AN178: 0.5268057001 | AO178: 0.5273862846 | AP178: 0.5279668699 | AQ178: 0.528547456 | AR178: 0.5291280428 | AS178: 0.5297086304 | AT178: 0.5302892188 | AU178: 0.5308698079 | AV178: 0.5314503978
K179: TRG 1 - High | L179: 0.4742589507 | M179: 0.4742799692 | N179: 0.4742796358 | O179: 0.4751571002 | P179: 0.4760345826 | Q179: 0.4769120839 | R179: 0.4777896055 | S179: 0.4908030876 | T179: 0.5038166177 | U179: 0.5168301987 | V179: 0.5169803605 | W179: 0.5171305222 | X179: 0.5172806839 | Y179: 0.5174308457 | Z179: 0.5175810074 | AA179: 0.5177311691 | AB179: 0.5178813309 | AC179: 0.5178813309 | AD179: 0.5178813309 | AE179: 0.5178813309 | AF179: 0.5178813309 | AG179: 0.5178813309 | AH179: 0.5178813309 | AI179: 0.5178813309 | AJ179: 0.5178813309 | AK179: 0.5178813309 | AL179: 0.5178813309 | AM179: 0.5178813309 | AN179: 0.5178813309 | AO179: 0.5178813309 | AP179: 0.5178813309 | AQ179: 0.5178813309 | AR179: 0.5178813309 | AS179: 0.5178813309 | AT179: 0.5178813309 | AU179: 0.5178813309 | AV179: 0.5178813309
K180: TRG 2 - Low | L180: 0.4348072162 | M180: 0.4352042878 | N180: 0.4355819178 | O180: 0.4379932567 | P180: 0.4404046431 | Q180: 0.4428160817 | R180: 0.4452275776 | S180: 0.4597731409 | T180: 0.4743188503 | U180: 0.4888647238 | V180: 0.4892420197 | W180: 0.4896193279 | X180: 0.4899966488 | Y180: 0.4903739829 | Z180: 0.4907513308 | AA180: 0.4911286932 | AB180: 0.4915060705 | AC180: 0.4917608348 | AD180: 0.492015603 | AE180: 0.4922703752 | AF180: 0.4925251515 | AG180: 0.492779932 | AH180: 0.4930347166 | AI180: 0.4932895057 | AJ180: 0.4935442992 | AK180: 0.4937990972 | AL180: 0.4940538999 | AM180: 0.4950653399 | AN180: 0.4960767845 | AO180: 0.4970882336 | AP180: 0.4980996875 | AQ180: 0.4991111461 | AR180: 0.5001226097 | AS180: 0.5011340782 | AT180: 0.5021455518 | AU180: 0.5031570306 | AV180: 0.5041685148
K181: TRG 2 - Mid | L181: 0.4348072162 | M181: 0.4348271848 | N181: 0.4348275828 | O181: 0.4372845414 | P181: 0.4397415401 | Q181: 0.4421985825 | R181: 0.4446556727 | S181: 0.4542782939 | T181: 0.4639010201 | U181: 0.4735238637 | V181: 0.4739274646 | W181: 0.4743310679 | X181: 0.4747346733 | Y181: 0.4751382811 | Z181: 0.4755418913 | AA181: 0.4759455038 | AB181: 0.4763491188 | AC181: 0.476906028 | AD181: 0.4774629378 | AE181: 0.478019848 | AF181: 0.4785767588 | AG181: 0.4791336701 | AH181: 0.4796905819 | AI181: 0.4802474942 | AJ181: 0.4808044071 | AK181: 0.4813613205 | AL181: 0.4819182345 | AM181: 0.4824505211 | AN181: 0.4829828085 | AO181: 0.4835150965 | AP181: 0.4840473852 | AQ181: 0.4845796746 | AR181: 0.4851119647 | AS181: 0.4856442555 | AT181: 0.486176547 | AU181: 0.4867088392 | AV181: 0.4872411321
K182: TRG 2 - High | L182: 0.4348072162 | M182: 0.4348264864 | N182: 0.4348261807 | O182: 0.4356306523 | P182: 0.4364351403 | Q182: 0.4372396458 | R182: 0.4380441698 | S182: 0.4499751116 | T182: 0.4619060973 | U182: 0.4738371298 | V182: 0.4739748002 | W182: 0.4741124706 | X182: 0.4742501409 | Y182: 0.4743878113 | Z182: 0.4745254817 | AA182: 0.474663152 | AB182: 0.4748008224 | AC182: 0.4748008224 | AD182: 0.4748008224 | AE182: 0.4748008224 | AF182: 0.4748008224 | AG182: 0.4748008224 | AH182: 0.4748008224 | AI182: 0.4748008224 | AJ182: 0.4748008224 | AK182: 0.4748008224 | AL182: 0.4748008224 | AM182: 0.4748008224 | AN182: 0.4748008224 | AO182: 0.4748008224 | AP182: 0.4748008224 | AQ182: 0.4748008224 | AR182: 0.4748008224 | AS182: 0.4748008224 | AT182: 0.4748008224 | AU182: 0.4748008224 | AV182: 0.4748008224
K183: TRG 3 - Low | L183: 0.3974024451 | M183: 0.3977653582 | N183: 0.3981105022 | O183: 0.4003144029 | P183: 0.4025183471 | Q183: 0.4047223391 | R183: 0.4069263834 | S183: 0.4202206486 | T183: 0.4335150472 | U183: 0.4468095958 | V183: 0.4471544345 | W183: 0.4474992843 | X183: 0.4478441458 | Y183: 0.4481890193 | Z183: 0.4485339054 | AA183: 0.4488788047 | AB183: 0.4492237178 | AC183: 0.4494565657 | AD183: 0.4496894172 | AE183: 0.4499222724 | AF183: 0.4501551312 | AG183: 0.4503879939 | AH183: 0.4506208605 | AI183: 0.450853731 | AJ183: 0.4510866056 | AK183: 0.4513194843 | AL183: 0.4515523673 | AM183: 0.4524767971 | AN183: 0.453401231 | AO183: 0.4543256692 | AP183: 0.4552501116 | AQ183: 0.4561745584 | AR183: 0.4570990096 | AS183: 0.4580234655 | AT183: 0.458947926 | AU183: 0.4598723912 | AV183: 0.4607968613
K184: TRG 3 - Mid | L184: 0.3974024451 | M184: 0.3974206959 | N184: 0.3974210596 | O184: 0.3996666556 | P184: 0.4019122883 | Q184: 0.4041579609 | R184: 0.4064036772 | S184: 0.4151985018 | T184: 0.4239934223 | U184: 0.4327884502 | V184: 0.4331573309 | W184: 0.4335262137 | X184: 0.4338950986 | Y184: 0.4342639856 | Z184: 0.4346328747 | AA184: 0.4350017661 | AB184: 0.4353706596 | AC184: 0.4358796601 | AD184: 0.4363886611 | AE184: 0.4368976625 | AF184: 0.4374066644 | AG184: 0.4379156668 | AH184: 0.4384246696 | AI184: 0.438933673 | AJ184: 0.4394426768 | AK184: 0.4399516811 | AL184: 0.4404606859 | AM184: 0.4409471821 | AN184: 0.4414336788 | AO184: 0.4419201762 | AP184: 0.4424066741 | AQ184: 0.4428931728 | AR184: 0.443379672 | AS184: 0.4438661719 | AT184: 0.4443526724 | AU184: 0.4448391736 | AV184: 0.4453256754
K185: TRG 3 - High | L185: 0.3974024451 | M185: 0.3974200575 | N185: 0.3974197781 | O185: 0.3981550442 | P185: 0.3988903252 | Q185: 0.3996256222 | R185: 0.4003609362 | S185: 0.4112655055 | T185: 0.422170115 | U185: 0.4330747673 | V185: 0.4332005944 | W185: 0.4333264215 | X185: 0.4334522486 | Y185: 0.4335780757 | Z185: 0.4337039029 | AA185: 0.43382973 | AB185: 0.4339555571 | AC185: 0.4339555571 | AD185: 0.4339555571 | AE185: 0.4339555571 | AF185: 0.4339555571 | AG185: 0.4339555571 | AH185: 0.4339555571 | AI185: 0.4339555571 | AJ185: 0.4339555571 | AK185: 0.4339555571 | AL185: 0.4339555571 | AM185: 0.4339555571 | AN185: 0.4339555571 | AO185: 0.4339555571 | AP185: 0.4339555571 | AQ185: 0.4339555571 | AR185: 0.4339555571 | AS185: 0.4339555571 | AT185: 0.4339555571 | AU185: 0.4339555571 | AV185: 0.4339555571
K186: TRG 4 - Low | L186: 0.3375478885 | M186: 0.3378561416 | N186: 0.3381493019 | O186: 0.3400212633 | P186: 0.3418932617 | Q186: 0.3437653006 | R186: 0.3456373839 | S186: 0.3569293404 | T186: 0.3682214103 | U186: 0.3795136076 | V186: 0.3798065086 | W186: 0.3800994191 | X186: 0.3803923394 | Y186: 0.38068527 | Z186: 0.3809782113 | AA186: 0.3812711638 | AB186: 0.3815641279 | AC186: 0.3817619056 | AD186: 0.3819596863 | AE186: 0.3821574701 | AF186: 0.382355257 | AG186: 0.3825530472 | AH186: 0.3827508407 | AI186: 0.3829486375 | AJ186: 0.3831464379 | AK186: 0.3833442417 | AL186: 0.3835420491 | AM186: 0.3843272465 | AN186: 0.3851124473 | AO186: 0.3858976516 | AP186: 0.3866828596 | AQ186: 0.3874680714 | AR186: 0.3882532869 | AS186: 0.3890385063 | AT186: 0.3898237297 | AU186: 0.3906089571 | AV186: 0.3913941886
K187: TRG 4 - Mid | L187: 0.3375478885 | M187: 0.3375633904 | N187: 0.3375636994 | O187: 0.3394710762 | P187: 0.3413784841 | Q187: 0.3432859259 | R187: 0.3451934048 | S187: 0.3526636016 | T187: 0.3601338799 | U187: 0.3676042493 | V187: 0.3679175713 | W187: 0.368230895 | X187: 0.3685442205 | Y187: 0.3688575478 | Z187: 0.3691708769 | AA187: 0.3694842078 | AB187: 0.3697975407 | AC187: 0.3702298783 | AD187: 0.3706622164 | AE187: 0.3710945548 | AF187: 0.3715268937 | AG187: 0.3719592329 | AH187: 0.3723915726 | AI187: 0.3728239127 | AJ187: 0.3732562532 | AK187: 0.3736885941 | AL187: 0.3741209354 | AM187: 0.3745341582 | AN187: 0.3749473815 | AO187: 0.3753606053 | AP187: 0.3757738297 | AQ187: 0.3761870545 | AR187: 0.37660028 | AS187: 0.3770135059 | AT187: 0.3774267324 | AU187: 0.3778399595 | AV187: 0.3782531871
K188: TRG 4 - High | L188: 0.3375478885 | M188: 0.3375628482 | N188: 0.3375626109 | O188: 0.3381871352 | P188: 0.3388116723 | Q188: 0.339436223 | R188: 0.340060788 | S188: 0.3493229715 | T188: 0.358585189 | U188: 0.3678474429 | V188: 0.3679543187 | W188: 0.3680611944 | X188: 0.3681680701 | Y188: 0.3682749459 | Z188: 0.3683818216 | AA188: 0.3684886974 | AB188: 0.3685955731 | AC188: 0.3685955731 | AD188: 0.3685955731 | AE188: 0.3685955731 | AF188: 0.3685955731 | AG188: 0.3685955731 | AH188: 0.3685955731 | AI188: 0.3685955731 | AJ188: 0.3685955731 | AK188: 0.3685955731 | AL188: 0.3685955731 | AM188: 0.3685955731 | AN188: 0.3685955731 | AO188: 0.3685955731 | AP188: 0.3685955731 | AQ188: 0.3685955731 | AR188: 0.3685955731 | AS188: 0.3685955731 | AT188: 0.3685955731 | AU188: 0.3685955731 | AV188: 0.3685955731
K189: TRG 5 - Low | L189: 0.4695454636 | M189: 0.4697869613 | N189: 0.4699857274 | O189: 0.4724956717 | P189: 0.474999012 | Q189: 0.4774951235 | R189: 0.4799833005 | S189: 0.4954099261 | T189: 0.5107997615 | U189: 0.526148241 | V189: 0.5264883188 | W189: 0.5268265077 | X189: 0.5271627293 | Y189: 0.5274969009 | Z189: 0.5278289351 | AA189: 0.5281587395 | AB189: 0.5284862163 | AC189: 0.5287133358 | AD189: 0.5289397323 | AE189: 0.5291653901 | AF189: 0.5293902928 | AG189: 0.5296144236 | AH189: 0.5298377653 | AI189: 0.5300603001 | AJ189: 0.5302820097 | AK189: 0.530502875 | AL189: 0.5307228768 | AM189: 0.5317513659 | AN189: 0.5327788338 | AO189: 0.5338052596 | AP189: 0.5348306217 | AQ189: 0.5358548981 | AR189: 0.536878066 | AS189: 0.5379001021 | AT189: 0.5389209823 | AU189: 0.539940682 | AV189: 0.5409591757
K190: TRG 5 - Mid | L190: 0.4695454636 | M190: 0.4695909697 | N190: 0.4696180056 | O190: 0.4721980498 | P190: 0.4747730266 | Q190: 0.4773424819 | R190: 0.4799059061 | S190: 0.4901383881 | T190: 0.5003526299 | U190: 0.5105464697 | V190: 0.5109874954 | W190: 0.5114286032 | X190: 0.5118697946 | Y190: 0.5123110711 | Z190: 0.5127524342 | AA190: 0.5131938855 | AB190: 0.5136354266 | AC190: 0.5142218274 | AD190: 0.5148081272 | AE190: 0.5153943252 | AF190: 0.5159804206 | AG190: 0.5165664129 | AH190: 0.5171523011 | AI190: 0.5177380845 | AJ190: 0.5183237623 | AK190: 0.5189093338 | AL190: 0.5194947982 | AM190: 0.5200510479 | AN190: 0.5206071606 | AO190: 0.5211631351 | AP190: 0.5217189702 | AQ190: 0.5222746647 | AR190: 0.5228302173 | AS190: 0.523385627 | AT190: 0.5239408924 | AU190: 0.5244960123 | AV190: 0.5250509854
K191: TRG 5 - High | L191: 0.4695454636 | M191: 0.4695434731 | N191: 0.469522658 | O191: 0.4704643024 | P191: 0.4714091709 | Q191: 0.4723574618 | R191: 0.4733093899 | S191: 0.4860623459 | T191: 0.4988018522 | U191: 0.5115270163 | V191: 0.5116756372 | W191: 0.5118242582 | X191: 0.5119728791 | Y191: 0.5121215 | Z191: 0.5122701209 | AA191: 0.5124187419 | AB191: 0.5125673628 | AC191: 0.5125673628 | AD191: 0.5125673628 | AE191: 0.5125673628 | AF191: 0.5125673628 | AG191: 0.5125673628 | AH191: 0.5125673628 | AI191: 0.5125673628 | AJ191: 0.5125673628 | AK191: 0.5125673628 | AL191: 0.5125673628 | AM191: 0.5125673628 | AN191: 0.5125673628 | AO191: 0.5125673628 | AP191: 0.5125673628 | AQ191: 0.5125673628 | AR191: 0.5125673628 | AS191: 0.5125673628 | AT191: 0.5125673628 | AU191: 0.5125673628 | AV191: 0.5125673628
K192: TRG 6 - Low | L192: 0.4414415648 | M192: 0.441668608 | N192: 0.4418554772 | O192: 0.4442151929 | P192: 0.4465686997 | Q192: 0.4489154104 | R192: 0.4512546615 | S192: 0.4657579509 | T192: 0.4802266521 | U192: 0.4946564727 | V192: 0.4949761957 | W192: 0.4952941428 | X192: 0.4956102404 | Y192: 0.4959244107 | Z192: 0.4962365716 | AA192: 0.496546636 | AB192: 0.4968545122 | AC192: 0.4970680378 | AD192: 0.4972808838 | AE192: 0.4974930351 | AF192: 0.4977044766 | AG192: 0.4979151925 | AH192: 0.4981251664 | AI192: 0.4983343818 | AJ192: 0.4985428212 | AK192: 0.4987504671 | AL192: 0.4989573009 | AM192: 0.4999242315 | AN192: 0.5008902019 | AO192: 0.5018551926 | AP192: 0.5028191833 | AQ192: 0.5037821532 | AR192: 0.5047440811 | AS192: 0.5057049448 | AT192: 0.5066647219 | AU192: 0.5076233891 | AV192: 0.5085809225
K193: TRG 6 - Mid | L193: 0.4414415648 | M193: 0.4414843472 | N193: 0.4415097649 | O193: 0.4439353847 | P193: 0.4463562402 | Q193: 0.4487719049 | R193: 0.4511818995 | S193: 0.4608019325 | T193: 0.470404817 | U193: 0.4799885207 | V193: 0.4804031495 | W193: 0.4808178555 | X193: 0.4812326401 | Y193: 0.4816475046 | Z193: 0.4820624507 | AA193: 0.4824774796 | AB193: 0.482892593 | AC193: 0.4834438957 | AD193: 0.4839951034 | AE193: 0.4845462155 | AF193: 0.4850972311 | AG193: 0.4856481497 | AH193: 0.4861989705 | AI193: 0.4867496928 | AJ193: 0.4873003158 | AK193: 0.4878508388 | AL193: 0.4884012612 | AM193: 0.4889242175 | AN193: 0.4894470449 | AO193: 0.4899697425 | AP193: 0.4904923089 | AQ193: 0.4910147432 | AR193: 0.4915370441 | AS193: 0.4920592106 | AT193: 0.4925812415 | AU193: 0.4931031356 | AV193: 0.4936248917
K194: TRG 6 - High | L194: 0.4414415648 | M194: 0.4414396935 | N194: 0.4414201241 | O194: 0.4423054079 | P194: 0.4431937228 | Q194: 0.4440852553 | R194: 0.4449802072 | S194: 0.4569698553 | T194: 0.4689468587 | U194: 0.4809103783 | V194: 0.4810501037 | W194: 0.4811898292 | X194: 0.4813295546 | Y194: 0.4814692801 | Z194: 0.4816090055 | AA194: 0.481748731 | AB194: 0.4818884564 | AC194: 0.4818884564 | AD194: 0.4818884564 | AE194: 0.4818884564 | AF194: 0.4818884564 | AG194: 0.4818884564 | AH194: 0.4818884564 | AI194: 0.4818884564 | AJ194: 0.4818884564 | AK194: 0.4818884564 | AL194: 0.4818884564 | AM194: 0.4818884564 | AN194: 0.4818884564 | AO194: 0.4818884564 | AP194: 0.4818884564 | AQ194: 0.4818884564 | AR194: 0.4818884564 | AS194: 0.4818884564 | AT194: 0.4818884564 | AU194: 0.4818884564 | AV194: 0.4818884564
K195: TRG 7 - Low | L195: 0.4206148437 | M195: 0.4208311753 | N195: 0.4210092282 | O195: 0.4232576151 | P195: 0.4255000861 | Q195: 0.4277360816 | R195: 0.4299649694 | S195: 0.4437840098 | T195: 0.4575700939 | U195: 0.4713191316 | V195: 0.4716237704 | W195: 0.4719267172 | X195: 0.4722279016 | Y195: 0.4725272497 | Z195: 0.4728246831 | AA195: 0.4731201191 | AB195: 0.47341347 | AC195: 0.4736169217 | AD195: 0.4738197258 | AE195: 0.4740218682 | AF195: 0.4742233341 | AG195: 0.4744241086 | AH195: 0.4746241762 | AI195: 0.474823521 | AJ195: 0.4750221265 | AK195: 0.4752199758 | AL195: 0.4754170515 | AM195: 0.4763383634 | AN195: 0.4772587604 | AO195: 0.4781782239 | AP195: 0.4790967346 | AQ195: 0.4800142727 | AR195: 0.4809308178 | AS195: 0.4818463491 | AT195: 0.4827608449 | AU195: 0.4836742833 | AV195: 0.4845866413
K196: TRG 7 - Mid | L196: 0.4206148437 | M196: 0.4206556077 | N196: 0.4206798262 | O196: 0.4229910079 | P196: 0.4252976503 | Q196: 0.4275993466 | R196: 0.4298956403 | S196: 0.4390618108 | T196: 0.4482116419 | U196: 0.4573431972 | V196: 0.4577382643 | W196: 0.4581334049 | X196: 0.4585286204 | Y196: 0.4589239121 | Z196: 0.4593192815 | AA196: 0.4597147298 | AB196: 0.4601102586 | AC196: 0.4606355515 | AD196: 0.4611607538 | AE196: 0.461685865 | AF196: 0.4622108844 | AG196: 0.4627358112 | AH196: 0.4632606449 | AI196: 0.4637853847 | AJ196: 0.46431003 | AK196: 0.4648345799 | AL196: 0.4653590339 | AM196: 0.4658573178 | AN196: 0.4663554788 | AO196: 0.466853516 | AP196: 0.4673514284 | AQ196: 0.4678492148 | AR196: 0.4683468742 | AS196: 0.4688444054 | AT196: 0.4693418074 | AU196: 0.4698390791 | AV196: 0.4703362194
K197: TRG 7 - High | L197: 0.4206148437 | M197: 0.4206130607 | N197: 0.4205944146 | O197: 0.4214379317 | P197: 0.4222843369 | Q197: 0.4231338078 | R197: 0.4239865369 | S197: 0.4354105268 | T197: 0.4468224685 | U197: 0.4582215626 | V197: 0.4583546959 | W197: 0.4584878293 | X197: 0.4586209626 | Y197: 0.458754096 | Z197: 0.4588872294 | AA197: 0.4590203627 | AB197: 0.4591534961 | AC197: 0.4591534961 | AD197: 0.4591534961 | AE197: 0.4591534961 | AF197: 0.4591534961 | AG197: 0.4591534961 | AH197: 0.4591534961 | AI197: 0.4591534961 | AJ197: 0.4591534961 | AK197: 0.4591534961 | AL197: 0.4591534961 | AM197: 0.4591534961 | AN197: 0.4591534961 | AO197: 0.4591534961 | AP197: 0.4591534961 | AQ197: 0.4591534961 | AR197: 0.4591534961 | AS197: 0.4591534961 | AT197: 0.4591534961 | AU197: 0.4591534961 | AV197: 0.4591534961
K198: TRG 8 - Low | L198: 0.4943628499 | M198: 0.4946191629 | N198: 0.4948342914 | O198: 0.4974727806 | P198: 0.5001040152 | Q198: 0.5027273091 | R198: 0.5053418869 | S198: 0.5216324412 | T198: 0.5378913643 | U198: 0.5541147306 | V198: 0.5544735644 | W198: 0.5548304285 | X198: 0.5551852411 | Y198: 0.5555379161 | Z198: 0.5558883622 | AA198: 0.5562364831 | AB198: 0.5565821767 | AC198: 0.5568255088 | AD198: 0.5570681437 | AE198: 0.5573100662 | AF198: 0.5575512607 | AG198: 0.5577917109 | AH198: 0.5580314002 | AI198: 0.5582703114 | AJ198: 0.5585084269 | AK198: 0.5587457284 | AL198: 0.5589821971 | AM198: 0.560074736 | AN198: 0.5611663635 | AO198: 0.562257061 | AP198: 0.5633468093 | AQ198: 0.5644355886 | AR198: 0.5655233786 | AS198: 0.5666101585 | AT198: 0.567695907 | AU198: 0.5687806018 | AV198: 0.5698642205
K199: TRG 8 - Mid | L199: 0.4943628499 | M199: 0.4944565019 | N199: 0.4945358067 | O199: 0.4972035827 | P199: 0.4998626034 | Q199: 0.5025120847 | R199: 0.5051511457 | S199: 0.5159312498 | T199: 0.5266932755 | U199: 0.5374350804 | V199: 0.5378843093 | W199: 0.5383334205 | X199: 0.5387824121 | Y199: 0.5392312818 | Z199: 0.5396800274 | AA199: 0.5401286467 | AB199: 0.5405771373 | AC199: 0.5411958722 | AD199: 0.5418145121 | AE199: 0.5424330563 | AF199: 0.5430515041 | AG199: 0.5436698549 | AH199: 0.5442881078 | AI199: 0.5449062623 | AJ199: 0.5455243175 | AK199: 0.5461422727 | AL199: 0.5467601272 | AM199: 0.5473477496 | AN199: 0.5479352448 | AO199: 0.5485226117 | AP199: 0.5491098494 | AQ199: 0.5496969566 | AR199: 0.5502839323 | AS199: 0.5508707753 | AT199: 0.5514574845 | AU199: 0.5520440587 | AV199: 0.5526304967
K200: TRG 8 - High | L200: 0.4943628499 | M200: 0.4943173137 | N200: 0.4942563863 | O200: 0.4952188555 | P200: 0.4961834543 | Q200: 0.4971503135 | R200: 0.4981195751 | S200: 0.5115747551 | T200: 0.5250190676 | U200: 0.5384517916 | V200: 0.5386082354 | W200: 0.5387646791 | X200: 0.5389211228 | Y200: 0.5390775666 | Z200: 0.5392340103 | AA200: 0.5393904541 | AB200: 0.5395468978 | AC200: 0.5395468978 | AD200: 0.5395468978 | AE200: 0.5395468978 | AF200: 0.5395468978 | AG200: 0.5395468978 | AH200: 0.5395468978 | AI200: 0.5395468978 | AJ200: 0.5395468978 | AK200: 0.5395468978 | AL200: 0.5395468978 | AM200: 0.5395468978 | AN200: 0.5395468978 | AO200: 0.5395468978 | AP200: 0.5395468978 | AQ200: 0.5395468978 | AR200: 0.5395468978 | AS200: 0.5395468978 | AT200: 0.5395468978 | AU200: 0.5395468978 | AV200: 0.5395468978
K201: TRG 9 - Low | L201: 0.4697377137 | M201: 0.4699812592 | N201: 0.4701856718 | O201: 0.4726927329 | P201: 0.4751929008 | Q201: 0.4776855235 | R201: 0.4801698644 | S201: 0.4956489558 | T201: 0.5110979915 | U201: 0.5265132416 | V201: 0.5268542013 | W201: 0.5271932893 | X201: 0.527530428 | Y201: 0.5278655356 | Z201: 0.5281985253 | AA201: 0.5285293057 | AB201: 0.5288577797 | AC201: 0.5290889909 | AD201: 0.5293195397 | AE201: 0.5295494117 | AF201: 0.5297785918 | AG201: 0.5300070647 | AH201: 0.5302348147 | AI201: 0.5304618253 | AJ201: 0.5306880798 | AK201: 0.5309135608 | AL201: 0.5311382506 | AM201: 0.5321763681 | AN201: 0.5332136196 | AO201: 0.5342499874 | AP201: 0.5352854533 | AQ201: 0.5363199984 | AR201: 0.5373536036 | AS201: 0.538386249 | AT201: 0.5394179143 | AU201: 0.5404485785 | AV201: 0.54147822
K202: TRG 9 - Mid | L202: 0.4697377137 | M202: 0.4698267006 | N202: 0.4699020551 | O202: 0.4724369443 | P202: 0.4749635142 | Q202: 0.4774810199 | R202: 0.4799886243 | S202: 0.4902317513 | T202: 0.5004577004 | U202: 0.510664436 | V202: 0.5110912879 | W202: 0.5115180281 | X202: 0.5119446545 | Y202: 0.5123711652 | Z202: 0.512797558 | AA202: 0.5132238307 | AB202: 0.5136499812 | AC202: 0.5142378957 | AD202: 0.51482572 | AE202: 0.5154134533 | AF202: 0.5160010951 | AG202: 0.5165886447 | AH202: 0.5171761013 | AI202: 0.5177634644 | AJ202: 0.5183507331 | AK202: 0.5189379068 | AL202: 0.5195249848 | AM202: 0.5200833366 | AN202: 0.5206415676 | AO202: 0.5211996767 | AP202: 0.5217576629 | AQ202: 0.5223155252 | AR202: 0.5228732625 | AS202: 0.5234308738 | AT202: 0.5239883579 | AU202: 0.5245457138 | AV202: 0.5251029403
K203: TRG 9 - High | L203: 0.4697377137 | M203: 0.4696944457 | N203: 0.4696365533 | O203: 0.4705510801 | P203: 0.4714676303 | Q203: 0.4723863285 | R203: 0.4733073094 | S203: 0.4860922617 | T203: 0.4988668879 | U203: 0.5116305029 | V203: 0.5117791539 | W203: 0.5119278049 | X203: 0.5120764559 | Y203: 0.5122251069 | Z203: 0.5123737579 | AA203: 0.5125224088 | AB203: 0.5126710598 | AC203: 0.5126710598 | AD203: 0.5126710598 | AE203: 0.5126710598 | AF203: 0.5126710598 | AG203: 0.5126710598 | AH203: 0.5126710598 | AI203: 0.5126710598 | AJ203: 0.5126710598 | AK203: 0.5126710598 | AL203: 0.5126710598 | AM203: 0.5126710598 | AN203: 0.5126710598 | AO203: 0.5126710598 | AP203: 0.5126710598 | AQ203: 0.5126710598 | AR203: 0.5126710598 | AS203: 0.5126710598 | AT203: 0.5126710598 | AU203: 0.5126710598 | AV203: 0.5126710598
K204: TRG 10 - Low | L204: 0.4358787639 | M204: 0.4361047546 | N204: 0.436294433 | O204: 0.4386207838 | P204: 0.4409407382 | Q204: 0.4432536913 | R204: 0.4455589595 | S204: 0.4599223096 | T204: 0.4742577705 | U204: 0.488561881 | V204: 0.4888782641 | W204: 0.4891929104 | X204: 0.489505748 | Y204: 0.4898167008 | Z204: 0.4901256885 | AA204: 0.490432626 | AB204: 0.4907374235 | AC204: 0.4909519688 | AD204: 0.4911658996 | AE204: 0.4913792022 | AF204: 0.4915918629 | AG204: 0.4918038674 | AH204: 0.492015201 | AI204: 0.4922258486 | AJ204: 0.4924357945 | AK204: 0.4926450227 | AL204: 0.4928535167 | AM204: 0.4938168062 | AN204: 0.494779292 | AO204: 0.4957409579 | AP204: 0.4967017868 | AQ204: 0.4976617614 | AR204: 0.4986208638 | AS204: 0.4995790755 | AT204: 0.5005363778 | AU204: 0.5014927512 | AV204: 0.5024481756
K205: TRG 10 - Mid | L205: 0.4358787639 | M205: 0.4359613367 | N205: 0.4360312596 | O205: 0.4383834325 | P205: 0.4407278859 | Q205: 0.4430639284 | R205: 0.4453907834 | S205: 0.4548955802 | T205: 0.4643844374 | U205: 0.4738554659 | V205: 0.4742515501 | W205: 0.4746475306 | X205: 0.4750434056 | Y205: 0.4754391731 | Z205: 0.4758348312 | AA205: 0.476230378 | AB205: 0.4766258113 | AC205: 0.4771713486 | AD205: 0.4777168022 | AE205: 0.4782621715 | AF205: 0.4788074557 | AG205: 0.4793526544 | AH205: 0.4798977668 | AI205: 0.4804427924 | AJ205: 0.4809877305 | AK205: 0.4815325804 | AL205: 0.4820773415 | AM205: 0.482595447 | AN205: 0.4831134404 | AO205: 0.4836313207 | AP205: 0.484149087 | AQ205: 0.4846667382 | AR205: 0.4851842736 | AS205: 0.4857016919 | AT205: 0.4862189922 | AU205: 0.4867361736 | AV205: 0.4872532349
K206: TRG 10 - High | L206: 0.4358787639 | M206: 0.4358386147 | N206: 0.4357848952 | O206: 0.4366335024 | P206: 0.4374839873 | Q206: 0.4383364652 | R206: 0.4391910613 | S206: 0.4510544673 | T206: 0.4629082915 | U206: 0.4747518981 | V206: 0.4748898343 | W206: 0.4750277704 | X206: 0.4751657066 | Y206: 0.4753036427 | Z206: 0.4754415789 | AA206: 0.475579515 | AB206: 0.4757174512 | AC206: 0.4757174512 | AD206: 0.4757174512 | AE206: 0.4757174512 | AF206: 0.4757174512 | AG206: 0.4757174512 | AH206: 0.4757174512 | AI206: 0.4757174512 | AJ206: 0.4757174512 | AK206: 0.4757174512 | AL206: 0.4757174512 | AM206: 0.4757174512 | AN206: 0.4757174512 | AO206: 0.4757174512 | AP206: 0.4757174512 | AQ206: 0.4757174512 | AR206: 0.4757174512 | AS206: 0.4757174512 | AT206: 0.4757174512 | AU206: 0.4757174512 | AV206: 0.4757174512
J208: Annual Energy Production (kWh/kW) | K208: TRG 1 - Low | L208: =(L177)*8760 -> 4154.508408 | M208: =(M177)*8760 -> 4158.302359 | N208: 4161.910549 | O208: 4184.950478 | P208: 4207.990862 | Q208: 4231.031745 | R208: 4254.073174 | S208: 4393.053538 | T208: 4532.035298 | U208: 4671.018625 | V208: 4674.623623 | W208: 4678.228738 | X208: 4681.833974 | Y208: 4685.439337 | Z208: 4689.044832 | AA208: 4692.650464 | AB208: 4696.25624 | AC208: 4698.690469 | AD208: 4701.124736 | AE208: 4703.559041 | AF208: 4705.993384 | AG208: 4708.427768 | AH208: 4710.862192 | AI208: 4713.296657 | AJ208: 4715.731165 | AK208: 4718.165717 | AL208: 4720.600313 | AM208: 4730.264449 | AN208: 4739.928628 | AO208: 4749.592852 | AP208: 4759.25712 | AQ208: 4768.921434 | AR208: 4778.585794 | AS208: 4788.250203 | AT208: 4797.91466 | AU208: 4807.579167 | AV208: 4817.243724
K209: TRG 1 - Mid | L209: =(L178)*8760 -> 4154.508408 | M209: 4154.699204 | N209: 4154.703007 | O209: 4178.178825 | P209: 4201.655026 | Q209: 4225.131646 | R209: 4248.608721 | S209: 4340.551217 | T209: 4432.494716 | U209: 4524.439337 | V209: 4528.295675 | W209: 4532.152034 | X209: 4536.008415 | Y209: 4539.864819 | Z209: 4543.721244 | AA209: 4547.577693 | AB209: 4551.434165 | AC209: 4556.755337 | AD209: 4562.076514 | AE209: 4567.397696 | AF209: 4572.718883 | AG209: 4578.040075 | AH209: 4583.361272 | AI209: 4588.682474 | AJ209: 4594.003681 | AK209: 4599.324893 | AL209: 4604.64611 | AM209: 4609.732018 | AN209: 4614.817933 | AO209: 4619.903853 | AP209: 4624.989781 | AQ209: 4630.075715 | AR209: 4635.161655 | AS209: 4640.247602 | AT209: 4645.333556 | AU209: 4650.419517 | AV209: 4655.505485
K210: TRG 1 - High | L210: 4154.508408 | M210: 4154.692531 | N210: 4154.68961 | O210: 4162.376198 | P210: 4170.062943 | Q210: 4177.749855 | R210: 4185.436944 | S210: 4299.435048 | T210: 4413.433571 | U210: 4527.432541 | V210: 4528.747958 | W210: 4530.063375 | X210: 4531.378791 | Y210: 4532.694208 | Z210: 4534.009625 | AA210: 4535.325042 | AB210: 4536.640458 | AC210: 4536.640458 | AD210: 4536.640458 | AE210: 4536.640458 | AF210: 4536.640458 | AG210: 4536.640458 | AH210: 4536.640458 | AI210: 4536.640458 | AJ210: 4536.640458 | AK210: 4536.640458 | AL210: 4536.640458 | AM210: 4536.640458 | AN210: 4536.640458 | AO210: 4536.640458 | AP210: 4536.640458 | AQ210: 4536.640458 | AR210: 4536.640458 | AS210: 4536.640458 | AT210: 4536.640458 | AU210: 4536.640458 | AV210: 4536.640458
K211: TRG 2 - Low | L211: 3808.911214 | M211: 3812.389561 | N211: 3815.6976 | O211: 3836.820928 | P211: 3857.944674 | Q211: 3879.068876 | R211: 3900.19358 | S211: 4027.612715 | T211: 4155.033129 | U211: 4282.45498 | V211: 4285.760093 | W211: 4289.065313 | X211: 4292.370643 | Y211: 4295.67609 | Z211: 4298.981658 | AA211: 4302.287352 | AB211: 4305.593178 | AC211: 4307.824913 | AD211: 4310.056683 | AE211: 4312.288487 | AF211: 4314.520327 | AG211: 4316.752204 | AH211: 4318.984118 | AI211: 4321.21607 | AJ211: 4323.448061 | AK211: 4325.680091 | AL211: 4327.912163 | AM211: 4336.772378 | AN211: 4345.632632 | AO211: 4354.492927 | AP211: 4363.353262 | AQ211: 4372.21364 | AR211: 4381.074061 | AS211: 4389.934525 | AT211: 4398.795034 | AU211: 4407.655588 | AV211: 4416.51619
K212: TRG 2 - Mid | L212: 3808.911214 | M212: 3809.086139 | N212: 3809.089625 | O212: 3830.612583 | P212: 3852.135891 | Q212: 3873.659583 | R212: 3895.183693 | S212: 3979.477855 | T212: 4063.772936 | U212: 4148.069046 | V212: 4151.60459 | W212: 4155.140154 | X212: 4158.675738 | Y212: 4162.211343 | Z212: 4165.746968 | AA212: 4169.282613 | AB212: 4172.818281 | AC212: 4177.696806 | AD212: 4182.575335 | AE212: 4187.453869 | AF212: 4192.332407 | AG212: 4197.21095 | AH212: 4202.089497 | AI212: 4206.968049 | AJ212: 4211.846606 | AK212: 4216.725168 | AL212: 4221.603734 | AM212: 4226.266565 | AN212: 4230.929402 | AO212: 4235.592245 | AP212: 4240.255094 | AQ212: 4244.917949 | AR212: 4249.580811 | AS212: 4254.243678 | AT212: 4258.906551 | AU212: 4263.569431 | AV212: 4268.232317
K213: TRG 2 - High | L213: 3808.911214 | M213: 3809.08002 | N213: 3809.077343 | O213: 3816.124514 | P213: 3823.171829 | Q213: 3830.219297 | R213: 3837.266927 | S213: 3941.781978 | T213: 4046.297412 | U213: 4150.813257 | V213: 4152.01925 | W213: 4153.225242 | X213: 4154.431235 | Y213: 4155.637227 | Z213: 4156.843219 | AA213: 4158.049212 | AB213: 4159.255204 | AC213: 4159.255204 | AD213: 4159.255204 | AE213: 4159.255204 | AF213: 4159.255204 | AG213: 4159.255204 | AH213: 4159.255204 | AI213: 4159.255204 | AJ213: 4159.255204 | AK213: 4159.255204 | AL213: 4159.255204 | AM213: 4159.255204 | AN213: 4159.255204 | AO213: 4159.255204 | AP213: 4159.255204 | AQ213: 4159.255204 | AR213: 4159.255204 | AS213: 4159.255204 | AT213: 4159.255204 | AU213: 4159.255204 | AV213: 4159.255204
K214: TRG 3 - Low | L214: 3481.245419 | M214: 3484.424538 | N214: 3487.447999 | O214: 3506.754169 | P214: 3526.060721 | Q214: 3545.36769 | R214: 3564.675118 | S214: 3681.132881 | T214: 3797.591813 | U214: 3914.052059 | V214: 3917.072846 | W214: 3920.093731 | X214: 3923.114717 | Y214: 3926.135809 | Z214: 3929.157012 | AA214: 3932.17833 | AB214: 3935.199768 | AC214: 3937.239516 | AD214: 3939.279295 | AE214: 3941.319106 | AF214: 3943.35895 | AG214: 3945.398827 | AH214: 3947.438738 | AI214: 3949.478683 | AJ214: 3951.518665 | AK214: 3953.558683 | AL214: 3955.598738 | AM214: 3963.696743 | AN214: 3971.794784 | AO214: 3979.892862 | AP214: 3987.990978 | AQ214: 3996.089131 | AR214: 4004.187325 | AS214: 4012.285558 | AT214: 4020.383831 | AU214: 4028.482147 | AV214: 4036.580505
K215: TRG 3 - Mid | L215: 3481.245419 | M215: 3481.405296 | N215: 3481.408482 | O215: 3501.079903 | P215: 3520.751645 | Q215: 3540.423738 | R215: 3560.096212 | S215: 3637.138876 | T215: 3714.18238 | U215: 3791.226824 | V215: 3794.458219 | W215: 3797.689632 | X215: 3800.921064 | Y215: 3804.152514 | Z215: 3807.383983 | AA215: 3810.615471 | AB215: 3813.846978 | AC215: 3818.305823 | AD215: 3822.764671 | AE215: =(AE184)*8760 -> 3827.223523 | AF215: 3831.68238 | AG215: 3836.141241 | AH215: 3840.600106 | AI215: 3845.058975 | AJ215: 3849.517849 | AK215: 3853.976727 | AL215: 3858.435609 | AM215: 3862.697315 | AN215: 3866.959026 | AO215: 3871.220743 | AP215: 3875.482465 | AQ215: 3879.744193 | AR215: 3884.005927 | AS215: 3888.267666 | AT215: 3892.52941 | AU215: 3896.791161 | AV215: 3901.052917
K216: TRG 3 - High | L216: 3481.245419 | M216: 3481.399704 | N216: 3481.397256 | O216: 3487.838187 | P216: 3494.279249 | Q216: 3500.720451 | R216: 3507.161801 | S216: 3602.685828 | T216: 3698.210207 | U216: 3793.734961 | V216: 3794.837207 | W216: 3795.939452 | X216: 3797.041698 | Y216: 3798.143944 | Z216: 3799.246189 | AA216: 3800.348435 | AB216: 3801.45068 | AC216: 3801.45068 | AD216: 3801.45068 | AE216: 3801.45068 | AF216: 3801.45068 | AG216: 3801.45068 | AH216: 3801.45068 | AI216: 3801.45068 | AJ216: 3801.45068 | AK216: 3801.45068 | AL216: 3801.45068 | AM216: 3801.45068 | AN216: 3801.45068 | AO216: 3801.45068 | AP216: 3801.45068 | AQ216: 3801.45068 | AR216: 3801.45068 | AS216: 3801.45068 | AT216: 3801.45068 | AU216: 3801.45068 | AV216: 3801.45068
K217: TRG 4 - Low | L217: 2956.919503 | M217: 2959.6198 | N217: 2962.187885 | O217: 2978.586266 | P217: 2994.984972 | Q217: 3011.384033 | R217: 3027.783483 | S217: 3126.701022 | T217: 3225.619555 | U217: 3324.539203 | V217: 3327.105016 | W217: 3329.670911 | X217: 3332.236893 | Y217: 3334.802965 | Z217: 3337.369131 | AA217: 3339.935395 | AB217: 3342.501761 | AC217: 3344.234293 | AD217: 3345.966852 | AE217: 3347.699438 | AF217: 3349.432052 | AG217: 3351.164694 | AH217: 3352.897364 | AI217: 3354.630065 | AJ217: 3356.362796 | AK217: 3358.095557 | AL217: 3359.828351 | AM217: 3366.706679 | AN217: 3373.585038 | AO217: 3380.463428 | AP217: 3387.34185 | AQ217: 3394.220305 | AR217: 3401.098793 | AS217: 3407.977315 | AT217: 3414.855872 | AU217: 3421.734464 | AV217: 3428.613092
K218: TRG 4 - Mid | L218: 2956.919503 | M218: 2957.0553 | N218: 2957.058007 | O218: 2973.766627 | P218: 2990.47552 | Q218: 3007.184711 | R218: 3023.894226 | S218: 3089.33315 | T218: 3154.772788 | U218: 3220.213224 | V218: 3222.957925 | W218: 3225.70264 | X218: 3228.447372 | Y218: 3231.192118 | Z218: 3233.936881 | AA218: 3236.681661 | AB218: 3239.426456 | AC218: 3243.213734 | AD218: 3247.001016 | AE218: 3250.7883 | AF218: 3254.575589 | AG218: 3258.362881 | AH218: 3262.150176 | AI218: 3265.937475 | AJ218: 3269.724778 | AK218: 3273.512084 | AL218: 3277.299394 | AM218: 3280.919226 | AN218: 3284.539062 | AO218: 3288.158902 | AP218: 3291.778748 | AQ218: 3295.398598 | AR218: 3299.018452 | AS218: 3302.638312 | AT218: 3306.258176 | AU218: 3309.878045 | AV218: 3313.497919
K219: TRG 4 - High | L219: 2956.919503 | M219: 2957.05055 | N219: 2957.048471 | O219: 2962.519305 | P219: 2967.99025 | Q219: 2973.461313 | R219: 2978.932503 | S219: 3060.06923 | T219: 3141.206256 | U219: 3222.3436 | V219: 3223.279832 | W219: 3224.216063 | X219: 3225.152294 | Y219: 3226.088526 | Z219: 3227.024757 | AA219: 3227.960989 | AB219: 3228.89722 | AC219: 3228.89722 | AD219: 3228.89722 | AE219: 3228.89722 | AF219: 3228.89722 | AG219: 3228.89722 | AH219: 3228.89722 | AI219: 3228.89722 | AJ219: 3228.89722 | AK219: 3228.89722 | AL219: 3228.89722 | AM219: 3228.89722 | AN219: 3228.89722 | AO219: 3228.89722 | AP219: 3228.89722 | AQ219: 3228.89722 | AR219: 3228.89722 | AS219: 3228.89722 | AT219: 3228.89722 | AU219: 3228.89722 | AV219: 3228.89722
K220: TRG 5 - Low | L220: 4113.218261 | M220: 4115.333781 | N220: 4117.074972 | O220: 4139.062084 | P220: 4160.991345 | Q220: 4182.857282 | R220: 4204.653712 | S220: 4339.790953 | T220: 4474.605911 | U220: 4609.058591 | V220: 4612.037673 | W220: 4615.000207 | X220: 4617.945508 | Y220: 4620.872852 | Z220: 4623.781472 | AA220: 4626.670558 | AB220: 4629.539254 | AC220: 4631.528821 | AD220: 4633.512055 | AE220: 4635.488817 | AF220: 4637.458965 | AG220: 4639.422351 | AH220: 4641.378824 | AI220: 4643.328229 | AJ220: 4645.270405 | AK220: 4647.205185 | AL220: 4649.132401 | AM220: 4658.141965 | AN220: 4667.142584 | AO220: 4676.134074 | AP220: 4685.116246 | AQ220: 4694.088907 | AR220: 4703.051858 | AS220: 4712.004894 | AT220: 4720.947805 | AU220: 4729.880374 | AV220: 4738.802379
K221: TRG 5 - Mid | L221: 4113.218261 | M221: 4113.616895 | N221: 4113.853729 | O221: 4136.454916 | P221: 4159.011713 | Q221: 4181.520142 | R221: 4203.975738 | S221: 4293.61228 | T221: 4383.089038 | U221: 4472.387075 | V221: 4476.25046 | W221: 4480.114564 | X221: 4483.979401 | Y221: 4487.844982 | Z221: 4491.711323 | AA221: 4495.578437 | AB221: 4499.446337 | AC221: 4504.583208 | AD221: 4509.719194 | AE221: 4514.854288 | AF221: 4519.988485 | AG221: 4525.121777 | AH221: 4530.254157 | AI221: 4535.38562 | AJ221: 4540.516158 | AK221: 4545.645764 | AL221: 4550.774432 | AM221: 4555.64718 | AN221: 4560.518727 | AO221: 4565.389064 | AP221: 4570.258179 | AQ221: 4575.126062 | AR221: 4579.992704 | AS221: 4584.858092 | AT221: 4589.722217 | AU221: 4594.585068 | AV221: 4599.446632
K222: TRG 5 - High | L222: 4113.218261 | M222: 4113.200825 | N222: 4113.018484 | O222: 4121.267289 | P222: 4129.544337 | Q222: 4137.851365 | R222: 4146.190255 | S222: 4257.90615 | T222: 4369.504226 | U222: 4480.976663 | V222: 4482.278582 | W222: 4483.580502 | X222: 4484.882421 | Y222: 4486.18434 | Z222: 4487.486259 | AA222: 4488.788179 | AB222: 4490.090098 | AC222: 4490.090098 | AD222: 4490.090098 | AE222: 4490.090098 | AF222: 4490.090098 | AG222: 4490.090098 | AH222: =(AH191)*8760 -> 4490.090098 | AI222: 4490.090098 | AJ222: 4490.090098 | AK222: 4490.090098 | AL222: 4490.090098 | AM222: 4490.090098 | AN222: 4490.090098 | AO222: 4490.090098 | AP222: 4490.090098 | AQ222: 4490.090098 | AR222: 4490.090098 | AS222: 4490.090098 | AT222: 4490.090098 | AU222: 4490.090098 | AV222: 4490.090098
K223: TRG 6 - Low | L223: 3867.028108 | M223: 3869.017006 | N223: 3870.653981 | O223: 3891.32509 | P223: 3911.941809 | Q223: 3932.498995 | R223: 3952.990835 | S223: 4080.03965 | T223: 4206.785473 | U223: 4333.190701 | V223: 4335.991475 | W223: 4338.776691 | X223: 4341.545706 | Y223: 4344.297838 | Z223: 4347.032367 | AA223: 4349.748532 | AB223: 4352.445527 | AC223: 4354.316011 | AD223: 4356.180542 | AE223: 4358.038988 | AF223: 4359.891215 | AG223: 4361.737086 | AH223: 4363.576458 | AI223: 4365.409184 | AJ223: 4367.235114 | AK223: 4369.054091 | AL223: 4370.865956 | AM223: 4379.336268 | AN223: 4387.798169 | AO223: 4396.251487 | AP223: 4404.696046 | AQ223: 4413.131662 | AR223: 4421.55815 | AS223: 4429.975316 | AT223: 4438.382964 | AU223: 4446.780888 | AV223: 4455.168881
K224: TRG 6 - Mid | L224: 3867.028108 | M224: 3867.402881 | N224: 3867.62554 | O224: 3888.87397 | P224: 3910.080665 | Q224: 3931.241887 | R224: 3952.353439 | S224: 4036.624928 | T224: 4120.746197 | U224: 4204.699441 | V224: 4208.33159 | W224: 4211.964414 | X224: 4215.597927 | Y224: 4219.232141 | Z224: 4222.867068 | AA224: 4226.502721 | AB224: 4230.139115 | AC224: 4234.968526 | AD224: 4239.797106 | AE224: 4244.624847 | AF224: 4249.451745 | AG224: 4254.277792 | AH224: 4259.102982 | AI224: 4263.927309 | AJ224: 4268.750766 | AK224: 4273.573348 | AL224: 4278.395048 | AM224: 4282.976145 | AN224: 4287.556114 | AO224: 4292.134944 | AP224: 4296.712626 | AQ224: 4301.28915 | AR224: 4305.864506 | AS224: 4310.438685 | AT224: 4315.011675 | AU224: 4319.583467 | AV224: 4324.154051
K225: TRG 6 - High | L225: 3867.028108 | M225: 3867.011715 | N225: 3866.840288 | O225: 3874.595373 | P225: 3882.377012 | Q225: 3890.186836 | R225: 3898.026615 | S225: 4003.055933 | T225: 4107.974482 | U225: 4212.774914 | V225: 4213.998909 | W225: 4215.222903 | X225: 4216.446898 | Y225: 4217.670893 | Z225: 4218.894888 | AA225: 4220.118883 | AB225: 4221.342878 | AC225: 4221.342878 | AD225: 4221.342878 | AE225: 4221.342878 | AF225: 4221.342878 | AG225: 4221.342878 | AH225: 4221.342878 | AI225: 4221.342878 | AJ225: 4221.342878 | AK225: 4221.342878 | AL225: 4221.342878 | AM225: 4221.342878 | AN225: 4221.342878 | AO225: 4221.342878 | AP225: 4221.342878 | AQ225: 4221.342878 | AR225: 4221.342878 | AS225: 4221.342878 | AT225: 4221.342878 | AU225: 4221.342878 | AV225: 4221.342878
K226: TRG 7 - Low | L226: 3684.586031 | M226: 3686.481096 | N226: 3688.040839 | O226: 3707.736709 | P226: 3727.380754 | Q226: 3746.968075 | R226: 3766.493132 | S226: 3887.547926 | T226: 4008.314022 | U226: 4128.755593 | V226: 4131.424229 | W226: 4134.078042 | X226: 4136.716418 | Y226: 4139.338707 | Z226: 4141.944224 | AA226: 4144.532244 | AB226: 4147.101997 | AC226: 4148.884234 | AD226: 4150.660798 | AE226: 4152.431565 | AF226: 4154.196407 | AG226: 4155.955191 | AH226: 4157.707784 | AI226: 4159.454044 | AJ226: 4161.193828 | AK226: 4162.926988 | AL226: 4164.653372 | AM226: 4172.724063 | AN226: 4180.786741 | AO226: 4188.841241 | AP226: 4196.887395 | AQ226: 4204.925029 | AR226: 4212.953964 | AS226: 4220.974018 | AT226: 4228.985002 | AU226: 4236.986721 | AV226: 4244.978978
... 301 more rows

Sheet Solar - PV
A1: Solar PV Inputs
T3: Inputs
J4: Take me to: | T4: Calculated
B10: X | G10: Current Costs
H12: Techno-Economic Cost and Performance Parameters | J12: Net Capacity Factor (%) | K12: Utility PV - 14% | L12: 0.14 | O12: Basis Year: | Q12: 2013
K13: Utility PV - 20% | L13: 0.2
K14: Utility PV - 28% | L14: 0.28 | O14: Utility Scale Solar Photovoltiac | V14: Note: Since the draft version of this product was posted, current and projected overnight capital cost values for the ATB mid-case Solar PV projection have been modified downward to reflect the significant change in solar market prices that has occurred over the last year. The 2014 overnight capital cost for utility-scale PV has been lowered to $1.90/W, a 20% reduction from the earlier draft, to be in line with the most recent quarterly solar market report available. In turn, these lower costs in 2014 have increased our confidence that the SunShot target of $1.00/W will be achieved earlier. As such, the mid-case projection reduces the 2014 cost to $1.50/W by 2020 (same as earlier draft), and assumes the SunShot target is reached by 2030 instead of 2040 previously (reducing projected costs beyond 2020 by 10-20% from the earlier draft).
O15: Representative plant is Single Axis tracking with capacity of 100 MW
J16: Annual Energy Production (kWh/kW) | K16: Utility PV - 14% | L16: =L12*8760 -> 1226.4 | O16: Overnight Capital Cost, Fixed O&M, and Variable O&M costs represent $/kW DC;
K17: Utility PV - 20% | L17: =L13*8760 -> 1752 | O17: Capacity factor includes a conversion to AC. Therefore LCOE reflects $/MWh AC.
K18: Utility PV - 28% | L18: =L14*8760 -> 2452.8 | O18: Capacity factors chosen here to reflect range across the continental U.S. in ReEDS.
O19: PV Low projection = 75% SunShot Vision scenario | S19: Available | T19: Available
J20: CAPEX ($/kW) | K20: Utility PV - 14% | L20: =$S$40 * (L28 + L46) -> 2646.87002 | O20: PV Mid projection = 62.5% SunShot Vision scenario | S20: Capacity | T20: Generation
K21: Utility PV - 20% | L21: =$S$40 * (L29 + L47) -> 2646.87002 | O21: PV High projection = 50% SunShot Vision scenario | S21: (GW) | T21: (GWh)
K22: Utility PV - 28% | L22: =$S$40 * (L30 + L48) -> 2646.87002 | S22: 154192 | T22: 282844911
O23: Utility PV - 14% | Q23: ReEDS minimum CF 14%
J24: Construction Financing Cost ($/kW) | K24: Utility PV - 14% | L24: =(L28+L46)*($S$40-1) -> 60.87001981 | O24: Utility PV - 20% | Q24: ReEDS average CF 20%
K25: Utility PV - 20% | L25: =(L29+L47)*($S$40-1) -> 60.87001981 | O25: Utility PV - 28% | Q25: ReEDS maximum CF 28%
K26: Utility PV - 28% | L26: =(L30+L48)*($S$40-1) -> 60.87001981
O27: Financial Assumptions:
J28: Overnight Capital Cost ($/kW) | K28: Utility PV - 14% | L28: 2586 | O28: Inflation Rate | S28: 0.025
K29: Utility PV - 20% | L29: 2586 | O29: Economic Lifetime (Years) | S29: 20
K30: Utility PV - 28% | L30: 2586 | O30: Interest Rate - Nominal | S30: 0.08
O31: Calculated Interest Rate - Real | S31: =(1+S30)/(1+S28)-1 -> 0.05365853659
J32: Fixed Operation and Maintenance Expenses ($/kW) | K32: Utility PV - 14% | L32: 18 | O32: Interest During Construction - Nominal | S32: 0.08
K33: Utility PV - 20% | L33: 18 | O33: Rate of Return on Equity - Nominal | S33: 0.13
K34: Utility PV - 28% | L34: 18 | O34: Calculated Rate of Return on Equity - Real | S34: =(1+S33)/(1+S28) - 1 -> 0.1024390244
O35: Debt Fraction | S35: 0.5
J36: Variable Operation and Maintenance Expenses ($/MWh) | K36: Utility PV - 14% | L36: 0 | O36: Tax Rate (Federal and State) | S36: 0.4
K37: Utility PV - 20% | L37: 0 | O37: WACC - Nominal | S37: =IF(S36>0,S35*S30*(1-S36)+(1-S35)*S33,S35*S30+(1-S35)*S33) -> 0.089
K38: Utility PV - 28% | L38: 0 | O38: WACC - Real | S38: =((1+((1-S35)*((1+S34)*(1+S28)-1)) + (S35*((1+S31)*(1+S28)-1)*(1-S36))) / (1+S28)) - 1 -> 0.06243902439
O39: Depreciation Period | S39: 5
O40: Construction Finance Factor | S40: =SUMPRODUCT(P49:P51,Q49:Q51) -> 1.023538291
H41: Finance | J41: Weighted Average Cost of Capital (WACC) (Nominal) (%) | K41: Utility PV - 14% | L41: =$S$37 -> 0.089 | O41: Present Value of Depreciation | S41: =SUMPRODUCT(O54:T54,O56:T56) -> 0.7938171517
K42: Utility PV - 20% | L42: =$S$37 -> 0.089 | O42: Project Finance Factor | S42: =(1 - S36 * S41) / (1 - S36) -> 1.137455232
K43: Utility PV - 28% | L43: =$S$37 -> 0.089 | O43: Capital Recovery Factor (CRF) - Nominal | S43: =S37 / (1 - (1 / (1 + S37)^S29)) -> 0.1087669328
O44: Capital Recovery Factor (CRF) - Real | S44: =S38 / (1 - (1 / (1 + S38)^S29)) -> 0.08891871362
H46: Grid Connection Costs | J46: Grid Connection Costs (GCC) ($/kW) | K46: Utility PV - 14% | L46: =L50+L54 -> 0 | O46: Construction Duration yrs | Q46: 1
K47: Utility PV - 20% | L47: =L51+L55 -> 0 | O47: Year | P47: Capital | Q47: Accumulated
K48: Utility PV - 28% | L48: =L52+L56 -> 0 | O48: Index | P48: Fraction | Q48: Interest
O49: 0 | P49: 1 | Q49: =1+(1-S36)*((1+S32)^(O49+0.5)-1) -> 1.023538291
J50: Grid Feature Costs ($/kW) | K50: Utility PV - 14% | L50: 0 | O50: 1 | P50: 0 | Q50: =1+(1-S36)*((1+S32)^(O50+0.5)-1) -> 1.073421354
K51: Utility PV - 20% | L51: 0 | O51: 2 | P51: 0 | Q51: =1+(1-S36)*((1+S32)^(O51+0.5)-1) -> 1.127295062
K52: Utility PV - 28% | L52: 0
N53: MACRS yr | O53: 1 | P53: 2 | Q53: 3 | R53: 4 | S53: 5 | T53: 6
J54: Onshore Spur Line Costs ($/kW) | K54: Utility PV - 14% | L54: 0 | N54: Depreciation | O54: 0.2 | P54: 0.32 | Q54: 0.192 | R54: 0.1152 | S54: 0.1152 | T54: 0.0576
K55: Utility PV - 20% | L55: 0 | N55: Fraction
K56: Utility PV - 28% | L56: 0 | N56: Depreciation | O56: =1/((1+S38)*(1+S28))^O53 -> 0.9182736455 | P56: =1/((1+S38)*(1+S28))^P53 -> 0.8432264881 | Q56: =1/((1+S38)*(1+S28))^Q53 -> 0.7743126613 | R56: =1/((1+S38)*(1+S28))^R53 -> 0.7110309102 | S56: =1/((1+S38)*(1+S28))^S53 -> 0.652920946 | T56: =1/((1+S38)*(1+S28))^T53 -> 0.5995600974
N57: Factor
H59: LCOE | J59: Levelized Cost of Energy ($/MWh) | K59: Utility PV - 14% | L59: =(($S$44 * $S$42 * $S$40 * (L28 * 1 + L46) +L32) * 1000 / (L12 * 8760)) + L36 + 0 -> 232.9641463 | O59: Investment Tax Credit (ITC)* | S59: 0
K60: Utility PV - 20% | L60: =(($S$44 * $S$42 * $S$40 * (L29 * 1 + L47) +L33) * 1000 / (L13 * 8760)) + L37 + 0 -> 163.0749024 | O60: Production Tax Credit (PTC)* | S60: 0
K61: Utility PV - 28% | L61: =(($S$44 * $S$42 * $S$40 * (L30 * 1 + L48) +L34) * 1000 / (L14 * 8760)) + L38 + 0 -> 116.4820732 | O61: * not currently included in LCOE calculation
J63: Overnight Levelized Cost of Energy ($/MWh) | K63: Utility PV - 14% | L63: =(((L28*$S$44*(1-$S$36*$S$41))/(8760*L12*(1-$S$36))+L32/(8760*L12))*1000)+L36 -> 227.9442033 | M63: * this is similar to the LCOE used in the TCDB (Transparent Cost Database)
K64: Utility PV - 20% | L64: =(((L29*$S$44*(1-$S$36*$S$41))/(8760*L13*(1-$S$36))+L33/(8760*L13))*1000)+L37 -> 159.5609423
K65: Utility PV - 28% | L65: =(((L30*$S$44*(1-$S$36*$S$41))/(8760*L14*(1-$S$36))+L34/(8760*L14))*1000)+L38 -> 113.9721017
H68: ***Note: For future projections, low, mid, and high refer to low, mid, and high LCOE projections.
D71: X | G71: Future Projections
L73: =Q12+1 -> 2014 | M73: =L73+1 -> 2015 | N73: =M73+1 -> 2016 | O73: =N73+1 -> 2017 | P73: =O73+1 -> 2018 | Q73: 2019 | R73: =Q73+1 -> 2020 | S73: 2021 | T73: 2022 | U73: =T73+1 -> 2023 | V73: =U73+1 -> 2024 | W73: 2025 | X73: 2026 | Y73: 2027 | Z73: 2028 | AA73: 2029 | AB73: 2030 | AC73: 2031 | AD73: 2032 | AE73: 2033 | AF73: 2034 | AG73: 2035 | AH73: 2036 | AI73: 2037 | AJ73: 2038 | AK73: 2039 | AL73: 2040 | AM73: 2041 | AN73: 2042 | AO73: 2043 | AP73: 2044 | AQ73: 2045 | AR73: 2046 | AS73: 2047 | AT73: 2048 | AU73: 2049 | AV73: 2050
H74: Techno-Economic Cost and Performance Parameters | J74: Net Capacity Factor (%) | K74: Utility PV - 14% - Low | L74: 0.14 | M74: 0.14 | N74: 0.14 | O74: 0.14 | P74: 0.14 | Q74: 0.14 | R74: 0.14 | S74: 0.14 | T74: 0.14 | U74: 0.14 | V74: 0.14 | W74: 0.14 | X74: 0.14 | Y74: 0.14 | Z74: 0.14 | AA74: 0.14 | AB74: 0.14 | AC74: 0.14 | AD74: 0.14 | AE74: 0.14 | AF74: 0.14 | AG74: 0.14 | AH74: 0.14 | AI74: 0.14 | AJ74: 0.14 | AK74: 0.14 | AL74: 0.14 | AM74: 0.14 | AN74: 0.14 | AO74: 0.14 | AP74: 0.14 | AQ74: 0.14 | AR74: 0.14 | AS74: 0.14 | AT74: 0.14 | AU74: 0.14 | AV74: 0.14
K75: Utility PV - 14% - Mid | L75: 0.14 | M75: 0.14 | N75: 0.14 | O75: 0.14 | P75: 0.14 | Q75: 0.14 | R75: 0.14 | S75: 0.14 | T75: 0.14 | U75: 0.14 | V75: 0.14 | W75: 0.14 | X75: 0.14 | Y75: 0.14 | Z75: 0.14 | AA75: 0.14 | AB75: 0.14 | AC75: 0.14 | AD75: 0.14 | AE75: 0.14 | AF75: 0.14 | AG75: 0.14 | AH75: 0.14 | AI75: 0.14 | AJ75: 0.14 | AK75: 0.14 | AL75: 0.14 | AM75: 0.14 | AN75: 0.14 | AO75: 0.14 | AP75: 0.14 | AQ75: 0.14 | AR75: 0.14 | AS75: 0.14 | AT75: 0.14 | AU75: 0.14 | AV75: 0.14
K76: Utility PV - 14% - High | L76: 0.14 | M76: 0.14 | N76: 0.14 | O76: 0.14 | P76: 0.14 | Q76: 0.14 | R76: 0.14 | S76: 0.14 | T76: 0.14 | U76: 0.14 | V76: 0.14 | W76: 0.14 | X76: 0.14 | Y76: 0.14 | Z76: 0.14 | AA76: 0.14 | AB76: 0.14 | AC76: 0.14 | AD76: 0.14 | AE76: 0.14 | AF76: 0.14 | AG76: 0.14 | AH76: 0.14 | AI76: 0.14 | AJ76: 0.14 | AK76: 0.14 | AL76: 0.14 | AM76: 0.14 | AN76: 0.14 | AO76: 0.14 | AP76: 0.14 | AQ76: 0.14 | AR76: 0.14 | AS76: 0.14 | AT76: 0.14 | AU76: 0.14 | AV76: 0.14
K77: Utility PV - 20% - Low | L77: 0.2 | M77: 0.2 | N77: 0.2 | O77: 0.2 | P77: 0.2 | Q77: 0.2 | R77: 0.2 | S77: 0.2 | T77: 0.2 | U77: 0.2 | V77: 0.2 | W77: 0.2 | X77: 0.2 | Y77: 0.2 | Z77: 0.2 | AA77: 0.2 | AB77: 0.2 | AC77: 0.2 | AD77: 0.2 | AE77: 0.2 | AF77: 0.2 | AG77: 0.2 | AH77: 0.2 | AI77: 0.2 | AJ77: 0.2 | AK77: 0.2 | AL77: 0.2 | AM77: 0.2 | AN77: 0.2 | AO77: 0.2 | AP77: 0.2 | AQ77: 0.2 | AR77: 0.2 | AS77: 0.2 | AT77: 0.2 | AU77: 0.2 | AV77: 0.2
K78: Utility PV - 20% - Mid | L78: 0.2 | M78: 0.2 | N78: 0.2 | O78: 0.2 | P78: 0.2 | Q78: 0.2 | R78: 0.2 | S78: 0.2 | T78: 0.2 | U78: 0.2 | V78: 0.2 | W78: 0.2 | X78: 0.2 | Y78: 0.2 | Z78: 0.2 | AA78: 0.2 | AB78: 0.2 | AC78: 0.2 | AD78: 0.2 | AE78: 0.2 | AF78: 0.2 | AG78: 0.2 | AH78: 0.2 | AI78: 0.2 | AJ78: 0.2 | AK78: 0.2 | AL78: 0.2 | AM78: 0.2 | AN78: 0.2 | AO78: 0.2 | AP78: 0.2 | AQ78: 0.2 | AR78: 0.2 | AS78: 0.2 | AT78: 0.2 | AU78: 0.2 | AV78: 0.2
K79: Utility PV - 20% - High | L79: 0.2 | M79: 0.2 | N79: 0.2 | O79: 0.2 | P79: 0.2 | Q79: 0.2 | R79: 0.2 | S79: 0.2 | T79: 0.2 | U79: 0.2 | V79: 0.2 | W79: 0.2 | X79: 0.2 | Y79: 0.2 | Z79: 0.2 | AA79: 0.2 | AB79: 0.2 | AC79: 0.2 | AD79: 0.2 | AE79: 0.2 | AF79: 0.2 | AG79: 0.2 | AH79: 0.2 | AI79: 0.2 | AJ79: 0.2 | AK79: 0.2 | AL79: 0.2 | AM79: 0.2 | AN79: 0.2 | AO79: 0.2 | AP79: 0.2 | AQ79: 0.2 | AR79: 0.2 | AS79: 0.2 | AT79: 0.2 | AU79: 0.2 | AV79: 0.2
K80: Utility PV - 28% - Low | L80: 0.28 | M80: 0.28 | N80: 0.28 | O80: 0.28 | P80: 0.28 | Q80: 0.28 | R80: 0.28 | S80: 0.28 | T80: 0.28 | U80: 0.28 | V80: 0.28 | W80: 0.28 | X80: 0.28 | Y80: 0.28 | Z80: 0.28 | AA80: 0.28 | AB80: 0.28 | AC80: 0.28 | AD80: 0.28 | AE80: 0.28 | AF80: 0.28 | AG80: 0.28 | AH80: 0.28 | AI80: 0.28 | AJ80: 0.28 | AK80: 0.28 | AL80: 0.28 | AM80: 0.28 | AN80: 0.28 | AO80: 0.28 | AP80: 0.28 | AQ80: 0.28 | AR80: 0.28 | AS80: 0.28 | AT80: 0.28 | AU80: 0.28 | AV80: 0.28
K81: Utility PV - 28% - Mid | L81: 0.28 | M81: 0.28 | N81: 0.28 | O81: 0.28 | P81: 0.28 | Q81: 0.28 | R81: 0.28 | S81: 0.28 | T81: 0.28 | U81: 0.28 | V81: 0.28 | W81: 0.28 | X81: 0.28 | Y81: 0.28 | Z81: 0.28 | AA81: 0.28 | AB81: 0.28 | AC81: 0.28 | AD81: 0.28 | AE81: 0.28 | AF81: 0.28 | AG81: 0.28 | AH81: 0.28 | AI81: 0.28 | AJ81: 0.28 | AK81: 0.28 | AL81: 0.28 | AM81: 0.28 | AN81: 0.28 | AO81: 0.28 | AP81: 0.28 | AQ81: 0.28 | AR81: 0.28 | AS81: 0.28 | AT81: 0.28 | AU81: 0.28 | AV81: 0.28
K82: Utility PV - 28% - High | L82: 0.28 | M82: 0.28 | N82: 0.28 | O82: 0.28 | P82: 0.28 | Q82: 0.28 | R82: 0.28 | S82: 0.28 | T82: 0.28 | U82: 0.28 | V82: 0.28 | W82: 0.28 | X82: 0.28 | Y82: 0.28 | Z82: 0.28 | AA82: 0.28 | AB82: 0.28 | AC82: 0.28 | AD82: 0.28 | AE82: 0.28 | AF82: 0.28 | AG82: 0.28 | AH82: 0.28 | AI82: 0.28 | AJ82: 0.28 | AK82: 0.28 | AL82: 0.28 | AM82: 0.28 | AN82: 0.28 | AO82: 0.28 | AP82: 0.28 | AQ82: 0.28 | AR82: 0.28 | AS82: 0.28 | AT82: 0.28 | AU82: 0.28 | AV82: 0.28
J84: Annual Energy Production (kWh/kW) | K84: Utility PV - 14% - Low | L84: =L74*8760 -> 1226.4 | M84: 1226.4 | N84: =N74*8760 -> 1226.4 | O84: 1226.4 | P84: 1226.4 | Q84: 1226.4 | R84: 1226.4 | S84: 1226.4 | T84: 1226.4 | U84: 1226.4 | V84: 1226.4 | W84: 1226.4 | X84: 1226.4 | Y84: 1226.4 | Z84: 1226.4 | AA84: 1226.4 | AB84: 1226.4 | AC84: 1226.4 | AD84: 1226.4 | AE84: 1226.4 | AF84: 1226.4 | AG84: 1226.4 | AH84: 1226.4 | AI84: 1226.4 | AJ84: 1226.4 | AK84: 1226.4 | AL84: 1226.4 | AM84: 1226.4 | AN84: 1226.4 | AO84: 1226.4 | AP84: 1226.4 | AQ84: 1226.4 | AR84: 1226.4 | AS84: 1226.4 | AT84: 1226.4 | AU84: 1226.4 | AV84: 1226.4
K85: Utility PV - 14% - Mid | L85: 1226.4 | M85: 1226.4 | N85: =N75*8760 -> 1226.4 | O85: 1226.4 | P85: 1226.4 | Q85: 1226.4 | R85: 1226.4 | S85: 1226.4 | T85: 1226.4 | U85: 1226.4 | V85: 1226.4 | W85: 1226.4 | X85: 1226.4 | Y85: 1226.4 | Z85: 1226.4 | AA85: 1226.4 | AB85: 1226.4 | AC85: 1226.4 | AD85: 1226.4 | AE85: 1226.4 | AF85: 1226.4 | AG85: 1226.4 | AH85: 1226.4 | AI85: 1226.4 | AJ85: 1226.4 | AK85: 1226.4 | AL85: 1226.4 | AM85: 1226.4 | AN85: 1226.4 | AO85: 1226.4 | AP85: 1226.4 | AQ85: 1226.4 | AR85: 1226.4 | AS85: 1226.4 | AT85: 1226.4 | AU85: 1226.4 | AV85: 1226.4
K86: Utility PV - 14% - High | L86: 1226.4 | M86: 1226.4 | N86: =N76*8760 -> 1226.4 | O86: 1226.4 | P86: 1226.4 | Q86: 1226.4 | R86: 1226.4 | S86: 1226.4 | T86: 1226.4 | U86: 1226.4 | V86: 1226.4 | W86: 1226.4 | X86: 1226.4 | Y86: 1226.4 | Z86: 1226.4 | AA86: 1226.4 | AB86: 1226.4 | AC86: 1226.4 | AD86: 1226.4 | AE86: 1226.4 | AF86: 1226.4 | AG86: 1226.4 | AH86: 1226.4 | AI86: 1226.4 | AJ86: 1226.4 | AK86: 1226.4 | AL86: 1226.4 | AM86: 1226.4 | AN86: 1226.4 | AO86: 1226.4 | AP86: 1226.4 | AQ86: 1226.4 | AR86: 1226.4 | AS86: 1226.4 | AT86: 1226.4 | AU86: 1226.4 | AV86: 1226.4
K87: Utility PV - 20% - Low | L87: 1752 | M87: 1752 | N87: =N77*8760 -> 1752 | O87: 1752 | P87: 1752 | Q87: 1752 | R87: 1752 | S87: 1752 | T87: 1752 | U87: 1752 | V87: 1752 | W87: 1752 | X87: 1752 | Y87: 1752 | Z87: 1752 | AA87: 1752 | AB87: 1752 | AC87: 1752 | AD87: 1752 | AE87: 1752 | AF87: 1752 | AG87: 1752 | AH87: 1752 | AI87: 1752 | AJ87: 1752 | AK87: 1752 | AL87: 1752 | AM87: 1752 | AN87: 1752 | AO87: 1752 | AP87: 1752 | AQ87: 1752 | AR87: 1752 | AS87: 1752 | AT87: 1752 | AU87: 1752 | AV87: 1752
K88: Utility PV - 20% - Mid | L88: 1752 | M88: 1752 | N88: =N78*8760 -> 1752 | O88: 1752 | P88: 1752 | Q88: 1752 | R88: 1752 | S88: 1752 | T88: 1752 | U88: 1752 | V88: 1752 | W88: 1752 | X88: 1752 | Y88: 1752 | Z88: 1752 | AA88: 1752 | AB88: 1752 | AC88: 1752 | AD88: 1752 | AE88: 1752 | AF88: 1752 | AG88: 1752 | AH88: 1752 | AI88: 1752 | AJ88: 1752 | AK88: 1752 | AL88: 1752 | AM88: 1752 | AN88: 1752 | AO88: 1752 | AP88: 1752 | AQ88: 1752 | AR88: 1752 | AS88: 1752 | AT88: 1752 | AU88: 1752 | AV88: 1752
K89: Utility PV - 20% - High | L89: 1752 | M89: 1752 | N89: =N79*8760 -> 1752 | O89: 1752 | P89: 1752 | Q89: 1752 | R89: 1752 | S89: 1752 | T89: 1752 | U89: 1752 | V89: 1752 | W89: 1752 | X89: 1752 | Y89: 1752 | Z89: 1752 | AA89: 1752 | AB89: 1752 | AC89: 1752 | AD89: 1752 | AE89: 1752 | AF89: 1752 | AG89: 1752 | AH89: 1752 | AI89: 1752 | AJ89: 1752 | AK89: 1752 | AL89: 1752 | AM89: 1752 | AN89: 1752 | AO89: 1752 | AP89: 1752 | AQ89: 1752 | AR89: 1752 | AS89: 1752 | AT89: 1752 | AU89: 1752 | AV89: 1752
K90: Utility PV - 28% - Low | L90: 2452.8 | M90: 2452.8 | N90: =N80*8760 -> 2452.8 | O90: 2452.8 | P90: 2452.8 | Q90: 2452.8 | R90: 2452.8 | S90: 2452.8 | T90: 2452.8 | U90: 2452.8 | V90: 2452.8 | W90: 2452.8 | X90: 2452.8 | Y90: 2452.8 | Z90: 2452.8 | AA90: 2452.8 | AB90: 2452.8 | AC90: 2452.8 | AD90: 2452.8 | AE90: 2452.8 | AF90: 2452.8 | AG90: 2452.8 | AH90: 2452.8 | AI90: 2452.8 | AJ90: 2452.8 | AK90: 2452.8 | AL90: 2452.8 | AM90: 2452.8 | AN90: 2452.8 | AO90: 2452.8 | AP90: 2452.8 | AQ90: 2452.8 | AR90: 2452.8 | AS90: 2452.8 | AT90: 2452.8 | AU90: 2452.8 | AV90: 2452.8
K91: Utility PV - 28% - Mid | L91: 2452.8 | M91: 2452.8 | N91: =N81*8760 -> 2452.8 | O91: 2452.8 | P91: 2452.8 | Q91: 2452.8 | R91: 2452.8 | S91: 2452.8 | T91: 2452.8 | U91: 2452.8 | V91: 2452.8 | W91: 2452.8 | X91: 2452.8 | Y91: 2452.8 | Z91: 2452.8 | AA91: 2452.8 | AB91: 2452.8 | AC91: 2452.8 | AD91: 2452.8 | AE91: 2452.8 | AF91: 2452.8 | AG91: 2452.8 | AH91: 2452.8 | AI91: 2452.8 | AJ91: 2452.8 | AK91: 2452.8 | AL91: 2452.8 | AM91: 2452.8 | AN91: 2452.8 | AO91: 2452.8 | AP91: 2452.8 | AQ91: 2452.8 | AR91: 2452.8 | AS91: 2452.8 | AT91: 2452.8 | AU91: 2452.8 | AV91: 2452.8
K92: Utility PV - 28% - High | L92: 2452.8 | M92: 2452.8 | N92: =N82*8760 -> 2452.8 | O92: 2452.8 | P92: 2452.8 | Q92: 2452.8 | R92: 2452.8 | S92: 2452.8 | T92: 2452.8 | U92: 2452.8 | V92: 2452.8 | W92: 2452.8 | X92: 2452.8 | Y92: 2452.8 | Z92: 2452.8 | AA92: 2452.8 | AB92: 2452.8 | AC92: 2452.8 | AD92: 2452.8 | AE92: 2452.8 | AF92: 2452.8 | AG92: 2452.8 | AH92: 2452.8 | AI92: 2452.8 | AJ92: 2452.8 | AK92: 2452.8 | AL92: 2452.8 | AM92: 2452.8 | AN92: 2452.8 | AO92: 2452.8 | AP92: 2452.8 | AQ92: 2452.8 | AR92: 2452.8 | AS92: 2452.8 | AT92: 2452.8 | AU92: 2452.8 | AV92: 2452.8
J94: CAPEX ($/kW) | K94: Utility PV - 14% - Low | L94: =$S$40*(L114+L158) -> 2067.547347 | M94: 1905.357111 | N94: 1743.166874 | O94: 1580.976637 | P94: 1418.7864 | Q94: 1256.596164 | R94: 1094.405927 | S94: 1094.405927 | T94: 1094.405927 | U94: 1094.405927 | V94: 1094.405927 | W94: 1094.405927 | X94: 1094.405927 | Y94: 1094.405927 | Z94: 1094.405927 | AA94: 1094.405927 | AB94: 1094.405927 | AC94: 1094.405927 | AD94: 1094.405927 | AE94: 1094.405927 | AF94: 1094.405927 | AG94: 1094.405927 | AH94: 1094.405927 | AI94: 1094.405927 | AJ94: 1094.405927 | AK94: 1094.405927 | AL94: 1094.405927 | AM94: 1094.405927 | AN94: 1094.405927 | AO94: 1094.405927 | AP94: 1094.405927 | AQ94: 1094.405927 | AR94: 1094.405927 | AS94: 1094.405927 | AT94: 1094.405927 | AU94: 1094.405927 | AV94: 1094.405927
K95: Utility PV - 14% - Mid | L95: =$S$40*(L115+L159) -> 2067.547347 | M95: 1996.558114 | N95: 1925.56888 | O95: 1854.579647 | P95: 1783.590413 | Q95: 1712.60118 | R95: 1641.611946 | S95: 1586.891344 | T95: 1532.170742 | U95: 1477.45014 | V95: 1422.729538 | W95: 1368.008937 | X95: 1313.288335 | Y95: 1258.567733 | Z95: 1203.847131 | AA95: 1149.126529 | AB95: 1094.405927 | AC95: 1094.405927 | AD95: 1094.405927 | AE95: 1094.405927 | AF95: 1094.405927 | AG95: 1094.405927 | AH95: 1094.405927 | AI95: 1094.405927 | AJ95: 1094.405927 | AK95: 1094.405927 | AL95: 1094.405927 | AM95: 1094.405927 | AN95: 1094.405927 | AO95: 1094.405927 | AP95: 1094.405927 | AQ95: 1094.405927 | AR95: 1094.405927 | AS95: 1094.405927 | AT95: 1094.405927 | AU95: 1094.405927 | AV95: 1094.405927
K96: Utility PV - 14% - High | L96: =$S$40*(L116+L160) -> 2067.547347 | M96: 2067.547347 | N96: 2067.547347 | O96: 2067.547347 | P96: 2067.547347 | Q96: 2067.547347 | R96: 2067.547347 | S96: 2067.547347 | T96: 2067.547347 | U96: 2067.547347 | V96: 2067.547347 | W96: 2067.547347 | X96: 2067.547347 | Y96: 2067.547347 | Z96: 2067.547347 | AA96: 2067.547347 | AB96: 2067.547347 | AC96: 2067.547347 | AD96: 2067.547347 | AE96: 2067.547347 | AF96: 2067.547347 | AG96: 2067.547347 | AH96: 2067.547347 | AI96: 2067.547347 | AJ96: 2067.547347 | AK96: 2067.547347 | AL96: 2067.547347 | AM96: 2067.547347 | AN96: 2067.547347 | AO96: 2067.547347 | AP96: 2067.547347 | AQ96: 2067.547347 | AR96: 2067.547347 | AS96: 2067.547347 | AT96: 2067.547347 | AU96: 2067.547347 | AV96: 2067.547347
K97: Utility PV - 20% - Low | L97: =$S$40*(L117+L161) -> 2067.547347 | M97: 1905.357111 | N97: 1743.166874 | O97: 1580.976637 | P97: 1418.7864 | Q97: 1256.596164 | R97: 1094.405927 | S97: 1094.405927 | T97: 1094.405927 | U97: 1094.405927 | V97: 1094.405927 | W97: 1094.405927 | X97: 1094.405927 | Y97: 1094.405927 | Z97: 1094.405927 | AA97: 1094.405927 | AB97: 1094.405927 | AC97: 1094.405927 | AD97: 1094.405927 | AE97: 1094.405927 | AF97: 1094.405927 | AG97: 1094.405927 | AH97: 1094.405927 | AI97: 1094.405927 | AJ97: 1094.405927 | AK97: 1094.405927 | AL97: 1094.405927 | AM97: 1094.405927 | AN97: 1094.405927 | AO97: 1094.405927 | AP97: 1094.405927 | AQ97: 1094.405927 | AR97: 1094.405927 | AS97: 1094.405927 | AT97: 1094.405927 | AU97: 1094.405927 | AV97: 1094.405927
K98: Utility PV - 20% - Mid | L98: =$S$40*(L118+L162) -> 2067.547347 | M98: 1996.558114 | N98: 1925.56888 | O98: 1854.579647 | P98: 1783.590413 | Q98: 1712.60118 | R98: 1641.611946 | S98: 1586.891344 | T98: 1532.170742 | U98: 1477.45014 | V98: 1422.729538 | W98: 1368.008937 | X98: 1313.288335 | Y98: 1258.567733 | Z98: 1203.847131 | AA98: 1149.126529 | AB98: 1094.405927 | AC98: 1094.405927 | AD98: 1094.405927 | AE98: 1094.405927 | AF98: 1094.405927 | AG98: 1094.405927 | AH98: 1094.405927 | AI98: 1094.405927 | AJ98: 1094.405927 | AK98: 1094.405927 | AL98: 1094.405927 | AM98: 1094.405927 | AN98: 1094.405927 | AO98: 1094.405927 | AP98: 1094.405927 | AQ98: 1094.405927 | AR98: 1094.405927 | AS98: 1094.405927 | AT98: 1094.405927 | AU98: 1094.405927 | AV98: 1094.405927
K99: Utility PV - 20% - High | L99: =$S$40*(L119+L163) -> 2067.547347 | M99: 2067.547347 | N99: 2067.547347 | O99: 2067.547347 | P99: 2067.547347 | Q99: 2067.547347 | R99: 2067.547347 | S99: 2067.547347 | T99: 2067.547347 | U99: 2067.547347 | V99: 2067.547347 | W99: 2067.547347 | X99: 2067.547347 | Y99: 2067.547347 | Z99: 2067.547347 | AA99: 2067.547347 | AB99: 2067.547347 | AC99: 2067.547347 | AD99: 2067.547347 | AE99: 2067.547347 | AF99: 2067.547347 | AG99: 2067.547347 | AH99: 2067.547347 | AI99: 2067.547347 | AJ99: 2067.547347 | AK99: 2067.547347 | AL99: 2067.547347 | AM99: 2067.547347 | AN99: 2067.547347 | AO99: 2067.547347 | AP99: 2067.547347 | AQ99: 2067.547347 | AR99: 2067.547347 | AS99: 2067.547347 | AT99: 2067.547347 | AU99: 2067.547347 | AV99: 2067.547347
K100: Utility PV - 28% - Low | L100: =$S$40*(L120+L164) -> 2067.547347 | M100: 1905.357111 | N100: 1743.166874 | O100: 1580.976637 | P100: 1418.7864 | Q100: 1256.596164 | R100: 1094.405927 | S100: 1094.405927 | T100: 1094.405927 | U100: 1094.405927 | V100: 1094.405927 | W100: 1094.405927 | X100: 1094.405927 | Y100: 1094.405927 | Z100: 1094.405927 | AA100: 1094.405927 | AB100: 1094.405927 | AC100: 1094.405927 | AD100: 1094.405927 | AE100: 1094.405927 | AF100: 1094.405927 | AG100: 1094.405927 | AH100: 1094.405927 | AI100: 1094.405927 | AJ100: 1094.405927 | AK100: 1094.405927 | AL100: 1094.405927 | AM100: 1094.405927 | AN100: 1094.405927 | AO100: 1094.405927 | AP100: 1094.405927 | AQ100: 1094.405927 | AR100: 1094.405927 | AS100: 1094.405927 | AT100: 1094.405927 | AU100: 1094.405927 | AV100: 1094.405927
K101: Utility PV - 28% - Mid | L101: =$S$40*(L121+L165) -> 2067.547347 | M101: 1996.558114 | N101: 1925.56888 | O101: 1854.579647 | P101: 1783.590413 | Q101: 1712.60118 | R101: 1641.611946 | S101: 1586.891344 | T101: 1532.170742 | U101: 1477.45014 | V101: 1422.729538 | W101: 1368.008937 | X101: 1313.288335 | Y101: 1258.567733 | Z101: 1203.847131 | AA101: 1149.126529 | AB101: 1094.405927 | AC101: 1094.405927 | AD101: 1094.405927 | AE101: 1094.405927 | AF101: 1094.405927 | AG101: 1094.405927 | AH101: 1094.405927 | AI101: 1094.405927 | AJ101: 1094.405927 | AK101: 1094.405927 | AL101: 1094.405927 | AM101: 1094.405927 | AN101: 1094.405927 | AO101: 1094.405927 | AP101: 1094.405927 | AQ101: 1094.405927 | AR101: 1094.405927 | AS101: 1094.405927 | AT101: 1094.405927 | AU101: 1094.405927 | AV101: 1094.405927
K102: Utility PV - 28% - High | L102: =$S$40*(L122+L166) -> 2067.547347 | M102: 2067.547347 | N102: 2067.547347 | O102: 2067.547347 | P102: 2067.547347 | Q102: 2067.547347 | R102: 2067.547347 | S102: 2067.547347 | T102: 2067.547347 | U102: 2067.547347 | V102: 2067.547347 | W102: 2067.547347 | X102: 2067.547347 | Y102: 2067.547347 | Z102: 2067.547347 | AA102: 2067.547347 | AB102: 2067.547347 | AC102: 2067.547347 | AD102: 2067.547347 | AE102: 2067.547347 | AF102: 2067.547347 | AG102: 2067.547347 | AH102: 2067.547347 | AI102: 2067.547347 | AJ102: 2067.547347 | AK102: 2067.547347 | AL102: 2067.547347 | AM102: 2067.547347 | AN102: 2067.547347 | AO102: 2067.547347 | AP102: 2067.547347 | AQ102: 2067.547347 | AR102: 2067.547347 | AS102: 2067.547347 | AT102: 2067.547347 | AU102: 2067.547347 | AV102: 2067.547347
J104: Construction Financing Cost ($/kW) | K104: Utility PV - 14% - Low | L104: =(L114+L158)*($S$40-1) -> 47.54734726 | M104: 43.81746146 | N104: 40.08757565 | O104: 36.35768984 | P104: 32.62780403 | Q104: 28.89791822 | R104: 25.16803241 | S104: 25.16803241 | T104: 25.16803241 | U104: 25.16803241 | V104: 25.16803241 | W104: 25.16803241 | X104: 25.16803241 | Y104: 25.16803241 | Z104: 25.16803241 | AA104: 25.16803241 | AB104: 25.16803241 | AC104: 25.16803241 | AD104: 25.16803241 | AE104: 25.16803241 | AF104: 25.16803241 | AG104: 25.16803241 | AH104: 25.16803241 | AI104: 25.16803241 | AJ104: 25.16803241 | AK104: 25.16803241 | AL104: 25.16803241 | AM104: 25.16803241 | AN104: 25.16803241 | AO104: 25.16803241 | AP104: 25.16803241 | AQ104: 25.16803241 | AR104: 25.16803241 | AS104: 25.16803241 | AT104: 25.16803241 | AU104: 25.16803241 | AV104: 25.16803241
K105: Utility PV - 14% - Mid | L105: =(L115+L159)*($S$40-1) -> 47.54734726 | M105: 45.9148092 | N105: 44.28227114 | O105: 42.64973308 | P105: 41.01719502 | Q105: 39.38465696 | R105: 37.7521189 | S105: 36.49371025 | T105: 35.2353016 | U105: 33.97689295 | V105: 32.7184843 | W105: 31.46007566 | X105: 30.20166701 | Y105: 28.94325836 | Z105: 27.68484971 | AA105: 26.42644106 | AB105: 25.16803241 | AC105: 25.16803241 | AD105: 25.16803241 | AE105: 25.16803241 | AF105: 25.16803241 | AG105: 25.16803241 | AH105: 25.16803241 | AI105: 25.16803241 | AJ105: 25.16803241 | AK105: 25.16803241 | AL105: 25.16803241 | AM105: 25.16803241 | AN105: 25.16803241 | AO105: 25.16803241 | AP105: 25.16803241 | AQ105: 25.16803241 | AR105: 25.16803241 | AS105: 25.16803241 | AT105: 25.16803241 | AU105: 25.16803241 | AV105: 25.16803241
K106: Utility PV - 14% - High | L106: =(L116+L160)*($S$40-1) -> 47.54734726 | M106: 47.54734726 | N106: 47.54734726 | O106: 47.54734726 | P106: 47.54734726 | Q106: 47.54734726 | R106: 47.54734726 | S106: 47.54734726 | T106: 47.54734726 | U106: 47.54734726 | V106: 47.54734726 | W106: 47.54734726 | X106: 47.54734726 | Y106: 47.54734726 | Z106: 47.54734726 | AA106: 47.54734726 | AB106: 47.54734726 | AC106: 47.54734726 | AD106: 47.54734726 | AE106: 47.54734726 | AF106: 47.54734726 | AG106: 47.54734726 | AH106: 47.54734726 | AI106: 47.54734726 | AJ106: 47.54734726 | AK106: 47.54734726 | AL106: 47.54734726 | AM106: 47.54734726 | AN106: 47.54734726 | AO106: 47.54734726 | AP106: 47.54734726 | AQ106: 47.54734726 | AR106: 47.54734726 | AS106: 47.54734726 | AT106: 47.54734726 | AU106: 47.54734726 | AV106: 47.54734726
K107: Utility PV - 20% - Low | L107: =(L117+L161)*($S$40-1) -> 47.54734726 | M107: 43.81746146 | N107: 40.08757565 | O107: 36.35768984 | P107: 32.62780403 | Q107: 28.89791822 | R107: 25.16803241 | S107: 25.16803241 | T107: 25.16803241 | U107: 25.16803241 | V107: 25.16803241 | W107: 25.16803241 | X107: 25.16803241 | Y107: 25.16803241 | Z107: 25.16803241 | AA107: 25.16803241 | AB107: 25.16803241 | AC107: 25.16803241 | AD107: 25.16803241 | AE107: 25.16803241 | AF107: 25.16803241 | AG107: 25.16803241 | AH107: 25.16803241 | AI107: 25.16803241 | AJ107: 25.16803241 | AK107: 25.16803241 | AL107: 25.16803241 | AM107: 25.16803241 | AN107: 25.16803241 | AO107: 25.16803241 | AP107: 25.16803241 | AQ107: 25.16803241 | AR107: 25.16803241 | AS107: 25.16803241 | AT107: 25.16803241 | AU107: 25.16803241 | AV107: 25.16803241
K108: Utility PV - 20% - Mid | L108: =(L118+L162)*($S$40-1) -> 47.54734726 | M108: 45.9148092 | N108: 44.28227114 | O108: 42.64973308 | P108: 41.01719502 | Q108: 39.38465696 | R108: 37.7521189 | S108: 36.49371025 | T108: 35.2353016 | U108: 33.97689295 | V108: 32.7184843 | W108: 31.46007566 | X108: 30.20166701 | Y108: 28.94325836 | Z108: 27.68484971 | AA108: 26.42644106 | AB108: 25.16803241 | AC108: 25.16803241 | AD108: 25.16803241 | AE108: 25.16803241 | AF108: 25.16803241 | AG108: 25.16803241 | AH108: 25.16803241 | AI108: 25.16803241 | AJ108: 25.16803241 | AK108: 25.16803241 | AL108: 25.16803241 | AM108: 25.16803241 | AN108: 25.16803241 | AO108: 25.16803241 | AP108: 25.16803241 | AQ108: 25.16803241 | AR108: 25.16803241 | AS108: 25.16803241 | AT108: 25.16803241 | AU108: 25.16803241 | AV108: 25.16803241
K109: Utility PV - 20% - High | L109: =(L119+L163)*($S$40-1) -> 47.54734726 | M109: 47.54734726 | N109: 47.54734726 | O109: 47.54734726 | P109: 47.54734726 | Q109: 47.54734726 | R109: 47.54734726 | S109: 47.54734726 | T109: 47.54734726 | U109: 47.54734726 | V109: 47.54734726 | W109: 47.54734726 | X109: 47.54734726 | Y109: 47.54734726 | Z109: 47.54734726 | AA109: 47.54734726 | AB109: 47.54734726 | AC109: 47.54734726 | AD109: 47.54734726 | AE109: 47.54734726 | AF109: 47.54734726 | AG109: 47.54734726 | AH109: 47.54734726 | AI109: 47.54734726 | AJ109: 47.54734726 | AK109: 47.54734726 | AL109: 47.54734726 | AM109: 47.54734726 | AN109: 47.54734726 | AO109: 47.54734726 | AP109: 47.54734726 | AQ109: 47.54734726 | AR109: 47.54734726 | AS109: 47.54734726 | AT109: 47.54734726 | AU109: 47.54734726 | AV109: 47.54734726
K110: Utility PV - 28% - Low | L110: =(L120+L164)*($S$40-1) -> 47.54734726 | M110: 43.81746146 | N110: 40.08757565 | O110: 36.35768984 | P110: 32.62780403 | Q110: 28.89791822 | R110: 25.16803241 | S110: 25.16803241 | T110: 25.16803241 | U110: 25.16803241 | V110: 25.16803241 | W110: 25.16803241 | X110: 25.16803241 | Y110: 25.16803241 | Z110: 25.16803241 | AA110: 25.16803241 | AB110: 25.16803241 | AC110: 25.16803241 | AD110: 25.16803241 | AE110: 25.16803241 | AF110: 25.16803241 | AG110: 25.16803241 | AH110: 25.16803241 | AI110: 25.16803241 | AJ110: 25.16803241 | AK110: 25.16803241 | AL110: 25.16803241 | AM110: 25.16803241 | AN110: 25.16803241 | AO110: 25.16803241 | AP110: 25.16803241 | AQ110: 25.16803241 | AR110: 25.16803241 | AS110: 25.16803241 | AT110: 25.16803241 | AU110: 25.16803241 | AV110: 25.16803241
K111: Utility PV - 28% - Mid | L111: =(L121+L165)*($S$40-1) -> 47.54734726 | M111: 45.9148092 | N111: 44.28227114 | O111: 42.64973308 | P111: 41.01719502 | Q111: 39.38465696 | R111: 37.7521189 | S111: 36.49371025 | T111: 35.2353016 | U111: 33.97689295 | V111: 32.7184843 | W111: 31.46007566 | X111: 30.20166701 | Y111: 28.94325836 | Z111: 27.68484971 | AA111: 26.42644106 | AB111: 25.16803241 | AC111: 25.16803241 | AD111: 25.16803241 | AE111: 25.16803241 | AF111: 25.16803241 | AG111: 25.16803241 | AH111: 25.16803241 | AI111: 25.16803241 | AJ111: 25.16803241 | AK111: 25.16803241 | AL111: 25.16803241 | AM111: 25.16803241 | AN111: 25.16803241 | AO111: 25.16803241 | AP111: 25.16803241 | AQ111: 25.16803241 | AR111: 25.16803241 | AS111: 25.16803241 | AT111: 25.16803241 | AU111: 25.16803241 | AV111: 25.16803241
K112: Utility PV - 28% - High | L112: =(L122+L166)*($S$40-1) -> 47.54734726 | M112: 47.54734726 | N112: 47.54734726 | O112: 47.54734726 | P112: 47.54734726 | Q112: 47.54734726 | R112: 47.54734726 | S112: 47.54734726 | T112: 47.54734726 | U112: 47.54734726 | V112: 47.54734726 | W112: 47.54734726 | X112: 47.54734726 | Y112: 47.54734726 | Z112: 47.54734726 | AA112: 47.54734726 | AB112: 47.54734726 | AC112: 47.54734726 | AD112: 47.54734726 | AE112: 47.54734726 | AF112: 47.54734726 | AG112: 47.54734726 | AH112: 47.54734726 | AI112: 47.54734726 | AJ112: 47.54734726 | AK112: 47.54734726 | AL112: 47.54734726 | AM112: 47.54734726 | AN112: 47.54734726 | AO112: 47.54734726 | AP112: 47.54734726 | AQ112: 47.54734726 | AR112: 47.54734726 | AS112: 47.54734726 | AT112: 47.54734726 | AU112: 47.54734726 | AV112: 47.54734726
J114: Overnight Capital Cost ($/kW) | K114: Utility PV - 14% - Low | L114: 2020 | M114: 1861.539649 | N114: 1703.079298 | O114: 1544.618947 | P114: 1386.158596 | Q114: 1227.698245 | R114: 1069.237894 | S114: 1069.237894 | T114: 1069.237894 | U114: 1069.237894 | V114: 1069.237894 | W114: 1069.237894 | X114: 1069.237894 | Y114: 1069.237894 | Z114: 1069.237894 | AA114: 1069.237894 | AB114: 1069.237894 | AC114: 1069.237894 | AD114: 1069.237894 | AE114: 1069.237894 | AF114: 1069.237894 | AG114: 1069.237894 | AH114: 1069.237894 | AI114: 1069.237894 | AJ114: 1069.237894 | AK114: 1069.237894 | AL114: 1069.237894 | AM114: 1069.237894 | AN114: 1069.237894 | AO114: 1069.237894 | AP114: 1069.237894 | AQ114: 1069.237894 | AR114: 1069.237894 | AS114: 1069.237894 | AT114: 1069.237894 | AU114: 1069.237894 | AV114: 1069.237894
K115: Utility PV - 14% - Mid | L115: 2020 | M115: 1950.643305 | N115: 1881.286609 | O115: 1811.929914 | P115: 1742.573218 | Q115: 1673.216523 | R115: 1603.859827 | S115: 1550.397634 | T115: 1496.935441 | U115: 1443.473247 | V115: 1390.011054 | W115: 1336.548861 | X115: 1283.086668 | Y115: 1229.624474 | Z115: 1176.162281 | AA115: 1122.700088 | AB115: 1069.237894 | AC115: 1069.237894 | AD115: 1069.237894 | AE115: 1069.237894 | AF115: 1069.237894 | AG115: 1069.237894 | AH115: 1069.237894 | AI115: 1069.237894 | AJ115: 1069.237894 | AK115: 1069.237894 | AL115: 1069.237894 | AM115: 1069.237894 | AN115: 1069.237894 | AO115: 1069.237894 | AP115: 1069.237894 | AQ115: 1069.237894 | AR115: 1069.237894 | AS115: 1069.237894 | AT115: 1069.237894 | AU115: 1069.237894 | AV115: 1069.237894
K116: Utility PV - 14% - High | L116: 2020 | M116: 2020 | N116: 2020 | O116: 2020 | P116: 2020 | Q116: 2020 | R116: 2020 | S116: 2020 | T116: 2020 | U116: 2020 | V116: 2020 | W116: 2020 | X116: 2020 | Y116: 2020 | Z116: 2020 | AA116: 2020 | AB116: 2020 | AC116: 2020 | AD116: 2020 | AE116: 2020 | AF116: 2020 | AG116: 2020 | AH116: 2020 | AI116: 2020 | AJ116: 2020 | AK116: 2020 | AL116: 2020 | AM116: 2020 | AN116: 2020 | AO116: 2020 | AP116: 2020 | AQ116: 2020 | AR116: 2020 | AS116: 2020 | AT116: 2020 | AU116: 2020 | AV116: 2020
K117: Utility PV - 20% - Low | L117: 2020 | M117: 1861.539649 | N117: 1703.079298 | O117: 1544.618947 | P117: 1386.158596 | Q117: 1227.698245 | R117: 1069.237894 | S117: 1069.237894 | T117: 1069.237894 | U117: 1069.237894 | V117: 1069.237894 | W117: 1069.237894 | X117: 1069.237894 | Y117: 1069.237894 | Z117: 1069.237894 | AA117: 1069.237894 | AB117: 1069.237894 | AC117: 1069.237894 | AD117: 1069.237894 | AE117: 1069.237894 | AF117: 1069.237894 | AG117: 1069.237894 | AH117: 1069.237894 | AI117: 1069.237894 | AJ117: 1069.237894 | AK117: 1069.237894 | AL117: 1069.237894 | AM117: 1069.237894 | AN117: 1069.237894 | AO117: 1069.237894 | AP117: 1069.237894 | AQ117: 1069.237894 | AR117: 1069.237894 | AS117: 1069.237894 | AT117: 1069.237894 | AU117: 1069.237894 | AV117: 1069.237894
K118: Utility PV - 20% - Mid | L118: 2020 | M118: 1950.643305 | N118: 1881.286609 | O118: 1811.929914 | P118: 1742.573218 | Q118: 1673.216523 | R118: 1603.859827 | S118: 1550.397634 | T118: 1496.935441 | U118: 1443.473247 | V118: 1390.011054 | W118: 1336.548861 | X118: 1283.086668 | Y118: 1229.624474 | Z118: 1176.162281 | AA118: 1122.700088 | AB118: 1069.237894 | AC118: 1069.237894 | AD118: 1069.237894 | AE118: 1069.237894 | AF118: 1069.237894 | AG118: 1069.237894 | AH118: 1069.237894 | AI118: 1069.237894 | AJ118: 1069.237894 | AK118: 1069.237894 | AL118: 1069.237894 | AM118: 1069.237894 | AN118: 1069.237894 | AO118: 1069.237894 | AP118: 1069.237894 | AQ118: 1069.237894 | AR118: 1069.237894 | AS118: 1069.237894 | AT118: 1069.237894 | AU118: 1069.237894 | AV118: 1069.237894
K119: Utility PV - 20% - High | L119: 2020 | M119: 2020 | N119: 2020 | O119: 2020 | P119: 2020 | Q119: 2020 | R119: 2020 | S119: 2020 | T119: 2020 | U119: 2020 | V119: 2020 | W119: 2020 | X119: 2020 | Y119: 2020 | Z119: 2020 | AA119: 2020 | AB119: 2020 | AC119: 2020 | AD119: 2020 | AE119: 2020 | AF119: 2020 | AG119: 2020 | AH119: 2020 | AI119: 2020 | AJ119: 2020 | AK119: 2020 | AL119: 2020 | AM119: 2020 | AN119: 2020 | AO119: 2020 | AP119: 2020 | AQ119: 2020 | AR119: 2020 | AS119: 2020 | AT119: 2020 | AU119: 2020 | AV119: 2020
K120: Utility PV - 28% - Low | L120: 2020 | M120: 1861.539649 | N120: 1703.079298 | O120: 1544.618947 | P120: 1386.158596 | Q120: 1227.698245 | R120: 1069.237894 | S120: 1069.237894 | T120: 1069.237894 | U120: 1069.237894 | V120: 1069.237894 | W120: 1069.237894 | X120: 1069.237894 | Y120: 1069.237894 | Z120: 1069.237894 | AA120: 1069.237894 | AB120: 1069.237894 | AC120: 1069.237894 | AD120: 1069.237894 | AE120: 1069.237894 | AF120: 1069.237894 | AG120: 1069.237894 | AH120: 1069.237894 | AI120: 1069.237894 | AJ120: 1069.237894 | AK120: 1069.237894 | AL120: 1069.237894 | AM120: 1069.237894 | AN120: 1069.237894 | AO120: 1069.237894 | AP120: 1069.237894 | AQ120: 1069.237894 | AR120: 1069.237894 | AS120: 1069.237894 | AT120: 1069.237894 | AU120: 1069.237894 | AV120: 1069.237894
K121: Utility PV - 28% - Mid | L121: 2020 | M121: 1950.643305 | N121: 1881.286609 | O121: 1811.929914 | P121: 1742.573218 | Q121: 1673.216523 | R121: 1603.859827 | S121: 1550.397634 | T121: 1496.935441 | U121: 1443.473247 | V121: 1390.011054 | W121: 1336.548861 | X121: 1283.086668 | Y121: 1229.624474 | Z121: 1176.162281 | AA121: 1122.700088 | AB121: 1069.237894 | AC121: 1069.237894 | AD121: 1069.237894 | AE121: 1069.237894 | AF121: 1069.237894 | AG121: 1069.237894 | AH121: 1069.237894 | AI121: 1069.237894 | AJ121: 1069.237894 | AK121: 1069.237894 | AL121: 1069.237894 | AM121: 1069.237894 | AN121: 1069.237894 | AO121: 1069.237894 | AP121: 1069.237894 | AQ121: 1069.237894 | AR121: 1069.237894 | AS121: 1069.237894 | AT121: 1069.237894 | AU121: 1069.237894 | AV121: 1069.237894
K122: Utility PV - 28% - High | L122: 2020 | M122: 2020 | N122: 2020 | O122: 2020 | P122: 2020 | Q122: 2020 | R122: 2020 | S122: 2020 | T122: 2020 | U122: 2020 | V122: 2020 | W122: 2020 | X122: 2020 | Y122: 2020 | Z122: 2020 | AA122: 2020 | AB122: 2020 | AC122: 2020 | AD122: 2020 | AE122: 2020 | AF122: 2020 | AG122: 2020 | AH122: 2020 | AI122: 2020 | AJ122: 2020 | AK122: 2020 | AL122: 2020 | AM122: 2020 | AN122: 2020 | AO122: 2020 | AP122: 2020 | AQ122: 2020 | AR122: 2020 | AS122: 2020 | AT122: 2020 | AU122: 2020 | AV122: 2020
J124: Fixed Operation and Maintenance Expenses ($/kW) | K124: Utility PV - 14% - Low | L124: 17 | M124: 16 | N124: 15 | O124: 13 | P124: 11 | Q124: 9 | R124: 8 | S124: 8 | T124: 8 | U124: 8 | V124: 8 | W124: 8 | X124: 8 | Y124: 8 | Z124: 8 | AA124: 8 | AB124: 8 | AC124: 8 | AD124: 8 | AE124: 8 | AF124: 8 | AG124: 8 | AH124: 8 | AI124: 8 | AJ124: 8 | AK124: 8 | AL124: 8 | AM124: 8 | AN124: 8 | AO124: 8 | AP124: 8 | AQ124: 8 | AR124: 8 | AS124: 8 | AT124: 8 | AU124: 8 | AV124: 8
K125: Utility PV - 14% - Mid | L125: 17 | M125: 16 | N125: 15 | O125: 13 | P125: 11 | Q125: 9 | R125: 8 | S125: 8 | T125: 8 | U125: 8 | V125: 8 | W125: 8 | X125: 8 | Y125: 8 | Z125: 8 | AA125: 8 | AB125: 8 | AC125: 8 | AD125: 8 | AE125: 8 | AF125: 8 | AG125: 8 | AH125: 8 | AI125: 8 | AJ125: 8 | AK125: 8 | AL125: 8 | AM125: 8 | AN125: 8 | AO125: 8 | AP125: 8 | AQ125: 8 | AR125: 8 | AS125: 8 | AT125: 8 | AU125: 8 | AV125: 8
K126: Utility PV - 14% - High | L126: 17 | M126: 16 | N126: 15 | O126: 13 | P126: 11 | Q126: 9 | R126: 8 | S126: 8 | T126: 8 | U126: 8 | V126: 8 | W126: 8 | X126: 8 | Y126: 8 | Z126: 8 | AA126: 8 | AB126: 8 | AC126: 8 | AD126: 8 | AE126: 8 | AF126: 8 | AG126: 8 | AH126: 8 | AI126: 8 | AJ126: 8 | AK126: 8 | AL126: 8 | AM126: 8 | AN126: 8 | AO126: 8 | AP126: 8 | AQ126: 8 | AR126: 8 | AS126: 8 | AT126: 8 | AU126: 8 | AV126: 8
K127: Utility PV - 20% - Low | L127: 17 | M127: 16 | N127: 15 | O127: 13 | P127: 11 | Q127: 9 | R127: 8 | S127: 8 | T127: 8 | U127: 8 | V127: 8 | W127: 8 | X127: 8 | Y127: 8 | Z127: 8 | AA127: 8 | AB127: 8 | AC127: 8 | AD127: 8 | AE127: 8 | AF127: 8 | AG127: 8 | AH127: 8 | AI127: 8 | AJ127: 8 | AK127: 8 | AL127: 8 | AM127: 8 | AN127: 8 | AO127: 8 | AP127: 8 | AQ127: 8 | AR127: 8 | AS127: 8 | AT127: 8 | AU127: 8 | AV127: 8
K128: Utility PV - 20% - Mid | L128: 17 | M128: 16 | N128: 15 | O128: 13 | P128: 11 | Q128: 9 | R128: 8 | S128: 8 | T128: 8 | U128: 8 | V128: 8 | W128: 8 | X128: 8 | Y128: 8 | Z128: 8 | AA128: 8 | AB128: 8 | AC128: 8 | AD128: 8 | AE128: 8 | AF128: 8 | AG128: 8 | AH128: 8 | AI128: 8 | AJ128: 8 | AK128: 8 | AL128: 8 | AM128: 8 | AN128: 8 | AO128: 8 | AP128: 8 | AQ128: 8 | AR128: 8 | AS128: 8 | AT128: 8 | AU128: 8 | AV128: 8
K129: Utility PV - 20% - High | L129: 17 | M129: 16 | N129: 15 | O129: 13 | P129: 11 | Q129: 9 | R129: 8 | S129: 8 | T129: 8 | U129: 8 | V129: 8 | W129: 8 | X129: 8 | Y129: 8 | Z129: 8 | AA129: 8 | AB129: 8 | AC129: 8 | AD129: 8 | AE129: 8 | AF129: 8 | AG129: 8 | AH129: 8 | AI129: 8 | AJ129: 8 | AK129: 8 | AL129: 8 | AM129: 8 | AN129: 8 | AO129: 8 | AP129: 8 | AQ129: 8 | AR129: 8 | AS129: 8 | AT129: 8 | AU129: 8 | AV129: 8
K130: Utility PV - 28% - Low | L130: 17 | M130: 16 | N130: 15 | O130: 13 | P130: 11 | Q130: 9 | R130: 8 | S130: 8 | T130: 8 | U130: 8 | V130: 8 | W130: 8 | X130: 8 | Y130: 8 | Z130: 8 | AA130: 8 | AB130: 8 | AC130: 8 | AD130: 8 | AE130: 8 | AF130: 8 | AG130: 8 | AH130: 8 | AI130: 8 | AJ130: 8 | AK130: 8 | AL130: 8 | AM130: 8 | AN130: 8 | AO130: 8 | AP130: 8 | AQ130: 8 | AR130: 8 | AS130: 8 | AT130: 8 | AU130: 8 | AV130: 8
K131: Utility PV - 28% - Mid | L131: 17 | M131: 16 | N131: 15 | O131: 13 | P131: 11 | Q131: 9 | R131: 8 | S131: 8 | T131: 8 | U131: 8 | V131: 8 | W131: 8 | X131: 8 | Y131: 8 | Z131: 8 | AA131: 8 | AB131: 8 | AC131: 8 | AD131: 8 | AE131: 8 | AF131: 8 | AG131: 8 | AH131: 8 | AI131: 8 | AJ131: 8 | AK131: 8 | AL131: 8 | AM131: 8 | AN131: 8 | AO131: 8 | AP131: 8 | AQ131: 8 | AR131: 8 | AS131: 8 | AT131: 8 | AU131: 8 | AV131: 8
K132: Utility PV - 28% - High | L132: 17 | M132: 16 | N132: 15 | O132: 13 | P132: 11 | Q132: 9 | R132: 8 | S132: 8 | T132: 8 | U132: 8 | V132: 8 | W132: 8 | X132: 8 | Y132: 8 | Z132: 8 | AA132: 8 | AB132: 8 | AC132: 8 | AD132: 8 | AE132: 8 | AF132: 8 | AG132: 8 | AH132: 8 | AI132: 8 | AJ132: 8 | AK132: 8 | AL132: 8 | AM132: 8 | AN132: 8 | AO132: 8 | AP132: 8 | AQ132: 8 | AR132: 8 | AS132: 8 | AT132: 8 | AU132: 8 | AV132: 8
J134: Variable Operation and Maintenance Expenses ($/MWh) | K134: Utility PV - 14% - Low | L134: 0 | M134: 0 | N134: 0 | O134: 0 | P134: 0 | Q134: 0 | R134: 0 | S134: 0 | T134: 0 | U134: 0 | V134: 0 | W134: 0 | X134: 0 | Y134: 0 | Z134: 0 | AA134: 0 | AB134: 0 | AC134: 0 | AD134: 0 | AE134: 0 | AF134: 0 | AG134: 0 | AH134: 0 | AI134: 0 | AJ134: 0 | AK134: 0 | AL134: 0 | AM134: 0 | AN134: 0 | AO134: 0 | AP134: 0 | AQ134: 0 | AR134: 0 | AS134: 0 | AT134: 0 | AU134: 0 | AV134: 0
K135: Utility PV - 14% - Mid | L135: 0 | M135: 0 | N135: 0 | O135: 0 | P135: 0 | Q135: 0 | R135: 0 | S135: 0 | T135: 0 | U135: 0 | V135: 0 | W135: 0 | X135: 0 | Y135: 0 | Z135: 0 | AA135: 0 | AB135: 0 | AC135: 0 | AD135: 0 | AE135: 0 | AF135: 0 | AG135: 0 | AH135: 0 | AI135: 0 | AJ135: 0 | AK135: 0 | AL135: 0 | AM135: 0 | AN135: 0 | AO135: 0 | AP135: 0 | AQ135: 0 | AR135: 0 | AS135: 0 | AT135: 0 | AU135: 0 | AV135: 0
K136: Utility PV - 14% - High | L136: 0 | M136: 0 | N136: 0 | O136: 0 | P136: 0 | Q136: 0 | R136: 0 | S136: 0 | T136: 0 | U136: 0 | V136: 0 | W136: 0 | X136: 0 | Y136: 0 | Z136: 0 | AA136: 0 | AB136: 0 | AC136: 0 | AD136: 0 | AE136: 0 | AF136: 0 | AG136: 0 | AH136: 0 | AI136: 0 | AJ136: 0 | AK136: 0 | AL136: 0 | AM136: 0 | AN136: 0 | AO136: 0 | AP136: 0 | AQ136: 0 | AR136: 0 | AS136: 0 | AT136: 0 | AU136: 0 | AV136: 0
K137: Utility PV - 20% - Low | L137: 0 | M137: 0 | N137: 0 | O137: 0 | P137: 0 | Q137: 0 | R137: 0 | S137: 0 | T137: 0 | U137: 0 | V137: 0 | W137: 0 | X137: 0 | Y137: 0 | Z137: 0 | AA137: 0 | AB137: 0 | AC137: 0 | AD137: 0 | AE137: 0 | AF137: 0 | AG137: 0 | AH137: 0 | AI137: 0 | AJ137: 0 | AK137: 0 | AL137: 0 | AM137: 0 | AN137: 0 | AO137: 0 | AP137: 0 | AQ137: 0 | AR137: 0 | AS137: 0 | AT137: 0 | AU137: 0 | AV137: 0
K138: Utility PV - 20% - Mid | L138: 0 | M138: 0 | N138: 0 | O138: 0 | P138: 0 | Q138: 0 | R138: 0 | S138: 0 | T138: 0 | U138: 0 | V138: 0 | W138: 0 | X138: 0 | Y138: 0 | Z138: 0 | AA138: 0 | AB138: 0 | AC138: 0 | AD138: 0 | AE138: 0 | AF138: 0 | AG138: 0 | AH138: 0 | AI138: 0 | AJ138: 0 | AK138: 0 | AL138: 0 | AM138: 0 | AN138: 0 | AO138: 0 | AP138: 0 | AQ138: 0 | AR138: 0 | AS138: 0 | AT138: 0 | AU138: 0 | AV138: 0
K139: Utility PV - 20% - High | L139: 0 | M139: 0 | N139: 0 | O139: 0 | P139: 0 | Q139: 0 | R139: 0 | S139: 0 | T139: 0 | U139: 0 | V139: 0 | W139: 0 | X139: 0 | Y139: 0 | Z139: 0 | AA139: 0 | AB139: 0 | AC139: 0 | AD139: 0 | AE139: 0 | AF139: 0 | AG139: 0 | AH139: 0 | AI139: 0 | AJ139: 0 | AK139: 0 | AL139: 0 | AM139: 0 | AN139: 0 | AO139: 0 | AP139: 0 | AQ139: 0 | AR139: 0 | AS139: 0 | AT139: 0 | AU139: 0 | AV139: 0
K140: Utility PV - 28% - Low | L140: 0 | M140: 0 | N140: 0 | O140: 0 | P140: 0 | Q140: 0 | R140: 0 | S140: 0 | T140: 0 | U140: 0 | V140: 0 | W140: 0 | X140: 0 | Y140: 0 | Z140: 0 | AA140: 0 | AB140: 0 | AC140: 0 | AD140: 0 | AE140: 0 | AF140: 0 | AG140: 0 | AH140: 0 | AI140: 0 | AJ140: 0 | AK140: 0 | AL140: 0 | AM140: 0 | AN140: 0 | AO140: 0 | AP140: 0 | AQ140: 0 | AR140: 0 | AS140: 0 | AT140: 0 | AU140: 0 | AV140: 0
K141: Utility PV - 28% - Mid | L141: 0 | M141: 0 | N141: 0 | O141: 0 | P141: 0 | Q141: 0 | R141: 0 | S141: 0 | T141: 0 | U141: 0 | V141: 0 | W141: 0 | X141: 0 | Y141: 0 | Z141: 0 | AA141: 0 | AB141: 0 | AC141: 0 | AD141: 0 | AE141: 0 | AF141: 0 | AG141: 0 | AH141: 0 | AI141: 0 | AJ141: 0 | AK141: 0 | AL141: 0 | AM141: 0 | AN141: 0 | AO141: 0 | AP141: 0 | AQ141: 0 | AR141: 0 | AS141: 0 | AT141: 0 | AU141: 0 | AV141: 0
K142: Utility PV - 28% - High | L142: 0 | M142: 0 | N142: 0 | O142: 0 | P142: 0 | Q142: 0 | R142: 0 | S142: 0 | T142: 0 | U142: 0 | V142: 0 | W142: 0 | X142: 0 | Y142: 0 | Z142: 0 | AA142: 0 | AB142: 0 | AC142: 0 | AD142: 0 | AE142: 0 | AF142: 0 | AG142: 0 | AH142: 0 | AI142: 0 | AJ142: 0 | AK142: 0 | AL142: 0 | AM142: 0 | AN142: 0 | AO142: 0 | AP142: 0 | AQ142: 0 | AR142: 0 | AS142: 0 | AT142: 0 | AU142: 0 | AV142: 0
L145: =L73 -> 2014 | M145: 2015 | N145: 2016 | O145: 2017 | P145: 2018 | Q145: 2019 | R145: 2020 | S145: 2021 | T145: 2022 | U145: 2023 | V145: 2024 | W145: 2025 | X145: 2026 | Y145: 2027 | Z145: 2028 | AA145: 2029 | AB145: 2030 | AC145: 2031 | AD145: 2032 | AE145: 2033 | AF145: 2034 | AG145: 2035 | AH145: 2036 | AI145: 2037 | AJ145: 2038 | AK145: 2039 | AL145: 2040 | AM145: 2041 | AN145: 2042 | AO145: 2043 | AP145: 2044 | AQ145: 2045 | AR145: 2046 | AS145: 2047 | AT145: 2048 | AU145: 2049 | AV145: 2050
H146: Finance | J146: Weighted Average Cost of Capital (WACC) (Nominal) (%) | K146: Utility PV - 14% - Low | L146: =$S$37 -> 0.089 | M146: =$S$37 -> 0.089 | N146: 0.089 | O146: 0.089 | P146: 0.089 | Q146: 0.089 | R146: 0.089 | S146: 0.089 | T146: 0.089 | U146: 0.089 | V146: 0.089 | W146: =$S$37 -> 0.089 | X146: 0.089 | Y146: 0.089 | Z146: 0.089 | AA146: 0.089 | AB146: 0.089 | AC146: 0.089 | AD146: 0.089 | AE146: 0.089 | AF146: 0.089 | AG146: =$S$37 -> 0.089 | AH146: 0.089 | AI146: 0.089 | AJ146: 0.089 | AK146: 0.089 | AL146: 0.089 | AM146: 0.089 | AN146: 0.089 | AO146: 0.089 | AP146: 0.089 | AQ146: =$S$37 -> 0.089 | AR146: 0.089 | AS146: 0.089 | AT146: 0.089 | AU146: 0.089 | AV146: 0.089
K147: Utility PV - 14% - Mid | L147: 0.089 | M147: 0.089 | N147: 0.089 | O147: 0.089 | P147: 0.089 | Q147: 0.089 | R147: 0.089 | S147: 0.089 | T147: 0.089 | U147: 0.089 | V147: 0.089 | W147: 0.089 | X147: 0.089 | Y147: 0.089 | Z147: 0.089 | AA147: 0.089 | AB147: 0.089 | AC147: 0.089 | AD147: 0.089 | AE147: 0.089 | AF147: 0.089 | AG147: 0.089 | AH147: 0.089 | AI147: 0.089 | AJ147: 0.089 | AK147: 0.089 | AL147: 0.089 | AM147: 0.089 | AN147: 0.089 | AO147: 0.089 | AP147: 0.089 | AQ147: 0.089 | AR147: 0.089 | AS147: 0.089 | AT147: 0.089 | AU147: 0.089 | AV147: 0.089
K148: Utility PV - 14% - High | L148: 0.089 | M148: 0.089 | N148: 0.089 | O148: 0.089 | P148: 0.089 | Q148: 0.089 | R148: 0.089 | S148: 0.089 | T148: 0.089 | U148: 0.089 | V148: 0.089 | W148: 0.089 | X148: 0.089 | Y148: 0.089 | Z148: 0.089 | AA148: 0.089 | AB148: 0.089 | AC148: 0.089 | AD148: 0.089 | AE148: 0.089 | AF148: 0.089 | AG148: 0.089 | AH148: 0.089 | AI148: 0.089 | AJ148: 0.089 | AK148: 0.089 | AL148: 0.089 | AM148: 0.089 | AN148: 0.089 | AO148: 0.089 | AP148: 0.089 | AQ148: 0.089 | AR148: 0.089 | AS148: 0.089 | AT148: 0.089 | AU148: 0.089 | AV148: 0.089
K149: Utility PV - 20% - Low | L149: 0.089 | M149: 0.089 | N149: 0.089 | O149: 0.089 | P149: 0.089 | Q149: 0.089 | R149: 0.089 | S149: 0.089 | T149: 0.089 | U149: 0.089 | V149: 0.089 | W149: 0.089 | X149: 0.089 | Y149: 0.089 | Z149: 0.089 | AA149: 0.089 | AB149: 0.089 | AC149: 0.089 | AD149: 0.089 | AE149: 0.089 | AF149: 0.089 | AG149: 0.089 | AH149: 0.089 | AI149: 0.089 | AJ149: 0.089 | AK149: 0.089 | AL149: 0.089 | AM149: 0.089 | AN149: 0.089 | AO149: 0.089 | AP149: 0.089 | AQ149: 0.089 | AR149: 0.089 | AS149: 0.089 | AT149: 0.089 | AU149: 0.089 | AV149: 0.089
K150: Utility PV - 20% - Mid | L150: 0.089 | M150: 0.089 | N150: 0.089 | O150: 0.089 | P150: 0.089 | Q150: 0.089 | R150: 0.089 | S150: 0.089 | T150: 0.089 | U150: 0.089 | V150: 0.089 | W150: 0.089 | X150: 0.089 | Y150: 0.089 | Z150: 0.089 | AA150: 0.089 | AB150: 0.089 | AC150: 0.089 | AD150: 0.089 | AE150: 0.089 | AF150: 0.089 | AG150: 0.089 | AH150: 0.089 | AI150: 0.089 | AJ150: 0.089 | AK150: 0.089 | AL150: 0.089 | AM150: 0.089 | AN150: 0.089 | AO150: 0.089 | AP150: 0.089 | AQ150: 0.089 | AR150: 0.089 | AS150: 0.089 | AT150: 0.089 | AU150: 0.089 | AV150: 0.089
K151: Utility PV - 20% - High | L151: 0.089 | M151: 0.089 | N151: 0.089 | O151: 0.089 | P151: 0.089 | Q151: 0.089 | R151: 0.089 | S151: 0.089 | T151: 0.089 | U151: 0.089 | V151: 0.089 | W151: 0.089 | X151: 0.089 | Y151: 0.089 | Z151: 0.089 | AA151: 0.089 | AB151: 0.089 | AC151: 0.089 | AD151: 0.089 | AE151: 0.089 | AF151: 0.089 | AG151: 0.089 | AH151: 0.089 | AI151: 0.089 | AJ151: 0.089 | AK151: 0.089 | AL151: 0.089 | AM151: 0.089 | AN151: 0.089 | AO151: 0.089 | AP151: 0.089 | AQ151: 0.089 | AR151: 0.089 | AS151: 0.089 | AT151: 0.089 | AU151: 0.089 | AV151: 0.089
K152: Utility PV - 28% - Low | L152: 0.089 | M152: 0.089 | N152: 0.089 | O152: 0.089 | P152: 0.089 | Q152: 0.089 | R152: 0.089 | S152: 0.089 | T152: 0.089 | U152: 0.089 | V152: 0.089 | W152: 0.089 | X152: 0.089 | Y152: 0.089 | Z152: 0.089 | AA152: 0.089 | AB152: 0.089 | AC152: 0.089 | AD152: 0.089 | AE152: 0.089 | AF152: 0.089 | AG152: 0.089 | AH152: 0.089 | AI152: 0.089 | AJ152: 0.089 | AK152: 0.089 | AL152: 0.089 | AM152: 0.089 | AN152: 0.089 | AO152: 0.089 | AP152: 0.089 | AQ152: 0.089 | AR152: 0.089 | AS152: 0.089 | AT152: 0.089 | AU152: 0.089 | AV152: 0.089
K153: Utility PV - 28% - Mid | L153: 0.089 | M153: 0.089 | N153: 0.089 | O153: 0.089 | P153: 0.089 | Q153: 0.089 | R153: 0.089 | S153: 0.089 | T153: 0.089 | U153: 0.089 | V153: 0.089 | W153: 0.089 | X153: 0.089 | Y153: 0.089 | Z153: 0.089 | AA153: 0.089 | AB153: 0.089 | AC153: 0.089 | AD153: 0.089 | AE153: 0.089 | AF153: 0.089 | AG153: 0.089 | AH153: 0.089 | AI153: 0.089 | AJ153: 0.089 | AK153: 0.089 | AL153: 0.089 | AM153: 0.089 | AN153: 0.089 | AO153: 0.089 | AP153: 0.089 | AQ153: 0.089 | AR153: 0.089 | AS153: 0.089 | AT153: 0.089 | AU153: 0.089 | AV153: 0.089
K154: Utility PV - 28% - High | L154: 0.089 | M154: 0.089 | N154: 0.089 | O154: 0.089 | P154: 0.089 | Q154: 0.089 | R154: 0.089 | S154: 0.089 | T154: 0.089 | U154: 0.089 | V154: 0.089 | W154: 0.089 | X154: 0.089 | Y154: 0.089 | Z154: 0.089 | AA154: 0.089 | AB154: 0.089 | AC154: 0.089 | AD154: 0.089 | AE154: 0.089 | AF154: 0.089 | AG154: 0.089 | AH154: 0.089 | AI154: 0.089 | AJ154: 0.089 | AK154: 0.089 | AL154: 0.089 | AM154: 0.089 | AN154: 0.089 | AO154: 0.089 | AP154: 0.089 | AQ154: 0.089 | AR154: 0.089 | AS154: 0.089 | AT154: 0.089 | AU154: 0.089 | AV154: 0.089
L157: =L145 -> 2014 | M157: 2015 | N157: 2016 | O157: 2017 | P157: 2018 | Q157: 2019 | R157: 2020 | S157: 2021 | T157: 2022 | U157: 2023 | V157: 2024 | W157: 2025 | X157: 2026 | Y157: 2027 | Z157: 2028 | AA157: 2029 | AB157: 2030 | AC157: 2031 | AD157: 2032 | AE157: 2033 | AF157: 2034 | AG157: 2035 | AH157: 2036 | AI157: 2037 | AJ157: 2038 | AK157: 2039 | AL157: 2040 | AM157: 2041 | AN157: 2042 | AO157: 2043 | AP157: 2044 | AQ157: 2045 | AR157: 2046 | AS157: 2047 | AT157: 2048 | AU157: 2049 | AV157: 2050
H158: Grid Connection Costs | J158: Grid Connection Costs (GCC) ($/kW) | K158: Utility PV - 14% - Low | L158: 0 | M158: 0 | N158: 0 | O158: 0 | P158: 0 | Q158: 0 | R158: 0 | S158: 0 | T158: 0 | U158: 0 | V158: 0 | W158: 0 | X158: 0 | Y158: 0 | Z158: 0 | AA158: 0 | AB158: 0 | AC158: 0 | AD158: 0 | AE158: 0 | AF158: 0 | AG158: 0 | AH158: 0 | AI158: 0 | AJ158: 0 | AK158: 0 | AL158: 0 | AM158: 0 | AN158: 0 | AO158: 0 | AP158: 0 | AQ158: 0 | AR158: 0 | AS158: 0 | AT158: 0 | AU158: 0 | AV158: 0
K159: Utility PV - 14% - Mid | L159: 0 | M159: 0 | N159: 0 | O159: 0 | P159: 0 | Q159: 0 | R159: 0 | S159: 0 | T159: 0 | U159: 0 | V159: 0 | W159: 0 | X159: 0 | Y159: 0 | Z159: 0 | AA159: 0 | AB159: 0 | AC159: 0 | AD159: 0 | AE159: 0 | AF159: 0 | AG159: 0 | AH159: 0 | AI159: 0 | AJ159: 0 | AK159: 0 | AL159: 0 | AM159: 0 | AN159: 0 | AO159: 0 | AP159: 0 | AQ159: 0 | AR159: 0 | AS159: 0 | AT159: 0 | AU159: 0 | AV159: 0
K160: Utility PV - 14% - High | L160: 0 | M160: 0 | N160: 0 | O160: 0 | P160: 0 | Q160: 0 | R160: 0 | S160: 0 | T160: 0 | U160: 0 | V160: 0 | W160: 0 | X160: 0 | Y160: 0 | Z160: 0 | AA160: 0 | AB160: 0 | AC160: 0 | AD160: 0 | AE160: 0 | AF160: 0 | AG160: 0 | AH160: 0 | AI160: 0 | AJ160: 0 | AK160: 0 | AL160: 0 | AM160: 0 | AN160: 0 | AO160: 0 | AP160: 0 | AQ160: 0 | AR160: 0 | AS160: 0 | AT160: 0 | AU160: 0 | AV160: 0
K161: Utility PV - 20% - Low | L161: 0 | M161: 0 | N161: 0 | O161: 0 | P161: 0 | Q161: 0 | R161: 0 | S161: 0 | T161: 0 | U161: 0 | V161: 0 | W161: 0 | X161: 0 | Y161: 0 | Z161: 0 | AA161: 0 | AB161: 0 | AC161: 0 | AD161: 0 | AE161: 0 | AF161: 0 | AG161: 0 | AH161: 0 | AI161: 0 | AJ161: 0 | AK161: 0 | AL161: 0 | AM161: 0 | AN161: 0 | AO161: 0 | AP161: 0 | AQ161: 0 | AR161: 0 | AS161: 0 | AT161: 0 | AU161: 0 | AV161: 0
K162: Utility PV - 20% - Mid | L162: 0 | M162: 0 | N162: 0 | O162: 0 | P162: 0 | Q162: 0 | R162: 0 | S162: 0 | T162: 0 | U162: 0 | V162: 0 | W162: 0 | X162: 0 | Y162: 0 | Z162: 0 | AA162: 0 | AB162: 0 | AC162: 0 | AD162: 0 | AE162: 0 | AF162: 0 | AG162: 0 | AH162: 0 | AI162: 0 | AJ162: 0 | AK162: 0 | AL162: 0 | AM162: 0 | AN162: 0 | AO162: 0 | AP162: 0 | AQ162: 0 | AR162: 0 | AS162: 0 | AT162: 0 | AU162: 0 | AV162: 0
K163: Utility PV - 20% - High | L163: 0 | M163: 0 | N163: 0 | O163: 0 | P163: 0 | Q163: 0 | R163: 0 | S163: 0 | T163: 0 | U163: 0 | V163: 0 | W163: 0 | X163: 0 | Y163: 0 | Z163: 0 | AA163: 0 | AB163: 0 | AC163: 0 | AD163: 0 | AE163: 0 | AF163: 0 | AG163: 0 | AH163: 0 | AI163: 0 | AJ163: 0 | AK163: 0 | AL163: 0 | AM163: 0 | AN163: 0 | AO163: 0 | AP163: 0 | AQ163: 0 | AR163: 0 | AS163: 0 | AT163: 0 | AU163: 0 | AV163: 0
K164: Utility PV - 28% - Low | L164: 0 | M164: 0 | N164: 0 | O164: 0 | P164: 0 | Q164: 0 | R164: 0 | S164: 0 | T164: 0 | U164: 0 | V164: 0 | W164: 0 | X164: 0 | Y164: 0 | Z164: 0 | AA164: 0 | AB164: 0 | AC164: 0 | AD164: 0 | AE164: 0 | AF164: 0 | AG164: 0 | AH164: 0 | AI164: 0 | AJ164: 0 | AK164: 0 | AL164: 0 | AM164: 0 | AN164: 0 | AO164: 0 | AP164: 0 | AQ164: 0 | AR164: 0 | AS164: 0 | AT164: 0 | AU164: 0 | AV164: 0
K165: Utility PV - 28% - Mid | L165: 0 | M165: 0 | N165: 0 | O165: 0 | P165: 0 | Q165: 0 | R165: 0 | S165: 0 | T165: 0 | U165: 0 | V165: 0 | W165: 0 | X165: 0 | Y165: 0 | Z165: 0 | AA165: 0 | AB165: 0 | AC165: 0 | AD165: 0 | AE165: 0 | AF165: 0 | AG165: 0 | AH165: 0 | AI165: 0 | AJ165: 0 | AK165: 0 | AL165: 0 | AM165: 0 | AN165: 0 | AO165: 0 | AP165: 0 | AQ165: 0 | AR165: 0 | AS165: 0 | AT165: 0 | AU165: 0 | AV165: 0
K166: Utility PV - 28% - High | L166: 0 | M166: 0 | N166: 0 | O166: 0 | P166: 0 | Q166: 0 | R166: 0 | S166: 0 | T166: 0 | U166: 0 | V166: 0 | W166: 0 | X166: 0 | Y166: 0 | Z166: 0 | AA166: 0 | AB166: 0 | AC166: 0 | AD166: 0 | AE166: 0 | AF166: 0 | AG166: 0 | AH166: 0 | AI166: 0 | AJ166: 0 | AK166: 0 | AL166: 0 | AM166: 0 | AN166: 0 | AO166: 0 | AP166: 0 | AQ166: 0 | AR166: 0 | AS166: 0 | AT166: 0 | AU166: 0 | AV166: 0
L169: =L157 -> 2014 | M169: 2015 | N169: 2016 | O169: 2017 | P169: 2018 | Q169: 2019 | R169: 2020 | S169: 2021 | T169: 2022 | U169: 2023 | V169: 2024 | W169: 2025 | X169: 2026 | Y169: 2027 | Z169: 2028 | AA169: 2029 | AB169: 2030 | AC169: 2031 | AD169: 2032 | AE169: 2033 | AF169: 2034 | AG169: 2035 | AH169: 2036 | AI169: 2037 | AJ169: 2038 | AK169: 2039 | AL169: 2040 | AM169: 2041 | AN169: 2042 | AO169: 2043 | AP169: 2044 | AQ169: 2045 | AR169: 2046 | AS169: 2047 | AT169: 2048 | AU169: 2049 | AV169: 2050
H170: LCOE | J170: Levelized Cost of Energy ($/MWh) | K170: Utility PV - 14% - Low | L170: =(($S$44 * $S$42 * $S$40 * (L114 * 1 + L158) +L124) * 1000 / (L74 * 8760)) + L134 + 0 -> 184.3720826 | M170: =(($S$44 * $S$42 * $S$40 * (M114 * 1 + M158) +M124) * 1000 / (M74 * 8760)) + M134 + 0 -> 170.1808793 | N170: 155.9896759 | O170: 140.9830778 | P170: 125.9764798 | Q170: 110.9698818 | R170: 96.77867841 | S170: 96.77867841 | T170: 96.77867841 | U170: 96.77867841 | V170: 96.77867841 | W170: 96.77867841 | X170: 96.77867841 | Y170: 96.77867841 | Z170: 96.77867841 | AA170: 96.77867841 | AB170: 96.77867841 | AC170: 96.77867841 | AD170: 96.77867841 | AE170: 96.77867841 | AF170: 96.77867841 | AG170: 96.77867841 | AH170: 96.77867841 | AI170: 96.77867841 | AJ170: 96.77867841 | AK170: 96.77867841 | AL170: 96.77867841 | AM170: 96.77867841 | AN170: 96.77867841 | AO170: 96.77867841 | AP170: 96.77867841 | AQ170: 96.77867841 | AR170: 96.77867841 | AS170: 96.77867841 | AT170: 96.77867841 | AU170: 96.77867841 | AV170: 96.77867841
K171: Utility PV - 14% - Mid | L171: =(($S$44 * $S$42 * $S$40 * (L115 * 1 + L159) +L125) * 1000 / (L75 * 8760)) + L135 + 0 -> 184.3720826 | M171: 177.7022147 | N171: 171.0323467 | O171: 163.5470842 | P171: 156.0618216 | Q171: 148.576559 | R171: 141.906691 | S171: 137.3938898 | T171: 132.8810885 | U171: 128.3682872 | V171: 123.855486 | W171: 119.3426847 | X171: 114.8298835 | Y171: 110.3170822 | Z171: 105.8042809 | AA171: 101.2914797 | AB171: 96.77867841 | AC171: 96.77867841 | AD171: 96.77867841 | AE171: 96.77867841 | AF171: 96.77867841 | AG171: 96.77867841 | AH171: 96.77867841 | AI171: 96.77867841 | AJ171: 96.77867841 | AK171: 96.77867841 | AL171: 96.77867841 | AM171: 96.77867841 | AN171: 96.77867841 | AO171: 96.77867841 | AP171: 96.77867841 | AQ171: 96.77867841 | AR171: 96.77867841 | AS171: 96.77867841 | AT171: 96.77867841 | AU171: 96.77867841 | AV171: 96.77867841
K172: Utility PV - 14% - High | L172: =(($S$44 * $S$42 * $S$40 * (L116 * 1 + L160) +L126) * 1000 / (L76 * 8760)) + L136 + 0 -> 184.3720826 | M172: 183.556688 | N172: 182.7412933 | O172: 181.110504 | P172: 179.4797147 | Q172: 177.8489254 | R172: 177.0335308 | S172: 177.0335308 | T172: 177.0335308 | U172: 177.0335308 | V172: 177.0335308 | W172: 177.0335308 | X172: 177.0335308 | Y172: 177.0335308 | Z172: 177.0335308 | AA172: 177.0335308 | AB172: 177.0335308 | AC172: 177.0335308 | AD172: 177.0335308 | AE172: 177.0335308 | AF172: 177.0335308 | AG172: 177.0335308 | AH172: 177.0335308 | AI172: 177.0335308 | AJ172: 177.0335308 | AK172: 177.0335308 | AL172: 177.0335308 | AM172: 177.0335308 | AN172: 177.0335308 | AO172: 177.0335308 | AP172: 177.0335308 | AQ172: 177.0335308 | AR172: 177.0335308 | AS172: 177.0335308 | AT172: 177.0335308 | AU172: 177.0335308 | AV172: 177.0335308
K173: Utility PV - 20% - Low | L173: =(($S$44 * $S$42 * $S$40 * (L117 * 1 + L161) +L127) * 1000 / (L77 * 8760)) + L137 + 0 -> 129.0604578 | M173: 119.1266155 | N173: 109.1927731 | O173: 98.68815449 | P173: 88.18353587 | Q173: 77.67891725 | R173: 67.74507488 | S173: 67.74507488 | T173: 67.74507488 | U173: 67.74507488 | V173: 67.74507488 | W173: 67.74507488 | X173: 67.74507488 | Y173: 67.74507488 | Z173: 67.74507488 | AA173: 67.74507488 | AB173: 67.74507488 | AC173: 67.74507488 | AD173: 67.74507488 | AE173: 67.74507488 | AF173: 67.74507488 | AG173: 67.74507488 | AH173: 67.74507488 | AI173: 67.74507488 | AJ173: 67.74507488 | AK173: 67.74507488 | AL173: 67.74507488 | AM173: 67.74507488 | AN173: 67.74507488 | AO173: 67.74507488 | AP173: 67.74507488 | AQ173: 67.74507488 | AR173: 67.74507488 | AS173: 67.74507488 | AT173: 67.74507488 | AU173: 67.74507488 | AV173: 67.74507488
K174: Utility PV - 20% - Mid | L174: =(($S$44 * $S$42 * $S$40 * (L118 * 1 + L162) +L128) * 1000 / (L78 * 8760)) + L138 + 0 -> 129.0604578 | M174: 124.3915503 | N174: 119.7226427 | O174: 114.4829589 | P174: 109.2432751 | Q174: 104.0035913 | R174: 99.33468371 | S174: 96.17572283 | T174: 93.01676195 | U174: 89.85780106 | V174: 86.69884018 | W174: 83.5398793 | X174: 80.38091842 | Y174: 77.22195753 | Z174: 74.06299665 | AA174: 70.90403577 | AB174: 67.74507488 | AC174: 67.74507488 | AD174: 67.74507488 | AE174: 67.74507488 | AF174: 67.74507488 | AG174: 67.74507488 | AH174: 67.74507488 | AI174: 67.74507488 | AJ174: 67.74507488 | AK174: 67.74507488 | AL174: 67.74507488 | AM174: 67.74507488 | AN174: 67.74507488 | AO174: 67.74507488 | AP174: 67.74507488 | AQ174: 67.74507488 | AR174: 67.74507488 | AS174: 67.74507488 | AT174: 67.74507488 | AU174: 67.74507488 | AV174: 67.74507488
K175: Utility PV - 20% - High | L175: =(($S$44 * $S$42 * $S$40 * (L119 * 1 + L163) +L129) * 1000 / (L79 * 8760)) + L139 + 0 -> 129.0604578 | M175: 128.4896816 | N175: 127.9189053 | O175: 126.7773528 | P175: 125.6358003 | Q175: 124.4942478 | R175: 123.9234715 | S175: 123.9234715 | T175: 123.9234715 | U175: 123.9234715 | V175: 123.9234715 | W175: 123.9234715 | X175: 123.9234715 | Y175: 123.9234715 | Z175: 123.9234715 | AA175: 123.9234715 | AB175: 123.9234715 | AC175: 123.9234715 | AD175: 123.9234715 | AE175: 123.9234715 | AF175: 123.9234715 | AG175: 123.9234715 | AH175: 123.9234715 | AI175: 123.9234715 | AJ175: 123.9234715 | AK175: 123.9234715 | AL175: 123.9234715 | AM175: 123.9234715 | AN175: 123.9234715 | AO175: 123.9234715 | AP175: 123.9234715 | AQ175: 123.9234715 | AR175: 123.9234715 | AS175: 123.9234715 | AT175: 123.9234715 | AU175: 123.9234715 | AV175: 123.9234715
K176: Utility PV - 28% - Low | L176: =(($S$44 * $S$42 * $S$40 * (L120 * 1 + L164) +L130) * 1000 / (L80 * 8760)) + L140 + 0 -> 92.18604132 | M176: 85.09043963 | N176: 77.99483794 | O176: 70.49153892 | P176: 62.98823991 | Q176: 55.48494089 | R176: 48.3893392 | S176: 48.3893392 | T176: 48.3893392 | U176: 48.3893392 | V176: 48.3893392 | W176: 48.3893392 | X176: 48.3893392 | Y176: 48.3893392 | Z176: 48.3893392 | AA176: 48.3893392 | AB176: 48.3893392 | AC176: 48.3893392 | AD176: 48.3893392 | AE176: 48.3893392 | AF176: 48.3893392 | AG176: 48.3893392 | AH176: 48.3893392 | AI176: 48.3893392 | AJ176: 48.3893392 | AK176: 48.3893392 | AL176: 48.3893392 | AM176: 48.3893392 | AN176: 48.3893392 | AO176: 48.3893392 | AP176: 48.3893392 | AQ176: 48.3893392 | AR176: 48.3893392 | AS176: 48.3893392 | AT176: 48.3893392 | AU176: 48.3893392 | AV176: 48.3893392
K177: Utility PV - 28% - Mid | L177: =(($S$44 * $S$42 * $S$40 * (L121 * 1 + L165) +L131) * 1000 / (L81 * 8760)) + L141 + 0 -> 92.18604132 | M177: 88.85110734 | N177: 85.51617337 | O177: 81.77354208 | P177: 78.03091078 | Q177: 74.28827948 | R177: 70.95334551 | S177: 68.69694488 | T177: 66.44054425 | U177: 64.18414362 | V177: 61.92774299 | W177: 59.67134236 | X177: 57.41494173 | Y177: 55.15854109 | Z177: 52.90214046 | AA177: 50.64573983 | AB177: 48.3893392 | AC177: 48.3893392 | AD177: 48.3893392 | AE177: 48.3893392 | AF177: 48.3893392 | AG177: 48.3893392 | AH177: 48.3893392 | AI177: 48.3893392 | AJ177: 48.3893392 | AK177: 48.3893392 | AL177: 48.3893392 | AM177: 48.3893392 | AN177: 48.3893392 | AO177: 48.3893392 | AP177: 48.3893392 | AQ177: 48.3893392 | AR177: 48.3893392 | AS177: 48.3893392 | AT177: 48.3893392 | AU177: 48.3893392 | AV177: 48.3893392
K178: Utility PV - 28% - High | L178: =(($S$44 * $S$42 * $S$40 * (L122 * 1 + L166) +L132) * 1000 / (L82 * 8760)) + L142 + 0 -> 92.18604132 | M178: 91.77834399 | N178: 91.37064666 | O178: 90.55525201 | P178: 89.73985736 | Q178: 88.92446271 | R178: 88.51676539 | S178: 88.51676539 | T178: 88.51676539 | U178: 88.51676539 | V178: 88.51676539 | W178: 88.51676539 | X178: 88.51676539 | Y178: 88.51676539 | Z178: 88.51676539 | AA178: 88.51676539 | AB178: 88.51676539 | AC178: 88.51676539 | AD178: 88.51676539 | AE178: 88.51676539 | AF178: 88.51676539 | AG178: 88.51676539 | AH178: 88.51676539 | AI178: 88.51676539 | AJ178: 88.51676539 | AK178: 88.51676539 | AL178: 88.51676539 | AM178: 88.51676539 | AN178: 88.51676539 | AO178: 88.51676539 | AP178: 88.51676539 | AQ178: 88.51676539 | AR178: 88.51676539 | AS178: 88.51676539 | AT178: 88.51676539 | AU178: 88.51676539 | AV178: 88.51676539
E183: X | G183: Graphics
C397: X | G397: Data Sources for Default Inputs
H399: Current Costs:
H400: Available Capacity (GW) | M400: U.S. Renewable Energy Technical Potentials - A GIS-Based Analysis 2012
H401: Net Capacity Factor (%) | M401: National Renewable Energy Laboratory. Regional Energy Deployment System (ReEDS). Representative of national range of capacity factors.
H402: Overnight Capital Cost ($/kW) | M402: US Department of Energy, 2012. SunShot Vision Study: February 2012. NREL Report No. BK5200-47927. Hybrid projection 62.5% by 2020 / 75% by 2030.
H403: Fixed Operating Expenses ($/kW) | M403: US Department of Energy, 2012. SunShot Vision Study: February 2012. NREL Report No. BK5200-47927. Hybrid projection 62.5% by 2020 / 75% by 2030.
H404: Variable Operating Expenses ($/MWh) | M404: US Department of Energy, 2012. SunShot Vision Study: February 2012. NREL Report No. BK5200-47927. Hybrid analysis 62.5% by 2020 / 75% by 2030 projection
H405: Grid Feature Cost ($/kW) | M405: N/A
H406: Spur Line Cost ($/kW) | M406: N/A
H408: Future Projections Costs:
H409: Net Capacity Factor (%) | M409: National Renewable Energy Laboratory. Regional Energy Deployment System (ReEDS). Representative of national range of capacity factors.
H410: Overnight Capital Cost ($/kW) | M410: US Department of Energy. SunShot Vision Study: February 2012. NREL Report No. BK5200-47927. Low case from the 75% projection, mid case from the 62.5% by 2020 / 75% by 2030 projection, high case from the 50% projection
H411: Fixed Operating Expenses ($/kW) | M411: US Department of Energy. SunShot Vision Study: February 2012. NREL Report No. BK5200-47927. Low case from the 75% projection, mid case from the 62.5% by 2020 / 75% by 2030 projection, high case from the 50% projection
H412: Variable Operating Expenses ($/MWh) | M412: US Department of Energy. SunShot Vision Study: February 2012. NREL Report No. BK5200-47927. Low case from the 75% projection, mid case from the 62.5% by 2020 / 75% by 2030 projection, high case from the 50% projection
H413: Grid Connection Cost ($/kW) | M413: N/A

Sheet Solar - CSP
A1: Solar CSP Inputs
T3: Inputs
J4: Take me to: | T4: Calculated
B10: X | G10: Current Costs
H12: Techno-Economic Cost and Performance Parameters | J12: Net Capacity Factor (%) | K12: CSP - no TES - Class 1 | O12: Basis Year: | Q12: 2013
K13: CSP - no TES - Class 3
K14: CSP - no TES - Class 5 | O14: Concentrating Solar Power
K15: CSP - 6 hrs TES - Class 1 | L15: 0.28 | O15: CSP technology is Trough before 2025, then Tower after 2025
K16: CSP - 6 hrs TES - Class 3 | L16: 0.37 | O16: Representative plant without storage is 100-MW AC, solar multiple of 1.4.
K17: CSP - 6 hrs TES - Class 5 | L17: 0.38 | O17: Representative plant with Thermal Electric Storage (TES) is 100-MW AC
K18: CSP - 12 hrs TES - Class 1 | L18: 0.45 | O18: 6 hrs TES uses solar multiple of 2.0 / 12 hrs TES uses solar multiple of 2.5
K19: CSP - 12 hrs TES - Class 3 | L19: 0.59 | O19: CSP Low projection = 75% SunShot Vision scenario | S19: Available | T19: Available
K20: CSP - 12 hrs TES - Class 5 | L20: 0.62 | O20: CSP Mid projection = 62.5% SunShot Vision scenario | S20: Capacity | T20: Generation
O21: CSP High projection = 50% SunShot Vision scenario | S21: (GW) | T21: (GWh)
J22: Annual Energy Production (kWh/kW) | K22: CSP - no TES - Class 1 | Q22: Radiation Levels | S22: 38066 | T22: 116146245
K23: CSP - no TES - Class 3 | O23: No TES at Solar Class 1 | Q23: 5.00 - 6.25 kW/m2/day
K24: CSP - no TES - Class 5 | O24: No TES at Solar Class 3 | Q24: 7.25 - 7.5 kW/m2/day
K25: CSP - 6 hrs TES - Class 1 | L25: =L15*8760 -> 2452.8 | O25: No TES at Solar Class 5 | Q25: 7.75 - 8.06 kW/m2/day
K26: CSP - 6 hrs TES - Class 3 | L26: 3241.2 | O26: 6 hrs TES at Solar Class 1 | Q26: 5.00 - 6.25 kW/m2/day
K27: CSP - 6 hrs TES - Class 5 | L27: 3328.8 | O27: 6 hrs TES at Solar Class 3 | Q27: 7.25 - 7.5 kW/m2/day
K28: CSP - 12 hrs TES - Class 1 | L28: 3942 | O28: 6 hrs TES at Solar Class 5 | Q28: 7.75 - 8.06 kW/m2/day
K29: CSP - 12 hrs TES - Class 3 | L29: 5168.4 | O29: 12 hrs TES at Solar Class 1 | Q29: 5.00 - 6.25 kW/m2/day
K30: CSP - 12 hrs TES - Class 5 | L30: 5431.2 | O30: 12 hrs TES at Solar Class 3 | Q30: 7.25 - 7.5 kW/m2/day
O31: 12 hrs TES at Solar Class 5 | Q31: 7.75 - 8.06 kW/m2/day
J32: CAPEX ($/kW) | K32: CSP - no TES - Class 1
K33: CSP - no TES - Class 3 | O33: Financial Assumptions:
K34: CSP - no TES - Class 5 | O34: Inflation Rate | S34: 0.025
K35: CSP - 6 hrs TES - Class 1 | L35: =$S$46 * (L55 + L97) -> 7040.640712 | O35: Economic Lifetime (Years) | S35: 20
K36: CSP - 6 hrs TES - Class 3 | L36: 7040.640712 | O36: Interest Rate - Nominal | S36: 0.08
K37: CSP - 6 hrs TES - Class 5 | L37: 7040.640712 | O37: Calculated Interest Rate - Real | S37: =(1+S36)/(1+S34)-1 -> 0.05365853659
K38: CSP - 12 hrs TES - Class 1 | L38: 8863.394752 | O38: Interest During Construction - Nominal | S38: 0.08
K39: CSP - 12 hrs TES - Class 3 | L39: 8863.394752 | O39: Rate of Return on Equity - Nominal | S39: 0.13
K40: CSP - 12 hrs TES - Class 5 | L40: 8863.394752 | O40: Calculated Rate of Return on Equity - Real | S40: =(1+S39)/(1+S34) - 1 -> 0.1024390244
O41: Debt Fraction | S41: 0.5
J42: Construction Financing Cost ($/kW) | K42: CSP - no TES - Class 1 | O42: Tax Rate (Federal and State) | S42: 0.4
K43: CSP - no TES - Class 3 | O43: WACC - Nominal | S43: =IF(S42>0,S41*S36*(1-S42)+(1-S41)*S39,S41*S36+(1-S41)*S39) -> 0.089
K44: CSP - no TES - Class 5 | O44: WACC - Real | S44: =((1+((1-S41)*((1+S40)*(1+S34)-1)) + (S41*((1+S37)*(1+S34)-1)*(1-S42))) / (1+S34)) - 1 -> 0.06243902439
K45: CSP - 6 hrs TES - Class 1 | L45: =(L55+L97)*($S$46-1) -> 263.6407123 | O45: Depreciation Period | S45: 5
K46: CSP - 6 hrs TES - Class 3 | L46: 263.6407123 | O46: Construction Finance Factor | S46: =SUMPRODUCT(R55:R57,S55:S57) -> 1.038902274
K47: CSP - 6 hrs TES - Class 5 | L47: 263.6407123 | O47: Present Value of Depreciation | S47: =SUMPRODUCT(O68:T68,O70:T70) -> 0.7938171517
K48: CSP - 12 hrs TES - Class 1 | L48: 331.8947524 | O48: Project Finance Factor | S48: =(1 - S42 * S47) / (1 - S42) -> 1.137455232
K49: CSP - 12 hrs TES - Class 3 | L49: 331.8947524 | O49: Capital Recovery Factor (CRF) - Nominal | S49: =S43 / (1 - (1 / (1 + S43)^S35)) -> 0.1087669328
K50: CSP - 12 hrs TES - Class 5 | L50: 331.8947524 | O50: Capital Recovery Factor (CRF) - Real | S50: =S44 / (1 - (1 / (1 + S44)^S35)) -> 0.08891871362
J52: Overnight Capital Cost ($/kW) | K52: CSP - no TES - Class 1 | Q52: Construction Duration yrs | S52: 3
K53: CSP - no TES - Class 3 | M53: Turbine CC | N53: Storage CC | O53: Field CC | Q53: Year | R53: Capital | S53: Accumulated
K54: CSP - no TES - Class 5 | M54: $/kW | N54: $/kWh | O54: $/kW | Q54: Index | R54: Fraction | S54: Interest
K55: CSP - 6 hrs TES - Class 1 | L55: =(100000*M55+(6*100000)*N55+(100000*2)*O55)/100000 -> 6777 | M55: 1793 | N55: 113 | O55: 2153 | Q55: 0 | R55: 0.8 | S55: =1+(1-S42)*((1+S38)^(Q55+0.5)-1) -> 1.023538291
K56: CSP - 6 hrs TES - Class 3 | L56: =(100000*M56+(6*100000)*N56+(100000*2)*O56)/100000 -> 6777 | M56: 1793 | N56: 113 | O56: 2153 | Q56: 1 | R56: 0.1 | S56: =1+(1-S42)*((1+S38)^(Q56+0.5)-1) -> 1.073421354
K57: CSP - 6 hrs TES - Class 5 | L57: =(100000*M57+(6*100000)*N57+(100000*2)*O57)/100000 -> 6777 | M57: 1793 | N57: 113 | O57: 2153 | Q57: 2 | R57: 0.1 | S57: =1+(1-S42)*((1+S38)^(Q57+0.5)-1) -> 1.127295062
K58: CSP - 12 hrs TES - Class 1 | L58: =(100000*M58+(12*100000)*N58+(100000*2.5)*O58)/100000 -> 8531.5 | M58: 1793 | N58: 113 | O58: 2153
K59: CSP - 12 hrs TES - Class 3 | L59: =(100000*M59+(12*100000)*N59+(100000*2.5)*O59)/100000 -> 8531.5 | M59: 1793 | N59: 113 | O59: 2153
K60: CSP - 12 hrs TES - Class 5 | L60: =(100000*M60+(12*100000)*N60+(100000*2.5)*O60)/100000 -> 8531.5 | M60: 1793 | N60: 113 | O60: 2153
N61: OCC=(turbine capacity*turbine cost+storage capacity*storage cost+field capacity*field cost)/turbine capacity
J62: Fixed Operation and Maintenance Expenses ($/kW) | K62: CSP - no TES - Class 1 | O62: storage capacity = turbine capacity*TES
K63: CSP - no TES - Class 3 | O63: field capacity = turbine capacity * solar multiple
K64: CSP - no TES - Class 5 | O64: solar multiple of 2.5 for 12 hrs TES, 2.0 for 6 hrs TES
K65: CSP - 6 hrs TES - Class 1 | L65: 75
K66: CSP - 6 hrs TES - Class 3 | L66: 75
K67: CSP - 6 hrs TES - Class 5 | L67: 75 | N67: MACRS yr | O67: 1 | P67: 2 | Q67: 3 | R67: 4 | S67: 5 | T67: 6
K68: CSP - 12 hrs TES - Class 1 | L68: 75 | N68: Depreciation | O68: 0.2 | P68: 0.32 | Q68: 0.192 | R68: 0.1152 | S68: 0.1152 | T68: 0.0576
K69: CSP - 12 hrs TES - Class 3 | L69: 75 | N69: Fraction
K70: CSP - 12 hrs TES - Class 5 | L70: 75 | N70: Depreciation | O70: =1/((1+S44)*(1+S34))^O67 -> 0.9182736455 | P70: =1/((1+S44)*(1+S34))^P67 -> 0.8432264881 | Q70: =1/((1+S44)*(1+S34))^Q67 -> 0.7743126613 | R70: =1/((1+S44)*(1+S34))^R67 -> 0.7110309102 | S70: =1/((1+S44)*(1+S34))^S67 -> 0.652920946 | T70: =1/((1+S44)*(1+S34))^T67 -> 0.5995600974
N71: Factor
J72: Variable Operation and Maintenance Expenses ($/MWh) | K72: CSP - no TES - Class 1
K73: CSP - no TES - Class 3 | O73: Investment Tax Credit (ITC)* | S73: 0
K74: CSP - no TES - Class 5 | O74: Production Tax Credit (PTC)* | S74: 0
K75: CSP - 6 hrs TES - Class 1 | L75: 3 | O75: * not currently included in LCOE calculation
K76: CSP - 6 hrs TES - Class 3 | L76: 3
K77: CSP - 6 hrs TES - Class 5 | L77: 3
K78: CSP - 12 hrs TES - Class 1 | L78: 3
K79: CSP - 12 hrs TES - Class 3 | L79: 3
K80: CSP - 12 hrs TES - Class 5 | L80: 3
H83: Finance | J83: Weighted Average Cost of Capital (WACC) (Nominal) (%) | K83: CSP - no TES - Class 1
K84: CSP - no TES - Class 3
K85: CSP - no TES - Class 5
K86: CSP - 6 hrs TES - Class 1 | L86: =$S$43 -> 0.089
K87: CSP - 6 hrs TES - Class 3 | L87: 0.089
K88: CSP - 6 hrs TES - Class 5 | L88: 0.089
K89: CSP - 12 hrs TES - Class 1 | L89: 0.089
K90: CSP - 12 hrs TES - Class 3 | L90: =$S$43 -> 0.089
K91: CSP - 12 hrs TES - Class 5 | L91: =$S$43 -> 0.089
H94: Grid Connection Costs | J94: Grid Connection Costs (GCC) ($/kW) | K94: CSP - no TES - Class 1
K95: CSP - no TES - Class 3
K96: CSP - no TES - Class 5
K97: CSP - 6 hrs TES - Class 1 | L97: =L107+L117 -> 0
K98: CSP - 6 hrs TES - Class 3 | L98: 0
K99: CSP - 6 hrs TES - Class 5 | L99: 0
K100: CSP - 12 hrs TES - Class 1 | L100: 0
K101: CSP - 12 hrs TES - Class 3 | L101: =L111+L121 -> 0
K102: CSP - 12 hrs TES - Class 5 | L102: =L112+L122 -> 0
J104: Grid Feature Costs ($/kW) | K104: CSP - no TES - Class 1
K105: CSP - no TES - Class 3
K106: CSP - no TES - Class 5
K107: CSP - 6 hrs TES - Class 1 | L107: 0
K108: CSP - 6 hrs TES - Class 3 | L108: 0
K109: CSP - 6 hrs TES - Class 5 | L109: 0
K110: CSP - 12 hrs TES - Class 1 | L110: 0
K111: CSP - 12 hrs TES - Class 3 | L111: 0
K112: CSP - 12 hrs TES - Class 5 | L112: 0
J114: Onshore Spur Line Costs ($/kW) | K114: CSP - no TES - Class 1
K115: CSP - no TES - Class 3
K116: CSP - no TES - Class 5
K117: CSP - 6 hrs TES - Class 1 | L117: 0
K118: CSP - 6 hrs TES - Class 3 | L118: 0
K119: CSP - 6 hrs TES - Class 5 | L119: 0
K120: CSP - 12 hrs TES - Class 1 | L120: 0
K121: CSP - 12 hrs TES - Class 3 | L121: 0
K122: CSP - 12 hrs TES - Class 5 | L122: 0
H125: LCOE | J125: Levelized Cost of Energy ($/MWh) | K125: CSP - no TES - Class 1
K126: CSP - no TES - Class 3
K127: CSP - no TES - Class 5
K128: CSP - 6 hrs TES - Class 1 | L128: =(($S$50 * $S$48 * $S$46 * (L55 * 1 + L97) +L65) * 1000 / (L15 * 8760)) + L75 + 0 -> 323.897683
K129: CSP - 6 hrs TES - Class 3 | L129: 245.8414899
K130: CSP - 6 hrs TES - Class 5 | L130: 239.4509243
K131: CSP - 12 hrs TES - Class 1 | L131: 249.4366072
K132: CSP - 12 hrs TES - Class 3 | L132: 190.9601241
K133: CSP - 12 hrs TES - Class 5 | L133: 181.8652794
J135: Overnight Levelized Cost of Energy ($/MWh) | K135: CSP - no TES - Class 1 | M135: * this is similar to the LCOE used in the TCDB (Transparent Cost Database)
K136: CSP - no TES - Class 3
K137: CSP - no TES - Class 5
K138: CSP - 6 hrs TES - Class 1 | L138: =(((L55*$S$50*(1-$S$42*$S$47))/(8760*L15*(1-$S$42))+L65/(8760*L15))*1000)+L75 -> 313.0264746
K139: CSP - 6 hrs TES - Class 3 | L139: 237.6146294
K140: CSP - 6 hrs TES - Class 5 | L140: 231.4405602
K141: CSP - 12 hrs TES - Class 1 | L141: 240.9210857
K142: CSP - 12 hrs TES - Class 3 | L142: 184.4652348
K143: CSP - 12 hrs TES - Class 5 | L143: 175.684659
H146: ***Note: For future projections, low, mid, and high refer to low, mid, and high LCOE projections.
D149: X | G149: Future Projections
L151: =Q12+1 -> 2014 | M151: =L151+1 -> 2015 | N151: =M151+1 -> 2016 | O151: =N151+1 -> 2017 | P151: =O151+1 -> 2018 | Q151: 2019 | R151: =Q151+1 -> 2020 | S151: 2021 | T151: 2022 | U151: =T151+1 -> 2023 | V151: =U151+1 -> 2024 | W151: 2025 | X151: 2026 | Y151: 2027 | Z151: 2028 | AA151: 2029 | AB151: 2030 | AC151: 2031 | AD151: 2032 | AE151: 2033 | AF151: 2034 | AG151: 2035 | AH151: 2036 | AI151: 2037 | AJ151: 2038 | AK151: 2039 | AL151: 2040 | AM151: 2041 | AN151: 2042 | AO151: 2043 | AP151: 2044 | AQ151: 2045 | AR151: 2046 | AS151: 2047 | AT151: 2048 | AU151: 2049 | AV151: 2050
H152: Techno-Economic Cost and Performance Parameters | J152: Net Capacity Factor (%) | K152: No TES - Class 1 - low
K153: No TES - Class 1 - mid
K154: No TES - Class 1 - high
K155: No TES - Class 3 - low
K156: No TES - Class 3 - mid
K157: No TES - Class 3 - high
K158: No TES - Class 5 - low
K159: No TES - Class 5 - mid
K160: No TES - Class 5 - high
K161: 6 hrs TES - Class 1 - low | L161: 0.28 | M161: 0.28 | N161: 0.28 | O161: 0.28 | P161: 0.28 | Q161: 0.28 | R161: 0.28 | S161: 0.28 | T161: 0.28 | U161: 0.28 | V161: 0.28 | W161: 0.28 | X161: 0.28 | Y161: 0.28 | Z161: 0.28 | AA161: 0.28 | AB161: 0.28 | AC161: 0.28 | AD161: 0.28 | AE161: 0.28 | AF161: 0.28 | AG161: 0.28 | AH161: 0.28 | AI161: 0.28 | AJ161: 0.28 | AK161: 0.28 | AL161: 0.28 | AM161: 0.28 | AN161: 0.28 | AO161: 0.28 | AP161: 0.28 | AQ161: 0.28 | AR161: 0.28 | AS161: 0.28 | AT161: 0.28 | AU161: 0.28 | AV161: 0.28
K162: 6 hrs TES - Class 1 - mid | L162: 0.28 | M162: 0.28 | N162: 0.28 | O162: 0.28 | P162: 0.28 | Q162: 0.28 | R162: 0.28 | S162: 0.28 | T162: 0.28 | U162: 0.28 | V162: 0.28 | W162: 0.28 | X162: 0.28 | Y162: 0.28 | Z162: 0.28 | AA162: 0.28 | AB162: 0.28 | AC162: 0.28 | AD162: 0.28 | AE162: 0.28 | AF162: 0.28 | AG162: 0.28 | AH162: 0.28 | AI162: 0.28 | AJ162: 0.28 | AK162: 0.28 | AL162: 0.28 | AM162: 0.28 | AN162: 0.28 | AO162: 0.28 | AP162: 0.28 | AQ162: 0.28 | AR162: 0.28 | AS162: 0.28 | AT162: 0.28 | AU162: 0.28 | AV162: 0.28
K163: 6 hrs TES - Class 1 - high | L163: 0.28 | M163: 0.28 | N163: 0.28 | O163: 0.28 | P163: 0.28 | Q163: 0.28 | R163: 0.28 | S163: 0.28 | T163: 0.28 | U163: 0.28 | V163: 0.28 | W163: 0.28 | X163: 0.28 | Y163: 0.28 | Z163: 0.28 | AA163: 0.28 | AB163: 0.28 | AC163: 0.28 | AD163: 0.28 | AE163: 0.28 | AF163: 0.28 | AG163: 0.28 | AH163: 0.28 | AI163: 0.28 | AJ163: 0.28 | AK163: 0.28 | AL163: 0.28 | AM163: 0.28 | AN163: 0.28 | AO163: 0.28 | AP163: 0.28 | AQ163: 0.28 | AR163: 0.28 | AS163: 0.28 | AT163: 0.28 | AU163: 0.28 | AV163: 0.28
K164: 6 hrs TES - Class 3 - low | L164: 0.37 | M164: 0.37 | N164: 0.37 | O164: 0.37 | P164: 0.37 | Q164: 0.37 | R164: 0.37 | S164: 0.37 | T164: 0.37 | U164: 0.37 | V164: 0.37 | W164: 0.37 | X164: 0.37 | Y164: 0.37 | Z164: 0.37 | AA164: 0.37 | AB164: 0.37 | AC164: 0.37 | AD164: 0.37 | AE164: 0.37 | AF164: 0.37 | AG164: 0.37 | AH164: 0.37 | AI164: 0.37 | AJ164: 0.37 | AK164: 0.37 | AL164: 0.37 | AM164: 0.37 | AN164: 0.37 | AO164: 0.37 | AP164: 0.37 | AQ164: 0.37 | AR164: 0.37 | AS164: 0.37 | AT164: 0.37 | AU164: 0.37 | AV164: 0.37
K165: 6 hrs TES - Class 3 - mid | L165: 0.37 | M165: 0.37 | N165: 0.37 | O165: 0.37 | P165: 0.37 | Q165: 0.37 | R165: 0.37 | S165: 0.37 | T165: 0.37 | U165: 0.37 | V165: 0.37 | W165: 0.37 | X165: 0.37 | Y165: 0.37 | Z165: 0.37 | AA165: 0.37 | AB165: 0.37 | AC165: 0.37 | AD165: 0.37 | AE165: 0.37 | AF165: 0.37 | AG165: 0.37 | AH165: 0.37 | AI165: 0.37 | AJ165: 0.37 | AK165: 0.37 | AL165: 0.37 | AM165: 0.37 | AN165: 0.37 | AO165: 0.37 | AP165: 0.37 | AQ165: 0.37 | AR165: 0.37 | AS165: 0.37 | AT165: 0.37 | AU165: 0.37 | AV165: 0.37
K166: 6 hrs TES - Class 3 - high | L166: 0.37 | M166: 0.37 | N166: 0.37 | O166: 0.37 | P166: 0.37 | Q166: 0.37 | R166: 0.37 | S166: 0.37 | T166: 0.37 | U166: 0.37 | V166: 0.37 | W166: 0.37 | X166: 0.37 | Y166: 0.37 | Z166: 0.37 | AA166: 0.37 | AB166: 0.37 | AC166: 0.37 | AD166: 0.37 | AE166: 0.37 | AF166: 0.37 | AG166: 0.37 | AH166: 0.37 | AI166: 0.37 | AJ166: 0.37 | AK166: 0.37 | AL166: 0.37 | AM166: 0.37 | AN166: 0.37 | AO166: 0.37 | AP166: 0.37 | AQ166: 0.37 | AR166: 0.37 | AS166: 0.37 | AT166: 0.37 | AU166: 0.37 | AV166: 0.37
K167: 6 hrs TES - Class 5 - low | L167: 0.38 | M167: 0.38 | N167: 0.38 | O167: 0.38 | P167: 0.38 | Q167: 0.38 | R167: 0.38 | S167: 0.38 | T167: 0.38 | U167: 0.38 | V167: 0.38 | W167: 0.38 | X167: 0.38 | Y167: 0.38 | Z167: 0.38 | AA167: 0.38 | AB167: 0.38 | AC167: 0.38 | AD167: 0.38 | AE167: 0.38 | AF167: 0.38 | AG167: 0.38 | AH167: 0.38 | AI167: 0.38 | AJ167: 0.38 | AK167: 0.38 | AL167: 0.38 | AM167: 0.38 | AN167: 0.38 | AO167: 0.38 | AP167: 0.38 | AQ167: 0.38 | AR167: 0.38 | AS167: 0.38 | AT167: 0.38 | AU167: 0.38 | AV167: 0.38
K168: 6 hrs TES - Class 5 - mid | L168: 0.38 | M168: 0.38 | N168: 0.38 | O168: 0.38 | P168: 0.38 | Q168: 0.38 | R168: 0.38 | S168: 0.38 | T168: 0.38 | U168: 0.38 | V168: 0.38 | W168: 0.38 | X168: 0.38 | Y168: 0.38 | Z168: 0.38 | AA168: 0.38 | AB168: 0.38 | AC168: 0.38 | AD168: 0.38 | AE168: 0.38 | AF168: 0.38 | AG168: 0.38 | AH168: 0.38 | AI168: 0.38 | AJ168: 0.38 | AK168: 0.38 | AL168: 0.38 | AM168: 0.38 | AN168: 0.38 | AO168: 0.38 | AP168: 0.38 | AQ168: 0.38 | AR168: 0.38 | AS168: 0.38 | AT168: 0.38 | AU168: 0.38 | AV168: 0.38
K169: 6 hrs TES - Class 5 - high | L169: 0.38 | M169: 0.38 | N169: 0.38 | O169: 0.38 | P169: 0.38 | Q169: 0.38 | R169: 0.38 | S169: 0.38 | T169: 0.38 | U169: 0.38 | V169: 0.38 | W169: 0.38 | X169: 0.38 | Y169: 0.38 | Z169: 0.38 | AA169: 0.38 | AB169: 0.38 | AC169: 0.38 | AD169: 0.38 | AE169: 0.38 | AF169: 0.38 | AG169: 0.38 | AH169: 0.38 | AI169: 0.38 | AJ169: 0.38 | AK169: 0.38 | AL169: 0.38 | AM169: 0.38 | AN169: 0.38 | AO169: 0.38 | AP169: 0.38 | AQ169: 0.38 | AR169: 0.38 | AS169: 0.38 | AT169: 0.38 | AU169: 0.38 | AV169: 0.38
K170: 12 hrs TES - Class 1 - low | L170: 0.45 | M170: 0.45 | N170: 0.45 | O170: 0.45 | P170: 0.45 | Q170: 0.45 | R170: 0.45 | S170: 0.45 | T170: 0.45 | U170: 0.45 | V170: 0.45 | W170: 0.45 | X170: 0.45 | Y170: 0.45 | Z170: 0.45 | AA170: 0.45 | AB170: 0.45 | AC170: 0.45 | AD170: 0.45 | AE170: 0.45 | AF170: 0.45 | AG170: 0.45 | AH170: 0.45 | AI170: 0.45 | AJ170: 0.45 | AK170: 0.45 | AL170: 0.45 | AM170: 0.45 | AN170: 0.45 | AO170: 0.45 | AP170: 0.45 | AQ170: 0.45 | AR170: 0.45 | AS170: 0.45 | AT170: 0.45 | AU170: 0.45 | AV170: 0.45
K171: 12 hrs TES - Class 1 - mid | L171: 0.45 | M171: 0.45 | N171: 0.45 | O171: 0.45 | P171: 0.45 | Q171: 0.45 | R171: 0.45 | S171: 0.45 | T171: 0.45 | U171: 0.45 | V171: 0.45 | W171: 0.45 | X171: 0.45 | Y171: 0.45 | Z171: 0.45 | AA171: 0.45 | AB171: 0.45 | AC171: 0.45 | AD171: 0.45 | AE171: 0.45 | AF171: 0.45 | AG171: 0.45 | AH171: 0.45 | AI171: 0.45 | AJ171: 0.45 | AK171: 0.45 | AL171: 0.45 | AM171: 0.45 | AN171: 0.45 | AO171: 0.45 | AP171: 0.45 | AQ171: 0.45 | AR171: 0.45 | AS171: 0.45 | AT171: 0.45 | AU171: 0.45 | AV171: 0.45
K172: 12 hrs TES - Class 1 - high | L172: 0.45 | M172: 0.45 | N172: 0.45 | O172: 0.45 | P172: 0.45 | Q172: 0.45 | R172: 0.45 | S172: 0.45 | T172: 0.45 | U172: 0.45 | V172: 0.45 | W172: 0.45 | X172: 0.45 | Y172: 0.45 | Z172: 0.45 | AA172: 0.45 | AB172: 0.45 | AC172: 0.45 | AD172: 0.45 | AE172: 0.45 | AF172: 0.45 | AG172: 0.45 | AH172: 0.45 | AI172: 0.45 | AJ172: 0.45 | AK172: 0.45 | AL172: 0.45 | AM172: 0.45 | AN172: 0.45 | AO172: 0.45 | AP172: 0.45 | AQ172: 0.45 | AR172: 0.45 | AS172: 0.45 | AT172: 0.45 | AU172: 0.45 | AV172: 0.45
K173: 12 hrs TES - Class 3 - low | L173: 0.59 | M173: 0.59 | N173: 0.59 | O173: 0.59 | P173: 0.59 | Q173: 0.59 | R173: 0.59 | S173: 0.59 | T173: 0.59 | U173: 0.59 | V173: 0.59 | W173: 0.59 | X173: 0.59 | Y173: 0.59 | Z173: 0.59 | AA173: 0.59 | AB173: 0.59 | AC173: 0.59 | AD173: 0.59 | AE173: 0.59 | AF173: 0.59 | AG173: 0.59 | AH173: 0.59 | AI173: 0.59 | AJ173: 0.59 | AK173: 0.59 | AL173: 0.59 | AM173: 0.59 | AN173: 0.59 | AO173: 0.59 | AP173: 0.59 | AQ173: 0.59 | AR173: 0.59 | AS173: 0.59 | AT173: 0.59 | AU173: 0.59 | AV173: 0.59
K174: 12 hrs TES - Class 3 - mid | L174: 0.59 | M174: 0.59 | N174: 0.59 | O174: 0.59 | P174: 0.59 | Q174: 0.59 | R174: 0.59 | S174: 0.59 | T174: 0.59 | U174: 0.59 | V174: 0.59 | W174: 0.59 | X174: 0.59 | Y174: 0.59 | Z174: 0.59 | AA174: 0.59 | AB174: 0.59 | AC174: 0.59 | AD174: 0.59 | AE174: 0.59 | AF174: 0.59 | AG174: 0.59 | AH174: 0.59 | AI174: 0.59 | AJ174: 0.59 | AK174: 0.59 | AL174: 0.59 | AM174: 0.59 | AN174: 0.59 | AO174: 0.59 | AP174: 0.59 | AQ174: 0.59 | AR174: 0.59 | AS174: 0.59 | AT174: 0.59 | AU174: 0.59 | AV174: 0.59
K175: 12 hrs TES - Class 3 - high | L175: 0.59 | M175: 0.59 | N175: 0.59 | O175: 0.59 | P175: 0.59 | Q175: 0.59 | R175: 0.59 | S175: 0.59 | T175: 0.59 | U175: 0.59 | V175: 0.59 | W175: 0.59 | X175: 0.59 | Y175: 0.59 | Z175: 0.59 | AA175: 0.59 | AB175: 0.59 | AC175: 0.59 | AD175: 0.59 | AE175: 0.59 | AF175: 0.59 | AG175: 0.59 | AH175: 0.59 | AI175: 0.59 | AJ175: 0.59 | AK175: 0.59 | AL175: 0.59 | AM175: 0.59 | AN175: 0.59 | AO175: 0.59 | AP175: 0.59 | AQ175: 0.59 | AR175: 0.59 | AS175: 0.59 | AT175: 0.59 | AU175: 0.59 | AV175: 0.59
K176: 12 hrs TES - Class 5 - low | L176: 0.62 | M176: 0.62 | N176: 0.62 | O176: 0.62 | P176: 0.62 | Q176: 0.62 | R176: 0.62 | S176: 0.62 | T176: 0.62 | U176: 0.62 | V176: 0.62 | W176: 0.62 | X176: 0.62 | Y176: 0.62 | Z176: 0.62 | AA176: 0.62 | AB176: 0.62 | AC176: 0.62 | AD176: 0.62 | AE176: 0.62 | AF176: 0.62 | AG176: 0.62 | AH176: 0.62 | AI176: 0.62 | AJ176: 0.62 | AK176: 0.62 | AL176: 0.62 | AM176: 0.62 | AN176: 0.62 | AO176: 0.62 | AP176: 0.62 | AQ176: 0.62 | AR176: 0.62 | AS176: 0.62 | AT176: 0.62 | AU176: 0.62 | AV176: 0.62
K177: 12 hrs TES - Class 5 - mid | L177: 0.62 | M177: 0.62 | N177: 0.62 | O177: 0.62 | P177: 0.62 | Q177: 0.62 | R177: 0.62 | S177: 0.62 | T177: 0.62 | U177: 0.62 | V177: 0.62 | W177: 0.62 | X177: 0.62 | Y177: 0.62 | Z177: 0.62 | AA177: 0.62 | AB177: 0.62 | AC177: 0.62 | AD177: 0.62 | AE177: 0.62 | AF177: 0.62 | AG177: 0.62 | AH177: 0.62 | AI177: 0.62 | AJ177: 0.62 | AK177: 0.62 | AL177: 0.62 | AM177: 0.62 | AN177: 0.62 | AO177: 0.62 | AP177: 0.62 | AQ177: 0.62 | AR177: 0.62 | AS177: 0.62 | AT177: 0.62 | AU177: 0.62 | AV177: 0.62
K178: 12 hrs TES - Class 5 - high | L178: 0.62 | M178: 0.62 | N178: 0.62 | O178: 0.62 | P178: 0.62 | Q178: 0.62 | R178: 0.62 | S178: 0.62 | T178: 0.62 | U178: 0.62 | V178: 0.62 | W178: 0.62 | X178: 0.62 | Y178: 0.62 | Z178: 0.62 | AA178: 0.62 | AB178: 0.62 | AC178: 0.62 | AD178: 0.62 | AE178: 0.62 | AF178: 0.62 | AG178: 0.62 | AH178: 0.62 | AI178: 0.62 | AJ178: 0.62 | AK178: 0.62 | AL178: 0.62 | AM178: 0.62 | AN178: 0.62 | AO178: 0.62 | AP178: 0.62 | AQ178: 0.62 | AR178: 0.62 | AS178: 0.62 | AT178: 0.62 | AU178: 0.62 | AV178: 0.62
J180: Annual Energy Production (kWh/kW) | K180: No TES - Class 1 - low
K181: No TES - Class 1 - mid
K182: No TES - Class 1 - high
K183: No TES - Class 3 - low
K184: No TES - Class 3 - mid
K185: No TES - Class 3 - high
K186: No TES - Class 5 - low
K187: No TES - Class 5 - mid
K188: No TES - Class 5 - high
K189: 6 hrs TES - Class 1 - low | L189: =L161*8760 -> 2452.8 | M189: =M161*8760 -> 2452.8 | N189: 2452.8 | O189: 2452.8 | P189: 2452.8 | Q189: 2452.8 | R189: 2452.8 | S189: 2452.8 | T189: 2452.8 | U189: 2452.8 | V189: 2452.8 | W189: 2452.8 | X189: 2452.8 | Y189: 2452.8 | Z189: 2452.8 | AA189: 2452.8 | AB189: 2452.8 | AC189: 2452.8 | AD189: 2452.8 | AE189: 2452.8 | AF189: 2452.8 | AG189: 2452.8 | AH189: 2452.8 | AI189: 2452.8 | AJ189: 2452.8 | AK189: 2452.8 | AL189: 2452.8 | AM189: 2452.8 | AN189: 2452.8 | AO189: 2452.8 | AP189: 2452.8 | AQ189: 2452.8 | AR189: 2452.8 | AS189: 2452.8 | AT189: 2452.8 | AU189: 2452.8 | AV189: 2452.8
K190: 6 hrs TES - Class 1 - mid | L190: 2452.8 | M190: 2452.8 | N190: 2452.8 | O190: 2452.8 | P190: 2452.8 | Q190: 2452.8 | R190: 2452.8 | S190: 2452.8 | T190: 2452.8 | U190: 2452.8 | V190: 2452.8 | W190: 2452.8 | X190: 2452.8 | Y190: 2452.8 | Z190: 2452.8 | AA190: 2452.8 | AB190: 2452.8 | AC190: 2452.8 | AD190: 2452.8 | AE190: 2452.8 | AF190: 2452.8 | AG190: 2452.8 | AH190: 2452.8 | AI190: 2452.8 | AJ190: 2452.8 | AK190: 2452.8 | AL190: 2452.8 | AM190: 2452.8 | AN190: 2452.8 | AO190: 2452.8 | AP190: 2452.8 | AQ190: 2452.8 | AR190: 2452.8 | AS190: 2452.8 | AT190: 2452.8 | AU190: 2452.8 | AV190: 2452.8
K191: 6 hrs TES - Class 1 - high | L191: 2452.8 | M191: 2452.8 | N191: 2452.8 | O191: 2452.8 | P191: 2452.8 | Q191: 2452.8 | R191: 2452.8 | S191: 2452.8 | T191: 2452.8 | U191: 2452.8 | V191: 2452.8 | W191: 2452.8 | X191: 2452.8 | Y191: 2452.8 | Z191: 2452.8 | AA191: 2452.8 | AB191: 2452.8 | AC191: 2452.8 | AD191: 2452.8 | AE191: 2452.8 | AF191: 2452.8 | AG191: 2452.8 | AH191: 2452.8 | AI191: 2452.8 | AJ191: 2452.8 | AK191: 2452.8 | AL191: 2452.8 | AM191: 2452.8 | AN191: 2452.8 | AO191: 2452.8 | AP191: 2452.8 | AQ191: 2452.8 | AR191: 2452.8 | AS191: 2452.8 | AT191: 2452.8 | AU191: 2452.8 | AV191: 2452.8
K192: 6 hrs TES - Class 3 - low | L192: 3241.2 | M192: 3241.2 | N192: 3241.2 | O192: 3241.2 | P192: 3241.2 | Q192: 3241.2 | R192: 3241.2 | S192: 3241.2 | T192: 3241.2 | U192: 3241.2 | V192: 3241.2 | W192: 3241.2 | X192: 3241.2 | Y192: 3241.2 | Z192: 3241.2 | AA192: 3241.2 | AB192: 3241.2 | AC192: 3241.2 | AD192: 3241.2 | AE192: 3241.2 | AF192: 3241.2 | AG192: 3241.2 | AH192: 3241.2 | AI192: 3241.2 | AJ192: 3241.2 | AK192: 3241.2 | AL192: 3241.2 | AM192: 3241.2 | AN192: 3241.2 | AO192: 3241.2 | AP192: 3241.2 | AQ192: 3241.2 | AR192: 3241.2 | AS192: 3241.2 | AT192: 3241.2 | AU192: 3241.2 | AV192: 3241.2
K193: 6 hrs TES - Class 3 - mid | L193: 3241.2 | M193: 3241.2 | N193: 3241.2 | O193: 3241.2 | P193: 3241.2 | Q193: 3241.2 | R193: 3241.2 | S193: 3241.2 | T193: 3241.2 | U193: 3241.2 | V193: 3241.2 | W193: 3241.2 | X193: 3241.2 | Y193: 3241.2 | Z193: 3241.2 | AA193: 3241.2 | AB193: 3241.2 | AC193: 3241.2 | AD193: 3241.2 | AE193: 3241.2 | AF193: 3241.2 | AG193: 3241.2 | AH193: 3241.2 | AI193: 3241.2 | AJ193: 3241.2 | AK193: 3241.2 | AL193: 3241.2 | AM193: 3241.2 | AN193: 3241.2 | AO193: 3241.2 | AP193: 3241.2 | AQ193: 3241.2 | AR193: 3241.2 | AS193: 3241.2 | AT193: 3241.2 | AU193: 3241.2 | AV193: 3241.2
K194: 6 hrs TES - Class 3 - high | L194: 3241.2 | M194: 3241.2 | N194: 3241.2 | O194: 3241.2 | P194: 3241.2 | Q194: 3241.2 | R194: 3241.2 | S194: 3241.2 | T194: 3241.2 | U194: 3241.2 | V194: 3241.2 | W194: 3241.2 | X194: 3241.2 | Y194: 3241.2 | Z194: 3241.2 | AA194: 3241.2 | AB194: 3241.2 | AC194: 3241.2 | AD194: 3241.2 | AE194: 3241.2 | AF194: 3241.2 | AG194: 3241.2 | AH194: =AH166*8760 -> 3241.2 | AI194: 3241.2 | AJ194: 3241.2 | AK194: 3241.2 | AL194: 3241.2 | AM194: 3241.2 | AN194: 3241.2 | AO194: 3241.2 | AP194: 3241.2 | AQ194: 3241.2 | AR194: 3241.2 | AS194: 3241.2 | AT194: 3241.2 | AU194: 3241.2 | AV194: 3241.2
K195: 6 hrs TES - Class 5 - low | L195: 3328.8 | M195: 3328.8 | N195: 3328.8 | O195: 3328.8 | P195: 3328.8 | Q195: 3328.8 | R195: 3328.8 | S195: 3328.8 | T195: 3328.8 | U195: 3328.8 | V195: 3328.8 | W195: 3328.8 | X195: 3328.8 | Y195: 3328.8 | Z195: 3328.8 | AA195: 3328.8 | AB195: 3328.8 | AC195: 3328.8 | AD195: 3328.8 | AE195: 3328.8 | AF195: 3328.8 | AG195: 3328.8 | AH195: 3328.8 | AI195: 3328.8 | AJ195: 3328.8 | AK195: 3328.8 | AL195: 3328.8 | AM195: 3328.8 | AN195: 3328.8 | AO195: 3328.8 | AP195: 3328.8 | AQ195: 3328.8 | AR195: 3328.8 | AS195: 3328.8 | AT195: 3328.8 | AU195: 3328.8 | AV195: 3328.8
K196: 6 hrs TES - Class 5 - mid | L196: 3328.8 | M196: 3328.8 | N196: 3328.8 | O196: 3328.8 | P196: 3328.8 | Q196: 3328.8 | R196: 3328.8 | S196: 3328.8 | T196: 3328.8 | U196: 3328.8 | V196: 3328.8 | W196: 3328.8 | X196: 3328.8 | Y196: 3328.8 | Z196: 3328.8 | AA196: 3328.8 | AB196: 3328.8 | AC196: 3328.8 | AD196: 3328.8 | AE196: 3328.8 | AF196: 3328.8 | AG196: 3328.8 | AH196: 3328.8 | AI196: 3328.8 | AJ196: 3328.8 | AK196: 3328.8 | AL196: 3328.8 | AM196: 3328.8 | AN196: 3328.8 | AO196: 3328.8 | AP196: 3328.8 | AQ196: 3328.8 | AR196: 3328.8 | AS196: 3328.8 | AT196: 3328.8 | AU196: 3328.8 | AV196: 3328.8
K197: 6 hrs TES - Class 5 - high | L197: =L169*8760 -> 3328.8 | M197: 3328.8 | N197: 3328.8 | O197: 3328.8 | P197: 3328.8 | Q197: 3328.8 | R197: 3328.8 | S197: 3328.8 | T197: 3328.8 | U197: 3328.8 | V197: 3328.8 | W197: 3328.8 | X197: 3328.8 | Y197: 3328.8 | Z197: 3328.8 | AA197: 3328.8 | AB197: 3328.8 | AC197: 3328.8 | AD197: 3328.8 | AE197: 3328.8 | AF197: 3328.8 | AG197: 3328.8 | AH197: 3328.8 | AI197: 3328.8 | AJ197: 3328.8 | AK197: 3328.8 | AL197: 3328.8 | AM197: 3328.8 | AN197: 3328.8 | AO197: 3328.8 | AP197: 3328.8 | AQ197: 3328.8 | AR197: 3328.8 | AS197: 3328.8 | AT197: 3328.8 | AU197: 3328.8 | AV197: 3328.8
K198: 12 hrs TES - Class 1 - low | L198: 3942 | M198: 3942 | N198: 3942 | O198: 3942 | P198: 3942 | Q198: 3942 | R198: 3942 | S198: 3942 | T198: 3942 | U198: 3942 | V198: 3942 | W198: 3942 | X198: 3942 | Y198: 3942 | Z198: 3942 | AA198: 3942 | AB198: 3942 | AC198: 3942 | AD198: 3942 | AE198: 3942 | AF198: 3942 | AG198: 3942 | AH198: 3942 | AI198: 3942 | AJ198: 3942 | AK198: 3942 | AL198: 3942 | AM198: 3942 | AN198: 3942 | AO198: 3942 | AP198: 3942 | AQ198: 3942 | AR198: 3942 | AS198: 3942 | AT198: 3942 | AU198: 3942 | AV198: 3942
K199: 12 hrs TES - Class 1 - mid | L199: 3942 | M199: 3942 | N199: 3942 | O199: 3942 | P199: 3942 | Q199: 3942 | R199: 3942 | S199: 3942 | T199: 3942 | U199: 3942 | V199: 3942 | W199: 3942 | X199: 3942 | Y199: 3942 | Z199: 3942 | AA199: 3942 | AB199: 3942 | AC199: 3942 | AD199: 3942 | AE199: 3942 | AF199: 3942 | AG199: 3942 | AH199: 3942 | AI199: 3942 | AJ199: 3942 | AK199: 3942 | AL199: 3942 | AM199: 3942 | AN199: 3942 | AO199: 3942 | AP199: 3942 | AQ199: 3942 | AR199: 3942 | AS199: 3942 | AT199: 3942 | AU199: 3942 | AV199: 3942
K200: 12 hrs TES - Class 1 - high | L200: 3942 | M200: 3942 | N200: 3942 | O200: 3942 | P200: 3942 | Q200: 3942 | R200: 3942 | S200: 3942 | T200: 3942 | U200: 3942 | V200: 3942 | W200: 3942 | X200: 3942 | Y200: 3942 | Z200: 3942 | AA200: 3942 | AB200: 3942 | AC200: 3942 | AD200: 3942 | AE200: 3942 | AF200: 3942 | AG200: 3942 | AH200: 3942 | AI200: 3942 | AJ200: 3942 | AK200: 3942 | AL200: 3942 | AM200: 3942 | AN200: 3942 | AO200: 3942 | AP200: 3942 | AQ200: 3942 | AR200: 3942 | AS200: 3942 | AT200: 3942 | AU200: 3942 | AV200: 3942
K201: 12 hrs TES - Class 3 - low | L201: 5168.4 | M201: 5168.4 | N201: 5168.4 | O201: 5168.4 | P201: 5168.4 | Q201: 5168.4 | R201: 5168.4 | S201: 5168.4 | T201: 5168.4 | U201: 5168.4 | V201: 5168.4 | W201: 5168.4 | X201: 5168.4 | Y201: 5168.4 | Z201: 5168.4 | AA201: 5168.4 | AB201: 5168.4 | AC201: 5168.4 | AD201: 5168.4 | AE201: 5168.4 | AF201: 5168.4 | AG201: 5168.4 | AH201: 5168.4 | AI201: 5168.4 | AJ201: 5168.4 | AK201: =AK173*8760 -> 5168.4 | AL201: 5168.4 | AM201: 5168.4 | AN201: 5168.4 | AO201: 5168.4 | AP201: 5168.4 | AQ201: 5168.4 | AR201: 5168.4 | AS201: 5168.4 | AT201: 5168.4 | AU201: 5168.4 | AV201: 5168.4
K202: 12 hrs TES - Class 3 - mid | L202: 5168.4 | M202: 5168.4 | N202: 5168.4 | O202: 5168.4 | P202: 5168.4 | Q202: 5168.4 | R202: 5168.4 | S202: 5168.4 | T202: 5168.4 | U202: 5168.4 | V202: 5168.4 | W202: 5168.4 | X202: 5168.4 | Y202: 5168.4 | Z202: 5168.4 | AA202: 5168.4 | AB202: 5168.4 | AC202: 5168.4 | AD202: 5168.4 | AE202: 5168.4 | AF202: 5168.4 | AG202: 5168.4 | AH202: 5168.4 | AI202: 5168.4 | AJ202: 5168.4 | AK202: 5168.4 | AL202: 5168.4 | AM202: 5168.4 | AN202: 5168.4 | AO202: 5168.4 | AP202: 5168.4 | AQ202: 5168.4 | AR202: 5168.4 | AS202: 5168.4 | AT202: 5168.4 | AU202: 5168.4 | AV202: 5168.4
K203: 12 hrs TES - Class 3 - high | L203: 5168.4 | M203: 5168.4 | N203: 5168.4 | O203: 5168.4 | P203: 5168.4 | Q203: 5168.4 | R203: 5168.4 | S203: 5168.4 | T203: 5168.4 | U203: 5168.4 | V203: 5168.4 | W203: 5168.4 | X203: 5168.4 | Y203: 5168.4 | Z203: 5168.4 | AA203: 5168.4 | AB203: 5168.4 | AC203: 5168.4 | AD203: 5168.4 | AE203: 5168.4 | AF203: 5168.4 | AG203: 5168.4 | AH203: 5168.4 | AI203: 5168.4 | AJ203: 5168.4 | AK203: 5168.4 | AL203: 5168.4 | AM203: 5168.4 | AN203: 5168.4 | AO203: 5168.4 | AP203: 5168.4 | AQ203: 5168.4 | AR203: 5168.4 | AS203: 5168.4 | AT203: 5168.4 | AU203: 5168.4 | AV203: 5168.4
K204: 12 hrs TES - Class 5 - low | L204: 5431.2 | M204: 5431.2 | N204: 5431.2 | O204: 5431.2 | P204: 5431.2 | Q204: 5431.2 | R204: 5431.2 | S204: 5431.2 | T204: 5431.2 | U204: 5431.2 | V204: 5431.2 | W204: 5431.2 | X204: 5431.2 | Y204: 5431.2 | Z204: 5431.2 | AA204: 5431.2 | AB204: 5431.2 | AC204: 5431.2 | AD204: 5431.2 | AE204: 5431.2 | AF204: 5431.2 | AG204: 5431.2 | AH204: 5431.2 | AI204: 5431.2 | AJ204: 5431.2 | AK204: 5431.2 | AL204: 5431.2 | AM204: 5431.2 | AN204: 5431.2 | AO204: 5431.2 | AP204: 5431.2 | AQ204: 5431.2 | AR204: 5431.2 | AS204: 5431.2 | AT204: 5431.2 | AU204: 5431.2 | AV204: 5431.2
K205: 12 hrs TES - Class 5 - mid | L205: 5431.2 | M205: 5431.2 | N205: 5431.2 | O205: 5431.2 | P205: 5431.2 | Q205: 5431.2 | R205: 5431.2 | S205: 5431.2 | T205: 5431.2 | U205: 5431.2 | V205: 5431.2 | W205: 5431.2 | X205: 5431.2 | Y205: 5431.2 | Z205: 5431.2 | AA205: 5431.2 | AB205: 5431.2 | AC205: 5431.2 | AD205: 5431.2 | AE205: 5431.2 | AF205: 5431.2 | AG205: 5431.2 | AH205: 5431.2 | AI205: 5431.2 | AJ205: 5431.2 | AK205: 5431.2 | AL205: 5431.2 | AM205: 5431.2 | AN205: 5431.2 | AO205: 5431.2 | AP205: 5431.2 | AQ205: 5431.2 | AR205: 5431.2 | AS205: 5431.2 | AT205: 5431.2 | AU205: 5431.2 | AV205: 5431.2
K206: 12 hrs TES - Class 5 - high | L206: 5431.2 | M206: 5431.2 | N206: 5431.2 | O206: 5431.2 | P206: 5431.2 | Q206: 5431.2 | R206: 5431.2 | S206: 5431.2 | T206: 5431.2 | U206: 5431.2 | V206: 5431.2 | W206: 5431.2 | X206: 5431.2 | Y206: 5431.2 | Z206: 5431.2 | AA206: 5431.2 | AB206: 5431.2 | AC206: 5431.2 | AD206: 5431.2 | AE206: 5431.2 | AF206: 5431.2 | AG206: 5431.2 | AH206: 5431.2 | AI206: 5431.2 | AJ206: 5431.2 | AK206: 5431.2 | AL206: 5431.2 | AM206: 5431.2 | AN206: 5431.2 | AO206: 5431.2 | AP206: 5431.2 | AQ206: 5431.2 | AR206: 5431.2 | AS206: 5431.2 | AT206: 5431.2 | AU206: 5431.2 | AV206: 5431.2
J208: CAPEX ($/kW) | K208: No TES - Class 1 - low | L208: =$S$46*(L348+L464) -> 0 | M208: =$S$46*(M348+M464) -> 0 | N208: 0 | O208: 0 | P208: 0 | Q208: 0 | R208: 0 | S208: 0 | T208: 0 | U208: 0 | V208: 0 | W208: 0 | X208: 0 | Y208: 0 | Z208: 0 | AA208: 0 | AB208: 0 | AC208: 0 | AD208: 0 | AE208: 0 | AF208: 0 | AG208: 0 | AH208: 0 | AI208: 0 | AJ208: 0 | AK208: 0 | AL208: 0 | AM208: 0 | AN208: 0 | AO208: 0 | AP208: 0 | AQ208: 0 | AR208: 0 | AS208: 0 | AT208: 0 | AU208: 0 | AV208: 0
K209: No TES - Class 1 - mid | L209: =$S$46*(L349+L465) -> 0 | M209: 0 | N209: 0 | O209: 0 | P209: 0 | Q209: 0 | R209: 0 | S209: 0 | T209: 0 | U209: 0 | V209: 0 | W209: 0 | X209: 0 | Y209: 0 | Z209: 0 | AA209: 0 | AB209: 0 | AC209: 0 | AD209: 0 | AE209: 0 | AF209: 0 | AG209: 0 | AH209: 0 | AI209: 0 | AJ209: 0 | AK209: 0 | AL209: 0 | AM209: 0 | AN209: 0 | AO209: 0 | AP209: 0 | AQ209: 0 | AR209: 0 | AS209: 0 | AT209: 0 | AU209: 0 | AV209: 0
K210: No TES - Class 1 - high | L210: 0 | M210: 0 | N210: 0 | O210: 0 | P210: 0 | Q210: 0 | R210: 0 | S210: 0 | T210: 0 | U210: 0 | V210: 0 | W210: 0 | X210: 0 | Y210: 0 | Z210: 0 | AA210: 0 | AB210: 0 | AC210: 0 | AD210: 0 | AE210: 0 | AF210: 0 | AG210: 0 | AH210: 0 | AI210: 0 | AJ210: 0 | AK210: 0 | AL210: 0 | AM210: 0 | AN210: 0 | AO210: 0 | AP210: 0 | AQ210: 0 | AR210: 0 | AS210: 0 | AT210: 0 | AU210: 0 | AV210: 0
K211: No TES - Class 3 - low | L211: 0 | M211: 0 | N211: 0 | O211: 0 | P211: 0 | Q211: 0 | R211: 0 | S211: 0 | T211: 0 | U211: 0 | V211: 0 | W211: 0 | X211: 0 | Y211: 0 | Z211: 0 | AA211: 0 | AB211: 0 | AC211: 0 | AD211: 0 | AE211: 0 | AF211: 0 | AG211: 0 | AH211: 0 | AI211: 0 | AJ211: 0 | AK211: 0 | AL211: 0 | AM211: 0 | AN211: 0 | AO211: 0 | AP211: 0 | AQ211: 0 | AR211: 0 | AS211: 0 | AT211: 0 | AU211: 0 | AV211: 0
K212: No TES - Class 3 - mid | L212: 0 | M212: 0 | N212: 0 | O212: 0 | P212: 0 | Q212: 0 | R212: 0 | S212: 0 | T212: 0 | U212: 0 | V212: 0 | W212: 0 | X212: 0 | Y212: 0 | Z212: 0 | AA212: 0 | AB212: 0 | AC212: 0 | AD212: 0 | AE212: 0 | AF212: 0 | AG212: 0 | AH212: 0 | AI212: 0 | AJ212: 0 | AK212: 0 | AL212: 0 | AM212: 0 | AN212: 0 | AO212: 0 | AP212: 0 | AQ212: 0 | AR212: 0 | AS212: 0 | AT212: 0 | AU212: 0 | AV212: 0
K213: No TES - Class 3 - high | L213: 0 | M213: 0 | N213: 0 | O213: 0 | P213: 0 | Q213: 0 | R213: 0 | S213: 0 | T213: 0 | U213: 0 | V213: 0 | W213: 0 | X213: 0 | Y213: 0 | Z213: 0 | AA213: 0 | AB213: 0 | AC213: 0 | AD213: 0 | AE213: 0 | AF213: 0 | AG213: 0 | AH213: 0 | AI213: 0 | AJ213: 0 | AK213: 0 | AL213: 0 | AM213: 0 | AN213: 0 | AO213: 0 | AP213: 0 | AQ213: 0 | AR213: 0 | AS213: 0 | AT213: 0 | AU213: 0 | AV213: 0
K214: No TES - Class 5 - low | L214: 0 | M214: 0 | N214: 0 | O214: 0 | P214: 0 | Q214: 0 | R214: 0 | S214: 0 | T214: 0 | U214: 0 | V214: 0 | W214: 0 | X214: 0 | Y214: 0 | Z214: 0 | AA214: 0 | AB214: 0 | AC214: 0 | AD214: 0 | AE214: 0 | AF214: 0 | AG214: 0 | AH214: 0 | AI214: 0 | AJ214: 0 | AK214: 0 | AL214: 0 | AM214: 0 | AN214: 0 | AO214: 0 | AP214: 0 | AQ214: 0 | AR214: 0 | AS214: 0 | AT214: 0 | AU214: 0 | AV214: 0
K215: No TES - Class 5 - mid | L215: 0 | M215: 0 | N215: 0 | O215: 0 | P215: 0 | Q215: 0 | R215: 0 | S215: 0 | T215: 0 | U215: 0 | V215: 0 | W215: 0 | X215: 0 | Y215: 0 | Z215: 0 | AA215: 0 | AB215: 0 | AC215: 0 | AD215: 0 | AE215: =$S$46*(AE355+AE471) -> 0 | AF215: 0 | AG215: 0 | AH215: 0 | AI215: 0 | AJ215: 0 | AK215: 0 | AL215: 0 | AM215: 0 | AN215: 0 | AO215: 0 | AP215: 0 | AQ215: 0 | AR215: 0 | AS215: 0 | AT215: 0 | AU215: 0 | AV215: 0
K216: No TES - Class 5 - high | L216: 0 | M216: 0 | N216: 0 | O216: 0 | P216: 0 | Q216: 0 | R216: 0 | S216: 0 | T216: 0 | U216: 0 | V216: 0 | W216: 0 | X216: 0 | Y216: 0 | Z216: 0 | AA216: 0 | AB216: 0 | AC216: 0 | AD216: 0 | AE216: 0 | AF216: 0 | AG216: 0 | AH216: 0 | AI216: 0 | AJ216: 0 | AK216: 0 | AL216: 0 | AM216: 0 | AN216: 0 | AO216: 0 | AP216: 0 | AQ216: 0 | AR216: 0 | AS216: 0 | AT216: 0 | AU216: 0 | AV216: 0
K217: 6 hrs TES - Class 1 - low | L217: 7040.640712 | M217: 7040.640712 | N217: 4903.618734 | O217: 4477.668802 | P217: 4052.757772 | Q217: 3626.807839 | R217: 3202.935711 | S217: 3202.935711 | T217: 3202.935711 | U217: 3202.935711 | V217: 3202.935711 | W217: 3202.935711 | X217: 3202.935711 | Y217: 3202.935711 | Z217: 3202.935711 | AA217: 3202.935711 | AB217: 3202.935711 | AC217: 3202.935711 | AD217: 3202.935711 | AE217: 3202.935711 | AF217: 3202.935711 | AG217: 3202.935711 | AH217: 3202.935711 | AI217: 3202.935711 | AJ217: 3202.935711 | AK217: 3202.935711 | AL217: 3202.935711 | AM217: 3202.935711 | AN217: 3202.935711 | AO217: 3202.935711 | AP217: 3202.935711 | AQ217: 3202.935711 | AR217: 3202.935711 | AS217: 3202.935711 | AT217: 3202.935711 | AU217: 3202.935711 | AV217: 3202.935711
K218: 6 hrs TES - Class 1 - mid | L218: 7040.640712 | M218: 7040.640712 | N218: 6484.827996 | O218: 5920.704061 | P218: 5358.65793 | Q218: 4794.533995 | R218: 4232.487865 | S218: 4129.53265 | T218: 4026.577434 | U218: 3923.622219 | V218: 3820.667004 | W218: 3717.711788 | X218: 3614.756573 | Y218: 3511.801358 | Z218: 3408.846142 | AA218: 3305.890927 | AB218: 3202.935711 | AC218: 3202.935711 | AD218: 3202.935711 | AE218: 3202.935711 | AF218: 3202.935711 | AG218: 3202.935711 | AH218: 3202.935711 | AI218: 3202.935711 | AJ218: 3202.935711 | AK218: 3202.935711 | AL218: 3202.935711 | AM218: 3202.935711 | AN218: 3202.935711 | AO218: 3202.935711 | AP218: 3202.935711 | AQ218: 3202.935711 | AR218: 3202.935711 | AS218: 3202.935711 | AT218: 3202.935711 | AU218: 3202.935711 | AV218: 3202.935711
K219: 6 hrs TES - Class 1 - high | L219: 7040.640712 | M219: 7040.640712 | N219: 8179.277605 | O219: 7462.435036 | P219: 6753.903685 | Q219: 6043.294529 | R219: 5334.763178 | S219: 5334.763178 | T219: 5334.763178 | U219: 5334.763178 | V219: 5334.763178 | W219: 5334.763178 | X219: 5334.763178 | Y219: 5334.763178 | Z219: 5334.763178 | AA219: 5334.763178 | AB219: 5334.763178 | AC219: 5334.763178 | AD219: 5334.763178 | AE219: 5334.763178 | AF219: 5334.763178 | AG219: 5334.763178 | AH219: 5334.763178 | AI219: 5334.763178 | AJ219: 5334.763178 | AK219: 5334.763178 | AL219: 5334.763178 | AM219: 5334.763178 | AN219: 5334.763178 | AO219: 5334.763178 | AP219: 5334.763178 | AQ219: 5334.763178 | AR219: 5334.763178 | AS219: 5334.763178 | AT219: 5334.763178 | AU219: 5334.763178 | AV219: 5334.763178
K220: 6 hrs TES - Class 3 - low | L220: 7040.640712 | M220: 7040.640712 | N220: 4903.618734 | O220: 4477.668802 | P220: 4052.757772 | Q220: 3626.807839 | R220: 3202.935711 | S220: 3202.935711 | T220: 3202.935711 | U220: 3202.935711 | V220: 3202.935711 | W220: 3202.935711 | X220: 3202.935711 | Y220: 3202.935711 | Z220: 3202.935711 | AA220: 3202.935711 | AB220: 3202.935711 | AC220: 3202.935711 | AD220: 3202.935711 | AE220: 3202.935711 | AF220: 3202.935711 | AG220: 3202.935711 | AH220: 3202.935711 | AI220: 3202.935711 | AJ220: 3202.935711 | AK220: 3202.935711 | AL220: 3202.935711 | AM220: 3202.935711 | AN220: 3202.935711 | AO220: 3202.935711 | AP220: 3202.935711 | AQ220: 3202.935711 | AR220: 3202.935711 | AS220: 3202.935711 | AT220: 3202.935711 | AU220: 3202.935711 | AV220: 3202.935711
K221: 6 hrs TES - Class 3 - mid | L221: 7040.640712 | M221: 7040.640712 | N221: 6484.827996 | O221: 5920.704061 | P221: 5358.65793 | Q221: 4794.533995 | R221: 4232.487865 | S221: 4129.53265 | T221: 4026.577434 | U221: 3923.622219 | V221: 3820.667004 | W221: 3717.711788 | X221: 3614.756573 | Y221: 3511.801358 | Z221: 3408.846142 | AA221: 3305.890927 | AB221: 3202.935711 | AC221: 3202.935711 | AD221: 3202.935711 | AE221: 3202.935711 | AF221: 3202.935711 | AG221: 3202.935711 | AH221: 3202.935711 | AI221: 3202.935711 | AJ221: 3202.935711 | AK221: 3202.935711 | AL221: 3202.935711 | AM221: 3202.935711 | AN221: 3202.935711 | AO221: 3202.935711 | AP221: 3202.935711 | AQ221: 3202.935711 | AR221: 3202.935711 | AS221: 3202.935711 | AT221: 3202.935711 | AU221: 3202.935711 | AV221: 3202.935711
K222: 6 hrs TES - Class 3 - high | L222: 7040.640712 | M222: 7040.640712 | N222: 8179.277605 | O222: 7462.435036 | P222: 6753.903685 | Q222: 6043.294529 | R222: 5334.763178 | S222: 5334.763178 | T222: 5334.763178 | U222: 5334.763178 | V222: 5334.763178 | W222: 5334.763178 | X222: 5334.763178 | Y222: 5334.763178 | Z222: 5334.763178 | AA222: 5334.763178 | AB222: 5334.763178 | AC222: 5334.763178 | AD222: 5334.763178 | AE222: 5334.763178 | AF222: 5334.763178 | AG222: 5334.763178 | AH222: =$S$46*(AH362+AH478) -> 5334.763178 | AI222: 5334.763178 | AJ222: 5334.763178 | AK222: 5334.763178 | AL222: 5334.763178 | AM222: 5334.763178 | AN222: 5334.763178 | AO222: 5334.763178 | AP222: 5334.763178 | AQ222: 5334.763178 | AR222: 5334.763178 | AS222: 5334.763178 | AT222: 5334.763178 | AU222: 5334.763178 | AV222: 5334.763178
K223: 6 hrs TES - Class 5 - low | L223: 7040.640712 | M223: 7040.640712 | N223: 4903.618734 | O223: 4477.668802 | P223: 4052.757772 | Q223: 3626.807839 | R223: 3202.935711 | S223: 3202.935711 | T223: 3202.935711 | U223: 3202.935711 | V223: 3202.935711 | W223: 3202.935711 | X223: 3202.935711 | Y223: 3202.935711 | Z223: 3202.935711 | AA223: 3202.935711 | AB223: 3202.935711 | AC223: 3202.935711 | AD223: 3202.935711 | AE223: 3202.935711 | AF223: 3202.935711 | AG223: 3202.935711 | AH223: 3202.935711 | AI223: 3202.935711 | AJ223: 3202.935711 | AK223: 3202.935711 | AL223: 3202.935711 | AM223: 3202.935711 | AN223: 3202.935711 | AO223: 3202.935711 | AP223: 3202.935711 | AQ223: 3202.935711 | AR223: 3202.935711 | AS223: 3202.935711 | AT223: 3202.935711 | AU223: 3202.935711 | AV223: 3202.935711
K224: 6 hrs TES - Class 5 - mid | L224: 7040.640712 | M224: 7040.640712 | N224: 6484.827996 | O224: 5920.704061 | P224: 5358.65793 | Q224: 4794.533995 | R224: 4232.487865 | S224: 4129.53265 | T224: 4026.577434 | U224: 3923.622219 | V224: 3820.667004 | W224: 3717.711788 | X224: 3614.756573 | Y224: 3511.801358 | Z224: 3408.846142 | AA224: 3305.890927 | AB224: 3202.935711 | AC224: 3202.935711 | AD224: 3202.935711 | AE224: 3202.935711 | AF224: 3202.935711 | AG224: 3202.935711 | AH224: 3202.935711 | AI224: 3202.935711 | AJ224: 3202.935711 | AK224: 3202.935711 | AL224: 3202.935711 | AM224: 3202.935711 | AN224: 3202.935711 | AO224: 3202.935711 | AP224: 3202.935711 | AQ224: 3202.935711 | AR224: 3202.935711 | AS224: 3202.935711 | AT224: 3202.935711 | AU224: 3202.935711 | AV224: 3202.935711
... 300 more rows

Sheet Geothermal
A1: Geothermal Inputs
AC2: GEO-Hydro Flash | AX2: GEO-Hydro Binary | BL2: GEO-NF EGS Flash | BZ2: GEO-NF EGS Binary | CN2: GEO-Deep EGS Flash | DB2: GEO-Deep EGS Binary
T3: Inputs | AH3: Reservoir | AI3: Reservoir | AJ3: Plant | AK3: Well | AL3: Capital | AM3: O&M | AN3: O&M | BC3: Reservoir | BD3: Reservoir | BE3: Plant | BF3: Well | BG3: Capital | BH3: O&M | BI3: O&M | BQ3: Reservoir | BR3: Reservoir | BS3: Plant | BT3: Well | BU3: Capital | BV3: O&M | BW3: O&M | CE3: Reservoir | CF3: Reservoir | CG3: Plant | CH3: Well | CI3: Capital | CJ3: O&M | CK3: O&M | CS3: Reservoir | CT3: Reservoir | CU3: Plant | CV3: Well | CW3: Capital | CX3: O&M | CY3: O&M | DG3: Reservoir | DH3: Reservoir | DI3: Plant | DJ3: Well | DK3: Capital | DL3: O&M | DM3: O&M
J4: Take me to: | T4: Calculated | AC4: ReEDS | AD4: Site Name | AH4: Temp | AI4: Depth | AJ4: Sales | AK4: Flow Rate | AL4: Costs | AM4: Costs | AN4: Costs | AO4: LCOE | AX4: ReEDS | AY4: Site Name | BC4: Temp | BD4: Depth | BE4: Sales | BF4: Flow Rate | BG4: Costs | BH4: Costs | BI4: Costs | BJ4: LCOE | BL4: ReEDS | BM4: Site Name | BQ4: Temp | BR4: Depth | BS4: Sales | BT4: Flow Rate | BU4: Costs | BV4: Costs | BW4: Costs | BX4: LCOE | BZ4: ReEDS | CA4: Site Name | CE4: Temp | CF4: Depth | CG4: Sales | CH4: Flow Rate | CI4: Costs | CJ4: Costs | CK4: Costs | CL4: LCOE | CN4: ReEDS | CO4: Site Name | CS4: Temp | CT4: Depth | CU4: Sales | CV4: Flow Rate | CW4: Costs | CX4: Costs | CY4: Costs | CZ4: LCOE | DB4: ReEDS | DC4: Site Name | DG4: Temp | DH4: Depth | DI4: Sales | DJ4: Flow Rate | DK4: Costs | DL4: Costs | DM4: Costs | DN4: LCOE
AC5: PCR | AH5: (°C) | AI5: (m) | AJ5: (MW) | AK5: (kg/s) | AL5: $/kW net | AM5: $/kWh | AN5: $/kW | AO5: ($/MWh) | AX5: PCR | BC5: (°C) | BD5: (m) | BE5: (MW) | BF5: (kg/s) | BG5: $/kW net | BH5: $/kWh | BI5: $/kW | BJ5: ($/MWh) | BL5: PCR | BQ5: (°C) | BR5: (m) | BS5: (MW) | BT5: (kg/s) | BU5: $/kW net | BV5: $/kWh | BW5: $/kW | BX5: ($/MWh) | BZ5: PCR | CE5: (°C) | CF5: (m) | CG5: (MW) | CH5: (kg/s) | CI5: $/kW net | CJ5: $/kWh | CK5: $/kW | CL5: ($/MWh) | CN5: PCR | CS5: (°C) | CT5: (m) | CU5: (MW) | CV5: (kg/s) | CW5: $/kW net | CX5: $/kWh | CY5: $/kW | CZ5: ($/MWh) | DB5: PCR | DG5: (°C) | DH5: (m) | DI5: (MW) | DJ5: (kg/s) | DK5: $/kW net | DL5: $/kWh | DM5: $/kW | DN5: ($/MWh)
AC6: 12 | AD6: Fallon Naval Air Station | AH6: 195 | AI6: 2133.6 | AJ6: 66.76246361 | AK6: 80 | AL6: 5914.034478 | AM6: 0.02195493062 | AN6: 142.6811972 | AO6: =(($S$44 * $S$42 * $S$40 * (AL6 * 1 + $L$72) +AN6) * 1000 / ($L$14 * 8760)) + AM6 + 0 -> 101.9928242 | AX6: 0 | AY6: Hot Springs Cove | BC6: 110 | BD6: 1524 | BE6: 6.263734085 | BF6: 100 | BG6: 24101.42494 | BH6: 0.09860804771 | BI6: 556.9050043 | BJ6: =(($S$44 * $S$42 * $S$40 * (BG6 * 1 + $L$73) +BI6) * 1000 / ($L$15 * 8760)) + BH6 + 0 -> 464.1000012 | BM6: Fallon Naval Air Station | BQ6: 195 | BR6: 2133.6 | BS6: 60.49089639 | BT6: 40 | BU6: 6644.275966 | BV6: 0.05601297869 | BW6: 397.5117105 | CA6: Upper Division Hot Spring | CE6: 110 | CF6: 1524 | CG6: 8.495070576 | CH6: 40 | CI6: 21770.57908 | CJ6: 0.1126756078 | CK6: 726.3065774 | CO6: 4k-200C | CS6: 225 | CT6: 4000 | CU6: 30 | CV6: 40 | CW6: 9537.098257 | CX6: 0.05868426893 | CY6: 408.7605712 | DC6: 4k-150C | DG6: 175 | DH6: 4000 | DI6: 20 | DJ6: 40 | DK6: 14241.2103 | DL6: 0.05528011131 | DM6: 361.2100628
AC7: 0 | AD7: West Ukinrek Maar | AH7: 200 | AI7: 1524 | AJ7: 28.39067625 | AK7: 80 | AL7: 5926.217812 | AM7: 0.02241369456 | AN7: 144.5754859 | AO7: =(($S$44 * $S$42 * $S$40 * (AL7 * 1 + $L$72) +AN7) * 1000 / ($L$14 * 8760)) + AM7 + 0 -> 102.4063379 | AX7: 8 | AY7: Kellog HS | BC7: 110 | BD7: 1524 | BE7: 6.717608022 | BF7: 100 | BG7: 23610.36582 | BH7: 0.09756109379 | BI7: 552.8972419 | BJ7: =(($S$44 * $S$42 * $S$40 * (BG7 * 1 + $L$73) +BI7) * 1000 / ($L$15 * 8760)) + BH7 + 0 -> 455.6923011 | BM7: West Ukinrek Maar | BQ7: 200 | BR7: 1524 | BS7: 21.48921335 | BT7: 40 | BU7: 6181.528655 | BV7: 0.05510622301 | BW7: 391.5333175 | CA7: Tolvana | CE7: 110 | CF7: 1524 | CG7: 22.35640014 | CH7: 40 | CI7: 20496.16849 | CJ7: 0.1063734003 | CK7: 690.2460185 | CO7: 5k-200C | CS7: 225 | CT7: 5000 | CU7: 30 | CV7: 40 | CW7: 12515.63547 | CX7: 0.06774764454 | CY7: 466.9169649 | DC7: 5k-150C | DG7: 175 | DH7: 5000 | DI7: 20 | DJ7: 40 | DK7: 18073.95569 | DL7: 0.06695051249 | DM7: 434.0076354
AC8: 10 | AD8: Heber Deep | AH8: 205 | AI8: 1219.2 | AJ8: 37.96450556 | AK8: 80 | AL8: 4704.373466 | AM8: 0.01911327546 | AN8: 124.9458309 | AO8: 82.58493521 | AX8: 12 | AY8: Dyke Hot Springs area | BC8: 110 | BD8: 1524 | BE8: 6.787563173 | BF8: 100 | BG8: 23542.11915 | BH8: 0.0974170443 | BI8: 552.3550102 | BJ8: 454.5259192 | BM8: Roosevelt HS | BQ8: 200 | BR8: 2000 | BS8: 108 | BT8: 40 | BU8: 5800.467226 | BV8: 0.05156512123 | BW8: 367.8688775 | CA8: Dulbi | CE8: 110 | CF8: 1524 | CG8: 11.66392738 | CH8: 40 | CI8: 21232.62621 | CJ8: 0.1102132137 | CK8: 712.5487593 | CO8: 6k-200C | CS8: 225 | CT8: 6000 | CU8: 30 | CV8: 40 | CW8: 16068.54488 | CX8: 0.07851982035 | CY8: 536.0349009 | DC8: 6k-150C | DG8: 175 | DH8: 6000 | DI8: 20 | DJ8: 40 | DK8: 22364.79279 | DL8: 0.08005091529 | DM8: 515.5298564
AC9: 12 | AD9: Soda Lake area | AH9: 205 | AI9: 1371.6 | AJ9: 46.475 | AK9: 80 | AL9: 4613.311294 | AM9: 0.01865526055 | AN9: 122.2192419 | AO9: 80.94718799 | AX9: 12 | AY9: Rowland Hot Springs | BC9: 110 | BD9: 1524 | BE9: 7.309029501 | BF9: 100 | BG9: 23073.73768 | BH9: 0.09641654259 | BI9: 548.5543505 | BJ9: 446.5096363 | BM9: Makushin | BQ9: 205 | BR9: 1524 | BS9: 68.82260054 | BT9: 40 | BU9: 4861.32306 | BV9: 0.04806442294 | BW9: 344.7389775 | CA9: Bradfield Canal Hot Spring | CE9: 110 | CF9: 1524 | CG9: 9.100459073 | CH9: 40 | CI9: 21640.62276 | CJ9: 0.1121000606 | CK9: 723.1252263 | CO9: 7k-200C | CS9: 225 | CT9: 7000 | CU9: 30 | CV9: 40 | CW9: 20236.55686 | CX9: 0.09112528791 | CY9: 616.9359141 | DC9: 7k-150C | DG9: 175 | DH9: 7000 | DI9: 20 | DJ9: 40 | DK9: 27272.07905 | DL9: 0.09503610894 | DM9: 608.6585792
B10: X | G10: Current Costs | AC10: 10 | AD10: Long Valley caldera - deep | AH10: 205 | AI10: 3048 | AJ10: 59.41661017 | AK10: 80 | AL10: 7334.04299 | AM10: 0.0249296928 | AN10: 160.800901 | AO10: 124.4327601 | AX10: 9 | AY10: Sonoma Mission Inn | BC10: 110 | BD10: 1524 | BE10: 7.851575449 | BF10: 100 | BG10: 22651.12572 | BH10: 0.0954945914 | BI10: 544.9967861 | BJ10: 439.2583652 | BM10: Long Valley caldera - deep | BQ10: 205 | BR10: 3048 | BS10: 25.02393114 | BT10: 40 | BU10: 8937.358355 | BV10: 0.06235151251 | BW10: 437.1926514 | CA10: Hot Springs Cove | CE10: 110 | CF10: 1524 | CG10: 4.821092162 | CH10: 40 | CI10: 23560.00106 | CJ10: 0.1197716966 | CK10: 765.5355037 | CO10: 8k-200C | CS10: 225 | CT10: 8000 | CU10: 30 | CV10: 40 | CW10: 25032.93763 | CX10: 0.105601846 | CY10: 709.8852192 | DC10: 8k-150C | DG10: 175 | DH10: 8000 | DI10: 20 | DJ10: 40 | DK10: 32867.30293 | DL10: 0.1121402337 | DM10: 714.9346755
AC11: 12 | AD11: Fish Lake Valley | AH11: 205 | AI11: 1524 | AJ11: 71.41313459 | AK11: 80 | AL11: 4369.002814 | AM11: 0.01768118492 | AN11: 116.4216579 | AO11: 76.74605099 | AX11: 15 | AY11: Latty Hot Springs | BC11: 110 | BD11: 1524 | BE11: 7.940814015 | BF11: 100 | BG11: 22587.02315 | BH11: 0.09535302656 | BI11: 544.4456697 | BJ11: 438.1568363 | BM11: Heber Deep | BQ11: 205 | BR11: 1219.2 | BS11: 26.47228904 | BT11: 40 | BU11: 5208.666495 | BV11: 0.05067491025 | BW11: 362.3505882 | CA11: Clifton Hot Springs | CE11: 110 | CF11: 1524 | CG11: 28.14022807 | CH11: 40 | CI11: 20315.84805 | CJ11: 0.1053072068 | CK11: 683.8461456 | CO11: 9k-200C | CS11: 225 | CT11: 9000 | CU11: 30 | CV11: 40 | CW11: 30469.01365 | CX11: 0.1219825972 | CY11: 815.1210298 | DC11: 9k-150C | DG11: 175 | DH11: 9000 | DI11: 20 | DJ11: 40 | DK11: 39172.81506 | DL11: 0.1314386194 | DM11: 834.8184702
H12: *** NOTE: Geothermal project costs and performance parameters are location specific. Numbers in this section are example cases. Location specific data are located to the right. | AC12: 12 | AD12: Blue Mountain | AH12: 205 | AI12: 914.4 | AJ12: 78.00043418 | AK12: 80 | AL12: 3524.304025 | AM12: 0.01553406181 | AN12: 103.1764232 | AO12: 63.08430426 | AX12: 0 | AY12: Upper Division Hot Spring | BC12: 110 | BD12: 1524 | BE12: 8.811597074 | BF12: 100 | BG12: 22028.15764 | BH12: 0.09409776828 | BI12: 539.5001887 | BJ12: 428.533281 | BM12: Blue Mountain | BQ12: 205 | BR12: 914.4 | BS12: 70.07111937 | BT12: 40 | BU12: 4050.178795 | BV12: 0.04543938018 | BW12: 327.5853157 | CA12: Gillard (Morenci) Hot Springs | CE12: 110 | CF12: 1524 | CG12: 15.75285346 | CH12: 40 | CI12: 20842.70295 | CJ12: 0.108266455 | CK12: 701.3807874 | CO12: 10k-200C | CS12: 225 | CT12: 10000 | CU12: 30 | CV12: 40 | CW12: 36704.36464 | CX12: 0.1409349871 | CY12: 936.8692318 | DC12: 10k-150C | DG12: 175 | DH12: 10000 | DI12: 20 | DJ12: 40 | DK12: 46212.72966 | DL12: 0.1530127629 | DM12: 968.8072346
AC13: 12 | AD13: Humboldt House - Rye Patch | AH13: 205 | AI13: 914.4 | AJ13: 113.0434146 | AK13: 80 | AL13: 3377.057569 | AM13: 0.01493793064 | AN13: 99.45687237 | AO13: 60.52366251 | AX13: 7 | AY13: Clark Ranch | BC13: 110 | BD13: 1524 | BE13: 8.860710716 | BF13: 100 | BG13: 21999.83187 | BH13: 0.09403307903 | BI13: 539.2423962 | BJ13: 428.0444978 | BM13: Humboldt House - Rye Patch | BQ13: 205 | BR13: 914.4 | BS13: 54.76274112 | BT13: 40 | BU13: 4150.827917 | BV13: 0.04609819093 | BW13: 332.0631872 | CA13: Fort Bidwell | CE13: 110 | CF13: 762 | CG13: 8.668444253 | CH13: 40 | CI13: 16963.33454 | CJ13: 0.09826623587 | CK13: 638.7412345 | CO13: 4k-250C | CS13: 275 | CT13: 4000 | CU13: 30 | CV13: 40 | CW13: 6818.795046 | CX13: 0.0434486729 | CY13: 300.7320805
H14: Techno-Economic Cost and Performance Parameters | J14: Net Capacity Factor (%) | K14: GEO-Hydro Flash example | L14: 0.9 | O14: Basis Year: | Q14: 2013 | AC14: 0 | AD14: Makushin | AH14: 205 | AI14: 1524 | AJ14: 134.1321602 | AK14: 80 | AL14: 4129.915495 | AM14: 0.0168287668 | AN14: 111.220179 | AO14: 72.69469205 | AX14: 17 | AY14: Gregson (Fairmont) Hot Springs | BC14: 110 | BD14: 1524 | BE14: 8.875012777 | BF14: 100 | BG14: 21991.64077 | BH14: 0.09401435223 | BI14: 539.1677135 | BJ14: 427.9031346 | BM14: Soda Lake area | BQ14: 205 | BR14: 1371.6 | BS14: 33.4991273 | BT14: 40 | BU14: 5164.63407 | BV14: 0.05011657449 | BW14: 358.5581084 | CA14: Kellog HS | CE14: 110 | CF14: 1524 | CG14: 5.902402896 | CH14: 40 | CI14: 22813.61077 | CJ14: 0.1169156791 | CK14: 749.938659 | CO14: 5k-250C | CS14: 275 | CT14: 5000 | CU14: 30 | CV14: 40 | CW14: 8863.532509 | CX14: 0.04967916908 | CY14: 340.0920073 | DF14: 10th percentile | DK14: =_xlfn.PERCENTILE.INC(DK6:DK12,0.1) -> 16540.85754 | DL14: =_xlfn.PERCENTILE.INC(DL6:DL12,0.1) -> 0.06228235202 | DM14: =_xlfn.PERCENTILE.INC(DM6:DM12,0.1) -> 404.8886063 | DN14: =_xlfn.PERCENTILE.INC(DN6:DN12,0.1) -> 
K15: GEO-Hydro Binary example | L15: 0.8 | AC15: 12 | AD15: Desert Peak | AH15: 215 | AI15: 1676.4 | AJ15: 19.325 | AK15: 80 | AL15: 6649.524402 | AM15: 0.02346183045 | AN15: 149.246514 | AO15: 113.2578467 | AX15: 0 | AY15: Bradfield Canal Hot Spring | BC15: 110 | BD15: 1524 | BE15: 9.160105326 | BF15: 100 | BG15: 21833.56552 | BH15: 0.09365113927 | BI15: 537.7143142 | BJ15: 425.1733148 | BM15: Fish Lake Valley | BQ15: 205 | BR15: 1524 | BS15: 62.6124022 | BT15: 40 | BU15: 4900.409033 | BV15: 0.04831357753 | BW15: 346.4167815 | CA15: Boyes HS | CE15: 110 | CF15: 1524 | CG15: 10.26309834 | CH15: 40 | CI15: 21431.85261 | CJ15: 0.1111509466 | CK15: 717.834022 | CO15: 6k-250C | CS15: 275 | CT15: 6000 | CU15: 30 | CV15: 40 | CW15: 11317.62132 | CX15: 0.05712518632 | CY15: 387.0950848 | DF15: median | DG15: =MEDIAN(DG6:DG12) -> 175 | DH15: 7000 | DI15: 20 | DJ15: 40 | DK15: 27272.07905 | DL15: 0.09503610894 | DM15: 608.6585792
K16: GEO-NF EGS Flash example | L16: 0.9 | O16: Geothermal | AC16: 12 | AD16: Beowawe HS | AH16: 215 | AI16: 2438.4 | AJ16: 51.6375 | AK16: 80 | AL16: 5809.678911 | AM16: 0.02088441592 | AN16: 135.4901256 | AO16: 99.5996652 | AX16: 15 | AY16: Owl Creek Hot Springs | BC16: 110 | BD16: 1828.8 | BE16: 9.793686134 | BF16: 100 | BG16: 23414.83943 | BH16: 0.09738473415 | BI16: 558.5483165 | BJ16: 453.3789074 | BM16: Steamboat Hills | BQ16: 210 | BR16: 1524 | BS16: 20.87669101 | BT16: 40 | BU16: 5724.948027 | BV16: 0.05136328352 | BW16: 365.6934697 | CA16: Sonoma Mission Inn | CE16: 110 | CF16: 1524 | CG16: 7.001850464 | CH16: 40 | CI16: 22271.52654 | CJ16: 0.1147591244 | CK16: 737.9679173 | CO16: 7k-250C | CS16: 275 | CT16: 7000 | CU16: 30 | CV16: 40 | CW16: 14222.09379 | CX16: 0.06591697124 | CY16: 442.6241747 | DF16: average | DG16: =AVERAGE(DG6:DG12) -> 175 | DH16: 7000 | DI16: 20 | DJ16: 40 | DK16: 28600.69793 | DL16: 0.09912989486 | DM16: 633.9952163
K17: GEO-NF EGS Binary example | L17: 0.8 | O17: Example projects are representative base scenarios. | S17: Available | T17: Available | AC17: 31 | AD17: Valles Caldera - Sulphur Springs | AH17: 225 | AI17: 3352.8 | AJ17: 34.38789551 | AK17: 80 | AL17: 8057.521167 | AM17: 0.0255332509 | AN17: 161.9406359 | AO17: 134.8383515 | AX17: 6 | AY17: Olene Hot Springs | BC17: 110 | BD17: 1524 | BE17: 10.32696952 | BF17: 100 | BG17: 21275.33358 | BH17: 0.09233874909 | BI17: 532.3828581 | BJ17: 415.5047345 | BM17: Beowawe HS | BQ17: 215 | BR17: 2438.4 | BS17: 44.74421367 | BT17: 40 | BU17: 6165.088033 | BV17: 0.05000415113 | BW17: 355.363922 | CA17: Routt | CE17: 110 | CF17: 1524 | CG17: 9.957304942 | CH17: 40 | CI17: 21482.30781 | CJ17: 0.1113832839 | CK17: 719.1345739 | CO17: 8k-250C | CS17: 275 | CT17: 8000 | CU17: 30 | CV17: 40 | CW17: 17598.4404 | CX17: 0.07612004334 | CY17: 507.1165258
K18: GEO-Deep EGS Flash example | L18: 0.9 | O18: CAPEX and O&M supply curves shown at right. | S18: Capacity | T18: Generation | AC18: 12 | AD18: Dixie Valley Geothermal Field | AH18: 225 | AI18: 1524 | AJ18: 116.625 | AK18: 80 | AL18: 3549.387765 | AM18: 0.01473198929 | AN18: 97.7270323 | AO18: 62.74804557 | AX18: 7 | AY18: Summer Lake Hot Springs | BC18: 110 | BD18: 1005.84 | BE18: 10.32980433 | BF18: 100 | BG18: 18485.64078 | BH18: 0.08581976874 | BI18: 497.5523708 | BJ18: 366.0190123 | BM18: Desert Peak | BQ18: 215 | BR18: 1676.4 | BS18: 18.94326947 | BT18: 40 | BU18: 5871.410543 | BV18: 0.05059441753 | BW18: 359.3887022 | CA18: Owl Creek Hot Springs | CE18: 110 | CF18: 1828.8 | CG18: 9.557578952 | CH18: 40 | CI18: 23821.63834 | CJ18: 0.1185797459 | CK18: 762.9287852 | CO18: 9k-250C | CS18: 275 | CT18: 9000 | CU18: 30 | CV18: 40 | CW18: 21469.27858 | CX18: 0.08780408628 | CY18: 581.0383984
K19: GEO-Deep EGS Binary example | L19: 0.8 | S19: (GW) | T19: (GWh) | AC19: 0 | AD19: Kluichef - Atka Island | AH19: 230 | AI19: 1524 | AJ19: 54.19987495 | AK19: 80 | AL19: 3906.957392 | AM19: 0.01591530322 | AN19: 104.6239644 | AO19: 68.69511075 | AX19: 33 | AY19: Routt | BC19: 110 | BD19: 1524 | BE19: 10.35717111 | BF19: 100 | BG19: 21262.51075 | BH19: 0.09230801608 | BI19: 532.2564648 | BJ19: 415.282082 | BM19: The Geysers 5 | BQ19: 220 | BR19: 2000 | BS19: 37 | BT19: 40 | BU19: 5350.945689 | BV19: 0.04655680773 | BW19: 331.975982 | CA19: White Licks Hot Springs | CE19: 110 | CF19: 1219.2 | CG19: 11.17525258 | CH19: 40 | CI19: 19262.83416 | CJ19: 0.1043793301 | CK19: 676.6762884 | CO19: 10k-250C | CS19: 275 | CT19: 10000 | CU19: 30 | CV19: 40 | CW19: 25856.01884 | CX19: 0.1010308391 | CY19: 664.8120983
O20: GEO-Hydro Flash example | R20: > 190° C | S20: 22.9 | T20: =ROUND(S20*8760*L14,-5) -> 200000 | AC20: 0 | AD20: Milky River - Atka Island | AH20: 245 | AI20: 1524 | AJ20: 67.71037752 | AK20: 80 | AL20: 3351.657371 | AM20: 0.01404185393 | AN20: 92.58220758 | AO20: 59.29056205 | AX20: 9 | AY20: Boyes HS | BC20: 110 | BD20: 1524 | BE20: 10.46117277 | BF20: 100 | BG20: 21218.90467 | BH20: 0.09220329317 | BI20: 531.8252353 | BJ20: 414.5247155 | BM20: Valles Caldera - Sulphur Springs | BQ20: 225 | BR20: 3352.8 | BS20: 33.75330706 | BT20: 40 | BU20: 7787.599324 | BV20: 0.05314500837 | BW20: 373.3229428 | CA20: Magic Reservoir area | CE20: 110 | CF20: 1219.2 | CG20: 11.09264177 | CH20: 40 | CI20: 19273.33218 | CJ20: 0.1044313435 | CK20: 676.9748685 | CO20: 4k-300C | CS20: 325 | CT20: 4000 | CU20: 30 | CV20: 40 | CW20: 5215.636089 | CX20: 0.03535415597 | CY20: 241.0236457
J21: Annual Energy Production (kWh/kW) | K21: GEO-Hydro Flash example | L21: =L14*8760 -> 7884 | O21: GEO-Hydro Binary example | R21: < 190° C | S21: 16.5 | T21: =ROUND(S21*8760*L15,-5) -> 100000 | AC21: 10 | AD21: South Brawley (Mesquite) | AH21: 250 | AI21: 3048 | AJ21: 52.88057384 | AK21: 80 | AL21: 5556.198164 | AM21: 0.01912569947 | AN21: 122.8819064 | AO21: 94.40380644 | AX21: 31 | AY21: Jemez Springs (Ojos Calientes) | BC21: 110 | BD21: 1524 | BE21: 10.77698892 | BF21: 100 | BG21: 21091.50104 | BH21: 0.09189542319 | BI21: 530.5525815 | BJ21: 412.3101031 | BM21: Dixie Valley Geothermal Field | BQ21: 225 | BR21: 1524 | BS21: 95.19 | BT21: 40 | BU21: 3977.963531 | BV21: 0.039850498 | BW21: 286.7954508 | CA21: Latty Hot Springs | CE21: 110 | CF21: 1524 | CG21: 8.062707869 | CH21: 40 | CI21: 21875.59587 | CJ21: 0.1131323379 | CK21: 728.8199092 | CO21: 5k-300C | CS21: 325 | CT21: 5000 | CU21: 30 | CV21: 40 | CW21: 6684.141552 | CX21: 0.03984369174 | CY21: 268.5406986
K22: GEO-Hydro Binary example | L22: 7008 | O22: GEO-NF EGS Flash example | R22: > 190° C | S22: 0.787 | T22: =ROUND(S22*8760*L16,-2) -> 6200 | AC22: 0 | AD22: Akutan Fumaroles | AH22: 250 | AI22: 1524 | AJ22: 61.54257868 | AK22: 80 | AL22: 3373.453272 | AM22: 0.01410518166 | AN22: 92.76615089 | AO22: 59.62306778 | AX22: 15 | AY22: White Licks Hot Springs | BC22: 110 | BD22: 1219.2 | BE22: 11.30076977 | BF22: 100 | BG22: 19229.10385 | BH22: 0.08746081646 | BI22: 507.275955 | BJ22: 379.2699846 | BM22: Kluichef - Atka Island | BQ22: 230 | BR22: 1524 | BS22: 42.91406031 | BT22: 40 | BU22: 4205.83604 | BV22: 0.04064818861 | BW22: 291.5168343 | CA22: Gregson (Fairmont) Hot Springs | CE22: 110 | CF22: 1524 | CG22: 8.566826476 | CH22: 40 | CI22: 21754.26844 | CJ22: 0.112603969 | CK22: 725.9116837 | CO22: 6k-300C | CS22: 325 | CT22: 6000 | CU22: 30 | CV22: 40 | CW22: 8451.302244 | CX22: 0.04522820156 | CY22: 301.4948547
K23: GEO-NF EGS Flash example | L23: 7884 | O23: GEO-NF EGS Binary example | R23: < 190° C | S23: 0.707 | T23: =ROUND(S23*8760*L17,-2) -> 5000 | AC23: 25 | AD23: Roosevelt HS | AH23: 250 | AI23: 1219.2 | AJ23: 64.4125 | AK23: 80 | AL23: 3033.702406 | AM23: 0.01327789992 | AN23: 87.75303284 | AO23: 54.16800712 | AX23: 15 | AY23: Magic Reservoir area | BC23: 110 | BD23: 1219.2 | BE23: 11.31922655 | BF23: 100 | BG23: 19223.12425 | BH23: 0.08744523931 | BI23: 507.2090594 | BJ23: 379.1650199 | BM23: Geysers | BQ23: 242 | BR23: 1828.8 | BS23: 240.0989144 | BT23: 40 | BU23: 3784.675625 | BV23: 0.03618175497 | BW23: 259.7550306 | CA23: Jemez Springs (Ojos Calientes) | CE23: 110 | CF23: 1524 | CG23: 10.72741032 | CH23: 40 | CI23: 21360.42057 | CJ23: 0.1108185694 | CK23: 715.9673665 | CO23: 7k-300C | CS23: 325 | CT23: 7000 | CU23: 30 | CV23: 40 | CW23: 10548.29231 | CX23: 0.05160383873 | CY23: 340.5486248
K24: GEO-NF EGS Binary example | L24: 7008 | O24: GEO-Deep EGS Flash example | R24: > 190° C | S24: 7417 | T24: =ROUND(S24*8760*L18,-5) -> 58500000 | AC24: 10 | AD24: North Brawley | AH24: 250 | AI24: 1524 | AJ24: 92.5625 | AK24: 80 | AL24: 3038.99486 | AM24: 0.01296219764 | AN24: 85.81899327 | AO24: 53.99743746 | AX24: 0 | AY24: Dulbi | BC24: 110 | BD24: 1524 | BE24: 11.40700701 | BF24: 100 | BG24: 20857.82301 | BH24: 0.09132302995 | BI24: 528.1666843 | BJ24: 408.2407818 | BM24: Milky River - Atka Island | BQ24: 245 | BR24: 1524 | BS24: 52.84816739 | BT24: 40 | BU24: 3654.592675 | BV24: 0.03614394206 | BW24: 259.3760546 | CA24: Rowland Hot Springs | CE24: 110 | CF24: 1524 | CG24: 6.798903111 | CH24: 40 | CI24: 22359.7188 | CJ24: 0.1151152677 | CK24: 739.9568635 | CO24: 8k-300C | CS24: 325 | CT24: 8000 | CU24: 30 | CV24: 40 | CW24: 12994.1657 | CX24: 0.05903063472 | CY24: 386.0932378
K25: GEO-Deep EGS Flash example | L25: 7884 | O25: GEO-Deep EGS Binary example | R25: < 190° C | S25: 8457 | T25: =ROUND(S25*8760*L19,-5) -> 59300000 | AC25: 8 | AD25: Medicine Lake (Glass Mt.) | AH25: 255 | AI25: 2743.2 | AJ25: 456.9675641 | AK25: 80 | AL25: 4201.201165 | AM25: 0.01561067244 | AN25: 101.8980518 | AO25: 72.52204211 | AX25: 8 | AY25: Fort Bidwell | BC25: 110 | BD25: 762 | BE25: 11.42665458 | BF25: 100 | BG25: 17014.88799 | BH25: 0.08227750921 | BI25: 479.487773 | BJ25: 339.9721351 | BM25: Akutan Fumaroles | BQ25: 250 | BR25: 1524 | BS25: 48.72152861 | BT25: 40 | BU25: 3604.204754 | BV25: 0.03543238683 | BW25: 253.9887641 | CA25: Dyke Hot Springs area | CE25: 110 | CF25: 1524 | CG25: 6.100588909 | CH25: 40 | CI25: 22702.97581 | CJ25: 0.1164816392 | CK25: 747.543212 | CO25: 9k-300C | CS25: 325 | CT25: 9000 | CU25: 30 | CV25: 40 | CW25: 15809.76003 | CX25: 0.06757480459 | CY25: 438.559983
K26: GEO-Deep EGS Binary example | L26: 7008 | AC26: 31 | AD26: Valles Caldera - Redondo | AH26: 275 | AI26: 3352.8 | AJ26: 127.2541975 | AK26: 80 | AL26: 4454.782526 | AM26: 0.01589543116 | AN26: 102.5632924 | AO26: 76.20301635 | AX26: 12 | AY26: Colado area | BC26: 110 | BD26: 1066.8 | BE26: 13.47840616 | BF26: 100 | BG26: 17891.77368 | BH26: 0.08408614151 | BI26: 490.6343646 | BJ26: 355.5550662 | BM26: North Brawley | BQ26: 250 | BR26: 1524 | BS26: 92.89697511 | BT26: 40 | BU26: 3279.897786 | BV26: 0.03355301031 | BW26: 241.3221799 | CA26: Colado area | CE26: 110 | CF26: 1066.8 | CG26: 12.81892991 | CH26: 40 | CI26: 18149.52967 | CJ26: 0.1006566023 | CK26: 654.1673553 | CO26: 10k-300C | CS26: 325 | CT26: 10000 | CU26: 30 | CV26: 40 | CW26: 19016.9669 | CX26: 0.07730360942 | CY26: 498.3912478
O27: Financial Assumptions: | AC27: 5 | AD27: Newberry Caldera | AH27: 275 | AI27: 2133.6 | AJ27: 155.202303 | AK27: 80 | AL27: 3127.173059 | AM27: 0.01274226786 | AN27: 83.37914044 | AO27: 54.93829881 | AX27: 28 | AY27: Gillard (Morenci) Hot Springs | BC27: 110 | BD27: 1524 | BE27: 14.74514338 | BF27: 100 | BG27: 19943.95754 | BH27: 0.08897215421 | BI27: 518.0825736 | BJ27: 392.2189119 | BM27: South Brawley (Mesquite) | BQ27: 250 | BR27: 3048 | BS27: 37.0707047 | BT27: 40 | BU27: 5870.285249 | BV27: 0.04293042994 | BW27: 302.4327688 | CA27: Clark Ranch | CE27: 110 | CF27: 1524 | CG27: 8.559271241 | CH27: 40 | CI27: 21755.9736 | CJ27: 0.1126114661 | CK27: 725.9530245 | CO27: 4k-350C | CS27: 375 | CT27: 4000 | CU27: 30 | CV27: 40 | CW27: 3718.42479 | CX27: 0.02937279055 | CY27: 193.9353896
J28: CAPEX ($/kW) | K28: GEO-Hydro Flash example | L28: =$S$40*(L42 + L72) -> 6624.160404 | O28: Inflation Rate | S28: 0.025 | AC28: 12 | AD28: Dixie Valley Power Partners | AH28: 280 | AI28: 1524 | AJ28: 97.3875 | AK28: 80 | AL28: 2609.544272 | AM28: 0.0115358069 | AN28: 75.91165809 | AO28: 46.64887069 | AX28: 25 | AY28: Newcastle area | BC28: 110 | BD28: 762 | BE28: 15.33395106 | BF28: 100 | BG28: 16203.31097 | BH28: 0.079848356 | BI28: 468.3902238 | BJ28: 325.4375708 | BM28: Roosevelt HS | BQ28: 250 | BR28: 1219.2 | BS28: 74.53025515 | BT28: 40 | BU28: 3070.312427 | BV28: 0.0331412996 | BW28: 238.7571276 | CA28: Summer Lake Hot Springs | CE28: 110 | CF28: 1005.84 | CG28: 9.898174179 | CH28: 40 | CI28: 18135.61428 | CJ28: 0.1013473518 | CK28: 657.8297517 | CO28: 5k-350C | CS28: 375 | CT28: 5000 | CU28: 30 | CV28: 40 | CW28: 4696.455779 | CX28: 0.03233557735 | CY28: 211.0717314
K29: GEO-Hydro Binary example | L29: =$S$40*(L43 + L73) -> 6954.705124 | O29: Economic Lifetime (Years) | S29: 20 | AC29: 10 | AD29: Coso area | AH29: 285 | AI29: 1524 | AJ29: 347.076 | AK29: 80 | AL29: 2534.608735 | AM29: 0.01128715888 | AN29: 74.18525636 | AO29: 45.36690496 | AX29: 28 | AY29: Clifton Hot Springs | BC29: 110 | BD29: 1524 | BE29: 18.06666929 | BF29: 100 | BG29: 19359.89863 | BH29: 0.08735076033 | BI29: 510.839075 | BJ29: 381.8651203 | BM29: Coso 2 | BQ29: 250 | BR29: 2500 | BS29: 43.57039821 | BT29: 40 | BU29: 4860.600858 | BV29: 0.03954163834 | BW29: 280.614795 | CA29: Olene Hot Springs | CE29: 110 | CF29: 1524 | CG29: 9.88430265 | CH29: 40 | CI29: 21494.78678 | CJ29: 0.1114404466 | CK29: 719.45402 | CO29: 6k-350C | CS29: 375 | CT29: 6000 | CU29: 30 | CV29: 40 | CW29: 5859.950166 | CX29: 0.03586222679 | CY29: 231.3547166
K30: GEO-NF EGS Flash example | L30: 7729.661139 | O30: Interest Rate - Nominal | S30: 0.08 | AC30: 10 | AD30: East Brawley | AH30: 285 | AI30: 3048 | AJ30: 448.1558867 | AK30: 80 | AL30: 3922.640765 | AM30: 0.01456410538 | AN30: 93.99395877 | AO30: 67.56788133 | AX30: 0 | AY30: Tolvana | BC30: 110 | BD30: 1524 | BE30: 18.13648253 | BF30: 100 | BG30: 19349.8289 | BH30: 0.08732179253 | BI30: 510.7073743 | BJ30: 381.6856375 | BM30: Salton Sea area 3 | BQ30: 250 | BR30: 2500 | BS30: 66.06748269 | BT30: 40 | BU30: 4533.051503 | BV30: 0.03793281422 | BW30: 270.059404 | CA30: Newcastle area | CE30: 110 | CF30: 762 | CG30: 14.47707856 | CH30: 40 | CI30: 16314.27139 | CJ30: 0.09482798608 | CK30: 618.5529729 | CO30: 7k-350C | CS30: 375 | CT30: 7000 | CU30: 30 | CV30: 40 | CW30: 7240.493768 | CX30: 0.04002125953 | CY30: 255.3351029
K31: GEO-NF EGS Binary example | L31: 11848.75688 | O31: Calculated Interest Rate - Real | S31: =(1+S30)/(1+S28)-1 -> 0.05365853659 | AC31: 9 | AD31: Clear Lake (Sulphur Bank mine) | AH31: 300 | AI31: 3657.6 | AJ31: 36.50160173 | AK31: 80 | AL31: 6093.052145 | AM31: 0.01932653075 | AN31: 119.1436394 | AO31: 101.5435542 | AX31: 8 | AY31: Amedee | BC31: 115 | BD31: 457.2 | BE31: 6.9625 | BF31: 100 | BG31: 15506.13812 | BH31: 0.07181072239 | BI31: 420.9194997 | BJ31: 307.5324621 | BM31: Medicine Lake (Glass Mt.) | BQ31: 255 | BR31: 2743.2 | BS31: 264.271555 | BT31: 40 | BU31: 4547.323437 | BV31: 0.03687160255 | BW31: 262.2565863 | CA31: Surprise Valley HS | CE31: 115 | CF31: 1524 | CG31: 8.65455296 | CH31: 40 | CI31: 19019.20642 | CJ31: 0.09766566585 | CK31: 633.7369917 | CO31: 8k-350C | CS31: 375 | CT31: 8000 | CU31: 30 | CV31: 40 | CW31: 8854.740745 | CX31: 0.04486375924 | CY31: 283.3586602
K32: GEO-Deep EGS Flash example | L32: 7729.661139 | O32: Interest During Construction - Nominal | S32: 0.08 | AC32: 10 | AD32: Salton Sea area | AH32: 310 | AI32: 2286 | AJ32: 2103.057 | AK32: 80 | AL32: 2801.750967 | AM32: 0.01170147101 | AN32: 75.44267173 | AO32: 49.31544107 | AX32: 5 | AY32: Kahneetah Hot Springs | BC32: 115 | BD32: 1066.8 | BE32: 7.580103354 | BF32: 100 | BG32: 17750.37579 | BH32: 0.07597593018 | BI32: 443.7896799 | BJ32: 346.606517 | BM32: The Geysers 2 | BQ32: 265 | BR32: 3000 | BS32: 70 | BT32: 40 | BU32: 4740.959273 | BV32: 0.03680537626 | BW32: 260.3605825 | CA32: Amedee | CE32: 115 | CF32: 457.2 | CG32: 8.708650828 | CH32: 40 | CI32: 13602.93502 | CJ32: 0.08197869364 | CK32: 538.2664291 | CO32: 9k-350C | CS32: 375 | CT32: 9000 | CU32: 30 | CV32: 40 | CW32: 10735.76557 | CX32: 0.05055544218 | CY32: 316.397112
K33: GEO-Deep EGS Binary example | L33: 11848.75688 | O33: Rate of Return on Equity - Nominal | S33: 0.13 | AC33: 0 | AD33: Puna Geothermal Venture | AH33: 350 | AI33: 1066.8 | AJ33: 226.5771824 | AK33: 80 | AL33: 1750.31855 | AM33: 0.009179897175 | AN33: 58.51004346 | AO33: 32.25370129 | AX33: 10 | AY33: Arrowhead HS | BC33: 115 | BD33: 1371.6 | BE33: 8.833553064 | BF33: 100 | BG33: 18476.95527 | BH33: 0.07743321208 | BI33: 453.361263 | BJ33: 359.5662411 | BM33: Valles Caldera - Redondo | BQ33: 275 | BR33: 3352.8 | BS33: 84.2006152 | BT33: 40 | BU33: 4823.780225 | BV33: 0.03591347209 | BW33: 253.0742602 | CA33: Arrowhead HS | CE33: 115 | CF33: 1371.6 | CG33: 7.698722095 | CH33: 40 | CI33: 18383.77087 | CJ33: 0.09613695304 | CK33: 623.9384035 | CO33: 10k-350C | CS33: 375 | CT33: 10000 | CU33: 30 | CV33: 40 | CW33: 12893.6318 | CX33: 0.05713689467 | CY33: 354.6737933
O34: Calculated Rate of Return on Equity - Real | S34: =(1+S33)/(1+S28) - 1 -> 0.1024390244 | AC34: 27 | AD34: Undiscovered >190 - NV | AH34: 221.201889 | AI34: 1504.666914 | AJ34: =IF(AH34<140, 15, IF(AH34<=190, 30, 40)) -> 40 | AK34: 80 | AL34: 4538.735627 | AM34: 0.01796919408 | AN34: 117.3705392 | AO34: 79.2738585 | AX34: 12 | AY34: Butte Springs (Trego) | BC34: 115 | BD34: 1524 | BE34: 9.104764679 | BF34: 100 | BG34: 19107.68423 | BH34: 0.07880043041 | BI34: 460.9788834 | BJ34: 370.7177764 | BM34: Newberry Caldera | BQ34: 275 | BR34: 2133.6 | BS34: 112.5389556 | BT34: 40 | BU34: 3305.036701 | BV34: 0.03090567928 | BW34: 220.4616904 | CA34: Sharkey Hot Springs | CE34: 115 | CF34: 1828.8 | CG34: 12.76945783 | CH34: 40 | CI34: 20296.93073 | CJ34: 0.1005122389 | CK34: 652.7966382
J35: Construction Financing Cost ($/kW) | K35: GEO-Hydro Flash example | L35: =(L42+L72)*($S$40-1) -> 632.1604038 | O35: Debt Fraction | S35: 0.5 | AC35: 3 | AD35: Undiscovered >190 - AK | AH35: 224.339148 | AI35: 1524 | AJ35: 40 | AK35: 80 | AL35: 4482.834251 | AM35: 0.01773203568 | AN35: 115.7912437 | AO35: 78.28050708 | AX35: 12 | AY35: Wabuska Hot Springs | BC35: 115 | BD35: 1524 | BE35: 9.475 | BF35: 100 | BG35: 18915.22195 | BH35: 0.07837486801 | BI35: 459.2555095 | BJ35: 367.400731 | BM35: Dixie Valley Power Partners | BQ35: 280 | BR35: 1524 | BS35: 66.00592253 | BT35: 40 | BU35: 2871.913466 | BV35: 0.02960893863 | BW35: 211.6241661 | CA35: Vulcan Hot Springs | CE35: 115 | CF35: 1524 | CG35: 12.14588224 | CH35: 40 | CI35: 18464.69685 | CJ35: 0.09514624947 | CK35: 619.5676658 | CQ35: 10th percentile | CW35: =_xlfn.PERCENTILE.INC(CW6:CW33,0.1) -> 5666.655943 | CX35: =_xlfn.PERCENTILE.INC(CX6:CX33,0.1) -> 0.03570980554 | CY35: =_xlfn.PERCENTILE.INC(CY6:CY33,0.1) -> 238.122967 | CZ35: =_xlfn.PERCENTILE.INC(CZ6:CZ33,0.1) -> 
K36: GEO-Hydro Binary example | L36: =(L43+L73)*($S$40-1) -> 663.7051235 | O36: Tax Rate (Federal and State) | S36: 0.4 | AC36: 33 | AD36: Undiscovered >190 - UT | AH36: 250 | AI36: 1219.2 | AJ36: 40 | AK36: 80 | AL36: 3621.024709 | AM36: 0.01517802775 | AN36: 99.25521269 | AO36: =(($S$44 * $S$42 * $S$40 * (AL36 * 1 + $L$72) +AN36) * 1000 / ($L$14 * 8760)) + AM36 + 0 -> 63.95828554 | AX36: 8 | AY36: Surprise Valley HS | BC36: 115 | BD36: 1524 | BE36: 9.725 | BF36: 100 | BG36: 18793.35786 | BH36: 0.07810272139 | BI36: 458.1458799 | BJ36: 365.2977994 | BM36: Coso area | BQ36: 285 | BR36: 1524 | BS36: 273.6869814 | BT36: 40 | BU36: 2661.627411 | BV36: 0.02804668471 | BW36: 200.606741 | CA36: Silver Star (Barkel's) Hot Springs | CE36: 115 | CF36: 1524 | CG36: 11.41629115 | CH36: 40 | CI36: 18554.06032 | CJ36: 0.09556928886 | CK36: 621.977364 | CQ36: median | CS36: =MEDIAN(CS6:CS33) -> 300 | CT36: 7000 | CU36: 30 | CV36: 40 | CW36: 11916.62839 | CX36: 0.0579105818 | CY36: 386.5941613
K37: GEO-NF EGS Flash example | L37: 737.6611387 | O37: WACC - Nominal | S37: =IF(S36>0,S35*S30*(1-S36)+(1-S35)*S33,S35*S30+(1-S35)*S33) -> 0.089 | AC37: 24 | AD37: Undiscovered >190 - NM | AH37: 264.3629515 | AI37: 3352.8 | AJ37: 40 | AK37: 80 | AL37: 6222.476934 | AM37: 0.02029107295 | AN37: 128.1681954 | AO37: 104.5246986 | AX37: 17 | AY37: Silver Star (Barkel's) Hot Springs | BC37: 115 | BD37: 1524 | BE37: 11.38680773 | BF37: 100 | BG37: 18116.21269 | BH37: 0.07654825097 | BI37: 451.6902844 | BJ37: 353.5713275 | BM37: East Brawley | BQ37: 285 | BR37: 3048 | BS37: 273.0679135 | BT37: 40 | BU37: 4131.485846 | BV37: 0.03275759177 | BW37: 231.2234347 | CA37: Ennis (Thexton) Hot Springs | CE37: 115 | CF37: 1524 | CG37: 18.04287073 | CH37: 40 | CI37: 17993.72116 | CJ37: 0.09277325504 | CK37: 605.80019 | CQ37: average | CS37: =AVERAGE(CS6:CS33) -> 300 | CT37: 7000 | CU37: 30 | CV37: 40 | CW37: 13908.20212 | CX37: 0.06470743955 | CY37: 429.81475
K38: GEO-NF EGS Binary example | L38: 1130.756877 | O38: WACC - Real | S38: =((1+((1-S35)*((1+S34)*(1+S28)-1)) + (S35*((1+S31)*(1+S28)-1)*(1-S36))) / (1+S28)) - 1 -> 0.06243902439 | AC38: 30 | AD38: Undiscovered >190 - OR | AH38: 275 | AI38: 2133.6 | AJ38: 40 | AK38: 80 | AL38: 4250.079098 | AM38: 0.01602752653 | AN38: 102.6667886 | AO38: 73.31315561 | AX38: 7 | AY38: Trout Creek | BC38: 115 | BD38: 914.4 | BE38: 11.40747527 | BF38: 100 | BG38: 15421.18816 | BH38: 0.07053060405 | BI38: 419.2266069 | BJ38: 305.9342534 | BM38: Clear Lake (Sulphur Bank mine) | BQ38: 300 | BR38: 3657.6 | BS38: 15.88658837 | BT38: 40 | BU38: 6333.508917 | BV38: 0.04102311111 | BW38: 279.255829 | CA38: Butte Springs (Trego) | CE38: 115 | CF38: 1524 | CG38: 9.158790758 | CH38: 40 | CI38: 18914.54226 | CJ38: 0.09720774029 | CK38: 631.1930476
K39: GEO-Deep EGS Flash example | L39: 737.6611387 | O39: Depreciation Period | S39: 5 | AC39: 9 | AD39: Undiscovered >190 - CA | AH39: 290.2311072 | AI39: 2189.290028 | AJ39: 40 | AK39: 80 | AL39: 4089.610597 | AM39: 0.01548322755 | AN39: 98.50141249 | AO39: 70.5085015 | AX39: 15 | AY39: Sharkey Hot Springs | BC39: 115 | BD39: 1828.8 | BE39: 12.48592526 | BF39: 100 | BG39: 19292.01659 | BH39: 0.0792237698 | BI39: 467.2592547 | BJ39: 374.5553646 | BM39: The Geysers 6 | BQ39: 300 | BR39: 4000 | BS39: 55 | BT39: 40 | BU39: 5301.368864 | BV39: 0.03612966677 | BW39: 250.6649451 | CA39: Wabuska Hot Springs | CE39: 115 | CF39: 1524 | CG39: 10.05770498 | CH39: 40 | CI39: 18752.71596 | CJ39: 0.09648472802 | CK39: 627.1487442
K40: GEO-Deep EGS Binary example | L40: 1130.756877 | O40: Construction Finance Factor | S40: =SUMPRODUCT(P49:P52,Q49:Q52) -> 1.105500735 | AC40: 15 | AD40: Undiscovered >190 - HI | AH40: 350 | AI40: 1066.8 | AJ40: 40 | AK40: 80 | AL40: 2565.895529 | AM40: 0.01213266319 | AN40: 75.65862031 | AO40: 45.99834252 | AX40: 15 | AY40: Vulcan Hot Springs | BC40: 115 | BD40: 1524 | BE40: 12.61243592 | BF40: 100 | BG40: 17728.35415 | BH40: 0.07562084463 | BI40: 447.7384953 | BJ40: 346.8182827 | BM40: Coso 1 | BQ40: 300 | BR40: 4000 | BS40: 45 | BT40: 40 | BU40: 5486.338601 | BV40: 0.03696106822 | BW40: 255.7993982 | CA40: Kahneetah Hot Springs | CE40: 115 | CF40: 1066.8 | CG40: 7.014513618 | CH40: 40 | CI40: 16924.91581 | CJ40: 0.09217690092 | CK40: 599.5985187
O41: Present Value of Depreciation | S41: =SUMPRODUCT(O55:T55,O57:T57) -> 0.7938171517 | AX41: 17 | AY41: Ennis (Thexton) Hot Springs | BC41: 115 | BD41: 1524 | BE41: 16.16442599 | BF41: 100 | BG41: 16928.01508 | BH41: 0.07359868599 | BI41: 438.8385518 | BJ41: 332.7770104 | BM41: Salton Sea area | BQ41: 310 | BR41: 2286 | BS41: 1773.77 | BT41: 40 | BU41: 2851.814365 | BV41: 0.02707920954 | BW41: 191.31408 | CA41: Trout Creek | CE41: 115 | CF41: 914.4 | CG41: 11.37008847 | CH41: 40 | CI41: 15274.19502 | CJ41: 0.08588611523 | CK41: 562.5140153
J42: Overnight Capital Cost ($/kW) | K42: GEO-Hydro Flash example | L42: 5992 | O42: Project Finance Factor | S42: =(1 - S36 * S41) / (1 - S36) -> 1.137455232 | AG42: 10th percentile | AL42: =_xlfn.PERCENTILE.INC(AL6:AL40,0.1) -> 2686.42695 | AM42: =_xlfn.PERCENTILE.INC(AM6:AM40,0.1) -> 0.01187394788 | AN42: =_xlfn.PERCENTILE.INC(AN6:AN40,0.1) -> 75.75983542 | AO42: =_xlfn.PERCENTILE.INC(AO6:AO40,0.1) -> 47.71549884 | AX42: 1 | AY42: Baker Hot Spring | BC42: 115 | BD42: 1524 | BE42: 28.37018835 | BF42: 100 | BG42: 15667.59838 | BH42: 0.06997096886 | BI42: 421.7682927 | BJ42: 310.2278126 | BM42: Geysers Hi T Reservoir | BQ42: 315 | BR42: 1828.8 | BS42: 273.4381652 | BT42: 40 | BU42: 2446.487173 | BV42: 0.02550482973 | BW42: 180.5881786 | CA42: Baker Hot Spring | CE42: 115 | CF42: 1524 | CG42: 24.50368421 | CH42: 40 | CI42: 17722.44145 | CJ42: 0.09126341897 | CK42: 596.8013444
K43: GEO-Hydro Binary example | L43: 6291 | O43: Capital Recovery Factor (CRF) - Nominal | S43: =S37 / (1 - (1 / (1 + S37)^S29)) -> 0.1087669328 | AG43: median | AH43: =MEDIAN(AH6:AH40) -> 250 | AI43: =MEDIAN(AI6:AI40) -> 1524 | AJ43: =MEDIAN(AJ6:AJ40) -> 61.54257868 | AK43: 80 | AL43: =MEDIAN(AL6:AL40) -> 4129.915495 | AM43: =MEDIAN(AM6:AM40) -> 0.01589543116 | AN43: =MEDIAN(AN6:AN40) -> 102.6667886 | AO43: =MEDIAN(AO6:AO40) -> 72.52204211 | AX43: 12 | AY43: Leach HS | BC43: 120 | BD43: 1524 | BE43: 9.367628907 | BF43: 100 | BG43: 16962.38844 | BH43: 0.06809758171 | BI43: 403.564234 | BJ43: 328.286495 | BM43: The Geysers 4 | BQ43: 320 | BR43: 3000 | BS43: 68 | BT43: 40 | BU43: 3476.528105 | BV43: 0.02904053055 | BW43: 202.7194641 | CA43: Bell Island HS | CE43: 120 | CF43: 1524 | CG43: 12.99558913 | CH43: 40 | CI43: 16250.14066 | CJ43: 0.08326227188 | CK43: 545.3783165
K44: GEO-NF EGS Flash example | L44: 6992 | O44: Capital Recovery Factor (CRF) - Real | S44: =S38 / (1 - (1 / (1 + S38)^S29)) -> 0.08891871362 | AG44: average | AH44: =AVERAGE(AH6:AH40) -> 247.8610027 | AI44: =AVERAGE(AI6:AI40) -> 1938.695913 | AJ44: =AVERAGE(AJ6:AJ40) -> 157.9731839 | AK44: 80 | AL44: =AVERAGE(AL6:AL40) -> 4328.144702 | AM44: =AVERAGE(AM6:AM40) -> 0.01664987171 | AN44: =AVERAGE(AN6:AN40) -> 107.9648022 | AO44: =AVERAGE(AO6:AO40) -> 75.09290617 | AX44: 12 | AY44: Black Rock Point area | BC44: 120 | BD44: 1524 | BE44: 10.6732879 | BF44: 100 | BG44: 16377.70062 | BH44: 0.06682179459 | BI44: 398.3054411 | BJ44: 318.2062206 | BM44: Coso 3 | BQ44: 325 | BR44: 3500 | BS44: 66.74691933 | BT44: 40 | BU44: 3879.369202 | BV44: 0.0301171381 | BW44: 208.8406799 | CA44: Kelly HS | CE44: 120 | CF44: 1828.8 | CG44: 10.44895153 | CH44: 40 | CI44: 18230.71725 | CJ44: 0.08962236035 | CK44: 583.7892653
K45: GEO-NF EGS Binary example | L45: 10718 | AX45: 10 | AY45: Tecopa HS | BC45: 120 | BD45: 1524 | BE45: 11.29111209 | BF45: 100 | BG45: 16147.12164 | BH45: 0.06630410168 | BI45: 396.1299414 | BJ45: 314.2164215 | BM45: Salton Sea area 2 | BQ45: 325 | BR45: 4000 | BS45: 50.0555364 | BT45: 40 | BU45: 4666.128468 | BV45: 0.03296407429 | BW45: 226.6825573 | CA45: Canby (I'SOT) | CE45: 120 | CF45: 1524 | CG45: 10.51062314 | CH45: 40 | CI45: 16555.91503 | CJ45: 0.08468803125 | CK45: 553.5194985
